Workbook

Sheet RawAll
B11: Paste->
A12: =IF(C12="MESSAGE",E12,"") ->  | B12: =IF(A12="","",ROW()) -> 
C13: Table | D13: 01:00:00 | E13: MAINWAPP, | F13: adb
A15: =IF(C15="MESSAGE",E15,"") -> Objective | B15: =IF(A15="","",ROW()) -> 15 | C15: MESSAGE | D15: Int_V2 | E15: Objective
A16: =IF(C16="MESSAGE",E16,"") ->  | B16: =IF(A16="","",ROW()) ->  | C16: May | D16: 14, | E16: 2013 | F16: 17:40:00
D18: obj
C20: 2010 | D20: 256415300
C21: 2011 | D21: 0
C22: 2012 | D22: 0
C23: 2013 | D23: 0
C24: 2014 | D24: 0
C25: 2015 | D25: 0
C26: 2016 | D26: 0
C27: 2017 | D27: 0
C28: 2018 | D28: 0
C29: 2019 | D29: 0
C30: 2020 | D30: 0
C31: 2021 | D31: 0
C32: 2022 | D32: 0
C33: 2023 | D33: 0
C34: 2024 | D34: 0
C35: 2025 | D35: 0
C36: 2026 | D36: 0
C37: 2027 | D37: 0
C38: 2028 | D38: 0
C39: 2029 | D39: 0
C40: 2030 | D40: 0
C41: 2031 | D41: 0
C42: 2040 | D42: 0
C43: 2050 | D43: 0
C46: Table | D46: 02:00:00 | E46: MAINWAPP, | F46: adb
A48: TransmissionOutput | B48: 48 | C48: MESSAGE | D48: Int_V2 | E48: TransmissionOutput
C49: May | D49: 14, | E49: 2013 | F49: 17:40:00
D51: ELEXGHwCIwOut | E51: ELEXGHwTBwOut | F51: ELEXSEwMAwOut | G51: ELEXCIwBUwOut | H51: ELEXNGwTBwOut | I51: ELEXNGwNIwOut | J51: ELEXCIwGHwOut | K51: ELEXTBwGHwOut | L51: ELEXMAwSEwOut | M51: ELEXBUwCIwOut | N51: ELEXTBwNGwOut | O51: ELEXNIwNGwOut | P51: ELNCDorGHwTBwOut | Q51: ELNCDorCIwGHwOut | R51: ELNCDorTBwGHwOut | S51: ELNCDorGHwCIwOut | T51: ELNCCLSGCIwLIwOut | U51: ELNCCLSGLIwGUwOut | V51: ELNCCLSGLIwSIwOut | W51: ELNCCLSGSIwGUwOut | X51: ELNCCLSGLIwCIwOut | Y51: ELNCCLSGGUwLIwOut | Z51: ELNCCLSGSIwLIwOut | AA51: ELNCCLSGGUwSIwOut | AB51: ELNCOMVGSEwGUwOut | AC51: ELNCOMVGSEwGAwOut | AD51: ELNCOMVGGAwGBwOut | AE51: ELNCOMVGGBwGUwOut | AF51: ELNCOMVGGUwSEwOut | AG51: ELNCOMVGGAwSEwOut | AH51: ELNCOMVGGBwGAwOut | AI51: ELNCOMVGGUwGBwOut | AJ51: ELNUCoNNGwNIwOut | AK51: ELNUCoNNIwTBwOut | AL51: ELNUCoNNIwBUwOut | AM51: ELNUCoNNIwNGwOut | AN51: ELNUCoNTBwNIwOut | AO51: ELNUCoNBUwNIwOut | AP51: ELNChubGHwBUwOut | AQ51: ELNChubBUwMAwOut | AR51: ELNChubMAwCIwOut | AS51: ELNUhubGUwMAwOut | AT51: ELNChubBUwGHwOut | AU51: ELNChubMAwBUwOut | AV51: ELNChubCIwMAwOut | AW51: ELNUhubMAwGUwOut | AX51: ELNUDmeNGwTBwOut | AY51: ELNUDMeTBwGHwOut | AZ51: ELNUDMeTBwNGwOut | BA51: ELNUDMeGHwTBwOut | BB51: ELNUOMVGMAwSEwOut | BC51: ELNUOMVSSEwMAwOut | BD51: ELNULICILIwCIwOut | BE51: ELNULICICIwLIwOut | BF51: ELNUNGTBNGwTBwOut | BG51: ELNUNGTBTBwNGwOut | BH51: ELNUIngDRcNGwOut
C53: 2010 | D53: 0 | E53: 0 | F53: 21.36 | G53: 87.14 | H53: 223.12 | I53: 67 | J53: 0 | K53: 0 | L53: 0.86 | M53: 0 | N53: 0 | O53: 0 | P53: 0 | Q53: 0 | R53: 0 | S53: 0 | T53: 0 | U53: 0 | V53: 0 | W53: 0 | X53: 0 | Y53: 0 | Z53: 0 | AA53: 0 | AB53: 0 | AC53: 0 | AD53: 0 | AE53: 0 | AF53: 0 | AG53: 0 | AH53: 0 | AI53: 0 | AJ53: 0 | AK53: 0 | AL53: 0 | AM53: 0 | AN53: 0 | AO53: 0 | AP53: 0 | AQ53: 0 | AR53: 0 | AS53: 0 | AT53: 0 | AU53: 0 | AV53: 0 | AW53: 0 | AX53: 0 | AY53: 0 | AZ53: 0 | BA53: 0 | BB53: 0 | BC53: 0 | BD53: 0 | BE53: 0 | BF53: 0 | BG53: 0 | BH53: 0
C54: 2011 | D54: 0 | E54: 0 | F54: 0 | G54: 0 | H54: 567.99 | I54: 68.51 | J54: 124.2 | K54: 309.47 | L54: 2.8 | M54: 34.14 | N54: 0 | O54: 0 | P54: 0 | Q54: 0 | R54: 0 | S54: 0 | T54: 0 | U54: 0 | V54: 0 | W54: 0 | X54: 0 | Y54: 0 | Z54: 0 | AA54: 0 | AB54: 0 | AC54: 0 | AD54: 0 | AE54: 0 | AF54: 0 | AG54: 0 | AH54: 0 | AI54: 0 | AJ54: 0 | AK54: 0 | AL54: 0 | AM54: 0 | AN54: 0 | AO54: 0 | AP54: 0 | AQ54: 0 | AR54: 0 | AS54: 0 | AT54: 0 | AU54: 0 | AV54: 0 | AW54: 0 | AX54: 0 | AY54: 0 | AZ54: 0 | BA54: 0 | BB54: 0 | BC54: 0 | BD54: 0 | BE54: 0 | BF54: 0 | BG54: 0 | BH54: 0
C55: 2012 | D55: 0 | E55: 0 | F55: 0 | G55: 40.82 | H55: 596.73 | I55: 74.9 | J55: 13.13 | K55: 309.47 | L55: 14.12 | M55: 0 | N55: 0 | O55: 0 | P55: 0 | Q55: 0 | R55: 0 | S55: 0 | T55: 0 | U55: 0 | V55: 0 | W55: 0 | X55: 0 | Y55: 0 | Z55: 0 | AA55: 0 | AB55: 0 | AC55: 0 | AD55: 0 | AE55: 0 | AF55: 0 | AG55: 0 | AH55: 0 | AI55: 0 | AJ55: 0 | AK55: 0 | AL55: 0 | AM55: 0 | AN55: 0 | AO55: 0 | AP55: 0 | AQ55: 0 | AR55: 0 | AS55: 0 | AT55: 0 | AU55: 0 | AV55: 0 | AW55: 0 | AX55: 0 | AY55: 0 | AZ55: 0 | BA55: 0 | BB55: 0 | BC55: 0 | BD55: 0 | BE55: 0 | BF55: 0 | BG55: 0 | BH55: 0
C56: 2013 | D56: 6 | E56: 0 | F56: 0 | G56: 38.98 | H56: 685.04 | I56: 81.11 | J56: 0 | K56: 223.79 | L56: 38.95 | M56: 0 | N56: 0 | O56: 0 | P56: 0 | Q56: 0 | R56: 259.83 | S56: 0 | T56: 0 | U56: 0 | V56: 0 | W56: 0 | X56: 0 | Y56: 0 | Z56: 0 | AA56: 0 | AB56: 0 | AC56: 0 | AD56: 0 | AE56: 0 | AF56: 0 | AG56: 0 | AH56: 0 | AI56: 0 | AJ56: 0 | AK56: 0 | AL56: 0 | AM56: 0 | AN56: 0 | AO56: 0 | AP56: 68.58 | AQ56: 0 | AR56: 0 | AS56: 0 | AT56: 0 | AU56: 0 | AV56: 101.6 | AW56: 0 | AX56: 0 | AY56: 0 | AZ56: 0 | BA56: 0 | BB56: 0 | BC56: 0 | BD56: 0 | BE56: 0 | BF56: 0 | BG56: 0 | BH56: 0
C57: 2014 | D57: 0 | E57: 0 | F57: 0 | G57: 103.69 | H57: 507.34 | I57: 43.95 | J57: 0 | K57: 146.79 | L57: 4.21 | M57: 0 | N57: 0 | O57: 0 | P57: 0 | Q57: 0 | R57: 48.22 | S57: 0 | T57: 0 | U57: 0 | V57: 0 | W57: 0 | X57: 0 | Y57: 0 | Z57: 0 | AA57: 0 | AB57: 0 | AC57: 0 | AD57: 0 | AE57: 0 | AF57: 0 | AG57: 0 | AH57: 0 | AI57: 0 | AJ57: 0 | AK57: 0 | AL57: 0 | AM57: 0 | AN57: 0 | AO57: 0 | AP57: 8.03 | AQ57: 0 | AR57: 0 | AS57: 0 | AT57: 0 | AU57: 0 | AV57: 137.12 | AW57: 0 | AX57: 0 | AY57: 0 | AZ57: 0 | BA57: 0 | BB57: 0 | BC57: 0 | BD57: 0 | BE57: 0 | BF57: 0 | BG57: 0 | BH57: 0
C58: 2015 | D58: 0 | E58: 71.73 | F58: 0 | G58: 0 | H58: 0 | I58: 93.85 | J58: 0 | K58: 0 | L58: 97.81 | M58: 0 | N58: 199.96 | O58: 0 | P58: 92.65 | Q58: 0 | R58: 0 | S58: 0 | T58: 65.35 | U58: 33.78 | V58: 0 | W58: 65.61 | X58: 0 | Y58: 0 | Z58: 0 | AA58: 0 | AB58: 0 | AC58: 0 | AD58: 0 | AE58: 0 | AF58: 0 | AG58: 0 | AH58: 0 | AI58: 0 | AJ58: 0 | AK58: 0 | AL58: 0 | AM58: 0 | AN58: 0 | AO58: 0 | AP58: 121.08 | AQ58: 0 | AR58: 0 | AS58: 0 | AT58: 0 | AU58: 0 | AV58: 248.07 | AW58: 0 | AX58: 0 | AY58: 0 | AZ58: 0 | BA58: 0 | BB58: 0 | BC58: 0 | BD58: 0 | BE58: 0 | BF58: 0 | BG58: 0 | BH58: 0
C59: 2016 | D59: 0 | E59: 94.24 | F59: 14.33 | G59: 131.15 | H59: 0 | I59: 91.38 | J59: 256.54 | K59: 0 | L59: 1.37 | M59: 0 | N59: 446.51 | O59: 0 | P59: 356.49 | Q59: 0 | R59: 0 | S59: 0 | T59: 337.12 | U59: 226.9 | V59: 0 | W59: 0 | X59: 0 | Y59: 0 | Z59: 0 | AA59: 9.84 | AB59: 0 | AC59: 0 | AD59: 0 | AE59: 0 | AF59: 0 | AG59: 0 | AH59: 0 | AI59: 0 | AJ59: 0 | AK59: 0 | AL59: 0 | AM59: 0 | AN59: 0 | AO59: 0 | AP59: 0 | AQ59: 0.71 | AR59: 0 | AS59: 0 | AT59: 0 | AU59: 0 | AV59: 317.82 | AW59: 109.32 | AX59: 0 | AY59: 0 | AZ59: 0 | BA59: 0 | BB59: 0 | BC59: 0 | BD59: 0 | BE59: 0 | BF59: 0 | BG59: 0 | BH59: 0
C60: 2017 | D60: 0 | E60: 309.47 | F60: 0 | G60: 162.26 | H60: 0 | I60: 98.9 | J60: 219.84 | K60: 0 | L60: 7.48 | M60: 0 | N60: 685.04 | O60: 0 | P60: 650.69 | Q60: 652.12 | R60: 0 | S60: 0 | T60: 337.12 | U60: 334.04 | V60: 0 | W60: 0 | X60: 0 | Y60: 0 | Z60: 0 | AA60: 20.03 | AB60: 0 | AC60: 3.33 | AD60: 0 | AE60: 0 | AF60: 0 | AG60: 0 | AH60: 0 | AI60: 0 | AJ60: 0 | AK60: 0 | AL60: 0 | AM60: 0 | AN60: 0 | AO60: 0 | AP60: 0 | AQ60: 20.02 | AR60: 0 | AS60: 0 | AT60: 0 | AU60: 0 | AV60: 317.82 | AW60: 109.32 | AX60: 0 | AY60: 0 | AZ60: 0 | BA60: 0 | BB60: 0 | BC60: 0 | BD60: 0 | BE60: 0 | BF60: 0 | BG60: 0 | BH60: 0
C61: 2018 | D61: 0 | E61: 282.9 | F61: 0 | G61: 151.45 | H61: 0 | I61: 67.9 | J61: 224.86 | K61: 0 | L61: 34.7 | M61: 0 | N61: 667.71 | O61: 0 | P61: 585.87 | Q61: 652.12 | R61: 0 | S61: 0 | T61: 337.12 | U61: 333.08 | V61: 0 | W61: 0 | X61: 0 | Y61: 0 | Z61: 0 | AA61: 2.92 | AB61: 0 | AC61: 5.85 | AD61: 0 | AE61: 0 | AF61: 0 | AG61: 0 | AH61: 0 | AI61: 5.11 | AJ61: 0 | AK61: 0 | AL61: 0 | AM61: 0 | AN61: 0 | AO61: 0 | AP61: 0 | AQ61: 0 | AR61: 0 | AS61: 0 | AT61: 0 | AU61: 0 | AV61: 271.35 | AW61: 105.43 | AX61: 0 | AY61: 0 | AZ61: 0 | BA61: 0 | BB61: 0 | BC61: 0 | BD61: 0 | BE61: 0 | BF61: 0 | BG61: 0 | BH61: 0
C62: 2019 | D62: 0 | E62: 87.56 | F62: 0 | G62: 197.7 | H62: 0 | I62: 75.66 | J62: 76.02 | K62: 0 | L62: 97.81 | M62: 0 | N62: 154.53 | O62: 0 | P62: 533.41 | Q62: 652.12 | R62: 0 | S62: 0 | T62: 337.12 | U62: 332.43 | V62: 0 | W62: 0 | X62: 0 | Y62: 0 | Z62: 0 | AA62: 131 | AB62: 70.29 | AC62: 8.03 | AD62: 0 | AE62: 40.23 | AF62: 0 | AG62: 0 | AH62: 0 | AI62: 0 | AJ62: 0 | AK62: 0 | AL62: 0 | AM62: 0 | AN62: 0 | AO62: 0 | AP62: 0 | AQ62: 33.66 | AR62: 0 | AS62: 0 | AT62: 0 | AU62: 0 | AV62: 317.82 | AW62: 109.32 | AX62: 0 | AY62: 0 | AZ62: 0 | BA62: 0 | BB62: 0 | BC62: 0 | BD62: 0 | BE62: 0 | BF62: 0 | BG62: 0 | BH62: 0
C63: 2020 | D63: 0 | E63: 172.35 | F63: 0 | G63: 221.52 | H63: 322.39 | I63: 83.65 | J63: 0 | K63: 0 | L63: 96.32 | M63: 0 | N63: 0 | O63: 0 | P63: 9.12 | Q63: 645.87 | R63: 0 | S63: 0 | T63: 337.12 | U63: 332.06 | V63: 0 | W63: 0 | X63: 0 | Y63: 0 | Z63: 0 | AA63: 229.43 | AB63: 4.65 | AC63: 11.63 | AD63: 1.73 | AE63: 0 | AF63: 0 | AG63: 0 | AH63: 0.72 | AI63: 1.28 | AJ63: 0 | AK63: 0 | AL63: 0 | AM63: 0 | AN63: 0 | AO63: 0 | AP63: 0 | AQ63: 46.72 | AR63: 0 | AS63: 0 | AT63: 0 | AU63: 0 | AV63: 317.82 | AW63: 109.32 | AX63: 0 | AY63: 0 | AZ63: 0 | BA63: 0 | BB63: 0 | BC63: 0 | BD63: 0 | BE63: 0 | BF63: 0 | BG63: 0 | BH63: 0
C64: 2021 | D64: 0 | E64: 82.74 | F64: 0 | G64: 182.47 | H64: 429.32 | I64: 91.7 | J64: 45.29 | K64: 0 | L64: 97.81 | M64: 0 | N64: 0 | O64: 0 | P64: 32.81 | Q64: 652.12 | R64: 0 | S64: 0 | T64: 315.69 | U64: 267.35 | V64: 0 | W64: 0 | X64: 0 | Y64: 0 | Z64: 0 | AA64: 230.69 | AB64: 0 | AC64: 0 | AD64: 0 | AE64: 0 | AF64: 17.25 | AG64: 0 | AH64: 13.7 | AI64: 21.54 | AJ64: 0 | AK64: 0 | AL64: 0 | AM64: 0 | AN64: 0 | AO64: 0 | AP64: 0 | AQ64: 0 | AR64: 0 | AS64: 0 | AT64: 0 | AU64: 0 | AV64: 269.17 | AW64: 0 | AX64: 0 | AY64: 0 | AZ64: 0 | BA64: 0 | BB64: 0 | BC64: 0 | BD64: 0 | BE64: 0 | BF64: 0 | BG64: 0 | BH64: 0
C65: 2022 | D65: 0 | E65: 48.69 | F65: 0 | G65: 190.88 | H65: 467 | I65: 99.92 | J65: 177.87 | K65: 0 | L65: 97.81 | M65: 0 | N65: 0 | O65: 0 | P65: 72.56 | Q65: 652.12 | R65: 0 | S65: 0 | T65: 95.83 | U65: 51.64 | V65: 0 | W65: 0 | X65: 0 | Y65: 0 | Z65: 0 | AA65: 200.02 | AB65: 0 | AC65: 0 | AD65: 0 | AE65: 0 | AF65: 48.94 | AG65: 0 | AH65: 16.7 | AI65: 25.87 | AJ65: 0 | AK65: 0 | AL65: 0 | AM65: 0 | AN65: 0 | AO65: 0 | AP65: 0 | AQ65: 0 | AR65: 0 | AS65: 0 | AT65: 0 | AU65: 0 | AV65: 286.16 | AW65: 0 | AX65: 0 | AY65: 0 | AZ65: 0 | BA65: 0 | BB65: 0 | BC65: 0 | BD65: 0 | BE65: 0 | BF65: 0 | BG65: 0 | BH65: 0
C66: 2023 | D66: 0 | E66: 31.03 | F66: 0 | G66: 186.78 | H66: 493.78 | I66: 108.25 | J66: 153.16 | K66: 0 | L66: 97.81 | M66: 0 | N66: 0 | O66: 0 | P66: 108.88 | Q66: 652.12 | R66: 0 | S66: 0 | T66: 44.46 | U66: 0 | V66: 0 | W66: 0 | X66: 0 | Y66: 0 | Z66: 0 | AA66: 325.96 | AB66: 0 | AC66: 0 | AD66: 0 | AE66: 0 | AF66: 83.32 | AG66: 0 | AH66: 19.97 | AI66: 30.58 | AJ66: 0 | AK66: 0 | AL66: 0 | AM66: 0 | AN66: 0 | AO66: 0 | AP66: 0 | AQ66: 0 | AR66: 0 | AS66: 0 | AT66: 0 | AU66: 0 | AV66: 303.2 | AW66: 0 | AX66: 0 | AY66: 0 | AZ66: 0 | BA66: 0 | BB66: 0 | BC66: 0 | BD66: 0 | BE66: 0 | BF66: 0 | BG66: 0 | BH66: 0
C67: 2024 | D67: 0 | E67: 21.4 | F67: 0 | G67: 183.43 | H67: 636.57 | I67: 116.65 | J67: 75.22 | K67: 0 | L67: 97.81 | M67: 0 | N67: 0 | O67: 0 | P67: 6.7 | Q67: 652.12 | R67: 0 | S67: 0 | T67: 46.08 | U67: 0 | V67: 0 | W67: 0 | X67: 0 | Y67: 0 | Z67: 0 | AA67: 267.27 | AB67: 0 | AC67: 0 | AD67: 0 | AE67: 0 | AF67: 119.07 | AG67: 0 | AH67: 23.23 | AI67: 35.31 | AJ67: 0 | AK67: 0 | AL67: 0 | AM67: 0 | AN67: 0 | AO67: 0 | AP67: 0 | AQ67: 0 | AR67: 0 | AS67: 2.9 | AT67: 0 | AU67: 0 | AV67: 317.82 | AW67: 0 | AX67: 0 | AY67: 0 | AZ67: 0 | BA67: 0 | BB67: 0 | BC67: 0 | BD67: 0 | BE67: 0 | BF67: 0 | BG67: 0 | BH67: 0
C68: 2025 | D68: 0 | E68: 0 | F68: 0 | G68: 180.68 | H68: 665.48 | I68: 125.1 | J68: 82.93 | K68: 0 | L68: 97.81 | M68: 0 | N68: 0 | O68: 0 | P68: 0 | Q68: 652.12 | R68: 0 | S68: 0 | T68: 4.22 | U68: 0 | V68: 0 | W68: 0 | X68: 0 | Y68: 0 | Z68: 0 | AA68: 160.65 | AB68: 0 | AC68: 0 | AD68: 0 | AE68: 0 | AF68: 155.87 | AG68: 0 | AH68: 26.71 | AI68: 40.46 | AJ68: 0 | AK68: 0 | AL68: 0 | AM68: 0 | AN68: 0 | AO68: 0 | AP68: 0 | AQ68: 0 | AR68: 0 | AS68: 50.93 | AT68: 0 | AU68: 0 | AV68: 287.49 | AW68: 0 | AX68: 0 | AY68: 0 | AZ68: 0 | BA68: 0 | BB68: 0 | BC68: 0 | BD68: 0 | BE68: 0 | BF68: 0 | BG68: 0 | BH68: 0
C69: 2026 | D69: 0 | E69: 0 | F69: 0 | G69: 183.39 | H69: 679.45 | I69: 123.57 | J69: 117.46 | K69: 0 | L69: 34.8 | M69: 0 | N69: 0 | O69: 0 | P69: 0 | Q69: 652.12 | R69: 0 | S69: 0 | T69: 6.12 | U69: 0 | V69: 0 | W69: 0 | X69: 0 | Y69: 0 | Z69: 0 | AA69: 0 | AB69: 0 | AC69: 0 | AD69: 0 | AE69: 0 | AF69: 235.93 | AG69: 0 | AH69: 28.02 | AI69: 43.5 | AJ69: 0 | AK69: 0 | AL69: 0 | AM69: 0 | AN69: 0 | AO69: 0 | AP69: 0 | AQ69: 0 | AR69: 0 | AS69: 109.32 | AT69: 0 | AU69: 0 | AV69: 180.29 | AW69: 0 | AX69: 0 | AY69: 0 | AZ69: 0 | BA69: 0 | BB69: 0 | BC69: 0 | BD69: 0 | BE69: 0 | BF69: 0 | BG69: 0 | BH69: 0
C70: 2027 | D70: 0 | E70: 4.47 | F70: 0 | G70: 188.03 | H70: 685.04 | I70: 121.97 | J70: 70.02 | K70: 0 | L70: 54.84 | M70: 0 | N70: 0 | O70: 0 | P70: 1.86 | Q70: 652.12 | R70: 0 | S70: 0 | T70: 8.32 | U70: 0 | V70: 0 | W70: 0 | X70: 0 | Y70: 0 | Z70: 0 | AA70: 0 | AB70: 0 | AC70: 0 | AD70: 0 | AE70: 0 | AF70: 219.65 | AG70: 0 | AH70: 31.22 | AI70: 48.48 | AJ70: 0 | AK70: 0 | AL70: 0 | AM70: 0 | AN70: 0 | AO70: 0 | AP70: 0 | AQ70: 0 | AR70: 0 | AS70: 109.32 | AT70: 0 | AU70: 0 | AV70: 219.51 | AW70: 0 | AX70: 0 | AY70: 0 | AZ70: 0 | BA70: 0 | BB70: 0 | BC70: 0 | BD70: 0 | BE70: 0 | BF70: 0 | BG70: 0 | BH70: 0
C71: 2028 | D71: 0 | E71: 0 | F71: 0 | G71: 191.31 | H71: 685.04 | I71: 120.42 | J71: 271.62 | K71: 0 | L71: 83.96 | M71: 0 | N71: 0 | O71: 0 | P71: 23.43 | Q71: 652.12 | R71: 0 | S71: 0 | T71: 10.64 | U71: 0 | V71: 0 | W71: 0 | X71: 0 | Y71: 0 | Z71: 0 | AA71: 0 | AB71: 0 | AC71: 0 | AD71: 0 | AE71: 0 | AF71: 203.04 | AG71: 0 | AH71: 34.84 | AI71: 53.9 | AJ71: 0 | AK71: 0 | AL71: 0 | AM71: 0 | AN71: 0 | AO71: 0 | AP71: 0 | AQ71: 0 | AR71: 0 | AS71: 109.32 | AT71: 0 | AU71: 0 | AV71: 268.84 | AW71: 0 | AX71: 0 | AY71: 0 | AZ71: 0 | BA71: 0 | BB71: 0 | BC71: 0 | BD71: 0 | BE71: 0 | BF71: 0 | BG71: 0 | BH71: 0
C72: 2029 | D72: 0 | E72: 37.07 | F72: 0 | G72: 200.77 | H72: 685.04 | I72: 118.83 | J72: 325.69 | K72: 0 | L72: 97.81 | M72: 0 | N72: 0 | O72: 0 | P72: 4.34 | Q72: 652.12 | R72: 0 | S72: 0 | T72: 12.98 | U72: 0 | V72: 0 | W72: 0 | X72: 0 | Y72: 0 | Z72: 0 | AA72: 1.21 | AB72: 0 | AC72: 0 | AD72: 0 | AE72: 0 | AF72: 200.5 | AG72: 0 | AH72: 38.71 | AI72: 57.22 | AJ72: 0 | AK72: 0 | AL72: 0 | AM72: 0 | AN72: 0 | AO72: 0 | AP72: 0 | AQ72: 0 | AR72: 0 | AS72: 95.56 | AT72: 0 | AU72: 0 | AV72: 317.82 | AW72: 0 | AX72: 0 | AY72: 0 | AZ72: 0 | BA72: 0 | BB72: 0 | BC72: 0 | BD72: 0 | BE72: 0 | BF72: 0 | BG72: 0 | BH72: 0
C73: 2030 | D73: 0 | E73: 30.61 | F73: 0 | G73: 209.26 | H73: 685.04 | I73: 117.95 | J73: 325.69 | K73: 0 | L73: 97.13 | M73: 0 | N73: 0 | O73: 0 | P73: 26.02 | Q73: 652.12 | R73: 0 | S73: 0 | T73: 27.84 | U73: 12.16 | V73: 0 | W73: 0 | X73: 0 | Y73: 0 | Z73: 0 | AA73: 1.16 | AB73: 0 | AC73: 0 | AD73: 0 | AE73: 0 | AF73: 192.95 | AG73: 0 | AH73: 37.31 | AI73: 54.42 | AJ73: 0 | AK73: 0 | AL73: 0 | AM73: 0 | AN73: 0 | AO73: 0 | AP73: 0 | AQ73: 0 | AR73: 0 | AS73: 109.32 | AT73: 0 | AU73: 0 | AV73: 317.82 | AW73: 0 | AX73: 0 | AY73: 0 | AZ73: 0 | BA73: 0 | BB73: 0 | BC73: 0 | BD73: 0 | BE73: 0 | BF73: 0 | BG73: 0 | BH73: 0
C74: 2031 | D74: 0 | E74: 32.17 | F74: 0 | G74: 229.41 | H74: 685.04 | I74: 110.72 | J74: 325.69 | K74: 0 | L74: 73.88 | M74: 0 | N74: 0 | O74: 0 | P74: 0 | Q74: 652.12 | R74: 0 | S74: 0 | T74: 18.54 | U74: 0 | V74: 0 | W74: 0 | X74: 0 | Y74: 0 | Z74: 0 | AA74: 9.1 | AB74: 0 | AC74: 0 | AD74: 0 | AE74: 0 | AF74: 183.08 | AG74: 0 | AH74: 17.38 | AI74: 31.08 | AJ74: 0 | AK74: 0 | AL74: 0 | AM74: 0 | AN74: 0 | AO74: 0 | AP74: 0 | AQ74: 0 | AR74: 0 | AS74: 109.32 | AT74: 0 | AU74: 0 | AV74: 317.82 | AW74: 0 | AX74: 0 | AY74: 0 | AZ74: 0 | BA74: 0 | BB74: 0 | BC74: 0 | BD74: 0 | BE74: 0 | BF74: 0 | BG74: 0 | BH74: 0
C75: 2040 | D75: 0 | E75: 0 | F75: 0 | G75: 325.66 | H75: 685.04 | I75: 48.8 | J75: 191.45 | K75: 0 | L75: 0 | M75: 0 | N75: 0 | O75: 0 | P75: 0 | Q75: 652.12 | R75: 14.88 | S75: 0 | T75: 136.63 | U75: 72.39 | V75: 0 | W75: 0 | X75: 4.29 | Y75: 3.97 | Z75: 0 | AA75: 152.11 | AB75: 0 | AC75: 1.75 | AD75: 0 | AE75: 0 | AF75: 10.29 | AG75: 0 | AH75: 3.14 | AI75: 5.04 | AJ75: 0 | AK75: 0 | AL75: 0 | AM75: 0 | AN75: 0 | AO75: 0 | AP75: 219.9 | AQ75: 37.71 | AR75: 0 | AS75: 109.32 | AT75: 0 | AU75: 0.85 | AV75: 308.07 | AW75: 0 | AX75: 0 | AY75: 0 | AZ75: 0 | BA75: 0 | BB75: 0 | BC75: 0 | BD75: 0 | BE75: 0 | BF75: 0 | BG75: 0 | BH75: 0
C76: 2050 | D76: 0 | E76: 0 | F76: 10.45 | G76: 325.66 | H76: 569.59 | I76: 168.69 | J76: 22.73 | K76: 0.83 | L76: 0 | M76: 0 | N76: 0 | O76: 0 | P76: 0 | Q76: 252.4 | R76: 4.89 | S76: 0 | T76: 314.5 | U76: 314.5 | V76: 190.5 | W76: 0 | X76: 23.5 | Y76: 23.5 | Z76: 21.07 | AA76: 65.2 | AB76: 0 | AC76: 0 | AD76: 0.99 | AE76: 0 | AF76: 19.88 | AG76: 32.23 | AH76: 15.26 | AI76: 19.43 | AJ76: 25.96 | AK76: 0 | AL76: 187.87 | AM76: 0 | AN76: 0 | AO76: 0 | AP76: 647.03 | AQ76: 55.67 | AR76: 0 | AS76: 218.35 | AT76: 0 | AU76: 32.93 | AV76: 317.82 | AW76: 0 | AX76: 0 | AY76: 0 | AZ76: 0 | BA76: 0 | BB76: 0 | BC76: 270.49 | BD76: 21.5 | BE76: 292.08 | BF76: 0 | BG76: 0 | BH76: 0
C79: Table | D79: 03:00:00 | E79: MAINWAPP, | F79: adb
A80: =IF(C80="MESSAGE",E80,"") ->  | B80: =IF(A80="","",ROW()) -> 
A81: TransmissionInput | B81: 81 | C81: MESSAGE | D81: Int_V2 | E81: TransmissionInput
C82: May | D82: 14, | E82: 2013 | F82: 17:40:00
D84: ELEXGHwCIwInp | E84: ELEXGHwTBwInp | F84: ELEXSEwMAwInp | G84: ELEXCIwBUwInp | H84: ELEXNGwTBwInp | I84: ELEXNGwNIwInp | J84: ELEXCIwGHwInp | K84: ELEXTBwGHwInp | L84: ELEXMAwSEwInp | M84: ELEXBUwCIwInp | N84: ELEXTBwNGwInp | O84: ELEXNIwNGwInp | P84: ELNCDorGHwTBwInp | Q84: ELNCDorCIwGHwInp | R84: ELNCDorTBwGHwInp | S84: ELNCDorGHwCIwInp | T84: ELNCCLSGCIwLIwInp | U84: ELNCCLSGLIwGUwInp | V84: ELNCCLSGLIwSIwInp | W84: ELNCCLSGSIwGUwInp | X84: ELNCCLSGLIwCIwInp | Y84: ELNCCLSGGUwLIwInp | Z84: ELNCCLSGSIwLIwInp | AA84: ELNCCLSGGUwSIwInp | AB84: ELNCOMVGSEwGUwInp | AC84: ELNCOMVGSEwGAwInp | AD84: ELNCOMVGGAwGBwInp | AE84: ELNCOMVGGBwGUwInp | AF84: ELNCOMVGGUwSEwInp | AG84: ELNCOMVGGAwSEwInp | AH84: ELNCOMVGGBwGAwInp | AI84: ELNCOMVGGUwGBwInp | AJ84: ELNUCoNNGwNIwInp | AK84: ELNUCoNNIwTBwInp | AL84: ELNUCoNNIwBUwInp | AM84: ELNUCoNNIwNGwInp | AN84: ELNUCoNTBwNIwInp | AO84: ELNUCoNBUwNIwInp | AP84: ELNChubGHwBUwInp | AQ84: ELNChubBUwMAwInp | AR84: ELNChubMAwCIwInp | AS84: ELNUhubGUwMAwInp | AT84: ELNChubBUwGHwInp | AU84: ELNChubMAwBUwInp | AV84: ELNChubCIwMAwInp | AW84: ELNUhubMAwGUwInp | AX84: ELNUDmeNGwTBwInp | AY84: ELNUDMeTBwGHwInp | AZ84: ELNUDMeTBwNGwInp | BA84: ELNUDMeGHwTBwInp | BB84: ELNUOMVGMAwSEwInp | BC84: ELNUOMVSSEwMAwInp | BD84: ELNULICILIwCIwInp | BE84: ELNULICICIwLIwInp | BF84: ELNUNGTBNGwTBwInp | BG84: ELNUNGTBTBwNGwInp
C86: 2010 | D86: 0 | E86: 0 | F86: 22.6 | G86: 90.28 | H86: 228.84 | I86: 68.8 | J86: 0 | K86: 0 | L86: 0.91 | M86: 0 | N86: 0 | O86: 0 | P86: 0 | Q86: 0 | R86: 0 | S86: 0 | T86: 0 | U86: 0 | V86: 0 | W86: 0 | X86: 0 | Y86: 0 | Z86: 0 | AA86: 0 | AB86: 0 | AC86: 0 | AD86: 0 | AE86: 0 | AF86: 0 | AG86: 0 | AH86: 0 | AI86: 0 | AJ86: 0 | AK86: 0 | AL86: 0 | AM86: 0 | AN86: 0 | AO86: 0 | AP86: 0 | AQ86: 0 | AR86: 0 | AS86: 0 | AT86: 0 | AU86: 0 | AV86: 0 | AW86: 0 | AX86: 0 | AY86: 0 | AZ86: 0 | BA86: 0 | BB86: 0 | BC86: 0 | BD86: 0 | BE86: 0 | BF86: 0 | BG86: 0
C87: 2011 | D87: 0 | E87: 0 | F87: 0 | G87: 0 | H87: 582.55 | I87: 70.35 | J87: 128.08 | K87: 317.41 | L87: 2.96 | M87: 35.37 | N87: 0 | O87: 0 | P87: 0 | Q87: 0 | R87: 0 | S87: 0 | T87: 0 | U87: 0 | V87: 0 | W87: 0 | X87: 0 | Y87: 0 | Z87: 0 | AA87: 0 | AB87: 0 | AC87: 0 | AD87: 0 | AE87: 0 | AF87: 0 | AG87: 0 | AH87: 0 | AI87: 0 | AJ87: 0 | AK87: 0 | AL87: 0 | AM87: 0 | AN87: 0 | AO87: 0 | AP87: 0 | AQ87: 0 | AR87: 0 | AS87: 0 | AT87: 0 | AU87: 0 | AV87: 0 | AW87: 0 | AX87: 0 | AY87: 0 | AZ87: 0 | BA87: 0 | BB87: 0 | BC87: 0 | BD87: 0 | BE87: 0 | BF87: 0 | BG87: 0
C88: 2012 | D88: 0 | E88: 0 | F88: 0 | G88: 42.3 | H88: 612.03 | I88: 76.92 | J88: 13.54 | K88: 317.41 | L88: 14.93 | M88: 0 | N88: 0 | O88: 0 | P88: 0 | Q88: 0 | R88: 0 | S88: 0 | T88: 0 | U88: 0 | V88: 0 | W88: 0 | X88: 0 | Y88: 0 | Z88: 0 | AA88: 0 | AB88: 0 | AC88: 0 | AD88: 0 | AE88: 0 | AF88: 0 | AG88: 0 | AH88: 0 | AI88: 0 | AJ88: 0 | AK88: 0 | AL88: 0 | AM88: 0 | AN88: 0 | AO88: 0 | AP88: 0 | AQ88: 0 | AR88: 0 | AS88: 0 | AT88: 0 | AU88: 0 | AV88: 0 | AW88: 0 | AX88: 0 | AY88: 0 | AZ88: 0 | BA88: 0 | BB88: 0 | BC88: 0 | BD88: 0 | BE88: 0 | BF88: 0 | BG88: 0
C89: 2013 | D89: 6.19 | E89: 0 | F89: 0 | G89: 40.38 | H89: 702.61 | I89: 83.29 | J89: 0 | K89: 229.53 | L89: 41.2 | M89: 0 | N89: 0 | O89: 0 | P89: 0 | Q89: 0 | R89: 266.49 | S89: 0 | T89: 0 | U89: 0 | V89: 0 | W89: 0 | X89: 0 | Y89: 0 | Z89: 0 | AA89: 0 | AB89: 0 | AC89: 0 | AD89: 0 | AE89: 0 | AF89: 0 | AG89: 0 | AH89: 0 | AI89: 0 | AJ89: 0 | AK89: 0 | AL89: 0 | AM89: 0 | AN89: 0 | AO89: 0 | AP89: 70.34 | AQ89: 0 | AR89: 0 | AS89: 0 | AT89: 0 | AU89: 0 | AV89: 106.16 | AW89: 0 | AX89: 0 | AY89: 0 | AZ89: 0 | BA89: 0 | BB89: 0 | BC89: 0 | BD89: 0 | BE89: 0 | BF89: 0 | BG89: 0
C90: 2014 | D90: 0 | E90: 0 | F90: 0 | G90: 107.43 | H90: 520.35 | I90: 45.13 | J90: 0 | K90: 150.55 | L90: 4.45 | M90: 0 | N90: 0 | O90: 0 | P90: 0 | Q90: 0 | R90: 49.46 | S90: 0 | T90: 0 | U90: 0 | V90: 0 | W90: 0 | X90: 0 | Y90: 0 | Z90: 0 | AA90: 0 | AB90: 0 | AC90: 0 | AD90: 0 | AE90: 0 | AF90: 0 | AG90: 0 | AH90: 0 | AI90: 0 | AJ90: 0 | AK90: 0 | AL90: 0 | AM90: 0 | AN90: 0 | AO90: 0 | AP90: 8.23 | AQ90: 0 | AR90: 0 | AS90: 0 | AT90: 0 | AU90: 0 | AV90: 143.28 | AW90: 0 | AX90: 0 | AY90: 0 | AZ90: 0 | BA90: 0 | BB90: 0 | BC90: 0 | BD90: 0 | BE90: 0 | BF90: 0 | BG90: 0
C91: 2015 | D91: 0 | E91: 73.57 | F91: 0 | G91: 0 | H91: 0 | I91: 96.37 | J91: 0 | K91: 0 | L91: 103.46 | M91: 0 | N91: 205.08 | O91: 0 | P91: 95.03 | Q91: 0 | R91: 0 | S91: 0 | T91: 67.03 | U91: 34.64 | V91: 0 | W91: 67.29 | X91: 0 | Y91: 0 | Z91: 0 | AA91: 0 | AB91: 0 | AC91: 0 | AD91: 0 | AE91: 0 | AF91: 0 | AG91: 0 | AH91: 0 | AI91: 0 | AJ91: 0 | AK91: 0 | AL91: 0 | AM91: 0 | AN91: 0 | AO91: 0 | AP91: 124.19 | AQ91: 0 | AR91: 0 | AS91: 0 | AT91: 0 | AU91: 0 | AV91: 259.22 | AW91: 0 | AX91: 0 | AY91: 0 | AZ91: 0 | BA91: 0 | BB91: 0 | BC91: 0 | BD91: 0 | BE91: 0 | BF91: 0 | BG91: 0
C92: 2016 | D92: 0 | E92: 96.66 | F92: 15.16 | G92: 135.88 | H92: 0 | I92: 93.84 | J92: 264.56 | K92: 0 | L92: 1.45 | M92: 0 | N92: 457.96 | O92: 0 | P92: 365.63 | Q92: 0 | R92: 0 | S92: 0 | T92: 345.77 | U92: 232.72 | V92: 0 | W92: 0 | X92: 0 | Y92: 0 | Z92: 0 | AA92: 10.09 | AB92: 0 | AC92: 0 | AD92: 0 | AE92: 0 | AF92: 0 | AG92: 0 | AH92: 0 | AI92: 0 | AJ92: 0 | AK92: 0 | AL92: 0 | AM92: 0 | AN92: 0 | AO92: 0 | AP92: 0 | AQ92: 0.76 | AR92: 0 | AS92: 0 | AT92: 0 | AU92: 0 | AV92: 332.1 | AW92: 113.99 | AX92: 0 | AY92: 0 | AZ92: 0 | BA92: 0 | BB92: 0 | BC92: 0 | BD92: 0 | BE92: 0 | BF92: 0 | BG92: 0
C93: 2017 | D93: 0 | E93: 317.41 | F93: 0 | G93: 168.11 | H93: 0 | I93: 101.56 | J93: 226.71 | K93: 0 | L93: 7.92 | M93: 0 | N93: 702.61 | O93: 0 | P93: 667.38 | Q93: 665.43 | R93: 0 | S93: 0 | T93: 345.77 | U93: 342.61 | V93: 0 | W93: 0 | X93: 0 | Y93: 0 | Z93: 0 | AA93: 20.55 | AB93: 0 | AC93: 3.41 | AD93: 0 | AE93: 0 | AF93: 0 | AG93: 0 | AH93: 0 | AI93: 0 | AJ93: 0 | AK93: 0 | AL93: 0 | AM93: 0 | AN93: 0 | AO93: 0 | AP93: 0 | AQ93: 21.38 | AR93: 0 | AS93: 0 | AT93: 0 | AU93: 0 | AV93: 332.1 | AW93: 113.99 | AX93: 0 | AY93: 0 | AZ93: 0 | BA93: 0 | BB93: 0 | BC93: 0 | BD93: 0 | BE93: 0 | BF93: 0 | BG93: 0
C94: 2018 | D94: 0 | E94: 290.15 | F94: 0 | G94: 156.92 | H94: 0 | I94: 69.73 | J94: 231.88 | K94: 0 | L94: 36.7 | M94: 0 | N94: 684.83 | O94: 0 | P94: 600.89 | Q94: 665.43 | R94: 0 | S94: 0 | T94: 345.77 | U94: 341.62 | V94: 0 | W94: 0 | X94: 0 | Y94: 0 | Z94: 0 | AA94: 2.99 | AB94: 0 | AC94: 6 | AD94: 0 | AE94: 0 | AF94: 0 | AG94: 0 | AH94: 0 | AI94: 5.43 | AJ94: 0 | AK94: 0 | AL94: 0 | AM94: 0 | AN94: 0 | AO94: 0 | AP94: 0 | AQ94: 0 | AR94: 0 | AS94: 0 | AT94: 0 | AU94: 0 | AV94: 283.54 | AW94: 109.94 | AX94: 0 | AY94: 0 | AZ94: 0 | BA94: 0 | BB94: 0 | BC94: 0 | BD94: 0 | BE94: 0 | BF94: 0 | BG94: 0
C95: 2019 | D95: 0 | E95: 89.8 | F95: 0 | G95: 204.83 | H95: 0 | I95: 77.7 | J95: 78.4 | K95: 0 | L95: 103.46 | M95: 0 | N95: 158.49 | O95: 0 | P95: 547.08 | Q95: 665.43 | R95: 0 | S95: 0 | T95: 345.77 | U95: 340.96 | V95: 0 | W95: 0 | X95: 0 | Y95: 0 | Z95: 0 | AA95: 134.36 | AB95: 77.58 | AC95: 8.23 | AD95: 0 | AE95: 42.76 | AF95: 0 | AG95: 0 | AH95: 0 | AI95: 0 | AJ95: 0 | AK95: 0 | AL95: 0 | AM95: 0 | AN95: 0 | AO95: 0 | AP95: 0 | AQ95: 35.97 | AR95: 0 | AS95: 0 | AT95: 0 | AU95: 0 | AV95: 332.1 | AW95: 113.99 | AX95: 0 | AY95: 0 | AZ95: 0 | BA95: 0 | BB95: 0 | BC95: 0 | BD95: 0 | BE95: 0 | BF95: 0 | BG95: 0
C96: 2020 | D96: 0 | E96: 176.77 | F96: 0 | G96: 229.51 | H96: 330.66 | I96: 85.9 | J96: 0 | K96: 0 | L96: 101.88 | M96: 0 | N96: 0 | O96: 0 | P96: 9.36 | Q96: 659.05 | R96: 0 | S96: 0 | T96: 345.77 | U96: 340.57 | V96: 0 | W96: 0 | X96: 0 | Y96: 0 | Z96: 0 | AA96: 235.32 | AB96: 5.13 | AC96: 11.93 | AD96: 1.78 | AE96: 0 | AF96: 0 | AG96: 0 | AH96: 0.74 | AI96: 1.36 | AJ96: 0 | AK96: 0 | AL96: 0 | AM96: 0 | AN96: 0 | AO96: 0 | AP96: 0 | AQ96: 49.92 | AR96: 0 | AS96: 0 | AT96: 0 | AU96: 0 | AV96: 332.1 | AW96: 113.99 | AX96: 0 | AY96: 0 | AZ96: 0 | BA96: 0 | BB96: 0 | BC96: 0 | BD96: 0 | BE96: 0 | BF96: 0 | BG96: 0
C97: 2021 | D97: 0 | E97: 84.86 | F97: 0 | G97: 189.05 | H97: 440.32 | I97: 94.17 | J97: 46.7 | K97: 0 | L97: 103.46 | M97: 0 | N97: 0 | O97: 0 | P97: 33.65 | Q97: 665.43 | R97: 0 | S97: 0 | T97: 323.79 | U97: 274.2 | V97: 0 | W97: 0 | X97: 0 | Y97: 0 | Z97: 0 | AA97: 236.61 | AB97: 0 | AC97: 0 | AD97: 0 | AE97: 0 | AF97: 19.04 | AG97: 0 | AH97: 14.11 | AI97: 22.9 | AJ97: 0 | AK97: 0 | AL97: 0 | AM97: 0 | AN97: 0 | AO97: 0 | AP97: 0 | AQ97: 0 | AR97: 0 | AS97: 0 | AT97: 0 | AU97: 0 | AV97: 281.26 | AW97: 0 | AX97: 0 | AY97: 0 | AZ97: 0 | BA97: 0 | BB97: 0 | BC97: 0 | BD97: 0 | BE97: 0 | BF97: 0 | BG97: 0
C98: 2022 | D98: 0 | E98: 49.94 | F98: 0 | G98: 197.76 | H98: 478.97 | I98: 102.61 | J98: 183.43 | K98: 0 | L98: 103.46 | M98: 0 | N98: 0 | O98: 0 | P98: 74.42 | Q98: 665.43 | R98: 0 | S98: 0 | T98: 98.29 | U98: 52.96 | V98: 0 | W98: 0 | X98: 0 | Y98: 0 | Z98: 0 | AA98: 205.15 | AB98: 0 | AC98: 0 | AD98: 0 | AE98: 0 | AF98: 54.02 | AG98: 0 | AH98: 17.2 | AI98: 27.49 | AJ98: 0 | AK98: 0 | AL98: 0 | AM98: 0 | AN98: 0 | AO98: 0 | AP98: 0 | AQ98: 0 | AR98: 0 | AS98: 0 | AT98: 0 | AU98: 0 | AV98: 299.02 | AW98: 0 | AX98: 0 | AY98: 0 | AZ98: 0 | BA98: 0 | BB98: 0 | BC98: 0 | BD98: 0 | BE98: 0 | BF98: 0 | BG98: 0
C99: 2023 | D99: 0 | E99: 31.83 | F99: 0 | G99: 193.52 | H99: 506.44 | I99: 111.17 | J99: 157.95 | K99: 0 | L99: 103.46 | M99: 0 | N99: 0 | O99: 0 | P99: 111.67 | Q99: 665.43 | R99: 0 | S99: 0 | T99: 45.6 | U99: 0 | V99: 0 | W99: 0 | X99: 0 | Y99: 0 | Z99: 0 | AA99: 334.32 | AB99: 0 | AC99: 0 | AD99: 0 | AE99: 0 | AF99: 91.96 | AG99: 0 | AH99: 20.57 | AI99: 32.5 | AJ99: 0 | AK99: 0 | AL99: 0 | AM99: 0 | AN99: 0 | AO99: 0 | AP99: 0 | AQ99: 0 | AR99: 0 | AS99: 0 | AT99: 0 | AU99: 0 | AV99: 316.82 | AW99: 0 | AX99: 0 | AY99: 0 | AZ99: 0 | BA99: 0 | BB99: 0 | BC99: 0 | BD99: 0 | BE99: 0 | BF99: 0 | BG99: 0
C100: 2024 | D100: 0 | E100: 21.95 | F100: 0 | G100: 190.04 | H100: 652.9 | I100: 119.79 | J100: 77.57 | K100: 0 | L100: 103.46 | M100: 0 | N100: 0 | O100: 0 | P100: 6.87 | Q100: 665.43 | R100: 0 | S100: 0 | T100: 47.26 | U100: 0 | V100: 0 | W100: 0 | X100: 0 | Y100: 0 | Z100: 0 | AA100: 274.13 | AB100: 0 | AC100: 0 | AD100: 0 | AE100: 0 | AF100: 131.42 | AG100: 0 | AH100: 23.92 | AI100: 37.52 | AJ100: 0 | AK100: 0 | AL100: 0 | AM100: 0 | AN100: 0 | AO100: 0 | AP100: 0 | AQ100: 0 | AR100: 0 | AS100: 3.02 | AT100: 0 | AU100: 0 | AV100: 332.1 | AW100: 0 | AX100: 0 | AY100: 0 | AZ100: 0 | BA100: 0 | BB100: 0 | BC100: 0 | BD100: 0 | BE100: 0 | BF100: 0 | BG100: 0
C101: 2025 | D101: 0 | E101: 0 | F101: 0 | G101: 187.19 | H101: 682.54 | I101: 128.46 | J101: 85.52 | K101: 0 | L101: 103.46 | M101: 0 | N101: 0 | O101: 0 | P101: 0 | Q101: 665.43 | R101: 0 | S101: 0 | T101: 4.33 | U101: 0 | V101: 0 | W101: 0 | X101: 0 | Y101: 0 | Z101: 0 | AA101: 164.77 | AB101: 0 | AC101: 0 | AD101: 0 | AE101: 0 | AF101: 172.04 | AG101: 0 | AH101: 27.51 | AI101: 42.99 | AJ101: 0 | AK101: 0 | AL101: 0 | AM101: 0 | AN101: 0 | AO101: 0 | AP101: 0 | AQ101: 0 | AR101: 0 | AS101: 53.1 | AT101: 0 | AU101: 0 | AV101: 300.41 | AW101: 0 | AX101: 0 | AY101: 0 | AZ101: 0 | BA101: 0 | BB101: 0 | BC101: 0 | BD101: 0 | BE101: 0 | BF101: 0 | BG101: 0
C102: 2026 | D102: 0 | E102: 0 | F102: 0 | G102: 190 | H102: 696.88 | I102: 126.89 | J102: 121.13 | K102: 0 | L102: 36.81 | M102: 0 | N102: 0 | O102: 0 | P102: 0 | Q102: 665.43 | R102: 0 | S102: 0 | T102: 6.27 | U102: 0 | V102: 0 | W102: 0 | X102: 0 | Y102: 0 | Z102: 0 | AA102: 0 | AB102: 0 | AC102: 0 | AD102: 0 | AE102: 0 | AF102: 260.41 | AG102: 0 | AH102: 28.86 | AI102: 46.22 | AJ102: 0 | AK102: 0 | AL102: 0 | AM102: 0 | AN102: 0 | AO102: 0 | AP102: 0 | AQ102: 0 | AR102: 0 | AS102: 113.99 | AT102: 0 | AU102: 0 | AV102: 188.39 | AW102: 0 | AX102: 0 | AY102: 0 | AZ102: 0 | BA102: 0 | BB102: 0 | BC102: 0 | BD102: 0 | BE102: 0 | BF102: 0 | BG102: 0
C103: 2027 | D103: 0 | E103: 4.58 | F103: 0 | G103: 194.81 | H103: 702.61 | I103: 125.25 | J103: 72.21 | K103: 0 | L103: 58.01 | M103: 0 | N103: 0 | O103: 0 | P103: 1.9 | Q103: 665.43 | R103: 0 | S103: 0 | T103: 8.53 | U103: 0 | V103: 0 | W103: 0 | X103: 0 | Y103: 0 | Z103: 0 | AA103: 0 | AB103: 0 | AC103: 0 | AD103: 0 | AE103: 0 | AF103: 242.44 | AG103: 0 | AH103: 32.15 | AI103: 51.52 | AJ103: 0 | AK103: 0 | AL103: 0 | AM103: 0 | AN103: 0 | AO103: 0 | AP103: 0 | AQ103: 0 | AR103: 0 | AS103: 113.99 | AT103: 0 | AU103: 0 | AV103: 229.37 | AW103: 0 | AX103: 0 | AY103: 0 | AZ103: 0 | BA103: 0 | BB103: 0 | BC103: 0 | BD103: 0 | BE103: 0 | BF103: 0 | BG103: 0
C104: 2028 | D104: 0 | E104: 0 | F104: 0 | G104: 198.21 | H104: 702.61 | I104: 123.66 | J104: 280.11 | K104: 0 | L104: 88.81 | M104: 0 | N104: 0 | O104: 0 | P104: 24.03 | Q104: 665.43 | R104: 0 | S104: 0 | T104: 10.91 | U104: 0 | V104: 0 | W104: 0 | X104: 0 | Y104: 0 | Z104: 0 | AA104: 0 | AB104: 0 | AC104: 0 | AD104: 0 | AE104: 0 | AF104: 224.1 | AG104: 0 | AH104: 35.88 | AI104: 57.28 | AJ104: 0 | AK104: 0 | AL104: 0 | AM104: 0 | AN104: 0 | AO104: 0 | AP104: 0 | AQ104: 0 | AR104: 0 | AS104: 113.99 | AT104: 0 | AU104: 0 | AV104: 280.92 | AW104: 0 | AX104: 0 | AY104: 0 | AZ104: 0 | BA104: 0 | BB104: 0 | BC104: 0 | BD104: 0 | BE104: 0 | BF104: 0 | BG104: 0
C105: 2029 | D105: 0 | E105: 38.02 | F105: 0 | G105: 208.01 | H105: 702.61 | I105: 122.02 | J105: 335.87 | K105: 0 | L105: 103.46 | M105: 0 | N105: 0 | O105: 0 | P105: 4.45 | Q105: 665.43 | R105: 0 | S105: 0 | T105: 13.31 | U105: 0 | V105: 0 | W105: 0 | X105: 0 | Y105: 0 | Z105: 0 | AA105: 1.25 | AB105: 0 | AC105: 0 | AD105: 0 | AE105: 0 | AF105: 221.3 | AG105: 0 | AH105: 39.87 | AI105: 60.81 | AJ105: 0 | AK105: 0 | AL105: 0 | AM105: 0 | AN105: 0 | AO105: 0 | AP105: 0 | AQ105: 0 | AR105: 0 | AS105: 99.64 | AT105: 0 | AU105: 0 | AV105: 332.1 | AW105: 0 | AX105: 0 | AY105: 0 | AZ105: 0 | BA105: 0 | BB105: 0 | BC105: 0 | BD105: 0 | BE105: 0 | BF105: 0 | BG105: 0
C106: 2030 | D106: 0 | E106: 31.4 | F106: 0 | G106: 216.8 | H106: 702.61 | I106: 121.13 | J106: 335.87 | K106: 0 | L106: 102.74 | M106: 0 | N106: 0 | O106: 0 | P106: 26.69 | Q106: 665.43 | R106: 0 | S106: 0 | T106: 28.56 | U106: 12.47 | V106: 0 | W106: 0 | X106: 0 | Y106: 0 | Z106: 0 | AA106: 1.19 | AB106: 0 | AC106: 0 | AD106: 0 | AE106: 0 | AF106: 212.96 | AG106: 0 | AH106: 38.42 | AI106: 57.83 | AJ106: 0 | AK106: 0 | AL106: 0 | AM106: 0 | AN106: 0 | AO106: 0 | AP106: 0 | AQ106: 0 | AR106: 0 | AS106: 113.99 | AT106: 0 | AU106: 0 | AV106: 332.1 | AW106: 0 | AX106: 0 | AY106: 0 | AZ106: 0 | BA106: 0 | BB106: 0 | BC106: 0 | BD106: 0 | BE106: 0 | BF106: 0 | BG106: 0
C107: 2031 | D107: 0 | E107: 33 | F107: 0 | G107: 237.68 | H107: 702.61 | I107: 113.7 | J107: 335.87 | K107: 0 | L107: 78.15 | M107: 0 | N107: 0 | O107: 0 | P107: 0 | Q107: 665.43 | R107: 0 | S107: 0 | T107: 19.01 | U107: 0 | V107: 0 | W107: 0 | X107: 0 | Y107: 0 | Z107: 0 | AA107: 9.34 | AB107: 0 | AC107: 0 | AD107: 0 | AE107: 0 | AF107: 202.07 | AG107: 0 | AH107: 17.9 | AI107: 33.03 | AJ107: 0 | AK107: 0 | AL107: 0 | AM107: 0 | AN107: 0 | AO107: 0 | AP107: 0 | AQ107: 0 | AR107: 0 | AS107: 113.99 | AT107: 0 | AU107: 0 | AV107: 332.1 | AW107: 0 | AX107: 0 | AY107: 0 | AZ107: 0 | BA107: 0 | BB107: 0 | BC107: 0 | BD107: 0 | BE107: 0 | BF107: 0 | BG107: 0
C108: 2040 | D108: 0 | E108: 0 | F108: 0 | G108: 337.4 | H108: 702.61 | I108: 50.11 | J108: 197.43 | K108: 0 | L108: 0 | M108: 0 | N108: 0 | O108: 0 | P108: 0 | Q108: 665.43 | R108: 15.26 | S108: 0 | T108: 140.14 | U108: 74.24 | V108: 0 | W108: 0 | X108: 4.4 | Y108: 4.07 | Z108: 0 | AA108: 156.01 | AB108: 0 | AC108: 1.79 | AD108: 0 | AE108: 0 | AF108: 11.36 | AG108: 0 | AH108: 3.23 | AI108: 5.36 | AJ108: 0 | AK108: 0 | AL108: 0 | AM108: 0 | AN108: 0 | AO108: 0 | AP108: 225.54 | AQ108: 40.28 | AR108: 0 | AS108: 113.99 | AT108: 0 | AU108: 0.9 | AV108: 321.91 | AW108: 0 | AX108: 0 | AY108: 0 | AZ108: 0 | BA108: 0 | BB108: 0 | BC108: 0 | BD108: 0 | BE108: 0 | BF108: 0 | BG108: 0
C109: 2050 | D109: 0 | E109: 0 | F109: 11.05 | G109: 337.4 | H109: 584.19 | I109: 173.23 | J109: 23.44 | K109: 0.85 | L109: 0 | M109: 0 | N109: 0 | O109: 0 | P109: 0 | Q109: 257.55 | R109: 5.02 | S109: 0 | T109: 322.57 | U109: 322.57 | V109: 204.39 | W109: 0 | X109: 24.1 | Y109: 24.1 | Z109: 22.6 | AA109: 66.87 | AB109: 0 | AC109: 0 | AD109: 1.02 | AE109: 0 | AF109: 21.95 | AG109: 33.06 | AH109: 15.71 | AI109: 20.65 | AJ109: 26.79 | AK109: 0 | AL109: 198.81 | AM109: 0 | AN109: 0 | AO109: 0 | AP109: 663.62 | AQ109: 59.47 | AR109: 0 | AS109: 227.69 | AT109: 0 | AU109: 35.18 | AV109: 332.1 | AW109: 0 | AX109: 0 | AY109: 0 | AZ109: 0 | BA109: 0 | BB109: 0 | BC109: 278.57 | BD109: 22.14 | BE109: 300.81 | BF109: 0 | BG109: 0
C112: Table | D112: 04:00:00 | E112: MAINWAPP, | F112: adb
A114: TransmissionCapacity | B114: 114 | C114: MESSAGE | D114: Int_V2 | E114: TransmissionCapacity
C115: May | D115: 14, | E115: 2013 | F115: 17:40:00
D117: ELEXGHwCIwCap | E117: ELEXGHwTBwCap | F117: ELEXSEwMAwCap | G117: ELEXCIwBUwCap | H117: ELEXNGwTBwCap | I117: ELEXNGwNIwCap | J117: ELEXCIwGHwCap | K117: ELEXTBwGHwCap | L117: ELEXMAwSEwCap | M117: ELEXBUwCIwCap | N117: ELEXTBwNGwCap | O117: ELEXNIwNGwCap | P117: ELNCDorGHwTBwCap | Q117: ELNCDorCIwGHwCap | R117: ELNCDorTBwGHwCap | S117: ELNCDorGHwCIwCap | T117: ELNCCLSGCIwLIwCap | U117: ELNCCLSGLIwGUwCap | V117: ELNCCLSGLIwSIwCap | W117: ELNCCLSGSIwGUwCap | X117: ELNCCLSGLIwCIwCap | Y117: ELNCCLSGGUwLIwCap | Z117: ELNCCLSGSIwLIwCap | AA117: ELNCCLSGGUwSIwCap | AB117: ELNCOMVGSEwGUwCap | AC117: ELNCOMVGSEwGAwCap | AD117: ELNCOMVGGAwGBwCap | AE117: ELNCOMVGGBwGUwCap | AF117: ELNCOMVGGUwSEwCap | AG117: ELNCOMVGGAwSEwCap | AH117: ELNCOMVGGBwGAwCap | AI117: ELNCOMVGGUwGBwCap | AJ117: ELNUCoNNGwNIwCap | AK117: ELNUCoNNIwTBwCap | AL117: ELNUCoNNIwBUwCap | AM117: ELNUCoNNIwNGwCap | AN117: ELNUCoNTBwNIwCap | AO117: ELNUCoNBUwNIwCap | AP117: ELNChubGHwBUwCap | AQ117: ELNChubBUwMAwCap | AR117: ELNChubMAwCIwCap | AS117: ELNUhubGUwMAwCap | AT117: ELNChubBUwGHwCap | AU117: ELNChubMAwBUwCap | AV117: ELNChubCIwMAwCap | AW117: ELNUhubMAwGUwCap | AX117: ELNUDmeNGwTBwCap | AY117: ELNUDMeTBwGHwCap | AZ117: ELNUDMeTBwNGwCap | BA117: ELNUDMeGHwTBwCap | BB117: ELNUOMVGMAwSEwCap | BC117: ELNUOMVSSEwMAwCap | BD117: ELNULICILIwCIwCap | BE117: ELNULICICIwLIwCap | BF117: ELNUNGTBNGwTBwCap | BG117: ELNUNGTBTBwNGwCap | BH117: ELNUIngDRcNGwCap
C119: 2010 | D119: 327 | E119: 310 | F119: 100 | G119: 327 | H119: 686 | I119: 169.2 | J119: 327 | K119: 310 | L119: 100 | M119: 327 | N119: 686 | O119: 169.2 | P119: 0 | Q119: 0 | R119: 0 | S119: 0 | T119: 0 | U119: 0 | V119: 0 | W119: 0 | X119: 0 | Y119: 0 | Z119: 0 | AA119: 0 | AB119: 0 | AC119: 0 | AD119: 0 | AE119: 0 | AF119: 0 | AG119: 0 | AH119: 0 | AI119: 0 | AJ119: 0 | AK119: 0 | AL119: 0 | AM119: 0 | AN119: 0 | AO119: 0 | AP119: 0 | AQ119: 0 | AR119: 0 | AS119: 0 | AT119: 0 | AU119: 0 | AV119: 0 | AW119: 0 | AX119: 0 | AY119: 0 | AZ119: 0 | BA119: 0 | BB119: 0 | BC119: 0 | BD119: 0 | BE119: 0 | BF119: 0 | BG119: 0 | BH119: 0
C120: 2011 | D120: 327 | E120: 310 | F120: 100 | G120: 327 | H120: 686 | I120: 169.2 | J120: 327 | K120: 310 | L120: 100 | M120: 327 | N120: 686 | O120: 169.2 | P120: 0 | Q120: 0 | R120: 0 | S120: 0 | T120: 0 | U120: 0 | V120: 0 | W120: 0 | X120: 0 | Y120: 0 | Z120: 0 | AA120: 0 | AB120: 0 | AC120: 0 | AD120: 0 | AE120: 0 | AF120: 0 | AG120: 0 | AH120: 0 | AI120: 0 | AJ120: 0 | AK120: 0 | AL120: 0 | AM120: 0 | AN120: 0 | AO120: 0 | AP120: 0 | AQ120: 0 | AR120: 0 | AS120: 0 | AT120: 0 | AU120: 0 | AV120: 0 | AW120: 0 | AX120: 0 | AY120: 0 | AZ120: 0 | BA120: 0 | BB120: 0 | BC120: 0 | BD120: 0 | BE120: 0 | BF120: 0 | BG120: 0 | BH120: 0
C121: 2012 | D121: 327 | E121: 310 | F121: 100 | G121: 327 | H121: 686 | I121: 169.2 | J121: 327 | K121: 310 | L121: 100 | M121: 327 | N121: 686 | O121: 169.2 | P121: 0 | Q121: 0 | R121: 0 | S121: 0 | T121: 0 | U121: 0 | V121: 0 | W121: 0 | X121: 0 | Y121: 0 | Z121: 0 | AA121: 0 | AB121: 0 | AC121: 0 | AD121: 0 | AE121: 0 | AF121: 0 | AG121: 0 | AH121: 0 | AI121: 0 | AJ121: 0 | AK121: 0 | AL121: 0 | AM121: 0 | AN121: 0 | AO121: 0 | AP121: 0 | AQ121: 0 | AR121: 320 | AS121: 0 | AT121: 0 | AU121: 0 | AV121: 320 | AW121: 0 | AX121: 0 | AY121: 0 | AZ121: 0 | BA121: 0 | BB121: 0 | BC121: 0 | BD121: 0 | BE121: 0 | BF121: 0 | BG121: 0 | BH121: 0
C122: 2013 | D122: 327 | E122: 310 | F122: 100 | G122: 327 | H122: 686 | I122: 169.2 | J122: 327 | K122: 310 | L122: 100 | M122: 327 | N122: 686 | O122: 169.2 | P122: 655 | Q122: 0 | R122: 655 | S122: 0 | T122: 0 | U122: 0 | V122: 0 | W122: 0 | X122: 0 | Y122: 0 | Z122: 0 | AA122: 0 | AB122: 0 | AC122: 0 | AD122: 0 | AE122: 0 | AF122: 0 | AG122: 0 | AH122: 0 | AI122: 0 | AJ122: 0 | AK122: 0 | AL122: 0 | AM122: 0 | AN122: 0 | AO122: 0 | AP122: 332 | AQ122: 0 | AR122: 320 | AS122: 0 | AT122: 332 | AU122: 0 | AV122: 320 | AW122: 0 | AX122: 0 | AY122: 0 | AZ122: 0 | BA122: 0 | BB122: 0 | BC122: 0 | BD122: 0 | BE122: 0 | BF122: 0 | BG122: 0 | BH122: 0
C123: 2014 | D123: 327 | E123: 310 | F123: 100 | G123: 327 | H123: 686 | I123: 169.2 | J123: 327 | K123: 310 | L123: 100 | M123: 327 | N123: 686 | O123: 169.2 | P123: 655 | Q123: 0 | R123: 655 | S123: 0 | T123: 0 | U123: 0 | V123: 0 | W123: 0 | X123: 0 | Y123: 0 | Z123: 0 | AA123: 0 | AB123: 0 | AC123: 0 | AD123: 0 | AE123: 0 | AF123: 0 | AG123: 0 | AH123: 0 | AI123: 0 | AJ123: 0 | AK123: 0 | AL123: 0 | AM123: 0 | AN123: 0 | AO123: 0 | AP123: 332 | AQ123: 0 | AR123: 320 | AS123: 0 | AT123: 332 | AU123: 0 | AV123: 320 | AW123: 0 | AX123: 0 | AY123: 0 | AZ123: 0 | BA123: 0 | BB123: 0 | BC123: 0 | BD123: 0 | BE123: 0 | BF123: 0 | BG123: 0 | BH123: 0
C124: 2015 | D124: 327 | E124: 310 | F124: 100 | G124: 327 | H124: 686 | I124: 169.2 | J124: 327 | K124: 310 | L124: 100 | M124: 327 | N124: 686 | O124: 169.2 | P124: 655 | Q124: 0 | R124: 655 | S124: 0 | T124: 338 | U124: 338 | V124: 303 | W124: 334 | X124: 338 | Y124: 338 | Z124: 303 | AA124: 334 | AB124: 0 | AC124: 0 | AD124: 0 | AE124: 0 | AF124: 0 | AG124: 0 | AH124: 0 | AI124: 0 | AJ124: 0 | AK124: 0 | AL124: 0 | AM124: 0 | AN124: 0 | AO124: 0 | AP124: 664 | AQ124: 306 | AR124: 320 | AS124: 0 | AT124: 664 | AU124: 306 | AV124: 320 | AW124: 0 | AX124: 0 | AY124: 0 | AZ124: 0 | BA124: 0 | BB124: 0 | BC124: 0 | BD124: 0 | BE124: 0 | BF124: 0 | BG124: 0 | BH124: 0
C125: 2016 | D125: 327 | E125: 310 | F125: 100 | G125: 327 | H125: 686 | I125: 169.2 | J125: 327 | K125: 310 | L125: 100 | M125: 327 | N125: 686 | O125: 169.2 | P125: 655 | Q125: 0 | R125: 655 | S125: 0 | T125: 338 | U125: 338 | V125: 303 | W125: 334 | X125: 338 | Y125: 338 | Z125: 303 | AA125: 334 | AB125: 0 | AC125: 0 | AD125: 0 | AE125: 0 | AF125: 0 | AG125: 0 | AH125: 0 | AI125: 0 | AJ125: 0 | AK125: 0 | AL125: 0 | AM125: 0 | AN125: 0 | AO125: 0 | AP125: 664 | AQ125: 306 | AR125: 320 | AS125: 110.02 | AT125: 664 | AU125: 306 | AV125: 320 | AW125: 110.02 | AX125: 0 | AY125: 0 | AZ125: 0 | BA125: 0 | BB125: 0 | BC125: 0 | BD125: 0 | BE125: 0 | BF125: 0 | BG125: 0 | BH125: 0
... 131 more rows

Sheet TechCosts
G1: Discount | H1: 0.5
D2: 1 | E2: =D2+1 -> 2 | F2: =E2+1 -> 3 | G2: 4 | H2: 5 | I2: 6 | J2: 7 | K2: 8 | L2: 9 | M2: 10 | BJ2: CO2 price ($/ton) | BL2: 0 | BM2: 0 | BN2: 0 | BO2: 0 | BP2: 0 | BQ2: 0 | BR2: 0 | BS2: 0 | BT2: 0 | BU2: 0 | BV2: 0 | BW2: 0 | BX2: 0 | BY2: 0 | BZ2: 0 | CA2: 0 | CB2: 0 | CC2: 0 | CD2: 0 | CE2: 0 | CF2: 0 | CG2: 1 | CH2: 0 | CI2: 0
A3: Lookup string1 | B3: Country | C3: Tech | D3: Lookup String2 | E3: Efficiency | F3: Emission Factor | G3: Variable Costs | H3: Fixed Costs | I3: Life | J3: CRF | K3: Availability | L3: IDC | M3: Project Name | N3: Capital Costs | AL3: Fuel Costs ($/MWh)
F4: ton/MWh | G4: US$/MWh | H4: US$/kW | N4: US$/kW | BL4: LCOE ($/MWh)
A5: Existing | N5: 2010 | O5: =N5+1 -> 2011 | P5: =O5+1 -> 2012 | Q5: 2013 | R5: 2014 | S5: 2015 | T5: 2016 | U5: 2017 | V5: 2018 | W5: 2019 | X5: 2020 | Y5: 2021 | Z5: 2022 | AA5: 2023 | AB5: 2024 | AC5: =AB5+1 -> 2025 | AD5: 2026 | AE5: 2027 | AF5: 2028 | AG5: 2029 | AH5: 2030 | AI5: 2031 | AJ5: 2040 | AK5: 2050 | AM5: =N5 -> 2010 | AN5: 2011 | AO5: 2012 | AP5: 2013 | AQ5: 2014 | AR5: 2015 | AS5: 2016 | AT5: 2017 | AU5: 2018 | AV5: 2019 | AW5: 2020 | AX5: 2021 | AY5: 2022 | AZ5: 2023 | BA5: 2024 | BB5: 2025 | BC5: 2026 | BD5: 2027 | BE5: 2028 | BF5: 2029 | BG5: 2030 | BH5: 2031 | BI5: 2040 | BJ5: 2050 | BL5: =AM5 -> 2010 | BM5: 2011 | BN5: 2012 | BO5: 2013 | BP5: 2014 | BQ5: 2015 | BR5: 2016 | BS5: 2017 | BT5: 2018 | BU5: 2019 | BV5: 2020 | BW5: 2021 | BX5: 2022 | BY5: 2023 | BZ5: 2024 | CA5: 2025 | CB5: 2026 | CC5: 2027 | CD5: 2028 | CE5: 2029 | CF5: 2030 | CG5: 2031 | CH5: =BI5 -> 2040 | CI5: 2050
A6: =[2]TechCosts!A6 -> SENEPOHFEXST | B6: =[2]TechCosts!B6 -> SEN | C6: =[2]TechCosts!C6 -> EPOHFEXST | D6: =[2]TechCosts!D6 -> SEwEPOHFEXST | E6: =[2]TechCosts!E6 -> 0.2790697674 | F6: =[2]TechCosts!F6 -> 1.040643 | G6: =[2]TechCosts!G6 -> 0 | H6: =[2]TechCosts!H6 -> 129.0245011 | I6: =[2]TechCosts!I6 -> 0 | J6: =[2]TechCosts!J6 -> 0 | K6: =[2]TechCosts!K6 -> 0.8556210046 | L6: =[2]TechCosts!L6 -> 0 | M6: =[2]TechCosts!M6 -> 0 | N6: =[2]TechCosts!N6 -> 0 | O6: =[2]TechCosts!O6 -> 0 | P6: =[2]TechCosts!P6 -> 0 | Q6: =[2]TechCosts!Q6 -> 0 | R6: =[2]TechCosts!R6 -> 0 | S6: =[2]TechCosts!S6 -> 0 | T6: =[2]TechCosts!T6 -> 0 | U6: =[2]TechCosts!U6 -> 0 | V6: =[2]TechCosts!V6 -> 0 | W6: =[2]TechCosts!W6 -> 0 | X6: =[2]TechCosts!X6 -> 0 | Y6: =[2]TechCosts!Y6 -> 0 | Z6: =[2]TechCosts!Z6 -> 0 | AA6: =[2]TechCosts!AA6 -> 0 | AB6: =[2]TechCosts!AB6 -> 0 | AC6: =[2]TechCosts!AC6 -> 0 | AD6: =[2]TechCosts!AD6 -> 0 | AE6: =[2]TechCosts!AE6 -> 0 | AF6: =[2]TechCosts!AF6 -> 0 | AG6: =[2]TechCosts!AG6 -> 0 | AH6: =[2]TechCosts!AH6 -> 0 | AI6: =[2]TechCosts!AI6 -> 0 | AJ6: =[2]TechCosts!AJ6 -> 0 | AK6: =[2]TechCosts!AK6 -> 0 | AL6: =[2]TechCosts!AL6 -> OHFC | AM6: =[2]TechCosts!AM6 -> 166.4859209 | AN6: =[2]TechCosts!AN6 -> 166.4859209 | AO6: =[2]TechCosts!AO6 -> 166.4859209 | AP6: =[2]TechCosts!AP6 -> 166.4859209 | AQ6: =[2]TechCosts!AQ6 -> 166.4859209 | AR6: =[2]TechCosts!AR6 -> 166.4859209 | AS6: =[2]TechCosts!AS6 -> 166.4859209 | AT6: =[2]TechCosts!AT6 -> 166.4859209 | AU6: =[2]TechCosts!AU6 -> 166.4859209 | AV6: =[2]TechCosts!AV6 -> 166.4859209 | AW6: =[2]TechCosts!AW6 -> 166.4859209 | AX6: =[2]TechCosts!AX6 -> 166.4859209 | AY6: =[2]TechCosts!AY6 -> 166.4859209 | AZ6: =[2]TechCosts!AZ6 -> 166.4859209 | BA6: =[2]TechCosts!BA6 -> 166.4859209 | BB6: =[2]TechCosts!BB6 -> 166.4859209 | BC6: =[2]TechCosts!BC6 -> 166.4859209 | BD6: =[2]TechCosts!BD6 -> 166.4859209 | BE6: =[2]TechCosts!BE6 -> 166.4859209 | BF6: =[2]TechCosts!BF6 -> 166.4859209 | BG6: =[2]TechCosts!BG6 -> 166.4859209 | BH6: =[2]TechCosts!BH6 -> 166.4859209 | BI6: =[2]TechCosts!BI6 -> 166.4859209 | BJ6: =[2]TechCosts!BJ6 -> 166.4859209 | BK6: =[2]TechCosts!BK6 -> 0 | BL6: =[2]TechCosts!BL6 ->  | BM6: =[2]TechCosts!BM6 ->  | BN6: =[2]TechCosts!BN6 ->  | BO6: =[2]TechCosts!BO6 ->  | BP6: =[2]TechCosts!BP6 ->  | BQ6: =[2]TechCosts!BQ6 ->  | BR6: =[2]TechCosts!BR6 ->  | BS6: =[2]TechCosts!BS6 ->  | BT6: =[2]TechCosts!BT6 ->  | BU6: =[2]TechCosts!BU6 ->  | BV6: =[2]TechCosts!BV6 ->  | BW6: =[2]TechCosts!BW6 ->  | BX6: =[2]TechCosts!BX6 ->  | BY6: =[2]TechCosts!BY6 ->  | BZ6: =[2]TechCosts!BZ6 ->  | CA6: =[2]TechCosts!CA6 ->  | CB6: =[2]TechCosts!CB6 ->  | CC6: =[2]TechCosts!CC6 ->  | CD6: =[2]TechCosts!CD6 ->  | CE6: =[2]TechCosts!CE6 ->  | CF6: =[2]TechCosts!CF6 ->  | CG6: =[2]TechCosts!CG6 ->  | CH6: =[2]TechCosts!CH6 ->  | CI6: =[2]TechCosts!CI6 -> 
A7: SENEPOHFEXDI | B7: SEN | C7: EPOHFEXDI | D7: SEwEPOHFEXDI | E7: 0.3998871059 | F7: 0.7262349691 | G7: 0 | H7: 75.1836672 | I7: 0 | J7: 0 | K7: 0.801369863 | L7: 0 | M7: 0 | N7: 0 | O7: 0 | P7: 0 | Q7: 0 | R7: 0 | S7: 0 | T7: 0 | U7: 0 | V7: 0 | W7: 0 | X7: 0 | Y7: 0 | Z7: 0 | AA7: 0 | AB7: 0 | AC7: 0 | AD7: 0 | AE7: 0 | AF7: 0 | AG7: 0 | AH7: 0 | AI7: 0 | AJ7: 0 | AK7: 0 | AL7: OHFC | AM7: 116.1857598 | AN7: 116.1857598 | AO7: 116.1857598 | AP7: 116.1857598 | AQ7: 116.1857598 | AR7: 116.1857598 | AS7: 116.1857598 | AT7: 116.1857598 | AU7: 116.1857598 | AV7: 116.1857598 | AW7: 116.1857598 | AX7: 116.1857598 | AY7: 116.1857598 | AZ7: 116.1857598 | BA7: 116.1857598 | BB7: 116.1857598 | BC7: 116.1857598 | BD7: 116.1857598 | BE7: 116.1857598 | BF7: 116.1857598 | BG7: 116.1857598 | BH7: 116.1857598 | BI7: 116.1857598 | BJ7: 116.1857598 | BK7: 0
A8: SENEPODSEXGT | B8: SEN | C8: EPODSEXGT | D8: SEwEPODSEXGT | E8: 0.2208588957 | F8: 1.207341 | G8: 0 | H8: 34.87645745 | I8: 0 | J8: 0 | K8: 0.8556210046 | L8: 0 | M8: 0 | N8: 0 | O8: 0 | P8: 0 | Q8: 0 | R8: 0 | S8: 0 | T8: 0 | U8: 0 | V8: 0 | W8: 0 | X8: 0 | Y8: 0 | Z8: 0 | AA8: 0 | AB8: 0 | AC8: 0 | AD8: 0 | AE8: 0 | AF8: 0 | AG8: 0 | AH8: 0 | AI8: 0 | AJ8: 0 | AK8: 0 | AL8: ODSC | AM8: 357.1569001 | AN8: 357.1569001 | AO8: 357.1569001 | AP8: 357.1569001 | AQ8: 357.1569001 | AR8: 357.1569001 | AS8: 357.1569001 | AT8: 357.1569001 | AU8: 357.1569001 | AV8: 357.1569001 | AW8: 357.1569001 | AX8: 357.1569001 | AY8: 357.1569001 | AZ8: 357.1569001 | BA8: 357.1569001 | BB8: 357.1569001 | BC8: 357.1569001 | BD8: 357.1569001 | BE8: 357.1569001 | BF8: 357.1569001 | BG8: 357.1569001 | BH8: 357.1569001 | BI8: 357.1569001 | BJ8: 357.1569001 | BK8: 0
A9: SENEPGASEXCC | B9: SEN | C9: EPGASEXCC | D9: SEwEPGASEXCC | E9: 0.3913043478 | F9: 0.5163622527 | G9: 0 | H9: 52.69171437 | I9: 0 | J9: 0 | K9: 0.8556210046 | L9: 0 | M9: 0 | N9: 0 | O9: 0 | P9: 0 | Q9: 0 | R9: 0 | S9: 0 | T9: 0 | U9: 0 | V9: 0 | W9: 0 | X9: 0 | Y9: 0 | Z9: 0 | AA9: 0 | AB9: 0 | AC9: 0 | AD9: 0 | AE9: 0 | AF9: 0 | AG9: 0 | AH9: 0 | AI9: 0 | AJ9: 0 | AK9: 0 | AL9: GASLNG | AM9: 101.2303399 | AN9: 101.2303399 | AO9: 101.2303399 | AP9: 101.2303399 | AQ9: 101.2303399 | AR9: 101.2303399 | AS9: 101.2303399 | AT9: 101.2303399 | AU9: 101.2303399 | AV9: 101.2303399 | AW9: 101.2303399 | AX9: 101.2303399 | AY9: 101.2303399 | AZ9: 101.2303399 | BA9: 101.2303399 | BB9: 101.2303399 | BC9: 101.2303399 | BD9: 101.2303399 | BE9: 101.2303399 | BF9: 101.2303399 | BG9: 101.2303399 | BH9: 101.2303399 | BI9: 101.2303399 | BJ9: 101.2303399 | BK9: 0
A10: SENEPHYDEXMan | B10: SEN | C10: EPHYDEXMan | D10: SEwEPHYDEXMan | E10: 1 | F10: 0 | G10: 0 | H10: 120.0087085 | I10: 0 | J10: 0 | K10: 0.2784274418 | L10: 0 | M10: 0 | N10: 0 | O10: 0 | P10: 0 | Q10: 0 | R10: 0 | S10: 0 | T10: 0 | U10: 0 | V10: 0 | W10: 0 | X10: 0 | Y10: 0 | Z10: 0 | AA10: 0 | AB10: 0 | AC10: 0 | AD10: 0 | AE10: 0 | AF10: 0 | AG10: 0 | AH10: 0 | AI10: 0 | AJ10: 0 | AK10: 0 | AL10: HYD | AM10: 0 | AN10: 0 | AO10: 0 | AP10: 0 | AQ10: 0 | AR10: 0 | AS10: 0 | AT10: 0 | AU10: 0 | AV10: 0 | AW10: 0 | AX10: 0 | AY10: 0 | AZ10: 0 | BA10: 0 | BB10: 0 | BC10: 0 | BD10: 0 | BE10: 0 | BF10: 0 | BG10: 0 | BH10: 0 | BI10: 0 | BJ10: 0 | BK10: 0
A11: GAMEPODSEXDI | B11: GAM | C11: EPODSEXDI | D11: GAwEPODSEXDI | E11: 0.288 | F11: 0.925875 | G11: 0 | H11: 59.59001771 | I11: 0 | J11: 0 | K11: 0.801369863 | L11: 0 | M11: 0 | N11: 0 | O11: 0 | P11: 0 | Q11: 0 | R11: 0 | S11: 0 | T11: 0 | U11: 0 | V11: 0 | W11: 0 | X11: 0 | Y11: 0 | Z11: 0 | AA11: 0 | AB11: 0 | AC11: 0 | AD11: 0 | AE11: 0 | AF11: 0 | AG11: 0 | AH11: 0 | AI11: 0 | AJ11: 0 | AK11: 0 | AL11: ODSC | AM11: 273.8933283 | AN11: 273.8933283 | AO11: 273.8933283 | AP11: 273.8933283 | AQ11: 273.8933283 | AR11: 273.8933283 | AS11: 273.8933283 | AT11: 273.8933283 | AU11: 273.8933283 | AV11: 273.8933283 | AW11: 273.8933283 | AX11: 273.8933283 | AY11: 273.8933283 | AZ11: 273.8933283 | BA11: 273.8933283 | BB11: 273.8933283 | BC11: 273.8933283 | BD11: 273.8933283 | BE11: 273.8933283 | BF11: 273.8933283 | BG11: 273.8933283 | BH11: 273.8933283 | BI11: 273.8933283 | BJ11: 273.8933283 | BK11: 0
A12: GAMEPOHFEXDI | B12: GAM | C12: EPOHFEXDI | D12: GAwEPOHFEXDI | E12: 0.3699309797 | F12: 0.7850437403 | G12: 0 | H12: 75.1836672 | I12: 0 | J12: 0 | K12: 0.801369863 | L12: 0 | M12: 0 | N12: 0 | O12: 0 | P12: 0 | Q12: 0 | R12: 0 | S12: 0 | T12: 0 | U12: 0 | V12: 0 | W12: 0 | X12: 0 | Y12: 0 | Z12: 0 | AA12: 0 | AB12: 0 | AC12: 0 | AD12: 0 | AE12: 0 | AF12: 0 | AG12: 0 | AH12: 0 | AI12: 0 | AJ12: 0 | AK12: 0 | AL12: OHFC | AM12: 125.5942048 | AN12: 125.5942048 | AO12: 125.5942048 | AP12: 125.5942048 | AQ12: 125.5942048 | AR12: 125.5942048 | AS12: 125.5942048 | AT12: 125.5942048 | AU12: 125.5942048 | AV12: 125.5942048 | AW12: 125.5942048 | AX12: 125.5942048 | AY12: 125.5942048 | AZ12: 125.5942048 | BA12: 125.5942048 | BB12: 125.5942048 | BC12: 125.5942048 | BD12: 125.5942048 | BE12: 125.5942048 | BF12: 125.5942048 | BG12: 125.5942048 | BH12: 125.5942048 | BI12: 125.5942048 | BJ12: 125.5942048 | BK12: 0
A13: GBIEPODSEXDI | B13: GBI | C13: EPODSEXDI | D13: GBwEPODSEXDI | E13: 0.3636363636 | F13: 0.733293 | G13: 0 | H13: 59.59001771 | I13: 0 | J13: 0 | K13: 0.6678082192 | L13: 0 | M13: 0 | N13: 0 | O13: 0 | P13: 0 | Q13: 0 | R13: 0 | S13: 0 | T13: 0 | U13: 0 | V13: 0 | W13: 0 | X13: 0 | Y13: 0 | Z13: 0 | AA13: 0 | AB13: 0 | AC13: 0 | AD13: 0 | AE13: 0 | AF13: 0 | AG13: 0 | AH13: 0 | AI13: 0 | AJ13: 0 | AK13: 0 | AL13: ODSC | AM13: 216.923516 | AN13: 216.923516 | AO13: 216.923516 | AP13: 216.923516 | AQ13: 216.923516 | AR13: 216.923516 | AS13: 216.923516 | AT13: 216.923516 | AU13: 216.923516 | AV13: 216.923516 | AW13: 216.923516 | AX13: 216.923516 | AY13: 216.923516 | AZ13: 216.923516 | BA13: 216.923516 | BB13: 216.923516 | BC13: 216.923516 | BD13: 216.923516 | BE13: 216.923516 | BF13: 216.923516 | BG13: 216.923516 | BH13: 216.923516 | BI13: 216.923516 | BJ13: 216.923516 | BK13: 0
A14: GUIEPOHFEXDI | B14: GUI | C14: EPOHFEXDI | D14: GUwEPOHFEXDI | E14: 0.404494382 | F14: 0.717963 | G14: 0 | H14: 132.8509475 | I14: 0 | J14: 0 | K14: 0.801369863 | L14: 0 | M14: 0 | N14: 0 | O14: 0 | P14: 0 | Q14: 0 | R14: 0 | S14: 0 | T14: 0 | U14: 0 | V14: 0 | W14: 0 | X14: 0 | Y14: 0 | Z14: 0 | AA14: 0 | AB14: 0 | AC14: 0 | AD14: 0 | AE14: 0 | AF14: 0 | AG14: 0 | AH14: 0 | AI14: 0 | AJ14: 0 | AK14: 0 | AL14: OHFC | AM14: 114.8623795 | AN14: 114.8623795 | AO14: 114.8623795 | AP14: 114.8623795 | AQ14: 114.8623795 | AR14: 114.8623795 | AS14: 114.8623795 | AT14: 114.8623795 | AU14: 114.8623795 | AV14: 114.8623795 | AW14: 114.8623795 | AX14: 114.8623795 | AY14: 114.8623795 | AZ14: 114.8623795 | BA14: 114.8623795 | BB14: 114.8623795 | BC14: 114.8623795 | BD14: 114.8623795 | BE14: 114.8623795 | BF14: 114.8623795 | BG14: 114.8623795 | BH14: 114.8623795 | BI14: 114.8623795 | BJ14: 114.8623795 | BK14: 0
A15: GUIEPHYDEXDABan | B15: GUI | C15: EPHYDEXDABan | D15: GUwEPHYDEXDABan | E15: 1 | F15: 0 | G15: 0 | H15: 130.9908463 | I15: 0 | J15: 0 | K15: 0.5552511416 | L15: 0 | M15: 0 | N15: 0 | O15: 0 | P15: 0 | Q15: 0 | R15: 0 | S15: 0 | T15: 0 | U15: 0 | V15: 0 | W15: 0 | X15: 0 | Y15: 0 | Z15: 0 | AA15: 0 | AB15: 0 | AC15: 0 | AD15: 0 | AE15: 0 | AF15: 0 | AG15: 0 | AH15: 0 | AI15: 0 | AJ15: 0 | AK15: 0 | AL15: HYD | AM15: 0 | AN15: 0 | AO15: 0 | AP15: 0 | AQ15: 0 | AR15: 0 | AS15: 0 | AT15: 0 | AU15: 0 | AV15: 0 | AW15: 0 | AX15: 0 | AY15: 0 | AZ15: 0 | BA15: 0 | BB15: 0 | BC15: 0 | BD15: 0 | BE15: 0 | BF15: 0 | BG15: 0 | BH15: 0 | BI15: 0 | BJ15: 0 | BK15: 0
A16: GUIEPHYDEXRODon | B16: GUI | C16: EPHYDEXRODon | D16: GUwEPHYDEXRODon | E16: 1 | F16: 0 | G16: 0 | H16: 121.6692056 | I16: 0 | J16: 0 | K16: 0.5759651308 | L16: 0 | M16: 0 | N16: 0 | O16: 0 | P16: 0 | Q16: 0 | R16: 0 | S16: 0 | T16: 0 | U16: 0 | V16: 0 | W16: 0 | X16: 0 | Y16: 0 | Z16: 0 | AA16: 0 | AB16: 0 | AC16: 0 | AD16: 0 | AE16: 0 | AF16: 0 | AG16: 0 | AH16: 0 | AI16: 0 | AJ16: 0 | AK16: 0 | AL16: HYD | AM16: 0 | AN16: 0 | AO16: 0 | AP16: 0 | AQ16: 0 | AR16: 0 | AS16: 0 | AT16: 0 | AU16: 0 | AV16: 0 | AW16: 0 | AX16: 0 | AY16: 0 | AZ16: 0 | BA16: 0 | BB16: 0 | BC16: 0 | BD16: 0 | BE16: 0 | BF16: 0 | BG16: 0 | BH16: 0 | BI16: 0 | BJ16: 0 | BK16: 0
A17: GUIEPHYDEXDAGra | B17: GUI | C17: EPHYDEXDAGra | D17: GUwEPHYDEXDAGra | E17: 1 | F17: 0 | G17: 0 | H17: 120.359357 | I17: 0 | J17: 0 | K17: 0.9 | L17: 0 | M17: 0 | N17: 0 | O17: 0 | P17: 0 | Q17: 0 | R17: 0 | S17: 0 | T17: 0 | U17: 0 | V17: 0 | W17: 0 | X17: 0 | Y17: 0 | Z17: 0 | AA17: 0 | AB17: 0 | AC17: 0 | AD17: 0 | AE17: 0 | AF17: 0 | AG17: 0 | AH17: 0 | AI17: 0 | AJ17: 0 | AK17: 0 | AL17: HYD | AM17: 0 | AN17: 0 | AO17: 0 | AP17: 0 | AQ17: 0 | AR17: 0 | AS17: 0 | AT17: 0 | AU17: 0 | AV17: 0 | AW17: 0 | AX17: 0 | AY17: 0 | AZ17: 0 | BA17: 0 | BB17: 0 | BC17: 0 | BD17: 0 | BE17: 0 | BF17: 0 | BG17: 0 | BH17: 0 | BI17: 0 | BJ17: 0 | BK17: 0
A18: GUIEPHYDEXDAGar | B18: GUI | C18: EPHYDEXDAGar | D18: GUwEPHYDEXDAGar | E18: 1 | F18: 0 | G18: 0 | H18: 120.0087085 | I18: 0 | J18: 0 | K18: 0.3105022831 | L18: 0 | M18: 0 | N18: 0 | O18: 0 | P18: 0 | Q18: 0 | R18: 0 | S18: 0 | T18: 0 | U18: 0 | V18: 0 | W18: 0 | X18: 0 | Y18: 0 | Z18: 0 | AA18: 0 | AB18: 0 | AC18: 0 | AD18: 0 | AE18: 0 | AF18: 0 | AG18: 0 | AH18: 0 | AI18: 0 | AJ18: 0 | AK18: 0 | AL18: HYD | AM18: 0 | AN18: 0 | AO18: 0 | AP18: 0 | AQ18: 0 | AR18: 0 | AS18: 0 | AT18: 0 | AU18: 0 | AV18: 0 | AW18: 0 | AX18: 0 | AY18: 0 | AZ18: 0 | BA18: 0 | BB18: 0 | BC18: 0 | BD18: 0 | BE18: 0 | BF18: 0 | BG18: 0 | BH18: 0 | BI18: 0 | BJ18: 0 | BK18: 0
A19: GUIEPHYDEXDAKin | B19: GUI | C19: EPHYDEXDAKin | D19: GUwEPHYDEXDAKin | E19: 1 | F19: 0 | G19: 0 | H19: 120.0087085 | I19: 0 | J19: 0 | K19: 0.3626107977 | L19: 0 | M19: 0 | N19: 0 | O19: 0 | P19: 0 | Q19: 0 | R19: 0 | S19: 0 | T19: 0 | U19: 0 | V19: 0 | W19: 0 | X19: 0 | Y19: 0 | Z19: 0 | AA19: 0 | AB19: 0 | AC19: 0 | AD19: 0 | AE19: 0 | AF19: 0 | AG19: 0 | AH19: 0 | AI19: 0 | AJ19: 0 | AK19: 0 | AL19: HYD | AM19: 0 | AN19: 0 | AO19: 0 | AP19: 0 | AQ19: 0 | AR19: 0 | AS19: 0 | AT19: 0 | AU19: 0 | AV19: 0 | AW19: 0 | AX19: 0 | AY19: 0 | AZ19: 0 | BA19: 0 | BB19: 0 | BC19: 0 | BD19: 0 | BE19: 0 | BF19: 0 | BG19: 0 | BH19: 0 | BI19: 0 | BJ19: 0 | BK19: 0
A20: GUIEPHYDEXROTin | B20: GUI | C20: EPHYDEXROTin | D20: GUwEPHYDEXROTin | E20: 1 | F20: 0 | G20: 0 | H20: 120.0087085 | I20: 0 | J20: 0 | K20: 0.3500761035 | L20: 0 | M20: 0 | N20: 0 | O20: 0 | P20: 0 | Q20: 0 | R20: 0 | S20: 0 | T20: 0 | U20: 0 | V20: 0 | W20: 0 | X20: 0 | Y20: 0 | Z20: 0 | AA20: 0 | AB20: 0 | AC20: 0 | AD20: 0 | AE20: 0 | AF20: 0 | AG20: 0 | AH20: 0 | AI20: 0 | AJ20: 0 | AK20: 0 | AL20: HYD | AM20: 0 | AN20: 0 | AO20: 0 | AP20: 0 | AQ20: 0 | AR20: 0 | AS20: 0 | AT20: 0 | AU20: 0 | AV20: 0 | AW20: 0 | AX20: 0 | AY20: 0 | AZ20: 0 | BA20: 0 | BB20: 0 | BC20: 0 | BD20: 0 | BE20: 0 | BF20: 0 | BG20: 0 | BH20: 0 | BI20: 0 | BJ20: 0 | BK20: 0
A21: SIEEPOHFEXDI | B21: SIE | C21: EPOHFEXDI | D21: SIwEPOHFEXDI | E21: 0.3789473684 | F21: 0.766365 | G21: 0 | H21: 75.1836672 | I21: 0 | J21: 0 | K21: 0.801369863 | L21: 0 | M21: 0 | N21: 0 | O21: 0 | P21: 0 | Q21: 0 | R21: 0 | S21: 0 | T21: 0 | U21: 0 | V21: 0 | W21: 0 | X21: 0 | Y21: 0 | Z21: 0 | AA21: 0 | AB21: 0 | AC21: 0 | AD21: 0 | AE21: 0 | AF21: 0 | AG21: 0 | AH21: 0 | AI21: 0 | AJ21: 0 | AK21: 0 | AL21: OHFC | AM21: 122.6059107 | AN21: 122.6059107 | AO21: 122.6059107 | AP21: 122.6059107 | AQ21: 122.6059107 | AR21: 122.6059107 | AS21: 122.6059107 | AT21: 122.6059107 | AU21: 122.6059107 | AV21: 122.6059107 | AW21: 122.6059107 | AX21: 122.6059107 | AY21: 122.6059107 | AZ21: 122.6059107 | BA21: 122.6059107 | BB21: 122.6059107 | BC21: 122.6059107 | BD21: 122.6059107 | BE21: 122.6059107 | BF21: 122.6059107 | BG21: 122.6059107 | BH21: 122.6059107 | BI21: 122.6059107 | BJ21: 122.6059107 | BK21: 0
A22: SIEEPODSEXDI | B22: SIE | C22: EPODSEXDI | D22: SIwEPODSEXDI | E22: 0.3461538462 | F22: 0.770328 | G22: 0 | H22: 59.59001771 | I22: 0 | J22: 0 | K22: 0.801369863 | L22: 0 | M22: 0 | N22: 0 | O22: 0 | P22: 0 | Q22: 0 | R22: 0 | S22: 0 | T22: 0 | U22: 0 | V22: 0 | W22: 0 | X22: 0 | Y22: 0 | Z22: 0 | AA22: 0 | AB22: 0 | AC22: 0 | AD22: 0 | AE22: 0 | AF22: 0 | AG22: 0 | AH22: 0 | AI22: 0 | AJ22: 0 | AK22: 0 | AL22: ODSC | AM22: 227.8792491 | AN22: 227.8792491 | AO22: 227.8792491 | AP22: 227.8792491 | AQ22: 227.8792491 | AR22: 227.8792491 | AS22: 227.8792491 | AT22: 227.8792491 | AU22: 227.8792491 | AV22: 227.8792491 | AW22: 227.8792491 | AX22: 227.8792491 | AY22: 227.8792491 | AZ22: 227.8792491 | BA22: 227.8792491 | BB22: 227.8792491 | BC22: 227.8792491 | BD22: 227.8792491 | BE22: 227.8792491 | BF22: 227.8792491 | BG22: 227.8792491 | BH22: 227.8792491 | BI22: 227.8792491 | BJ22: 227.8792491 | BK22: 0
A23: SIEEPHYDEXROGom | B23: SIE | C23: EPHYDEXROGom | D23: SIwEPHYDEXROGom | E23: 1 | F23: 0 | G23: 0 | H23: 120.0087085 | I23: 0 | J23: 0 | K23: 0.02663622527 | L23: 0 | M23: 0 | N23: 0 | O23: 0 | P23: 0 | Q23: 0 | R23: 0 | S23: 0 | T23: 0 | U23: 0 | V23: 0 | W23: 0 | X23: 0 | Y23: 0 | Z23: 0 | AA23: 0 | AB23: 0 | AC23: 0 | AD23: 0 | AE23: 0 | AF23: 0 | AG23: 0 | AH23: 0 | AI23: 0 | AJ23: 0 | AK23: 0 | AL23: HYD | AM23: 0 | AN23: 0 | AO23: 0 | AP23: 0 | AQ23: 0 | AR23: 0 | AS23: 0 | AT23: 0 | AU23: 0 | AV23: 0 | AW23: 0 | AX23: 0 | AY23: 0 | AZ23: 0 | BA23: 0 | BB23: 0 | BC23: 0 | BD23: 0 | BE23: 0 | BF23: 0 | BG23: 0 | BH23: 0 | BI23: 0 | BJ23: 0 | BK23: 0
A24: SIEEPHYDEXDABum | B24: SIE | C24: EPHYDEXDABum | D24: SIwEPHYDEXDABum | E24: 1 | F24: 0 | G24: 0 | H24: 120.0087085 | I24: 0 | J24: 0 | K24: 0.3584474886 | L24: 0 | M24: 0 | N24: 0 | O24: 0 | P24: 0 | Q24: 0 | R24: 0 | S24: 0 | T24: 0 | U24: 0 | V24: 0 | W24: 0 | X24: 0 | Y24: 0 | Z24: 0 | AA24: 0 | AB24: 0 | AC24: 0 | AD24: 0 | AE24: 0 | AF24: 0 | AG24: 0 | AH24: 0 | AI24: 0 | AJ24: 0 | AK24: 0 | AL24: HYD | AM24: 0 | AN24: 0 | AO24: 0 | AP24: 0 | AQ24: 0 | AR24: 0 | AS24: 0 | AT24: 0 | AU24: 0 | AV24: 0 | AW24: 0 | AX24: 0 | AY24: 0 | AZ24: 0 | BA24: 0 | BB24: 0 | BC24: 0 | BD24: 0 | BE24: 0 | BF24: 0 | BG24: 0 | BH24: 0 | BI24: 0 | BJ24: 0 | BK24: 0
A25: LIBEPODSEXDI | B25: LIB | C25: EPODSEXDI | D25: LIwEPODSEXDI | E25: 0.3050847458 | F25: 0.874026 | G25: 0 | H25: 59.59001771 | I25: 0 | J25: 0 | K25: 0.801369863 | L25: 0 | M25: 0 | N25: 0 | O25: 0 | P25: 0 | Q25: 0 | R25: 0 | S25: 0 | T25: 0 | U25: 0 | V25: 0 | W25: 0 | X25: 0 | Y25: 0 | Z25: 0 | AA25: 0 | AB25: 0 | AC25: 0 | AD25: 0 | AE25: 0 | AF25: 0 | AG25: 0 | AH25: 0 | AI25: 0 | AJ25: 0 | AK25: 0 | AL25: ODSC | AM25: 258.5553019 | AN25: 258.5553019 | AO25: 258.5553019 | AP25: 258.5553019 | AQ25: 258.5553019 | AR25: 258.5553019 | AS25: 258.5553019 | AT25: 258.5553019 | AU25: 258.5553019 | AV25: 258.5553019 | AW25: 258.5553019 | AX25: 258.5553019 | AY25: 258.5553019 | AZ25: 258.5553019 | BA25: 258.5553019 | BB25: 258.5553019 | BC25: 258.5553019 | BD25: 258.5553019 | BE25: 258.5553019 | BF25: 258.5553019 | BG25: 258.5553019 | BH25: 258.5553019 | BI25: 258.5553019 | BJ25: 258.5553019 | BK25: 0
A26: MALEPODSEXDI | B26: MAL | C26: EPODSEXDI | D26: MAwEPODSEXDI | E26: 0.3727665155 | F26: 0.7153324908 | G26: 0 | H26: 59.59001771 | I26: 0 | J26: 0 | K26: 0.801369863 | L26: 0 | M26: 0 | N26: 0 | O26: 0 | P26: 0 | Q26: 0 | R26: 0 | S26: 0 | T26: 0 | U26: 0 | V26: 0 | W26: 0 | X26: 0 | Y26: 0 | Z26: 0 | AA26: 0 | AB26: 0 | AC26: 0 | AD26: 0 | AE26: 0 | AF26: 0 | AG26: 0 | AH26: 0 | AI26: 0 | AJ26: 0 | AK26: 0 | AL26: ODSI | AM26: 243.4591652 | AN26: 243.4591652 | AO26: 243.4591652 | AP26: 243.4591652 | AQ26: 243.4591652 | AR26: 243.4591652 | AS26: 243.4591652 | AT26: 243.4591652 | AU26: 243.4591652 | AV26: 243.4591652 | AW26: 243.4591652 | AX26: 243.4591652 | AY26: 243.4591652 | AZ26: 243.4591652 | BA26: 243.4591652 | BB26: 243.4591652 | BC26: 243.4591652 | BD26: 243.4591652 | BE26: 243.4591652 | BF26: 243.4591652 | BG26: 243.4591652 | BH26: 243.4591652 | BI26: 243.4591652 | BJ26: 243.4591652 | BK26: 0
A27: MALEPODSEXGT | B27: MAL | C27: EPODSEXGT | D27: MAwEPODSEXGT | E27: 0.2307692308 | F27: 1.155492 | G27: 0 | H27: 34.87645745 | I27: 0 | J27: 0 | K27: 0.8556210046 | L27: 0 | M27: 0 | N27: 0 | O27: 0 | P27: 0 | Q27: 0 | R27: 0 | S27: 0 | T27: 0 | U27: 0 | V27: 0 | W27: 0 | X27: 0 | Y27: 0 | Z27: 0 | AA27: 0 | AB27: 0 | AC27: 0 | AD27: 0 | AE27: 0 | AF27: 0 | AG27: 0 | AH27: 0 | AI27: 0 | AJ27: 0 | AK27: 0 | AL27: ODSI | AM27: 393.2648402 | AN27: 393.2648402 | AO27: 393.2648402 | AP27: 393.2648402 | AQ27: 393.2648402 | AR27: 393.2648402 | AS27: 393.2648402 | AT27: 393.2648402 | AU27: 393.2648402 | AV27: 393.2648402 | AW27: 393.2648402 | AX27: 393.2648402 | AY27: 393.2648402 | AZ27: 393.2648402 | BA27: 393.2648402 | BB27: 393.2648402 | BC27: 393.2648402 | BD27: 393.2648402 | BE27: 393.2648402 | BF27: 393.2648402 | BG27: 393.2648402 | BH27: 393.2648402 | BI27: 393.2648402 | BJ27: 393.2648402 | BK27: 0
A28: MALEPOHFEXDI | B28: MAL | C28: EPOHFEXDI | D28: MAwEPOHFEXDI | E28: 0.3829787234 | F28: 0.758298 | G28: 0 | H28: 75.1836672 | I28: 0 | J28: 0 | K28: 0.801369863 | L28: 0 | M28: 0 | N28: 0 | O28: 0 | P28: 0 | Q28: 0 | R28: 0 | S28: 0 | T28: 0 | U28: 0 | V28: 0 | W28: 0 | X28: 0 | Y28: 0 | Z28: 0 | AA28: 0 | AB28: 0 | AC28: 0 | AD28: 0 | AE28: 0 | AF28: 0 | AG28: 0 | AH28: 0 | AI28: 0 | AJ28: 0 | AK28: 0 | AL28: OHFI | AM28: 153.2090309 | AN28: 153.2090309 | AO28: 153.2090309 | AP28: 153.2090309 | AQ28: 153.2090309 | AR28: 153.2090309 | AS28: 153.2090309 | AT28: 153.2090309 | AU28: 153.2090309 | AV28: 153.2090309 | AW28: 153.2090309 | AX28: 153.2090309 | AY28: 153.2090309 | AZ28: 153.2090309 | BA28: 153.2090309 | BB28: 153.2090309 | BC28: 153.2090309 | BD28: 153.2090309 | BE28: 153.2090309 | BF28: 153.2090309 | BG28: 153.2090309 | BH28: 153.2090309 | BI28: 153.2090309 | BJ28: 153.2090309 | BK28: 0
A29: MALEPHYDEXDASel | B29: MAL | C29: EPHYDEXDASel | D29: MAwEPHYDEXDASel | E29: 1 | F29: 0 | G29: 0 | H29: 120.0087085 | I29: 0 | J29: 0 | K29: 0.5190545803 | L29: 0 | M29: 0 | N29: 0 | O29: 0 | P29: 0 | Q29: 0 | R29: 0 | S29: 0 | T29: 0 | U29: 0 | V29: 0 | W29: 0 | X29: 0 | Y29: 0 | Z29: 0 | AA29: 0 | AB29: 0 | AC29: 0 | AD29: 0 | AE29: 0 | AF29: 0 | AG29: 0 | AH29: 0 | AI29: 0 | AJ29: 0 | AK29: 0 | AL29: HYD | AM29: 0 | AN29: 0 | AO29: 0 | AP29: 0 | AQ29: 0 | AR29: 0 | AS29: 0 | AT29: 0 | AU29: 0 | AV29: 0 | AW29: 0 | AX29: 0 | AY29: 0 | AZ29: 0 | BA29: 0 | BB29: 0 | BC29: 0 | BD29: 0 | BE29: 0 | BF29: 0 | BG29: 0 | BH29: 0 | BI29: 0 | BJ29: 0 | BK29: 0
A30: MALEPHYDEXROSot | B30: MAL | C30: EPHYDEXROSot | D30: MAwEPHYDEXROSot | E30: 1 | F30: 0 | G30: 0 | H30: 120.0087085 | I30: 0 | J30: 0 | K30: 0.7490186654 | L30: 0 | M30: 0 | N30: 0 | O30: 0 | P30: 0 | Q30: 0 | R30: 0 | S30: 0 | T30: 0 | U30: 0 | V30: 0 | W30: 0 | X30: 0 | Y30: 0 | Z30: 0 | AA30: 0 | AB30: 0 | AC30: 0 | AD30: 0 | AE30: 0 | AF30: 0 | AG30: 0 | AH30: 0 | AI30: 0 | AJ30: 0 | AK30: 0 | AL30: HYD | AM30: 0 | AN30: 0 | AO30: 0 | AP30: 0 | AQ30: 0 | AR30: 0 | AS30: 0 | AT30: 0 | AU30: 0 | AV30: 0 | AW30: 0 | AX30: 0 | AY30: 0 | AZ30: 0 | BA30: 0 | BB30: 0 | BC30: 0 | BD30: 0 | BE30: 0 | BF30: 0 | BG30: 0 | BH30: 0 | BI30: 0 | BJ30: 0 | BK30: 0
A31: MALEPHYDEXDAMan | B31: MAL | C31: EPHYDEXDAMan | D31: MAwEPHYDEXDAMan | E31: 1 | F31: 0 | G31: 0 | H31: 120.0087085 | I31: 0 | J31: 0 | K31: 0.2853881279 | L31: 0 | M31: 0 | N31: 0 | O31: 0 | P31: 0 | Q31: 0 | R31: 0 | S31: 0 | T31: 0 | U31: 0 | V31: 0 | W31: 0 | X31: 0 | Y31: 0 | Z31: 0 | AA31: 0 | AB31: 0 | AC31: 0 | AD31: 0 | AE31: 0 | AF31: 0 | AG31: 0 | AH31: 0 | AI31: 0 | AJ31: 0 | AK31: 0 | AL31: HYD | AM31: 0 | AN31: 0 | AO31: 0 | AP31: 0 | AQ31: 0 | AR31: 0 | AS31: 0 | AT31: 0 | AU31: 0 | AV31: 0 | AW31: 0 | AX31: 0 | AY31: 0 | AZ31: 0 | BA31: 0 | BB31: 0 | BC31: 0 | BD31: 0 | BE31: 0 | BF31: 0 | BG31: 0 | BH31: 0 | BI31: 0 | BJ31: 0 | BK31: 0
A32: CIVEPGASEXGTAz | B32: CIV | C32: EPGASEXGTAz | D32: CIwEPGASEXGTAz | E32: 0.3157894737 | F32: 0.6398401826 | G32: 0 | H32: 44.56696116 | I32: 0 | J32: 0 | K32: 0.8757710597 | L32: 0 | M32: 0 | N32: 0 | O32: 0 | P32: 0 | Q32: 0 | R32: 0 | S32: 0 | T32: 0 | U32: 0 | V32: 0 | W32: 0 | X32: 0 | Y32: 0 | Z32: 0 | AA32: 0 | AB32: 0 | AC32: 0 | AD32: 0 | AE32: 0 | AF32: 0 | AG32: 0 | AH32: 0 | AI32: 0 | AJ32: 0 | AK32: 0 | AL32: GASLOCal | AM32: 96.87975647 | AN32: 96.87975647 | AO32: 96.87975647 | AP32: 96.87975647 | AQ32: 96.87975647 | AR32: 96.87975647 | AS32: 96.87975647 | AT32: 96.87975647 | AU32: 96.87975647 | AV32: 96.87975647 | AW32: 96.87975647 | AX32: 96.87975647 | AY32: 96.87975647 | AZ32: 96.87975647 | BA32: 96.87975647 | BB32: 96.87975647 | BC32: 96.87975647 | BD32: 96.87975647 | BE32: 96.87975647 | BF32: 96.87975647 | BG32: 96.87975647 | BH32: 96.87975647 | BI32: 96.87975647 | BJ32: 96.87975647 | BK32: 0
A33: CIVEPHYDEXDAAy1 | B33: CIV | C33: EPHYDEXDAAy1 | D33: CIwEPHYDEXDAAy1 | E33: 1 | F33: 0 | G33: 0 | H33: 120.0087085 | I33: 0 | J33: 0 | K33: 0.2711187215 | L33: 0 | M33: 0 | N33: 0 | O33: 0 | P33: 0 | Q33: 0 | R33: 0 | S33: 0 | T33: 0 | U33: 0 | V33: 0 | W33: 0 | X33: 0 | Y33: 0 | Z33: 0 | AA33: 0 | AB33: 0 | AC33: 0 | AD33: 0 | AE33: 0 | AF33: 0 | AG33: 0 | AH33: 0 | AI33: 0 | AJ33: 0 | AK33: 0 | AL33: HYD | AM33: 0 | AN33: 0 | AO33: 0 | AP33: 0 | AQ33: 0 | AR33: 0 | AS33: 0 | AT33: 0 | AU33: 0 | AV33: 0 | AW33: 0 | AX33: 0 | AY33: 0 | AZ33: 0 | BA33: 0 | BB33: 0 | BC33: 0 | BD33: 0 | BE33: 0 | BF33: 0 | BG33: 0 | BH33: 0 | BI33: 0 | BJ33: 0 | BK33: 0
A34: CIVEPHYDEXDAAy2 | B34: CIV | C34: EPHYDEXDAAy2 | D34: CIwEPHYDEXDAAy2 | E34: 1 | F34: 0 | G34: 0 | H34: 120.0087085 | I34: 0 | J34: 0 | K34: 0.2568493151 | L34: 0 | M34: 0 | N34: 0 | O34: 0 | P34: 0 | Q34: 0 | R34: 0 | S34: 0 | T34: 0 | U34: 0 | V34: 0 | W34: 0 | X34: 0 | Y34: 0 | Z34: 0 | AA34: 0 | AB34: 0 | AC34: 0 | AD34: 0 | AE34: 0 | AF34: 0 | AG34: 0 | AH34: 0 | AI34: 0 | AJ34: 0 | AK34: 0 | AL34: HYD | AM34: 0 | AN34: 0 | AO34: 0 | AP34: 0 | AQ34: 0 | AR34: 0 | AS34: 0 | AT34: 0 | AU34: 0 | AV34: 0 | AW34: 0 | AX34: 0 | AY34: 0 | AZ34: 0 | BA34: 0 | BB34: 0 | BC34: 0 | BD34: 0 | BE34: 0 | BF34: 0 | BG34: 0 | BH34: 0 | BI34: 0 | BJ34: 0 | BK34: 0
A35: CIVEPHYDEXDABuy | B35: CIV | C35: EPHYDEXDABuy | D35: CIwEPHYDEXDABuy | E35: 1 | F35: 0 | G35: 0 | H35: 120.0087085 | I35: 0 | J35: 0 | K35: 0.4740873818 | L35: 0 | M35: 0 | N35: 0 | O35: 0 | P35: 0 | Q35: 0 | R35: 0 | S35: 0 | T35: 0 | U35: 0 | V35: 0 | W35: 0 | X35: 0 | Y35: 0 | Z35: 0 | AA35: 0 | AB35: 0 | AC35: 0 | AD35: 0 | AE35: 0 | AF35: 0 | AG35: 0 | AH35: 0 | AI35: 0 | AJ35: 0 | AK35: 0 | AL35: HYD | AM35: 0 | AN35: 0 | AO35: 0 | AP35: 0 | AQ35: 0 | AR35: 0 | AS35: 0 | AT35: 0 | AU35: 0 | AV35: 0 | AW35: 0 | AX35: 0 | AY35: 0 | AZ35: 0 | BA35: 0 | BB35: 0 | BC35: 0 | BD35: 0 | BE35: 0 | BF35: 0 | BG35: 0 | BH35: 0 | BI35: 0 | BJ35: 0 | BK35: 0
A36: CIVEPHYDEXDAKos | B36: CIV | C36: EPHYDEXDAKos | D36: CIwEPHYDEXDAKos | E36: 1 | F36: 0 | G36: 0 | H36: 120.0087085 | I36: 0 | J36: 0 | K36: 0.2496455008 | L36: 0 | M36: 0 | N36: 0 | O36: 0 | P36: 0 | Q36: 0 | R36: 0 | S36: 0 | T36: 0 | U36: 0 | V36: 0 | W36: 0 | X36: 0 | Y36: 0 | Z36: 0 | AA36: 0 | AB36: 0 | AC36: 0 | AD36: 0 | AE36: 0 | AF36: 0 | AG36: 0 | AH36: 0 | AI36: 0 | AJ36: 0 | AK36: 0 | AL36: HYD | AM36: 0 | AN36: 0 | AO36: 0 | AP36: 0 | AQ36: 0 | AR36: 0 | AS36: 0 | AT36: 0 | AU36: 0 | AV36: 0 | AW36: 0 | AX36: 0 | AY36: 0 | AZ36: 0 | BA36: 0 | BB36: 0 | BC36: 0 | BD36: 0 | BE36: 0 | BF36: 0 | BG36: 0 | BH36: 0 | BI36: 0 | BJ36: 0 | BK36: 0
A37: CIVEPHYDEXDATaa | B37: CIV | C37: EPHYDEXDATaa | D37: CIwEPHYDEXDATaa | E37: 1 | F37: 0 | G37: 0 | H37: 120.0087085 | I37: 0 | J37: 0 | K37: 0.3881278539 | L37: 0 | M37: 0 | N37: 0 | O37: 0 | P37: 0 | Q37: 0 | R37: 0 | S37: 0 | T37: 0 | U37: 0 | V37: 0 | W37: 0 | X37: 0 | Y37: 0 | Z37: 0 | AA37: 0 | AB37: 0 | AC37: 0 | AD37: 0 | AE37: 0 | AF37: 0 | AG37: 0 | AH37: 0 | AI37: 0 | AJ37: 0 | AK37: 0 | AL37: HYD | AM37: 0 | AN37: 0 | AO37: 0 | AP37: 0 | AQ37: 0 | AR37: 0 | AS37: 0 | AT37: 0 | AU37: 0 | AV37: 0 | AW37: 0 | AX37: 0 | AY37: 0 | AZ37: 0 | BA37: 0 | BB37: 0 | BC37: 0 | BD37: 0 | BE37: 0 | BF37: 0 | BG37: 0 | BH37: 0 | BI37: 0 | BJ37: 0 | BK37: 0
A38: CIVEPHYDEXROFay | B38: CIV | C38: EPHYDEXROFay | D38: CIwEPHYDEXROFay | E38: 1 | F38: 0 | G38: 0 | H38: 120.0087085 | I38: 0 | J38: 0 | K38: 0.3296803653 | L38: 0 | M38: 0 | N38: 0 | O38: 0 | P38: 0 | Q38: 0 | R38: 0 | S38: 0 | T38: 0 | U38: 0 | V38: 0 | W38: 0 | X38: 0 | Y38: 0 | Z38: 0 | AA38: 0 | AB38: 0 | AC38: 0 | AD38: 0 | AE38: 0 | AF38: 0 | AG38: 0 | AH38: 0 | AI38: 0 | AJ38: 0 | AK38: 0 | AL38: HYD | AM38: 0 | AN38: 0 | AO38: 0 | AP38: 0 | AQ38: 0 | AR38: 0 | AS38: 0 | AT38: 0 | AU38: 0 | AV38: 0 | AW38: 0 | AX38: 0 | AY38: 0 | AZ38: 0 | BA38: 0 | BB38: 0 | BC38: 0 | BD38: 0 | BE38: 0 | BF38: 0 | BG38: 0 | BH38: 0 | BI38: 0 | BJ38: 0 | BK38: 0
A39: GHAEPOLCEXCC | B39: GHA | C39: EPOLCEXCC | D39: GHwEPOLCEXCC | E39: 0.4137931034 | F39: 0.637971 | G39: 0 | H39: 52.69171437 | I39: 0 | J39: 0 | K39: 0.7177260274 | L39: 0 | M39: 0 | N39: 0 | O39: 0 | P39: 0 | Q39: 0 | R39: 0 | S39: 0 | T39: 0 | U39: 0 | V39: 0 | W39: 0 | X39: 0 | Y39: 0 | Z39: 0 | AA39: 0 | AB39: 0 | AC39: 0 | AD39: 0 | AE39: 0 | AF39: 0 | AG39: 0 | AH39: 0 | AI39: 0 | AJ39: 0 | AK39: 0 | AL39: OLCC | AM39: 154.7659817 | AN39: 154.7659817 | AO39: 154.7659817 | AP39: 154.7659817 | AQ39: 154.7659817 | AR39: 154.7659817 | AS39: 154.7659817 | AT39: 154.7659817 | AU39: 154.7659817 | AV39: 154.7659817 | AW39: 154.7659817 | AX39: 154.7659817 | AY39: 154.7659817 | AZ39: 154.7659817 | BA39: 154.7659817 | BB39: 154.7659817 | BC39: 154.7659817 | BD39: 154.7659817 | BE39: 154.7659817 | BF39: 154.7659817 | BG39: 154.7659817 | BH39: 154.7659817 | BI39: 154.7659817 | BJ39: 154.7659817 | BK39: 0
A40: GHAEPOLCEXGT | B40: GHA | C40: EPOLCEXGT | D40: GHwEPOLCEXGT | E40: 0.2872340426 | F40: 0.9190693333 | G40: 0 | H40: 44.56696116 | I40: 0 | J40: 0 | K40: 0.8165315068 | L40: 0 | M40: 0 | N40: 0 | O40: 0 | P40: 0 | Q40: 0 | R40: 0 | S40: 0 | T40: 0 | U40: 0 | V40: 0 | W40: 0 | X40: 0 | Y40: 0 | Z40: 0 | AA40: 0 | AB40: 0 | AC40: 0 | AD40: 0 | AE40: 0 | AF40: 0 | AG40: 0 | AH40: 0 | AI40: 0 | AJ40: 0 | AK40: 0 | AL40: OLCC | AM40: 222.9578894 | AN40: 222.9578894 | AO40: 222.9578894 | AP40: 222.9578894 | AQ40: 222.9578894 | AR40: 222.9578894 | AS40: 222.9578894 | AT40: 222.9578894 | AU40: 222.9578894 | AV40: 222.9578894 | AW40: 222.9578894 | AX40: 222.9578894 | AY40: 222.9578894 | AZ40: 222.9578894 | BA40: 222.9578894 | BB40: 222.9578894 | BC40: 222.9578894 | BD40: 222.9578894 | BE40: 222.9578894 | BF40: 222.9578894 | BG40: 222.9578894 | BH40: 222.9578894 | BI40: 222.9578894 | BJ40: 222.9578894 | BK40: 0
A41: GHAEPODSEXGT | B41: GHA | C41: EPODSEXGT | D41: GHwEPODSEXGT | E41: 0.2919847328 | F41: 0.9132395294 | G41: 0 | H41: 34.87645745 | I41: 0 | J41: 0 | K41: 0.8031223207 | L41: 0 | M41: 0 | N41: 0 | O41: 0 | P41: 0 | Q41: 0 | R41: 0 | S41: 0 | T41: 0 | U41: 0 | V41: 0 | W41: 0 | X41: 0 | Y41: 0 | Z41: 0 | AA41: 0 | AB41: 0 | AC41: 0 | AD41: 0 | AE41: 0 | AF41: 0 | AG41: 0 | AH41: 0 | AI41: 0 | AJ41: 0 | AK41: 0 | AL41: ODSC | AM41: 270.1554899 | AN41: 270.1554899 | AO41: 270.1554899 | AP41: 270.1554899 | AQ41: 270.1554899 | AR41: 270.1554899 | AS41: 270.1554899 | AT41: 270.1554899 | AU41: 270.1554899 | AV41: 270.1554899 | AW41: 270.1554899 | AX41: 270.1554899 | AY41: 270.1554899 | AZ41: 270.1554899 | BA41: 270.1554899 | BB41: 270.1554899 | BC41: 270.1554899 | BD41: 270.1554899 | BE41: 270.1554899 | BF41: 270.1554899 | BG41: 270.1554899 | BH41: 270.1554899 | BI41: 270.1554899 | BJ41: 270.1554899 | BK41: 0
A42: GHAEPGASEXCC | B42: GHA | C42: EPGASEXCC | D42: GHwEPGASEXCC | E42: 0.4390243902 | F42: 0.4602359209 | G42: 0 | H42: 52.69171437 | I42: 0 | J42: 0 | K42: 0.849890411 | L42: 0 | M42: 0 | N42: 0 | O42: 0 | P42: 0 | Q42: 0 | R42: 0 | S42: 0 | T42: 0 | U42: 0 | V42: 0 | W42: 0 | X42: 0 | Y42: 0 | Z42: 0 | AA42: 0 | AB42: 0 | AC42: 0 | AD42: 0 | AE42: 0 | AF42: 0 | AG42: 0 | AH42: 0 | AI42: 0 | AJ42: 0 | AK42: 0 | AL42: GASGOA | AM42: 84.50659564 | AN42: 84.50659564 | AO42: 84.50659564 | AP42: 84.50659564 | AQ42: 84.50659564 | AR42: 84.50659564 | AS42: 84.50659564 | AT42: 84.50659564 | AU42: 84.50659564 | AV42: 84.50659564 | AW42: 84.50659564 | AX42: 84.50659564 | AY42: 84.50659564 | AZ42: 84.50659564 | BA42: 84.50659564 | BB42: 84.50659564 | BC42: 84.50659564 | BD42: 84.50659564 | BE42: 84.50659564 | BF42: 84.50659564 | BG42: 84.50659564 | BH42: 84.50659564 | BI42: 84.50659564 | BJ42: 84.50659564 | BK42: 0
A43: GHAEPHYDEXDAAko | B43: GHA | C43: EPHYDEXDAAko | D43: GHwEPHYDEXDAAko | E43: 1 | F43: 0 | G43: 0 | H43: 120.0087085 | I43: 0 | J43: 0 | K43: 0.3932014206 | L43: 0 | M43: 0 | N43: 0 | O43: 0 | P43: 0 | Q43: 0 | R43: 0 | S43: 0 | T43: 0 | U43: 0 | V43: 0 | W43: 0 | X43: 0 | Y43: 0 | Z43: 0 | AA43: 0 | AB43: 0 | AC43: 0 | AD43: 0 | AE43: 0 | AF43: 0 | AG43: 0 | AH43: 0 | AI43: 0 | AJ43: 0 | AK43: 0 | AL43: HYD | AM43: 0 | AN43: 0 | AO43: 0 | AP43: 0 | AQ43: 0 | AR43: 0 | AS43: 0 | AT43: 0 | AU43: 0 | AV43: 0 | AW43: 0 | AX43: 0 | AY43: 0 | AZ43: 0 | BA43: 0 | BB43: 0 | BC43: 0 | BD43: 0 | BE43: 0 | BF43: 0 | BG43: 0 | BH43: 0 | BI43: 0 | BJ43: 0 | BK43: 0
A44: GHAEPHYDEXROKpo | B44: GHA | C44: EPHYDEXROKpo | D44: GHwEPHYDEXROKpo | E44: 1 | F44: 0 | G44: 0 | H44: 120.0087085 | I44: 0 | J44: 0 | K44: 0.4930872653 | L44: 0 | M44: 0 | N44: 0 | O44: 0 | P44: 0 | Q44: 0 | R44: 0 | S44: 0 | T44: 0 | U44: 0 | V44: 0 | W44: 0 | X44: 0 | Y44: 0 | Z44: 0 | AA44: 0 | AB44: 0 | AC44: 0 | AD44: 0 | AE44: 0 | AF44: 0 | AG44: 0 | AH44: 0 | AI44: 0 | AJ44: 0 | AK44: 0 | AL44: HYD | AM44: 0 | AN44: 0 | AO44: 0 | AP44: 0 | AQ44: 0 | AR44: 0 | AS44: 0 | AT44: 0 | AU44: 0 | AV44: 0 | AW44: 0 | AX44: 0 | AY44: 0 | AZ44: 0 | BA44: 0 | BB44: 0 | BC44: 0 | BD44: 0 | BE44: 0 | BF44: 0 | BG44: 0 | BH44: 0 | BI44: 0 | BJ44: 0 | BK44: 0
A45: TBNEPGASEXGT | B45: TBN | C45: EPGASEXGT | D45: TBwEPGASEXGT | E45: 0.2706532736 | F45: 0.7465448018 | G45: 0 | H45: 34.2716631 | I45: 0 | J45: 0 | K45: 0.8556210046 | L45: 0 | M45: 0 | N45: 0 | O45: 0 | P45: 0 | Q45: 0 | R45: 0 | S45: 0 | T45: 0 | U45: 0 | V45: 0 | W45: 0 | X45: 0 | Y45: 0 | Z45: 0 | AA45: 0 | AB45: 0 | AC45: 0 | AD45: 0 | AE45: 0 | AF45: 0 | AG45: 0 | AH45: 0 | AI45: 0 | AJ45: 0 | AK45: 0 | AL45: GASGOA | AM45: 137.0774354 | AN45: 137.0774354 | AO45: 137.0774354 | AP45: 137.0774354 | AQ45: 137.0774354 | AR45: 137.0774354 | AS45: 137.0774354 | AT45: 137.0774354 | AU45: 137.0774354 | AV45: 137.0774354 | AW45: 137.0774354 | AX45: 137.0774354 | AY45: 137.0774354 | AZ45: 137.0774354 | BA45: 137.0774354 | BB45: 137.0774354 | BC45: 137.0774354 | BD45: 137.0774354 | BE45: 137.0774354 | BF45: 137.0774354 | BG45: 137.0774354 | BH45: 137.0774354 | BI45: 137.0774354 | BJ45: 137.0774354 | BK45: 0
A46: TBNEPODSEXDI | B46: TBN | C46: EPODSEXDI | D46: TBwEPODSEXDI | E46: 0.3380435774 | F46: 0.7888095437 | G46: 0 | H46: 56.95639688 | I46: 0 | J46: 0 | K46: 0.801369863 | L46: 0 | M46: 0 | N46: 0 | O46: 0 | P46: 0 | Q46: 0 | R46: 0 | S46: 0 | T46: 0 | U46: 0 | V46: 0 | W46: 0 | X46: 0 | Y46: 0 | Z46: 0 | AA46: 0 | AB46: 0 | AC46: 0 | AD46: 0 | AE46: 0 | AF46: 0 | AG46: 0 | AH46: 0 | AI46: 0 | AJ46: 0 | AK46: 0 | AL46: ODSC | AM46: 233.346479 | AN46: 233.346479 | AO46: 233.346479 | AP46: 233.346479 | AQ46: 233.346479 | AR46: 233.346479 | AS46: 233.346479 | AT46: 233.346479 | AU46: 233.346479 | AV46: 233.346479 | AW46: 233.346479 | AX46: 233.346479 | AY46: 233.346479 | AZ46: 233.346479 | BA46: 233.346479 | BB46: 233.346479 | BC46: 233.346479 | BD46: 233.346479 | BE46: 233.346479 | BF46: 233.346479 | BG46: 233.346479 | BH46: 233.346479 | BI46: 233.346479 | BJ46: 233.346479 | BK46: 0
A47: TBNEPOHFEXDI | B47: TBN | C47: EPOHFEXDI | D47: TBwEPOHFEXDI | E47: 0.2790697674 | F47: 1.040643 | G47: 0 | H47: 73.24439648 | I47: 0 | J47: 0 | K47: 0.801369863 | L47: 0 | M47: 0 | N47: 0 | O47: 0 | P47: 0 | Q47: 0 | R47: 0 | S47: 0 | T47: 0 | U47: 0 | V47: 0 | W47: 0 | X47: 0 | Y47: 0 | Z47: 0 | AA47: 0 | AB47: 0 | AC47: 0 | AD47: 0 | AE47: 0 | AF47: 0 | AG47: 0 | AH47: 0 | AI47: 0 | AJ47: 0 | AK47: 0 | AL47: OHFC | AM47: 166.4859209 | AN47: 166.4859209 | AO47: 166.4859209 | AP47: 166.4859209 | AQ47: 166.4859209 | AR47: 166.4859209 | AS47: 166.4859209 | AT47: 166.4859209 | AU47: 166.4859209 | AV47: 166.4859209 | AW47: 166.4859209 | AX47: 166.4859209 | AY47: 166.4859209 | AZ47: 166.4859209 | BA47: 166.4859209 | BB47: 166.4859209 | BC47: 166.4859209 | BD47: 166.4859209 | BE47: 166.4859209 | BF47: 166.4859209 | BG47: 166.4859209 | BH47: 166.4859209 | BI47: 166.4859209 | BJ47: 166.4859209 | BK47: 0
A48: TBNEPHYDEXDANan | B48: TBN | C48: EPHYDEXDANan | D48: TBwEPHYDEXDANan | E48: 1 | F48: 0 | G48: 0 | H48: 120.0087085 | I48: 0 | J48: 0 | K48: 0.1598173516 | L48: 0 | M48: 0 | N48: 0 | O48: 0 | P48: 0 | Q48: 0 | R48: 0 | S48: 0 | T48: 0 | U48: 0 | V48: 0 | W48: 0 | X48: 0 | Y48: 0 | Z48: 0 | AA48: 0 | AB48: 0 | AC48: 0 | AD48: 0 | AE48: 0 | AF48: 0 | AG48: 0 | AH48: 0 | AI48: 0 | AJ48: 0 | AK48: 0 | AL48: HYD | AM48: 0 | AN48: 0 | AO48: 0 | AP48: 0 | AQ48: 0 | AR48: 0 | AS48: 0 | AT48: 0 | AU48: 0 | AV48: 0 | AW48: 0 | AX48: 0 | AY48: 0 | AZ48: 0 | BA48: 0 | BB48: 0 | BC48: 0 | BD48: 0 | BE48: 0 | BF48: 0 | BG48: 0 | BH48: 0 | BI48: 0 | BJ48: 0 | BK48: 0
A49: BUREPODSEXDI | B49: BUR | C49: EPODSEXDI | D49: BUwEPODSEXDI | E49: 0.3438183978 | F49: 0.7755605915 | G49: 0 | H49: 59.59001771 | I49: 0 | J49: 0 | K49: 0.7813004626 | L49: 0 | M49: 0 | N49: 0 | O49: 0 | P49: 0 | Q49: 0 | R49: 0 | S49: 0 | T49: 0 | U49: 0 | V49: 0 | W49: 0 | X49: 0 | Y49: 0 | Z49: 0 | AA49: 0 | AB49: 0 | AC49: 0 | AD49: 0 | AE49: 0 | AF49: 0 | AG49: 0 | AH49: 0 | AI49: 0 | AJ49: 0 | AK49: 0 | AL49: ODSI | AM49: 263.9574416 | AN49: 263.9574416 | AO49: 263.9574416 | AP49: 263.9574416 | AQ49: 263.9574416 | AR49: 263.9574416 | AS49: 263.9574416 | AT49: 263.9574416 | AU49: 263.9574416 | AV49: 263.9574416 | AW49: 263.9574416 | AX49: 263.9574416 | AY49: 263.9574416 | AZ49: 263.9574416 | BA49: 263.9574416 | BB49: 263.9574416 | BC49: 263.9574416 | BD49: 263.9574416 | BE49: 263.9574416 | BF49: 263.9574416 | BG49: 263.9574416 | BH49: 263.9574416 | BI49: 263.9574416 | BJ49: 263.9574416 | BK49: 0
A50: BUREPOHFEXDI | B50: BUR | C50: EPOHFEXDI | D50: BUwEPOHFEXDI | E50: 0.3738872404 | F50: 0.7767368571 | G50: 0 | H50: 75.1836672 | I50: 0 | J50: 0 | K50: 0.7933295733 | L50: 0 | M50: 0 | N50: 0 | O50: 0 | P50: 0 | Q50: 0 | R50: 0 | S50: 0 | T50: 0 | U50: 0 | V50: 0 | W50: 0 | X50: 0 | Y50: 0 | Z50: 0 | AA50: 0 | AB50: 0 | AC50: 0 | AD50: 0 | AE50: 0 | AF50: 0 | AG50: 0 | AH50: 0 | AI50: 0 | AJ50: 0 | AK50: 0 | AL50: OHFI | AM50: 156.9344785 | AN50: 156.9344785 | AO50: 156.9344785 | AP50: 156.9344785 | AQ50: 156.9344785 | AR50: 156.9344785 | AS50: 156.9344785 | AT50: 156.9344785 | AU50: 156.9344785 | AV50: 156.9344785 | AW50: 156.9344785 | AX50: 156.9344785 | AY50: 156.9344785 | AZ50: 156.9344785 | BA50: 156.9344785 | BB50: 156.9344785 | BC50: 156.9344785 | BD50: 156.9344785 | BE50: 156.9344785 | BF50: 156.9344785 | BG50: 156.9344785 | BH50: 156.9344785 | BI50: 156.9344785 | BJ50: 156.9344785 | BK50: 0
A51: BUREPHYDEXDABag | B51: BUR | C51: EPHYDEXDABag | D51: BUwEPHYDEXDABag | E51: 1 | F51: 0 | G51: 0 | H51: 120.0087085 | I51: 0 | J51: 0 | K51: 0.2051227169 | L51: 0 | M51: 0 | N51: 0 | O51: 0 | P51: 0 | Q51: 0 | R51: 0 | S51: 0 | T51: 0 | U51: 0 | V51: 0 | W51: 0 | X51: 0 | Y51: 0 | Z51: 0 | AA51: 0 | AB51: 0 | AC51: 0 | AD51: 0 | AE51: 0 | AF51: 0 | AG51: 0 | AH51: 0 | AI51: 0 | AJ51: 0 | AK51: 0 | AL51: HYD | AM51: 0 | AN51: 0 | AO51: 0 | AP51: 0 | AQ51: 0 | AR51: 0 | AS51: 0 | AT51: 0 | AU51: 0 | AV51: 0 | AW51: 0 | AX51: 0 | AY51: 0 | AZ51: 0 | BA51: 0 | BB51: 0 | BC51: 0 | BD51: 0 | BE51: 0 | BF51: 0 | BG51: 0 | BH51: 0 | BI51: 0 | BJ51: 0 | BK51: 0
A52: BUREPHYDEXDAKom | B52: BUR | C52: EPHYDEXDAKom | D52: BUwEPHYDEXDAKom | E52: 1 | F52: 0 | G52: 0 | H52: 120.0087085 | I52: 0 | J52: 0 | K52: 0.1880665649 | L52: 0 | M52: 0 | N52: 0 | O52: 0 | P52: 0 | Q52: 0 | R52: 0 | S52: 0 | T52: 0 | U52: 0 | V52: 0 | W52: 0 | X52: 0 | Y52: 0 | Z52: 0 | AA52: 0 | AB52: 0 | AC52: 0 | AD52: 0 | AE52: 0 | AF52: 0 | AG52: 0 | AH52: 0 | AI52: 0 | AJ52: 0 | AK52: 0 | AL52: HYD | AM52: 0 | AN52: 0 | AO52: 0 | AP52: 0 | AQ52: 0 | AR52: 0 | AS52: 0 | AT52: 0 | AU52: 0 | AV52: 0 | AW52: 0 | AX52: 0 | AY52: 0 | AZ52: 0 | BA52: 0 | BB52: 0 | BC52: 0 | BD52: 0 | BE52: 0 | BF52: 0 | BG52: 0 | BH52: 0 | BI52: 0 | BJ52: 0 | BK52: 0
A53: BUREPHYDEXRONio | B53: BUR | C53: EPHYDEXRONio | D53: BUwEPHYDEXRONio | E53: 1 | F53: 0 | G53: 0 | H53: 120.0087085 | I53: 0 | J53: 0 | K53: 0.2378234399 | L53: 0 | M53: 0 | N53: 0 | O53: 0 | P53: 0 | Q53: 0 | R53: 0 | S53: 0 | T53: 0 | U53: 0 | V53: 0 | W53: 0 | X53: 0 | Y53: 0 | Z53: 0 | AA53: 0 | AB53: 0 | AC53: 0 | AD53: 0 | AE53: 0 | AF53: 0 | AG53: 0 | AH53: 0 | AI53: 0 | AJ53: 0 | AK53: 0 | AL53: HYD | AM53: 0 | AN53: 0 | AO53: 0 | AP53: 0 | AQ53: 0 | AR53: 0 | AS53: 0 | AT53: 0 | AU53: 0 | AV53: 0 | AW53: 0 | AX53: 0 | AY53: 0 | AZ53: 0 | BA53: 0 | BB53: 0 | BC53: 0 | BD53: 0 | BE53: 0 | BF53: 0 | BG53: 0 | BH53: 0 | BI53: 0 | BJ53: 0 | BK53: 0
A54: BUREPHYDEXROTou | B54: BUR | C54: EPHYDEXROTou | D54: BUwEPHYDEXROTou | E54: 1 | F54: 0 | G54: 0 | H54: 120.0087085 | I54: 0 | J54: 0 | K54: 0.1664764079 | L54: 0 | M54: 0 | N54: 0 | O54: 0 | P54: 0 | Q54: 0 | R54: 0 | S54: 0 | T54: 0 | U54: 0 | V54: 0 | W54: 0 | X54: 0 | Y54: 0 | Z54: 0 | AA54: 0 | AB54: 0 | AC54: 0 | AD54: 0 | AE54: 0 | AF54: 0 | AG54: 0 | AH54: 0 | AI54: 0 | AJ54: 0 | AK54: 0 | AL54: HYD | AM54: 0 | AN54: 0 | AO54: 0 | AP54: 0 | AQ54: 0 | AR54: 0 | AS54: 0 | AT54: 0 | AU54: 0 | AV54: 0 | AW54: 0 | AX54: 0 | AY54: 0 | AZ54: 0 | BA54: 0 | BB54: 0 | BC54: 0 | BD54: 0 | BE54: 0 | BF54: 0 | BG54: 0 | BH54: 0 | BI54: 0 | BJ54: 0 | BK54: 0
A55: NIGEPCOAEXST | B55: NIG | C55: EPCOAEXST | D55: NIwEPCOAEXST | E55: 0.3333333333 | F55: 1.04109589 | G55: 0 | H55: 129.0245011 | I55: 0 | J55: 0 | K55: 0.8556210046 | L55: 0 | M55: 0 | N55: 0 | O55: 0 | P55: 0 | Q55: 0 | R55: 0 | S55: 0 | T55: 0 | U55: 0 | V55: 0 | W55: 0 | X55: 0 | Y55: 0 | Z55: 0 | AA55: 0 | AB55: 0 | AC55: 0 | AD55: 0 | AE55: 0 | AF55: 0 | AG55: 0 | AH55: 0 | AI55: 0 | AJ55: 0 | AK55: 0 | AL55: COA | AM55: 49.65753425 | AN55: 49.65753425 | AO55: 49.65753425 | AP55: 49.65753425 | AQ55: 49.65753425 | AR55: 49.65753425 | AS55: 49.65753425 | AT55: 49.65753425 | AU55: 49.65753425 | AV55: 49.65753425 | AW55: 49.65753425 | AX55: 49.65753425 | AY55: 49.65753425 | AZ55: 49.65753425 | BA55: 49.65753425 | BB55: 49.65753425 | BC55: 49.65753425 | BD55: 49.65753425 | BE55: 49.65753425 | BF55: 49.65753425 | BG55: 49.65753425 | BH55: 49.65753425 | BI55: 49.65753425 | BJ55: 49.65753425 | BK55: 0
A56: NIGEPODSEXDI | B56: NIG | C56: EPODSEXDI | D56: NIwEPODSEXDI | E56: 0.3461538462 | F56: 0.770328 | G56: 0 | H56: 59.59001771 | I56: 0 | J56: 0 | K56: 0.801369863 | L56: 0 | M56: 0 | N56: 0 | O56: 0 | P56: 0 | Q56: 0 | R56: 0 | S56: 0 | T56: 0 | U56: 0 | V56: 0 | W56: 0 | X56: 0 | Y56: 0 | Z56: 0 | AA56: 0 | AB56: 0 | AC56: 0 | AD56: 0 | AE56: 0 | AF56: 0 | AG56: 0 | AH56: 0 | AI56: 0 | AJ56: 0 | AK56: 0 | AL56: ODSI | AM56: 262.1765601 | AN56: 262.1765601 | AO56: 262.1765601 | AP56: 262.1765601 | AQ56: 262.1765601 | AR56: 262.1765601 | AS56: 262.1765601 | AT56: 262.1765601 | AU56: 262.1765601 | AV56: 262.1765601 | AW56: 262.1765601 | AX56: 262.1765601 | AY56: 262.1765601 | AZ56: 262.1765601 | BA56: 262.1765601 | BB56: 262.1765601 | BC56: 262.1765601 | BD56: 262.1765601 | BE56: 262.1765601 | BF56: 262.1765601 | BG56: 262.1765601 | BH56: 262.1765601 | BI56: 262.1765601 | BJ56: 262.1765601 | BK56: 0
A57: NIGEPOHFEXDI | B57: NIG | C57: EPOHFEXDI | D57: NIwEPOHFEXDI | E57: 0.3789473684 | F57: 0.766365 | G57: 0 | H57: 75.1836672 | I57: 0 | J57: 0 | K57: 0.801369863 | L57: 0 | M57: 0 | N57: 0 | O57: 0 | P57: 0 | Q57: 0 | R57: 0 | S57: 0 | T57: 0 | U57: 0 | V57: 0 | W57: 0 | X57: 0 | Y57: 0 | Z57: 0 | AA57: 0 | AB57: 0 | AC57: 0 | AD57: 0 | AE57: 0 | AF57: 0 | AG57: 0 | AH57: 0 | AI57: 0 | AJ57: 0 | AK57: 0 | AL57: OHFI | AM57: 154.8389143 | AN57: 154.8389143 | AO57: 154.8389143 | AP57: 154.8389143 | AQ57: 154.8389143 | AR57: 154.8389143 | AS57: 154.8389143 | AT57: 154.8389143 | AU57: 154.8389143 | AV57: 154.8389143 | AW57: 154.8389143 | AX57: 154.8389143 | AY57: 154.8389143 | AZ57: 154.8389143 | BA57: 154.8389143 | BB57: 154.8389143 | BC57: 154.8389143 | BD57: 154.8389143 | BE57: 154.8389143 | BF57: 154.8389143 | BG57: 154.8389143 | BH57: 154.8389143 | BI57: 154.8389143 | BJ57: 154.8389143 | BK57: 0
A58: NIGEPGASEXGT | B58: NIG | C58: EPGASEXGT | D58: NIwEPGASEXGT | E58: 0.2834645669 | F58: 0 | G58: 0 | H58: 34.87645745 | I58: 0 | J58: 0 | K58: 0.8556210046 | L58: 0 | M58: 0 | N58: 0 | O58: 0 | P58: 0 | Q58: 0 | R58: 0 | S58: 0 | T58: 0 | U58: 0 | V58: 0 | W58: 0 | X58: 0 | Y58: 0 | Z58: 0 | AA58: 0 | AB58: 0 | AC58: 0 | AD58: 0 | AE58: 0 | AF58: 0 | AG58: 0 | AH58: 0 | AI58: 0 | AJ58: 0 | AK58: 0 | AL58: GASNA | AM58: 153.7160705 | AN58: 153.7160705 | AO58: 153.7160705 | AP58: 153.7160705 | AQ58: 153.7160705 | AR58: 153.7160705 | AS58: 153.7160705 | AT58: 153.7160705 | AU58: 153.7160705 | AV58: 153.7160705 | AW58: 153.7160705 | AX58: 153.7160705 | AY58: 153.7160705 | AZ58: 153.7160705 | BA58: 153.7160705 | BB58: 153.7160705 | BC58: 153.7160705 | BD58: 153.7160705 | BE58: 153.7160705 | BF58: 153.7160705 | BG58: 153.7160705 | BH58: 153.7160705 | BI58: 153.7160705 | BJ58: 153.7160705 | BK58: 0
A59: NGAEPGASEXGT | B59: NGA | C59: EPGASEXGT | D59: NGwEPGASEXGT | E59: 0.2834645669 | F59: 0.712804414 | G59: 0 | H59: 34.87645745 | I59: 0 | J59: 0 | K59: 0.8556210046 | L59: 0 | M59: 0 | N59: 0 | O59: 0 | P59: 0 | Q59: 0 | R59: 0 | S59: 0 | T59: 0 | U59: 0 | V59: 0 | W59: 0 | X59: 0 | Y59: 0 | Z59: 0 | AA59: 0 | AB59: 0 | AC59: 0 | AD59: 0 | AE59: 0 | AF59: 0 | AG59: 0 | AH59: 0 | AI59: 0 | AJ59: 0 | AK59: 0 | AL59: GASLOCal | AM59: 107.927448 | AN59: 107.927448 | AO59: 107.927448 | AP59: 107.927448 | AQ59: 107.927448 | AR59: 107.927448 | AS59: 107.927448 | AT59: 107.927448 | AU59: 107.927448 | AV59: 107.927448 | AW59: 107.927448 | AX59: 107.927448 | AY59: 107.927448 | AZ59: 107.927448 | BA59: 107.927448 | BB59: 107.927448 | BC59: 107.927448 | BD59: 107.927448 | BE59: 107.927448 | BF59: 107.927448 | BG59: 107.927448 | BH59: 107.927448 | BI59: 107.927448 | BJ59: 107.927448 | BK59: 0
A60: NGAEPGASEXST | B60: NGA | C60: EPGASEXST | D60: NGwEPGASEXST | E60: 0.3404349361 | F60: 0.593519563 | G60: 0 | H60: 129.0245011 | I60: 0 | J60: 0 | K60: 0.8556210046 | L60: 0 | M60: 0 | N60: 0 | O60: 0 | P60: 0 | Q60: 0 | R60: 0 | S60: 0 | T60: 0 | U60: 0 | V60: 0 | W60: 0 | X60: 0 | Y60: 0 | Z60: 0 | AA60: 0 | AB60: 0 | AC60: 0 | AD60: 0 | AE60: 0 | AF60: 0 | AG60: 0 | AH60: 0 | AI60: 0 | AJ60: 0 | AK60: 0 | AL60: GASLOCal | AM60: 89.86623891 | AN60: 89.86623891 | AO60: 89.86623891 | AP60: 89.86623891 | AQ60: 89.86623891 | AR60: 89.86623891 | AS60: 89.86623891 | AT60: 89.86623891 | AU60: 89.86623891 | AV60: 89.86623891 | AW60: 89.86623891 | AX60: 89.86623891 | AY60: 89.86623891 | AZ60: 89.86623891 | BA60: 89.86623891 | BB60: 89.86623891 | BC60: 89.86623891 | BD60: 89.86623891 | BE60: 89.86623891 | BF60: 89.86623891 | BG60: 89.86623891 | BH60: 89.86623891 | BI60: 89.86623891 | BJ60: 89.86623891 | BK60: 0
A61: NGAEPHYDEXDAShi | B61: NGA | C61: EPHYDEXDAShi | D61: NGwEPHYDEXDAShi | E61: 1 | F61: 0 | G61: 0 | H61: 120.0087085 | I61: 0 | J61: 0 | K61: 0.462277667 | L61: 0 | M61: 0 | N61: 0 | O61: 0 | P61: 0 | Q61: 0 | R61: 0 | S61: 0 | T61: 0 | U61: 0 | V61: 0 | W61: 0 | X61: 0 | Y61: 0 | Z61: 0 | AA61: 0 | AB61: 0 | AC61: 0 | AD61: 0 | AE61: 0 | AF61: 0 | AG61: 0 | AH61: 0 | AI61: 0 | AJ61: 0 | AK61: 0 | AL61: HYD | AM61: 0 | AN61: 0 | AO61: 0 | AP61: 0 | AQ61: 0 | AR61: 0 | AS61: 0 | AT61: 0 | AU61: 0 | AV61: 0 | AW61: 0 | AX61: 0 | AY61: 0 | AZ61: 0 | BA61: 0 | BB61: 0 | BC61: 0 | BD61: 0 | BE61: 0 | BF61: 0 | BG61: 0 | BH61: 0 | BI61: 0 | BJ61: 0 | BK61: 0
A62: NGAEPHYDEXDAJeb | B62: NGA | C62: EPHYDEXDAJeb | D62: NGwEPHYDEXDAJeb | E62: 1 | F62: 0 | G62: 0 | H62: 120.0087085 | I62: 0 | J62: 0 | K62: 0.3491954298 | L62: 0 | M62: 0 | N62: 0 | O62: 0 | P62: 0 | Q62: 0 | R62: 0 | S62: 0 | T62: 0 | U62: 0 | V62: 0 | W62: 0 | X62: 0 | Y62: 0 | Z62: 0 | AA62: 0 | AB62: 0 | AC62: 0 | AD62: 0 | AE62: 0 | AF62: 0 | AG62: 0 | AH62: 0 | AI62: 0 | AJ62: 0 | AK62: 0 | AL62: HYD | AM62: 0 | AN62: 0 | AO62: 0 | AP62: 0 | AQ62: 0 | AR62: 0 | AS62: 0 | AT62: 0 | AU62: 0 | AV62: 0 | AW62: 0 | AX62: 0 | AY62: 0 | AZ62: 0 | BA62: 0 | BB62: 0 | BC62: 0 | BD62: 0 | BE62: 0 | BF62: 0 | BG62: 0 | BH62: 0 | BI62: 0 | BJ62: 0 | BK62: 0
A63: NGAEPHYDEXDAKai | B63: NGA | C63: EPHYDEXDAKai | D63: NGwEPHYDEXDAKai | E63: 1 | F63: 0 | G63: 0 | H63: 120.0087085 | I63: 0 | J63: 0 | K63: 0.3495325071 | L63: 0 | M63: 0 | N63: 0 | O63: 0 | P63: 0 | Q63: 0 | R63: 0 | S63: 0 | T63: 0 | U63: 0 | V63: 0 | W63: 0 | X63: 0 | Y63: 0 | Z63: 0 | AA63: 0 | AB63: 0 | AC63: 0 | AD63: 0 | AE63: 0 | AF63: 0 | AG63: 0 | AH63: 0 | AI63: 0 | AJ63: 0 | AK63: 0 | AL63: HYD | AM63: 0 | AN63: 0 | AO63: 0 | AP63: 0 | AQ63: 0 | AR63: 0 | AS63: 0 | AT63: 0 | AU63: 0 | AV63: 0 | AW63: 0 | AX63: 0 | AY63: 0 | AZ63: 0 | BA63: 0 | BB63: 0 | BC63: 0 | BD63: 0 | BE63: 0 | BF63: 0 | BG63: 0 | BH63: 0 | BI63: 0 | BJ63: 0 | BK63: 0
A64: 0 | B64: 0 | C64: 0 | D64: 0 | E64: 0 | F64: 0 | G64: 0 | H64: 0 | I64: 0 | J64: 0 | K64: 0 | L64: 0 | M64: 0 | N64: 0 | O64: 0 | P64: 0 | Q64: 0 | R64: 0 | S64: 0 | T64: 0 | U64: 0 | V64: 0 | W64: 0 | X64: 0 | Y64: 0 | Z64: 0 | AA64: 0 | AB64: 0 | AC64: 0 | AD64: 0 | AE64: 0 | AF64: 0 | AG64: 0 | AH64: 0 | AI64: 0 | AJ64: 0 | AK64: 0 | AL64: 0 | AM64: 0 | AN64: 0 | AO64: 0 | AP64: 0 | AQ64: 0 | AR64: 0 | AS64: 0 | AT64: 0 | AU64: 0 | AV64: 0 | AW64: 0 | AX64: 0 | AY64: 0 | AZ64: 0 | BA64: 0 | BB64: 0 | BC64: 0 | BD64: 0 | BE64: 0 | BF64: 0 | BG64: 0 | BH64: 0 | BI64: 0 | BJ64: 0 | BK64: 0 | BL64: 0 | BM64: 0 | BN64: 0 | BO64: 0 | BP64: 0 | BQ64: 0 | BR64: 0 | BS64: 0 | BT64: 0 | BU64: 0 | BV64: 0 | BW64: 0 | BX64: 0 | BY64: 0 | BZ64: 0 | CA64: 0 | CB64: 0 | CC64: 0 | CD64: 0 | CE64: 0 | CF64: 0 | CG64: 0 | CH64: 0 | CI64: 0
A65: SiteSpecific | B65: 0 | C65: 0 | D65: 0 | E65: 0 | F65: 0 | G65: 0 | H65: 0 | I65: 0 | J65: 0 | K65: 0 | L65: 0 | M65: 0 | N65: 0 | O65: 0 | P65: 0 | Q65: 0 | R65: 0 | S65: 0 | T65: 0 | U65: 0 | V65: 0 | W65: 0 | X65: 0 | Y65: 0 | Z65: 0 | AA65: 0 | AB65: 0 | AC65: 0 | AD65: 0 | AE65: 0 | AF65: 0 | AG65: 0 | AH65: 0 | AI65: 0 | AJ65: 0 | AK65: 0 | AL65: 0 | AM65: 0 | AN65: 0 | AO65: 0 | AP65: 0 | AQ65: 0 | AR65: 0 | AS65: 0 | AT65: 0 | AU65: 0 | AV65: 0 | AW65: 0 | AX65: 0 | AY65: 0 | AZ65: 0 | BA65: 0 | BB65: 0 | BC65: 0 | BD65: 0 | BE65: 0 | BF65: 0 | BG65: 0 | BH65: 0 | BI65: 0 | BJ65: 0 | BK65: 0 | BL65: 0 | BM65: 0 | BN65: 0 | BO65: 0 | BP65: 0 | BQ65: 0 | BR65: 0 | BS65: 0 | BT65: 0 | BU65: 0 | BV65: 0 | BW65: 0 | BX65: 0 | BY65: 0 | BZ65: 0 | CA65: 0 | CB65: 0 | CC65: 0 | CD65: 0 | CE65: 0 | CF65: 0 | CG65: 0 | CH65: 0 | CI65: 0
A66: SENEPODSNCLoc | B66: SEN | C66: EPODSNCLoc | D66: SEwEPODSNCLoc | E66: 0.3461538462 | F66: 0.770328 | G66: 87.6 | H66: 0 | I66: 30 | J66: 0.09643568023 | K66: 0.801369863 | L66: 0 | M66: Location | N66: 1123.5 | O66: 1123.5 | P66: 1123.5 | Q66: 1123.5 | R66: 1123.5 | S66: 1123.5 | T66: 1123.5 | U66: 1123.5 | V66: 1123.5 | W66: 1123.5 | X66: 1123.5 | Y66: 1123.5 | Z66: 1123.5 | AA66: 1123.5 | AB66: 1123.5 | AC66: 1123.5 | AD66: 1123.5 | AE66: 1123.5 | AF66: 1123.5 | AG66: 1123.5 | AH66: 1123.5 | AI66: 1123.5 | AJ66: 1123.5 | AK66: 1123.5 | AL66: ODSC | AM66: 227.8792491 | AN66: 227.8792491 | AO66: 227.8792491 | AP66: 227.8792491 | AQ66: 227.8792491 | AR66: 227.8792491 | AS66: 227.8792491 | AT66: 227.8792491 | AU66: 227.8792491 | AV66: 227.8792491 | AW66: 227.8792491 | AX66: 227.8792491 | AY66: 227.8792491 | AZ66: 227.8792491 | BA66: 227.8792491 | BB66: 227.8792491 | BC66: 227.8792491 | BD66: 227.8792491 | BE66: 227.8792491 | BF66: 227.8792491 | BG66: 227.8792491 | BH66: 227.8792491 | BI66: 227.8792491 | BJ66: 227.8792491 | BK66: 0
A67: SENEPOHFNUnew | B67: SEN | C67: EPOHFNUnew | D67: SEwEPOHFNUnew | E67: 0.3789473684 | F67: 0.766365 | G67: 87.6 | H67: 0 | I67: 30 | J67: 0.09643568023 | K67: 0.801369863 | L67: 0 | M67: new mobile | N67: 1417.5 | O67: 1417.5 | P67: 1417.5 | Q67: 1417.5 | R67: 1417.5 | S67: 1417.5 | T67: 1417.5 | U67: 1417.5 | V67: 1417.5 | W67: 1417.5 | X67: 1417.5 | Y67: 1417.5 | Z67: 1417.5 | AA67: 1417.5 | AB67: 1417.5 | AC67: 1417.5 | AD67: 1417.5 | AE67: 1417.5 | AF67: 1417.5 | AG67: 1417.5 | AH67: 1417.5 | AI67: 1417.5 | AJ67: 1417.5 | AK67: 1417.5 | AL67: OHFC | AM67: 122.6059107 | AN67: 122.6059107 | AO67: 122.6059107 | AP67: 122.6059107 | AQ67: 122.6059107 | AR67: 122.6059107 | AS67: 122.6059107 | AT67: 122.6059107 | AU67: 122.6059107 | AV67: 122.6059107 | AW67: 122.6059107 | AX67: 122.6059107 | AY67: 122.6059107 | AZ67: 122.6059107 | BA67: 122.6059107 | BB67: 122.6059107 | BC67: 122.6059107 | BD67: 122.6059107 | BE67: 122.6059107 | BF67: 122.6059107 | BG67: 122.6059107 | BH67: 122.6059107 | BI67: 122.6059107 | BJ67: 122.6059107 | BK67: 0
A68: SENEPOHFNUrel | B68: SEN | C68: EPOHFNUrel | D68: SEwEPOHFNUrel | E68: 0.3789473684 | F68: 0.766365 | G68: 87.6 | H68: 0 | I68: 30 | J68: 0.09643568023 | K68: 0.801369863 | L68: 0 | M68: relocation | N68: 1417.5 | O68: 1417.5 | P68: 1417.5 | Q68: 1417.5 | R68: 1417.5 | S68: 1417.5 | T68: 1417.5 | U68: 1417.5 | V68: 1417.5 | W68: 1417.5 | X68: 1417.5 | Y68: 1417.5 | Z68: 1417.5 | AA68: 1417.5 | AB68: 1417.5 | AC68: 1417.5 | AD68: 1417.5 | AE68: 1417.5 | AF68: 1417.5 | AG68: 1417.5 | AH68: 1417.5 | AI68: 1417.5 | AJ68: 1417.5 | AK68: 1417.5 | AL68: OHFC | AM68: 122.6059107 | AN68: 122.6059107 | AO68: 122.6059107 | AP68: 122.6059107 | AQ68: 122.6059107 | AR68: 122.6059107 | AS68: 122.6059107 | AT68: 122.6059107 | AU68: 122.6059107 | AV68: 122.6059107 | AW68: 122.6059107 | AX68: 122.6059107 | AY68: 122.6059107 | AZ68: 122.6059107 | BA68: 122.6059107 | BB68: 122.6059107 | BC68: 122.6059107 | BD68: 122.6059107 | BE68: 122.6059107 | BF68: 122.6059107 | BG68: 122.6059107 | BH68: 122.6059107 | BI68: 122.6059107 | BJ68: 122.6059107 | BK68: 0
A69: SENEPOHFNUIPP | B69: SEN | C69: EPOHFNUIPP | D69: SEwEPOHFNUIPP | E69: 0.3789473684 | F69: 0.766365 | G69: 87.6 | H69: 0 | I69: 30 | J69: 0.09643568023 | K69: 0.801369863 | L69: 0 | M69: IPP Tou | N69: 1417.5 | O69: 1417.5 | P69: 1417.5 | Q69: 1417.5 | R69: 1417.5 | S69: 1417.5 | T69: 1417.5 | U69: 1417.5 | V69: 1417.5 | W69: 1417.5 | X69: 1417.5 | Y69: 1417.5 | Z69: 1417.5 | AA69: 1417.5 | AB69: 1417.5 | AC69: 1417.5 | AD69: 1417.5 | AE69: 1417.5 | AF69: 1417.5 | AG69: 1417.5 | AH69: 1417.5 | AI69: 1417.5 | AJ69: 1417.5 | AK69: 1417.5 | AL69: OHFC | AM69: 122.6059107 | AN69: 122.6059107 | AO69: 122.6059107 | AP69: 122.6059107 | AQ69: 122.6059107 | AR69: 122.6059107 | AS69: 122.6059107 | AT69: 122.6059107 | AU69: 122.6059107 | AV69: 122.6059107 | AW69: 122.6059107 | AX69: 122.6059107 | AY69: 122.6059107 | AZ69: 122.6059107 | BA69: 122.6059107 | BB69: 122.6059107 | BC69: 122.6059107 | BD69: 122.6059107 | BE69: 122.6059107 | BF69: 122.6059107 | BG69: 122.6059107 | BH69: 122.6059107 | BI69: 122.6059107 | BJ69: 122.6059107 | BK69: 0
A70: SENEPOHFNCbel | B70: SEN | C70: EPOHFNCbel | D70: SEwEPOHFNCbel | E70: 0.3789473684 | F70: 0.766365 | G70: 87.6 | H70: 0 | I70: 30 | J70: 0.09643568023 | K70: 0.801369863 | L70: 0 | M70: belair | N70: 1417.5 | O70: 1417.5 | P70: 1417.5 | Q70: 1417.5 | R70: 1417.5 | S70: 1417.5 | T70: 1417.5 | U70: 1417.5 | V70: 1417.5 | W70: 1417.5 | X70: 1417.5 | Y70: 1417.5 | Z70: 1417.5 | AA70: 1417.5 | AB70: 1417.5 | AC70: 1417.5 | AD70: 1417.5 | AE70: 1417.5 | AF70: 1417.5 | AG70: 1417.5 | AH70: 1417.5 | AI70: 1417.5 | AJ70: 1417.5 | AK70: 1417.5 | AL70: OHFC | AM70: 122.6059107 | AN70: 122.6059107 | AO70: 122.6059107 | AP70: 122.6059107 | AQ70: 122.6059107 | AR70: 122.6059107 | AS70: 122.6059107 | AT70: 122.6059107 | AU70: 122.6059107 | AV70: 122.6059107 | AW70: 122.6059107 | AX70: 122.6059107 | AY70: 122.6059107 | AZ70: 122.6059107 | BA70: 122.6059107 | BB70: 122.6059107 | BC70: 122.6059107 | BD70: 122.6059107 | BE70: 122.6059107 | BF70: 122.6059107 | BG70: 122.6059107 | BH70: 122.6059107 | BI70: 122.6059107 | BJ70: 122.6059107 | BK70: 0
A71: SENEPOHFNUunk | B71: SEN | C71: EPOHFNUunk | D71: SEwEPOHFNUunk | E71: 0.3789473684 | F71: 0.766365 | G71: 87.6 | H71: 0 | I71: 30 | J71: 0.09643568023 | K71: 0.801369863 | L71: 0 | M71: unknown | N71: 1417.5 | O71: 1417.5 | P71: 1417.5 | Q71: 1417.5 | R71: 1417.5 | S71: 1417.5 | T71: 1417.5 | U71: 1417.5 | V71: 1417.5 | W71: 1417.5 | X71: 1417.5 | Y71: 1417.5 | Z71: 1417.5 | AA71: 1417.5 | AB71: 1417.5 | AC71: 1417.5 | AD71: 1417.5 | AE71: 1417.5 | AF71: 1417.5 | AG71: 1417.5 | AH71: 1417.5 | AI71: 1417.5 | AJ71: 1417.5 | AK71: 1417.5 | AL71: OHFC | AM71: 122.6059107 | AN71: 122.6059107 | AO71: 122.6059107 | AP71: 122.6059107 | AQ71: 122.6059107 | AR71: 122.6059107 | AS71: 122.6059107 | AT71: 122.6059107 | AU71: 122.6059107 | AV71: 122.6059107 | AW71: 122.6059107 | AX71: 122.6059107 | AY71: 122.6059107 | AZ71: 122.6059107 | BA71: 122.6059107 | BB71: 122.6059107 | BC71: 122.6059107 | BD71: 122.6059107 | BE71: 122.6059107 | BF71: 122.6059107 | BG71: 122.6059107 | BH71: 122.6059107 | BI71: 122.6059107 | BJ71: 122.6059107 | BK71: 0
A72: SENEPCOANCSen | B72: SEN | C72: EPCOANCSen | D72: SEwEPCOANCSen | E72: 0.3333333333 | F72: 1.04109589 | G72: 27.156 | H72: 0 | I72: 35 | J72: 0.09426336829 | K72: 0.8556210046 | L72: 0 | M72: Sendou | N72: 971 | O72: 971 | P72: 971 | Q72: 971 | R72: 971 | S72: 971 | T72: 971 | U72: 971 | V72: 971 | W72: 971 | X72: 971 | Y72: 971 | Z72: 971 | AA72: 971 | AB72: 971 | AC72: 971 | AD72: 971 | AE72: 971 | AF72: 971 | AG72: 971 | AH72: 971 | AI72: 971 | AJ72: 971 | AK72: 971 | AL72: COA | AM72: 49.65753425 | AN72: 49.65753425 | AO72: 49.65753425 | AP72: 49.65753425 | AQ72: 49.65753425 | AR72: 49.65753425 | AS72: 49.65753425 | AT72: 49.65753425 | AU72: 49.65753425 | AV72: 49.65753425 | AW72: 49.65753425 | AX72: 49.65753425 | AY72: 49.65753425 | AZ72: 49.65753425 | BA72: 49.65753425 | BB72: 49.65753425 | BC72: 49.65753425 | BD72: 49.65753425 | BE72: 49.65753425 | BF72: 49.65753425 | BG72: 49.65753425 | BH72: 49.65753425 | BI72: 49.65753425 | BJ72: 49.65753425 | BK72: 0
A73: SENEPCOANUKay | B73: SEN | C73: EPCOANUKay | D73: SEwEPCOANUKay | E73: 0.3333333333 | F73: 1.04109589 | G73: 27.156 | H73: 0 | I73: 35 | J73: 0.09426336829 | K73: 0.8556210046 | L73: 0 | M73: Kayar | N73: 2488.6656 | O73: 2488.6656 | P73: 2488.6656 | Q73: 2488.6656 | R73: 2488.6656 | S73: 2488.6656 | T73: 2488.6656 | U73: 2488.6656 | V73: 2488.6656 | W73: 2488.6656 | X73: 2488.6656 | Y73: 2488.6656 | Z73: 2488.6656 | AA73: 2488.6656 | AB73: 2488.6656 | AC73: 2488.6656 | AD73: 2488.6656 | AE73: 2488.6656 | AF73: 2488.6656 | AG73: 2488.6656 | AH73: 2488.6656 | AI73: 2488.6656 | AJ73: 2488.6656 | AK73: 2488.6656 | AL73: COA | AM73: 49.65753425 | AN73: 49.65753425 | AO73: 49.65753425 | AP73: 49.65753425 | AQ73: 49.65753425 | AR73: 49.65753425 | AS73: 49.65753425 | AT73: 49.65753425 | AU73: 49.65753425 | AV73: 49.65753425 | AW73: 49.65753425 | AX73: 49.65753425 | AY73: 49.65753425 | AZ73: 49.65753425 | BA73: 49.65753425 | BB73: 49.65753425 | BC73: 49.65753425 | BD73: 49.65753425 | BE73: 49.65753425 | BF73: 49.65753425 | BG73: 49.65753425 | BH73: 49.65753425 | BI73: 49.65753425 | BJ73: 49.65753425 | BK73: 0
A74: SENEPCOANUSt | B74: SEN | C74: EPCOANUSt | D74: SEwEPCOANUSt | E74: 0.3333333333 | F74: 1.04109589 | G74: 27.156 | H74: 0 | I74: 35 | J74: 0.09426336829 | K74: 0.8556210046 | L74: 0 | M74: St Louis | N74: 2488.6656 | O74: 2488.6656 | P74: 2488.6656 | Q74: 2488.6656 | R74: 2488.6656 | S74: 2488.6656 | T74: 2488.6656 | U74: 2488.6656 | V74: 2488.6656 | W74: 2488.6656 | X74: 2488.6656 | Y74: 2488.6656 | Z74: 2488.6656 | AA74: 2488.6656 | AB74: 2488.6656 | AC74: 2488.6656 | AD74: 2488.6656 | AE74: 2488.6656 | AF74: 2488.6656 | AG74: 2488.6656 | AH74: 2488.6656 | AI74: 2488.6656 | AJ74: 2488.6656 | AK74: 2488.6656 | AL74: COA | AM74: 49.65753425 | AN74: 49.65753425 | AO74: 49.65753425 | AP74: 49.65753425 | AQ74: 49.65753425 | AR74: 49.65753425 | AS74: 49.65753425 | AT74: 49.65753425 | AU74: 49.65753425 | AV74: 49.65753425 | AW74: 49.65753425 | AX74: 49.65753425 | AY74: 49.65753425 | AZ74: 49.65753425 | BA74: 49.65753425 | BB74: 49.65753425 | BC74: 49.65753425 | BD74: 49.65753425 | BE74: 49.65753425 | BF74: 49.65753425 | BG74: 49.65753425 | BH74: 49.65753425 | BI74: 49.65753425 | BJ74: 49.65753425 | BK74: 0
A75: SENEPBIONCros | B75: SEN | C75: EPBIONCros | D75: SEwEPBIONCros | E75: 0.375 | F75: 0 | G75: 0 | H75: 129.6 | I75: 30 | J75: 0.09643568023 | K75: 0.8556 | L75: 0 | M75: ross betio | N75: 3910 | O75: 3910 | P75: 3910 | Q75: 3910 | R75: 3910 | S75: 3910 | T75: 3910 | U75: 3910 | V75: 3910 | W75: 3910 | X75: 3910 | Y75: 3910 | Z75: 3910 | AA75: 3910 | AB75: 3910 | AC75: 3910 | AD75: 3910 | AE75: 3910 | AF75: 3910 | AG75: 3910 | AH75: 3910 | AI75: 3910 | AJ75: 3910 | AK75: 3910 | AL75: BIO | AM75: 14.30745814 | AN75: 14.30745814 | AO75: 14.30745814 | AP75: 14.30745814 | AQ75: 14.30745814 | AR75: 14.30745814 | AS75: 14.30745814 | AT75: 14.30745814 | AU75: 14.30745814 | AV75: 14.30745814 | AW75: 14.30745814 | AX75: 14.30745814 | AY75: 14.30745814 | AZ75: 14.30745814 | BA75: 14.30745814 | BB75: 14.30745814 | BC75: 14.30745814 | BD75: 14.30745814 | BE75: 14.30745814 | BF75: 14.30745814 | BG75: 14.30745814 | BH75: 14.30745814 | BI75: 14.30745814 | BJ75: 14.30745814 | BK75: 0
A76: SENEPWNDNUSt | B76: SEN | C76: EPWNDNUSt | D76: SEwEPWNDNUSt | E76: 1 | F76: 0 | G76: 87.6 | H76: 17 | I76: 20 | J76: 0.1067814771 | K76: 0.3 | L76: 0 | M76: St Louis WP | N76: 1934 | O76: 1934 | P76: 1934 | Q76: 1934 | R76: 1934 | S76: 1934 | T76: 1934 | U76: 1934 | V76: 1934 | W76: 1934 | X76: 1934 | Y76: 1934 | Z76: 1934 | AA76: 1934 | AB76: 1934 | AC76: 1934 | AD76: 1934 | AE76: 1934 | AF76: 1934 | AG76: 1934 | AH76: 1934 | AI76: 1934 | AJ76: 1934 | AK76: 1934 | AL76: WND | AM76: 0 | AN76: 0 | AO76: 0 | AP76: 0 | AQ76: 0 | AR76: 0 | AS76: 0 | AT76: 0 | AU76: 0 | AV76: 0 | AW76: 0 | AX76: 0 | AY76: 0 | AZ76: 0 | BA76: 0 | BB76: 0 | BC76: 0 | BD76: 0 | BE76: 0 | BF76: 0 | BG76: 0 | BH76: 0 | BI76: 0 | BJ76: 0 | BK76: 0
A77: SENEPSOLNUzig | B77: SEN | C77: EPSOLNUzig | D77: SEwEPSOLNUzig | E77: 1 | F77: 0 | G77: 0 | H77: 20 | I77: 20 | J77: 0.1067814771 | K77: 0.25 | L77: 0 | M77: ziguinchor | N77: 5030 | O77: 5030 | P77: 5030 | Q77: 5030 | R77: 5030 | S77: 5030 | T77: 5030 | U77: 5030 | V77: 5030 | W77: 5030 | X77: 5030 | Y77: 5030 | Z77: 5030 | AA77: 5030 | AB77: 5030 | AC77: 5030 | AD77: 5030 | AE77: 5030 | AF77: 5030 | AG77: 5030 | AH77: 5030 | AI77: 5030 | AJ77: 5030 | AK77: 5030 | AL77: SOL | AM77: 0 | AN77: 0 | AO77: 0 | AP77: 0 | AQ77: 0 | AR77: 0 | AS77: 0 | AT77: 0 | AU77: 0 | AV77: 0 | AW77: 0 | AX77: 0 | AY77: 0 | AZ77: 0 | BA77: 0 | BB77: 0 | BC77: 0 | BD77: 0 | BE77: 0 | BF77: 0 | BG77: 0 | BH77: 0 | BI77: 0 | BJ77: 0 | BK77: 0
A78: SENEPWNDNUtai | B78: SEN | C78: EPWNDNUtai | D78: SEwEPWNDNUtai | E78: 1 | F78: 0 | G78: 87.6 | H78: 17 | I78: 20 | J78: 0.1067814771 | K78: 0.3 | L78: 0 | M78: taiba ndiaye | N78: 1934 | O78: 1934 | P78: 1934 | Q78: 1934 | R78: 1934 | S78: 1934 | T78: 1934 | U78: 1934 | V78: 1934 | W78: 1934 | X78: 1934 | Y78: 1934 | Z78: 1934 | AA78: 1934 | AB78: 1934 | AC78: 1934 | AD78: 1934 | AE78: 1934 | AF78: 1934 | AG78: 1934 | AH78: 1934 | AI78: 1934 | AJ78: 1934 | AK78: 1934 | AL78: WND | AM78: 0 | AN78: 0 | AO78: 0 | AP78: 0 | AQ78: 0 | AR78: 0 | AS78: 0 | AT78: 0 | AU78: 0 | AV78: 0 | AW78: 0 | AX78: 0 | AY78: 0 | AZ78: 0 | BA78: 0 | BB78: 0 | BC78: 0 | BD78: 0 | BE78: 0 | BF78: 0 | BG78: 0 | BH78: 0 | BI78: 0 | BJ78: 0 | BK78: 0
A79: SENEPHYDNUDASam | B79: SEN | C79: EPHYDNUDASam | D79: SEwEPHYDNUDASam | E79: 1 | F79: 0 | G79: 2 | H79: 0 | I79: 50 | J79: 0.09169015822 | K79: 0.1855022831 | L79: 0 | M79: Sambangalou(OMVG)partSénégal40% | N79: 3386 | O79: 3386 | P79: 3386 | Q79: 3386 | R79: 3386 | S79: 3386 | T79: 3386 | U79: 3386 | V79: 3386 | W79: 3386 | X79: 3386 | Y79: 3386 | Z79: 3386 | AA79: 3386 | AB79: 3386 | AC79: 3386 | AD79: 3386 | AE79: 3386 | AF79: 3386 | AG79: 3386 | AH79: 3386 | AI79: 3386 | AJ79: 3386 | AK79: 3386 | AL79: HYD | AM79: 0 | AN79: 0 | AO79: 0 | AP79: 0 | AQ79: 0 | AR79: 0 | AS79: 0 | AT79: 0 | AU79: 0 | AV79: 0 | AW79: 0 | AX79: 0 | AY79: 0 | AZ79: 0 | BA79: 0 | BB79: 0 | BC79: 0 | BD79: 0 | BE79: 0 | BF79: 0 | BG79: 0 | BH79: 0 | BI79: 0 | BJ79: 0 | BK79: 0
A80: SENEPHYDNUROKal | B80: SEN | C80: EPHYDNUROKal | D80: SEwEPHYDNUROKal | E80: 1 | F80: 0 | G80: 2 | H80: 0 | I80: 50 | J80: 0.09169015822 | K80: 0.1079718417 | L80: 0 | M80: Kaleta(OMVG)partSénégal40% | N80: 1114 | O80: 1114 | P80: 1114 | Q80: 1114 | R80: 1114 | S80: 1114 | T80: 1114 | U80: 1114 | V80: 1114 | W80: 1114 | X80: 1114 | Y80: 1114 | Z80: 1114 | AA80: 1114 | AB80: 1114 | AC80: 1114 | AD80: 1114 | AE80: 1114 | AF80: 1114 | AG80: 1114 | AH80: 1114 | AI80: 1114 | AJ80: 1114 | AK80: 1114 | AL80: HYD | AM80: 0 | AN80: 0 | AO80: 0 | AP80: 0 | AQ80: 0 | AR80: 0 | AS80: 0 | AT80: 0 | AU80: 0 | AV80: 0 | AW80: 0 | AX80: 0 | AY80: 0 | AZ80: 0 | BA80: 0 | BB80: 0 | BC80: 0 | BD80: 0 | BE80: 0 | BF80: 0 | BG80: 0 | BH80: 0 | BI80: 0 | BJ80: 0 | BK80: 0
A81: SENEPHYDNURODig | B81: SEN | C81: EPHYDNURODig | D81: SEwEPHYDNURODig | E81: 1 | F81: 0 | G81: 2 | H81: 0 | I81: 50 | J81: 0.09169015822 | K81: 0.02899763614 | L81: 0 | M81: Digan(OMVG)partSénégal40% | N81: 1201 | O81: 1201 | P81: 1201 | Q81: 1201 | R81: 1201 | S81: 1201 | T81: 1201 | U81: 1201 | V81: 1201 | W81: 1201 | X81: 1201 | Y81: 1201 | Z81: 1201 | AA81: 1201 | AB81: 1201 | AC81: 1201 | AD81: 1201 | AE81: 1201 | AF81: 1201 | AG81: 1201 | AH81: 1201 | AI81: 1201 | AJ81: 1201 | AK81: 1201 | AL81: HYD | AM81: 0 | AN81: 0 | AO81: 0 | AP81: 0 | AQ81: 0 | AR81: 0 | AS81: 0 | AT81: 0 | AU81: 0 | AV81: 0 | AW81: 0 | AX81: 0 | AY81: 0 | AZ81: 0 | BA81: 0 | BB81: 0 | BC81: 0 | BD81: 0 | BE81: 0 | BF81: 0 | BG81: 0 | BH81: 0 | BI81: 0 | BJ81: 0 | BK81: 0
A82: SENEPHYDNUDAFel | B82: SEN | C82: EPHYDNUDAFel | D82: SEwEPHYDNUDAFel | E82: 1 | F82: 0 | G82: 2 | H82: 0 | I82: 50 | J82: 0.09169015822 | K82: 0.3981512418 | L82: 0 | M82: FelloSounga(OMVG)partSénégal40% | N82: 3474 | O82: 3474 | P82: 3474 | Q82: 3474 | R82: 3474 | S82: 3474 | T82: 3474 | U82: 3474 | V82: 3474 | W82: 3474 | X82: 3474 | Y82: 3474 | Z82: 3474 | AA82: 3474 | AB82: 3474 | AC82: 3474 | AD82: 3474 | AE82: 3474 | AF82: 3474 | AG82: 3474 | AH82: 3474 | AI82: 3474 | AJ82: 3474 | AK82: 3474 | AL82: HYD | AM82: 0 | AN82: 0 | AO82: 0 | AP82: 0 | AQ82: 0 | AR82: 0 | AS82: 0 | AT82: 0 | AU82: 0 | AV82: 0 | AW82: 0 | AX82: 0 | AY82: 0 | AZ82: 0 | BA82: 0 | BB82: 0 | BC82: 0 | BD82: 0 | BE82: 0 | BF82: 0 | BG82: 0 | BH82: 0 | BI82: 0 | BJ82: 0 | BK82: 0
A83: SENEPHYDNUROSal | B83: SEN | C83: EPHYDNUROSal | D83: SEwEPHYDNUROSal | E83: 1 | F83: 0 | G83: 2 | H83: 0 | I83: 50 | J83: 0.09169015822 | K83: 0.1352739726 | L83: 0 | M83: Saltinho(OMVG)partSénégal40% | N83: 4273 | O83: 4273 | P83: 4273 | Q83: 4273 | R83: 4273 | S83: 4273 | T83: 4273 | U83: 4273 | V83: 4273 | W83: 4273 | X83: 4273 | Y83: 4273 | Z83: 4273 | AA83: 4273 | AB83: 4273 | AC83: 4273 | AD83: 4273 | AE83: 4273 | AF83: 4273 | AG83: 4273 | AH83: 4273 | AI83: 4273 | AJ83: 4273 | AK83: 4273 | AL83: HYD | AM83: 0 | AN83: 0 | AO83: 0 | AP83: 0 | AQ83: 0 | AR83: 0 | AS83: 0 | AT83: 0 | AU83: 0 | AV83: 0 | AW83: 0 | AX83: 0 | AY83: 0 | AZ83: 0 | BA83: 0 | BB83: 0 | BC83: 0 | BD83: 0 | BE83: 0 | BF83: 0 | BG83: 0 | BH83: 0 | BI83: 0 | BJ83: 0 | BK83: 0
A84: SENEPHYDNUROFel | B84: SEN | C84: EPHYDNUROFel | D84: SEwEPHYDNUROFel | E84: 1 | F84: 0 | G84: 2 | H84: 0 | I84: 50 | J84: 0.09169015822 | K84: 0.6088280061 | L84: 0 | M84: Felou(OMVS)partSénégal15% | N84: 2400 | O84: 2400 | P84: 2400 | Q84: 2400 | R84: 2400 | S84: 2400 | T84: 2400 | U84: 2400 | V84: 2400 | W84: 2400 | X84: 2400 | Y84: 2400 | Z84: 2400 | AA84: 2400 | AB84: 2400 | AC84: 2400 | AD84: 2400 | AE84: 2400 | AF84: 2400 | AG84: 2400 | AH84: 2400 | AI84: 2400 | AJ84: 2400 | AK84: 2400 | AL84: HYD | AM84: 0 | AN84: 0 | AO84: 0 | AP84: 0 | AQ84: 0 | AR84: 0 | AS84: 0 | AT84: 0 | AU84: 0 | AV84: 0 | AW84: 0 | AX84: 0 | AY84: 0 | AZ84: 0 | BA84: 0 | BB84: 0 | BC84: 0 | BD84: 0 | BE84: 0 | BF84: 0 | BG84: 0 | BH84: 0 | BI84: 0 | BJ84: 0 | BK84: 0
A85: SENEPHYDNUROGou | B85: SEN | C85: EPHYDNUROGou | D85: SEwEPHYDNUROGou | E85: 1 | F85: 0 | G85: 2 | H85: 0 | I85: 50 | J85: 0.09169015822 | K85: 0.1850945858 | L85: 0 | M85: Gouina(OMVS)partSénégal25% | N85: 2347 | O85: 2347 | P85: 2347 | Q85: 2347 | R85: 2347 | S85: 2347 | T85: 2347 | U85: 2347 | V85: 2347 | W85: 2347 | X85: 2347 | Y85: 2347 | Z85: 2347 | AA85: 2347 | AB85: 2347 | AC85: 2347 | AD85: 2347 | AE85: 2347 | AF85: 2347 | AG85: 2347 | AH85: 2347 | AI85: 2347 | AJ85: 2347 | AK85: 2347 | AL85: HYD | AM85: 0 | AN85: 0 | AO85: 0 | AP85: 0 | AQ85: 0 | AR85: 0 | AS85: 0 | AT85: 0 | AU85: 0 | AV85: 0 | AW85: 0 | AX85: 0 | AY85: 0 | AZ85: 0 | BA85: 0 | BB85: 0 | BC85: 0 | BD85: 0 | BE85: 0 | BF85: 0 | BG85: 0 | BH85: 0 | BI85: 0 | BJ85: 0 | BK85: 0
A86: SENEPHYDNUDADAM | B86: SEN | C86: EPHYDNUDADAM | D86: SEwEPHYDNUDADAM | E86: 1 | F86: 0 | G86: 2 | H86: 0 | I86: 50 | J86: 0.09169015822 | K86: 0.2942783325 | L86: 0 | M86: DAMEnvisagée | N86: 4311 | O86: 4311 | P86: 4311 | Q86: 4311 | R86: 4311 | S86: 4311 | T86: 4311 | U86: 4311 | V86: 4311 | W86: 4311 | X86: 4311 | Y86: 4311 | Z86: 4311 | AA86: 4311 | AB86: 4311 | AC86: 4311 | AD86: 4311 | AE86: 4311 | AF86: 4311 | AG86: 4311 | AH86: 4311 | AI86: 4311 | AJ86: 4311 | AK86: 4311 | AL86: HYD | AM86: 0 | AN86: 0 | AO86: 0 | AP86: 0 | AQ86: 0 | AR86: 0 | AS86: 0 | AT86: 0 | AU86: 0 | AV86: 0 | AW86: 0 | AX86: 0 | AY86: 0 | AZ86: 0 | BA86: 0 | BB86: 0 | BC86: 0 | BD86: 0 | BE86: 0 | BF86: 0 | BG86: 0 | BH86: 0 | BI86: 0 | BJ86: 0 | BK86: 0
A87: GAMEPOHFNCBri | B87: GAM | C87: EPOHFNCBri | D87: GAwEPOHFNCBri | E87: 0.3789473684 | F87: 0.766365 | G87: 87.6 | H87: 0 | I87: 30 | J87: 0.09643568023 | K87: 0.801369863 | L87: 0 | M87: Brikama | N87: 1417.5 | O87: 1417.5 | P87: 1417.5 | Q87: 1417.5 | R87: 1417.5 | S87: 1417.5 | T87: 1417.5 | U87: 1417.5 | V87: 1417.5 | W87: 1417.5 | X87: 1417.5 | Y87: 1417.5 | Z87: 1417.5 | AA87: 1417.5 | AB87: 1417.5 | AC87: 1417.5 | AD87: 1417.5 | AE87: 1417.5 | AF87: 1417.5 | AG87: 1417.5 | AH87: 1417.5 | AI87: 1417.5 | AJ87: 1417.5 | AK87: 1417.5 | AL87: OHFC | AM87: 122.6059107 | AN87: 122.6059107 | AO87: 122.6059107 | AP87: 122.6059107 | AQ87: 122.6059107 | AR87: 122.6059107 | AS87: 122.6059107 | AT87: 122.6059107 | AU87: 122.6059107 | AV87: 122.6059107 | AW87: 122.6059107 | AX87: 122.6059107 | AY87: 122.6059107 | AZ87: 122.6059107 | BA87: 122.6059107 | BB87: 122.6059107 | BC87: 122.6059107 | BD87: 122.6059107 | BE87: 122.6059107 | BF87: 122.6059107 | BG87: 122.6059107 | BH87: 122.6059107 | BI87: 122.6059107 | BJ87: 122.6059107 | BK87: 0
A88: GAMEPWNDNCBat | B88: GAM | C88: EPWNDNCBat | D88: GAwEPWNDNCBat | E88: 1 | F88: 0 | G88: 87.6 | H88: 17 | I88: 20 | J88: 0.1067814771 | K88: 0.3 | L88: 0 | M88: Batokunku | N88: 1750 | O88: 1750 | P88: 1750 | Q88: 1750 | R88: 1750 | S88: 1750 | T88: 1750 | U88: 1750 | V88: 1750 | W88: 1750 | X88: 1750 | Y88: 1750 | Z88: 1750 | AA88: 1750 | AB88: 1750 | AC88: 1750 | AD88: 1750 | AE88: 1750 | AF88: 1750 | AG88: 1750 | AH88: 1750 | AI88: 1750 | AJ88: 1750 | AK88: 1750 | AL88: WND | AM88: 0 | AN88: 0 | AO88: 0 | AP88: 0 | AQ88: 0 | AR88: 0 | AS88: 0 | AT88: 0 | AU88: 0 | AV88: 0 | AW88: 0 | AX88: 0 | AY88: 0 | AZ88: 0 | BA88: 0 | BB88: 0 | BC88: 0 | BD88: 0 | BE88: 0 | BF88: 0 | BG88: 0 | BH88: 0 | BI88: 0 | BJ88: 0 | BK88: 0
A89: GAMEPHYDNUDASam | B89: GAM | C89: EPHYDNUDASam | D89: GAwEPHYDNUDASam | E89: 1 | F89: 0 | G89: 2 | H89: 0 | I89: 50 | J89: 0.09169015822 | K89: 0.185020459 | L89: 0 | M89: Sambangalou(OMVG)partGambie12% | N89: 3386 | O89: 3386 | P89: 3386 | Q89: 3386 | R89: 3386 | S89: 3386 | T89: 3386 | U89: 3386 | V89: 3386 | W89: 3386 | X89: 3386 | Y89: 3386 | Z89: 3386 | AA89: 3386 | AB89: 3386 | AC89: 3386 | AD89: 3386 | AE89: 3386 | AF89: 3386 | AG89: 3386 | AH89: 3386 | AI89: 3386 | AJ89: 3386 | AK89: 3386 | AL89: HYD | AM89: 0 | AN89: 0 | AO89: 0 | AP89: 0 | AQ89: 0 | AR89: 0 | AS89: 0 | AT89: 0 | AU89: 0 | AV89: 0 | AW89: 0 | AX89: 0 | AY89: 0 | AZ89: 0 | BA89: 0 | BB89: 0 | BC89: 0 | BD89: 0 | BE89: 0 | BF89: 0 | BG89: 0 | BH89: 0 | BI89: 0 | BJ89: 0 | BK89: 0
A90: GAMEPHYDNUROKal | B90: GAM | C90: EPHYDNUROKal | D90: GAwEPHYDNUROKal | E90: 1 | F90: 0 | G90: 2 | H90: 0 | I90: 50 | J90: 0.09169015822 | K90: 0.1079718417 | L90: 0 | M90: Kaleta(OMVG)partGambie12% | N90: 1114 | O90: 1114 | P90: 1114 | Q90: 1114 | R90: 1114 | S90: 1114 | T90: 1114 | U90: 1114 | V90: 1114 | W90: 1114 | X90: 1114 | Y90: 1114 | Z90: 1114 | AA90: 1114 | AB90: 1114 | AC90: 1114 | AD90: 1114 | AE90: 1114 | AF90: 1114 | AG90: 1114 | AH90: 1114 | AI90: 1114 | AJ90: 1114 | AK90: 1114 | AL90: HYD | AM90: 0 | AN90: 0 | AO90: 0 | AP90: 0 | AQ90: 0 | AR90: 0 | AS90: 0 | AT90: 0 | AU90: 0 | AV90: 0 | AW90: 0 | AX90: 0 | AY90: 0 | AZ90: 0 | BA90: 0 | BB90: 0 | BC90: 0 | BD90: 0 | BE90: 0 | BF90: 0 | BG90: 0 | BH90: 0 | BI90: 0 | BJ90: 0 | BK90: 0
A91: GAMEPHYDNURODig | B91: GAM | C91: EPHYDNURODig | D91: GAwEPHYDNURODig | E91: 1 | F91: 0 | G91: 2 | H91: 0 | I91: 50 | J91: 0.09169015822 | K91: 0.02894651011 | L91: 0 | M91: Digan(OMVG)partGambie12% | N91: 1201 | O91: 1201 | P91: 1201 | Q91: 1201 | R91: 1201 | S91: 1201 | T91: 1201 | U91: 1201 | V91: 1201 | W91: 1201 | X91: 1201 | Y91: 1201 | Z91: 1201 | AA91: 1201 | AB91: 1201 | AC91: 1201 | AD91: 1201 | AE91: 1201 | AF91: 1201 | AG91: 1201 | AH91: 1201 | AI91: 1201 | AJ91: 1201 | AK91: 1201 | AL91: HYD | AM91: 0 | AN91: 0 | AO91: 0 | AP91: 0 | AQ91: 0 | AR91: 0 | AS91: 0 | AT91: 0 | AU91: 0 | AV91: 0 | AW91: 0 | AX91: 0 | AY91: 0 | AZ91: 0 | BA91: 0 | BB91: 0 | BC91: 0 | BD91: 0 | BE91: 0 | BF91: 0 | BG91: 0 | BH91: 0 | BI91: 0 | BJ91: 0 | BK91: 0
A92: GAMEPHYDNUDAFel | B92: GAM | C92: EPHYDNUDAFel | D92: GAwEPHYDNUDAFel | E92: 1 | F92: 0 | G92: 2 | H92: 0 | I92: 50 | J92: 0.09169015822 | K92: 0.3997763489 | L92: 0 | M92: FelloSounga(OMVG)partGambie12% | N92: 3474 | O92: 3474 | P92: 3474 | Q92: 3474 | R92: 3474 | S92: 3474 | T92: 3474 | U92: 3474 | V92: 3474 | W92: 3474 | X92: 3474 | Y92: 3474 | Z92: 3474 | AA92: 3474 | AB92: 3474 | AC92: 3474 | AD92: 3474 | AE92: 3474 | AF92: 3474 | AG92: 3474 | AH92: 3474 | AI92: 3474 | AJ92: 3474 | AK92: 3474 | AL92: HYD | AM92: 0 | AN92: 0 | AO92: 0 | AP92: 0 | AQ92: 0 | AR92: 0 | AS92: 0 | AT92: 0 | AU92: 0 | AV92: 0 | AW92: 0 | AX92: 0 | AY92: 0 | AZ92: 0 | BA92: 0 | BB92: 0 | BC92: 0 | BD92: 0 | BE92: 0 | BF92: 0 | BG92: 0 | BH92: 0 | BI92: 0 | BJ92: 0 | BK92: 0
A93: GAMEPHYDNUROSal | B93: GAM | C93: EPHYDNUROSal | D93: GAwEPHYDNUROSal | E93: 1 | F93: 0 | G93: 2 | H93: 0 | I93: 50 | J93: 0.09169015822 | K93: 0.1352739726 | L93: 0 | M93: Saltinho(OMVG)partGambie12% | N93: 4273 | O93: 4273 | P93: 4273 | Q93: 4273 | R93: 4273 | S93: 4273 | T93: 4273 | U93: 4273 | V93: 4273 | W93: 4273 | X93: 4273 | Y93: 4273 | Z93: 4273 | AA93: 4273 | AB93: 4273 | AC93: 4273 | AD93: 4273 | AE93: 4273 | AF93: 4273 | AG93: 4273 | AH93: 4273 | AI93: 4273 | AJ93: 4273 | AK93: 4273 | AL93: HYD | AM93: 0 | AN93: 0 | AO93: 0 | AP93: 0 | AQ93: 0 | AR93: 0 | AS93: 0 | AT93: 0 | AU93: 0 | AV93: 0 | AW93: 0 | AX93: 0 | AY93: 0 | AZ93: 0 | BA93: 0 | BB93: 0 | BC93: 0 | BD93: 0 | BE93: 0 | BF93: 0 | BG93: 0 | BH93: 0 | BI93: 0 | BJ93: 0 | BK93: 0
A94: GBIEPOHFNCBis | B94: GBI | C94: EPOHFNCBis | D94: GBwEPOHFNCBis | E94: 0.3789473684 | F94: 0.766365 | G94: 87.6 | H94: 0 | I94: 30 | J94: 0.09643568023 | K94: 0.801369863 | L94: 0 | M94: Bissau | N94: 1123.5 | O94: 1123.5 | P94: 1123.5 | Q94: 1123.5 | R94: 1123.5 | S94: 1123.5 | T94: 1123.5 | U94: 1123.5 | V94: 1123.5 | W94: 1123.5 | X94: 1123.5 | Y94: 1123.5 | Z94: 1123.5 | AA94: 1123.5 | AB94: 1123.5 | AC94: 1123.5 | AD94: 1123.5 | AE94: 1123.5 | AF94: 1123.5 | AG94: 1123.5 | AH94: 1123.5 | AI94: 1123.5 | AJ94: 1123.5 | AK94: 1123.5 | AL94: OHFC | AM94: 122.6059107 | AN94: 122.6059107 | AO94: 122.6059107 | AP94: 122.6059107 | AQ94: 122.6059107 | AR94: 122.6059107 | AS94: 122.6059107 | AT94: 122.6059107 | AU94: 122.6059107 | AV94: 122.6059107 | AW94: 122.6059107 | AX94: 122.6059107 | AY94: 122.6059107 | AZ94: 122.6059107 | BA94: 122.6059107 | BB94: 122.6059107 | BC94: 122.6059107 | BD94: 122.6059107 | BE94: 122.6059107 | BF94: 122.6059107 | BG94: 122.6059107 | BH94: 122.6059107 | BI94: 122.6059107 | BJ94: 122.6059107 | BK94: 0
A95: GBIEPHYDNUDASam | B95: GBI | C95: EPHYDNUDASam | D95: GBwEPHYDNUDASam | E95: 1 | F95: 0 | G95: 2 | H95: 0 | I95: 50 | J95: 0.09169015822 | K95: 0.1837531301 | L95: 0 | M95: Sambangalou(OMVG)partGuinéeBissau8% | N95: 3386 | O95: 3386 | P95: 3386 | Q95: 3386 | R95: 3386 | S95: 3386 | T95: 3386 | U95: 3386 | V95: 3386 | W95: 3386 | X95: 3386 | Y95: 3386 | Z95: 3386 | AA95: 3386 | AB95: 3386 | AC95: 3386 | AD95: 3386 | AE95: 3386 | AF95: 3386 | AG95: 3386 | AH95: 3386 | AI95: 3386 | AJ95: 3386 | AK95: 3386 | AL95: HYD | AM95: 0 | AN95: 0 | AO95: 0 | AP95: 0 | AQ95: 0 | AR95: 0 | AS95: 0 | AT95: 0 | AU95: 0 | AV95: 0 | AW95: 0 | AX95: 0 | AY95: 0 | AZ95: 0 | BA95: 0 | BB95: 0 | BC95: 0 | BD95: 0 | BE95: 0 | BF95: 0 | BG95: 0 | BH95: 0 | BI95: 0 | BJ95: 0 | BK95: 0
A96: GBIEPHYDNUROKal | B96: GBI | C96: EPHYDNUROKal | D96: GBwEPHYDNUROKal | E96: 1 | F96: 0 | G96: 2 | H96: 0 | I96: 50 | J96: 0.09169015822 | K96: 0.1072665722 | L96: 0 | M96: Kaleta(OMVG)partGuinéeBissau8% | N96: 1114 | O96: 1114 | P96: 1114 | Q96: 1114 | R96: 1114 | S96: 1114 | T96: 1114 | U96: 1114 | V96: 1114 | W96: 1114 | X96: 1114 | Y96: 1114 | Z96: 1114 | AA96: 1114 | AB96: 1114 | AC96: 1114 | AD96: 1114 | AE96: 1114 | AF96: 1114 | AG96: 1114 | AH96: 1114 | AI96: 1114 | AJ96: 1114 | AK96: 1114 | AL96: HYD | AM96: 0 | AN96: 0 | AO96: 0 | AP96: 0 | AQ96: 0 | AR96: 0 | AS96: 0 | AT96: 0 | AU96: 0 | AV96: 0 | AW96: 0 | AX96: 0 | AY96: 0 | AZ96: 0 | BA96: 0 | BB96: 0 | BC96: 0 | BD96: 0 | BE96: 0 | BF96: 0 | BG96: 0 | BH96: 0 | BI96: 0 | BJ96: 0 | BK96: 0
A97: GBIEPHYDNURODig | B97: GBI | C97: EPHYDNURODig | D97: GBwEPHYDNURODig | E97: 1 | F97: 0 | G97: 2 | H97: 0 | I97: 50 | J97: 0.09169015822 | K97: 0.0295765878 | L97: 0 | M97: Digan(OMVG)partGuinéeBissau8% | N97: 1201 | O97: 1201 | P97: 1201 | Q97: 1201 | R97: 1201 | S97: 1201 | T97: 1201 | U97: 1201 | V97: 1201 | W97: 1201 | X97: 1201 | Y97: 1201 | Z97: 1201 | AA97: 1201 | AB97: 1201 | AC97: 1201 | AD97: 1201 | AE97: 1201 | AF97: 1201 | AG97: 1201 | AH97: 1201 | AI97: 1201 | AJ97: 1201 | AK97: 1201 | AL97: HYD | AM97: 0 | AN97: 0 | AO97: 0 | AP97: 0 | AQ97: 0 | AR97: 0 | AS97: 0 | AT97: 0 | AU97: 0 | AV97: 0 | AW97: 0 | AX97: 0 | AY97: 0 | AZ97: 0 | BA97: 0 | BB97: 0 | BC97: 0 | BD97: 0 | BE97: 0 | BF97: 0 | BG97: 0 | BH97: 0 | BI97: 0 | BJ97: 0 | BK97: 0
A98: GBIEPHYDNUDAFel | B98: GBI | C98: EPHYDNUDAFel | D98: GBwEPHYDNUDAFel | E98: 1 | F98: 0 | G98: 2 | H98: 0 | I98: 50 | J98: 0.09169015822 | K98: 0.3915525114 | L98: 0 | M98: FelloSounga(OMVG)partGuinéeBissau8% | N98: 3474 | O98: 3474 | P98: 3474 | Q98: 3474 | R98: 3474 | S98: 3474 | T98: 3474 | U98: 3474 | V98: 3474 | W98: 3474 | X98: 3474 | Y98: 3474 | Z98: 3474 | AA98: 3474 | AB98: 3474 | AC98: 3474 | AD98: 3474 | AE98: 3474 | AF98: 3474 | AG98: 3474 | AH98: 3474 | AI98: 3474 | AJ98: 3474 | AK98: 3474 | AL98: HYD | AM98: 0 | AN98: 0 | AO98: 0 | AP98: 0 | AQ98: 0 | AR98: 0 | AS98: 0 | AT98: 0 | AU98: 0 | AV98: 0 | AW98: 0 | AX98: 0 | AY98: 0 | AZ98: 0 | BA98: 0 | BB98: 0 | BC98: 0 | BD98: 0 | BE98: 0 | BF98: 0 | BG98: 0 | BH98: 0 | BI98: 0 | BJ98: 0 | BK98: 0
A99: GBIEPHYDNUROSal | B99: GBI | C99: EPHYDNUROSal | D99: GBwEPHYDNUROSal | E99: 1 | F99: 0 | G99: 2 | H99: 0 | I99: 50 | J99: 0.09169015822 | K99: 0.1301369863 | L99: 0 | M99: Saltinho(OMVG)partGuinéeBissau8% | N99: 4273 | O99: 4273 | P99: 4273 | Q99: 4273 | R99: 4273 | S99: 4273 | T99: 4273 | U99: 4273 | V99: 4273 | W99: 4273 | X99: 4273 | Y99: 4273 | Z99: 4273 | AA99: 4273 | AB99: 4273 | AC99: 4273 | AD99: 4273 | AE99: 4273 | AF99: 4273 | AG99: 4273 | AH99: 4273 | AI99: 4273 | AJ99: 4273 | AK99: 4273 | AL99: HYD | AM99: 0 | AN99: 0 | AO99: 0 | AP99: 0 | AQ99: 0 | AR99: 0 | AS99: 0 | AT99: 0 | AU99: 0 | AV99: 0 | AW99: 0 | AX99: 0 | AY99: 0 | AZ99: 0 | BA99: 0 | BB99: 0 | BC99: 0 | BD99: 0 | BE99: 0 | BF99: 0 | BG99: 0 | BH99: 0 | BI99: 0 | BJ99: 0 | BK99: 0
A100: GUIEPOHFNCT12 | B100: GUI | C100: EPOHFNCT12 | D100: GUwEPOHFNCT12 | E100: 0.3913043478 | F100: 0.742164 | G100: 87.6 | H100: 0 | I100: 30 | J100: 0.09643568023 | K100: 0.801369863 | L100: 0 | M100: Tombo 3 (Rehab.)2012 | N100: 1123.5 | O100: 1123.5 | P100: 1123.5 | Q100: 1123.5 | R100: 1123.5 | S100: 1123.5 | T100: 1123.5 | U100: 1123.5 | V100: 1123.5 | W100: 1123.5 | X100: 1123.5 | Y100: 1123.5 | Z100: 1123.5 | AA100: 1123.5 | AB100: 1123.5 | AC100: 1123.5 | AD100: 1123.5 | AE100: 1123.5 | AF100: 1123.5 | AG100: 1123.5 | AH100: 1123.5 | AI100: 1123.5 | AJ100: 1123.5 | AK100: 1123.5 | AL100: OHFC | AM100: 118.7341451 | AN100: 118.7341451 | AO100: 118.7341451 | AP100: 118.7341451 | AQ100: 118.7341451 | AR100: 118.7341451 | AS100: 118.7341451 | AT100: 118.7341451 | AU100: 118.7341451 | AV100: 118.7341451 | AW100: 118.7341451 | AX100: 118.7341451 | AY100: 118.7341451 | AZ100: 118.7341451 | BA100: 118.7341451 | BB100: 118.7341451 | BC100: 118.7341451 | BD100: 118.7341451 | BE100: 118.7341451 | BF100: 118.7341451 | BG100: 118.7341451 | BH100: 118.7341451 | BI100: 118.7341451 | BJ100: 118.7341451 | BK100: 0
A101: GUIEPOHFNCT13 | B101: GUI | C101: EPOHFNCT13 | D101: GUwEPOHFNCT13 | E101: 0.3913043478 | F101: 0.742164 | G101: 87.6 | H101: 0 | I101: 30 | J101: 0.09643568023 | K101: 0.801369863 | L101: 0 | M101: Tombo 3 (Rehab.)2013 | N101: 1123.5 | O101: 1123.5 | P101: 1123.5 | Q101: 1123.5 | R101: 1123.5 | S101: 1123.5 | T101: 1123.5 | U101: 1123.5 | V101: 1123.5 | W101: 1123.5 | X101: 1123.5 | Y101: 1123.5 | Z101: 1123.5 | AA101: 1123.5 | AB101: 1123.5 | AC101: 1123.5 | AD101: 1123.5 | AE101: 1123.5 | AF101: 1123.5 | AG101: 1123.5 | AH101: 1123.5 | AI101: 1123.5 | AJ101: 1123.5 | AK101: 1123.5 | AL101: OHFC | AM101: 118.7341451 | AN101: 118.7341451 | AO101: 118.7341451 | AP101: 118.7341451 | AQ101: 118.7341451 | AR101: 118.7341451 | AS101: 118.7341451 | AT101: 118.7341451 | AU101: 118.7341451 | AV101: 118.7341451 | AW101: 118.7341451 | AX101: 118.7341451 | AY101: 118.7341451 | AZ101: 118.7341451 | BA101: 118.7341451 | BB101: 118.7341451 | BC101: 118.7341451 | BD101: 118.7341451 | BE101: 118.7341451 | BF101: 118.7341451 | BG101: 118.7341451 | BH101: 118.7341451 | BI101: 118.7341451 | BJ101: 118.7341451 | BK101: 0
A102: GUIEPOHFNCMan | B102: GUI | C102: EPOHFNCMan | D102: GUwEPOHFNCMan | E102: 0.3789473684 | F102: 0.766365 | G102: 87.6 | H102: 0 | I102: 30 | J102: 0.09643568023 | K102: 0.801369863 | L102: 0 | M102: Maneah | N102: 1123.5 | O102: 1123.5 | P102: 1123.5 | Q102: 1123.5 | R102: 1123.5 | S102: 1123.5 | T102: 1123.5 | U102: 1123.5 | V102: 1123.5 | W102: 1123.5 | X102: 1123.5 | Y102: 1123.5 | Z102: 1123.5 | AA102: 1123.5 | AB102: 1123.5 | AC102: 1123.5 | AD102: 1123.5 | AE102: 1123.5 | AF102: 1123.5 | AG102: 1123.5 | AH102: 1123.5 | AI102: 1123.5 | AJ102: 1123.5 | AK102: 1123.5 | AL102: OHFC | AM102: 122.6059107 | AN102: 122.6059107 | AO102: 122.6059107 | AP102: 122.6059107 | AQ102: 122.6059107 | AR102: 122.6059107 | AS102: 122.6059107 | AT102: 122.6059107 | AU102: 122.6059107 | AV102: 122.6059107 | AW102: 122.6059107 | AX102: 122.6059107 | AY102: 122.6059107 | AZ102: 122.6059107 | BA102: 122.6059107 | BB102: 122.6059107 | BC102: 122.6059107 | BD102: 122.6059107 | BE102: 122.6059107 | BF102: 122.6059107 | BG102: 122.6059107 | BH102: 122.6059107 | BI102: 122.6059107 | BJ102: 122.6059107 | BK102: 0
A103: GUIEPHYDNUDABan | B103: GUI | C103: EPHYDNUDABan | D103: GUwEPHYDNUDABan | E103: 1 | F103: 0 | G103: 2 | H103: 0 | I103: 50 | J103: 0.09169015822 | K103: 0.1110502283 | L103: 0 | M103: Baneah(Rehab) | N103: 2400 | O103: 2400 | P103: 2400 | Q103: 2400 | R103: 2400 | S103: 2400 | T103: 2400 | U103: 2400 | V103: 2400 | W103: 2400 | X103: 2400 | Y103: 2400 | Z103: 2400 | AA103: 2400 | AB103: 2400 | AC103: 2400 | AD103: 2400 | AE103: 2400 | AF103: 2400 | AG103: 2400 | AH103: 2400 | AI103: 2400 | AJ103: 2400 | AK103: 2400 | AL103: HYD | AM103: 0 | AN103: 0 | AO103: 0 | AP103: 0 | AQ103: 0 | AR103: 0 | AS103: 0 | AT103: 0 | AU103: 0 | AV103: 0 | AW103: 0 | AX103: 0 | AY103: 0 | AZ103: 0 | BA103: 0 | BB103: 0 | BC103: 0 | BD103: 0 | BE103: 0 | BF103: 0 | BG103: 0 | BH103: 0 | BI103: 0 | BJ103: 0 | BK103: 0
A104: GUIEPHYDNUDADon | B104: GUI | C104: EPHYDNUDADon | D104: GUwEPHYDNUDADon | E104: 1 | F104: 0 | G104: 2 | H104: 0 | I104: 50 | J104: 0.09169015822 | K104: 0.4223744292 | L104: 0 | M104: Donkéa(Réhab) | N104: 2400 | O104: 2400 | P104: 2400 | Q104: 2400 | R104: 2400 | S104: 2400 | T104: 2400 | U104: 2400 | V104: 2400 | W104: 2400 | X104: 2400 | Y104: 2400 | Z104: 2400 | AA104: 2400 | AB104: 2400 | AC104: 2400 | AD104: 2400 | AE104: 2400 | AF104: 2400 | AG104: 2400 | AH104: 2400 | AI104: 2400 | AJ104: 2400 | AK104: 2400 | AL104: HYD | AM104: 0 | AN104: 0 | AO104: 0 | AP104: 0 | AQ104: 0 | AR104: 0 | AS104: 0 | AT104: 0 | AU104: 0 | AV104: 0 | AW104: 0 | AX104: 0 | AY104: 0 | AZ104: 0 | BA104: 0 | BB104: 0 | BC104: 0 | BD104: 0 | BE104: 0 | BF104: 0 | BG104: 0 | BH104: 0 | BI104: 0 | BJ104: 0 | BK104: 0
A105: GUIEPHYDNUDAGra | B105: GUI | C105: EPHYDNUDAGra | D105: GUwEPHYDNUDAGra | E105: 1 | F105: 0 | G105: 2 | H105: 0 | I105: 50 | J105: 0.09169015822 | K105: 0.4194148486 | L105: 0 | M105: GrandesChutes(Réhab) | N105: 2400 | O105: 2400 | P105: 2400 | Q105: 2400 | R105: 2400 | S105: 2400 | T105: 2400 | U105: 2400 | V105: 2400 | W105: 2400 | X105: 2400 | Y105: 2400 | Z105: 2400 | AA105: 2400 | AB105: 2400 | AC105: 2400 | AD105: 2400 | AE105: 2400 | AF105: 2400 | AG105: 2400 | AH105: 2400 | AI105: 2400 | AJ105: 2400 | AK105: 2400 | AL105: HYD | AM105: 0 | AN105: 0 | AO105: 0 | AP105: 0 | AQ105: 0 | AR105: 0 | AS105: 0 | AT105: 0 | AU105: 0 | AV105: 0 | AW105: 0 | AX105: 0 | AY105: 0 | AZ105: 0 | BA105: 0 | BB105: 0 | BC105: 0 | BD105: 0 | BE105: 0 | BF105: 0 | BG105: 0 | BH105: 0 | BI105: 0 | BJ105: 0 | BK105: 0
A106: GUIEPHYDNUDASam | B106: GUI | C106: EPHYDNUDASam | D106: GUwEPHYDNUDASam | E106: 1 | F106: 0 | G106: 2 | H106: 0 | I106: 50 | J106: 0.09169015822 | K106: 0.1855022831 | L106: 0 | M106: Sambangalou(OMVG)partGuinée40% | N106: 3386 | O106: 3386 | P106: 3386 | Q106: 3386 | R106: 3386 | S106: 3386 | T106: 3386 | U106: 3386 | V106: 3386 | W106: 3386 | X106: 3386 | Y106: 3386 | Z106: 3386 | AA106: 3386 | AB106: 3386 | AC106: 3386 | AD106: 3386 | AE106: 3386 | AF106: 3386 | AG106: 3386 | AH106: 3386 | AI106: 3386 | AJ106: 3386 | AK106: 3386 | AL106: HYD | AM106: 0 | AN106: 0 | AO106: 0 | AP106: 0 | AQ106: 0 | AR106: 0 | AS106: 0 | AT106: 0 | AU106: 0 | AV106: 0 | AW106: 0 | AX106: 0 | AY106: 0 | AZ106: 0 | BA106: 0 | BB106: 0 | BC106: 0 | BD106: 0 | BE106: 0 | BF106: 0 | BG106: 0 | BH106: 0 | BI106: 0 | BJ106: 0 | BK106: 0
A107: GUIEPHYDNUDAKal | B107: GUI | C107: EPHYDNUDAKal | D107: GUwEPHYDNUDAKal | E107: 1 | F107: 0 | G107: 2 | H107: 0 | I107: 50 | J107: 0.09169015822 | K107: 0.1079718417 | L107: 0 | M107: Kaleta(OMVG)partGuinée40% | N107: 1114 | O107: 1114 | P107: 1114 | Q107: 1114 | R107: 1114 | S107: 1114 | T107: 1114 | U107: 1114 | V107: 1114 | W107: 1114 | X107: 1114 | Y107: 1114 | Z107: 1114 | AA107: 1114 | AB107: 1114 | AC107: 1114 | AD107: 1114 | AE107: 1114 | AF107: 1114 | AG107: 1114 | AH107: 1114 | AI107: 1114 | AJ107: 1114 | AK107: 1114 | AL107: HYD | AM107: 0 | AN107: 0 | AO107: 0 | AP107: 0 | AQ107: 0 | AR107: 0 | AS107: 0 | AT107: 0 | AU107: 0 | AV107: 0 | AW107: 0 | AX107: 0 | AY107: 0 | AZ107: 0 | BA107: 0 | BB107: 0 | BC107: 0 | BD107: 0 | BE107: 0 | BF107: 0 | BG107: 0 | BH107: 0 | BI107: 0 | BJ107: 0 | BK107: 0
A108: GUIEPHYDNUDADig | B108: GUI | C108: EPHYDNUDADig | D108: GUwEPHYDNUDADig | E108: 1 | F108: 0 | G108: 2 | H108: 0 | I108: 50 | J108: 0.09169015822 | K108: 0.02899763614 | L108: 0 | M108: Digan(OMVG)partGuinée40% | N108: 1201 | O108: 1201 | P108: 1201 | Q108: 1201 | R108: 1201 | S108: 1201 | T108: 1201 | U108: 1201 | V108: 1201 | W108: 1201 | X108: 1201 | Y108: 1201 | Z108: 1201 | AA108: 1201 | AB108: 1201 | AC108: 1201 | AD108: 1201 | AE108: 1201 | AF108: 1201 | AG108: 1201 | AH108: 1201 | AI108: 1201 | AJ108: 1201 | AK108: 1201 | AL108: HYD | AM108: 0 | AN108: 0 | AO108: 0 | AP108: 0 | AQ108: 0 | AR108: 0 | AS108: 0 | AT108: 0 | AU108: 0 | AV108: 0 | AW108: 0 | AX108: 0 | AY108: 0 | AZ108: 0 | BA108: 0 | BB108: 0 | BC108: 0 | BD108: 0 | BE108: 0 | BF108: 0 | BG108: 0 | BH108: 0 | BI108: 0 | BJ108: 0 | BK108: 0
A109: GUIEPHYDNUDAFel | B109: GUI | C109: EPHYDNUDAFel | D109: GUwEPHYDNUDAFel | E109: 1 | F109: 0 | G109: 2 | H109: 0 | I109: 50 | J109: 0.09169015822 | K109: 0.3981512418 | L109: 0 | M109: FelloSounga(OMVG)partGuinée40% | N109: 3474 | O109: 3474 | P109: 3474 | Q109: 3474 | R109: 3474 | S109: 3474 | T109: 3474 | U109: 3474 | V109: 3474 | W109: 3474 | X109: 3474 | Y109: 3474 | Z109: 3474 | AA109: 3474 | AB109: 3474 | AC109: 3474 | AD109: 3474 | AE109: 3474 | AF109: 3474 | AG109: 3474 | AH109: 3474 | AI109: 3474 | AJ109: 3474 | AK109: 3474 | AL109: HYD | AM109: 0 | AN109: 0 | AO109: 0 | AP109: 0 | AQ109: 0 | AR109: 0 | AS109: 0 | AT109: 0 | AU109: 0 | AV109: 0 | AW109: 0 | AX109: 0 | AY109: 0 | AZ109: 0 | BA109: 0 | BB109: 0 | BC109: 0 | BD109: 0 | BE109: 0 | BF109: 0 | BG109: 0 | BH109: 0 | BI109: 0 | BJ109: 0 | BK109: 0
A110: GUIEPHYDNUDADAM | B110: GUI | C110: EPHYDNUDADAM | D110: GUwEPHYDNUDADAM | E110: 1 | F110: 0 | G110: 2 | H110: 0 | I110: 50 | J110: 0.09169015822 | K110: 0.4040565434 | L110: 0 | M110: DAMEnvisagée | N110: 2400 | O110: 2400 | P110: 2400 | Q110: 2400 | R110: 2400 | S110: 2400 | T110: 2400 | U110: 2400 | V110: 2400 | W110: 2400 | X110: 2400 | Y110: 2400 | Z110: 2400 | AA110: 2400 | AB110: 2400 | AC110: 2400 | AD110: 2400 | AE110: 2400 | AF110: 2400 | AG110: 2400 | AH110: 2400 | AI110: 2400 | AJ110: 2400 | AK110: 2400 | AL110: HYD | AM110: 0 | AN110: 0 | AO110: 0 | AP110: 0 | AQ110: 0 | AR110: 0 | AS110: 0 | AT110: 0 | AU110: 0 | AV110: 0 | AW110: 0 | AX110: 0 | AY110: 0 | AZ110: 0 | BA110: 0 | BB110: 0 | BC110: 0 | BD110: 0 | BE110: 0 | BF110: 0 | BG110: 0 | BH110: 0 | BI110: 0 | BJ110: 0 | BK110: 0
A111: GUIEPHYDNUDASal | B111: GUI | C111: EPHYDNUDASal | D111: GUwEPHYDNUDASal | E111: 1 | F111: 0 | G111: 2 | H111: 0 | I111: 50 | J111: 0.09169015822 | K111: 0.1352739726 | L111: 0 | M111: Saltinho(OMVG)partGuinée40% | N111: 4273 | O111: 4273 | P111: 4273 | Q111: 4273 | R111: 4273 | S111: 4273 | T111: 4273 | U111: 4273 | V111: 4273 | W111: 4273 | X111: 4273 | Y111: 4273 | Z111: 4273 | AA111: 4273 | AB111: 4273 | AC111: 4273 | AD111: 4273 | AE111: 4273 | AF111: 4273 | AG111: 4273 | AH111: 4273 | AI111: 4273 | AJ111: 4273 | AK111: 4273 | AL111: HYD | AM111: 0 | AN111: 0 | AO111: 0 | AP111: 0 | AQ111: 0 | AR111: 0 | AS111: 0 | AT111: 0 | AU111: 0 | AV111: 0 | AW111: 0 | AX111: 0 | AY111: 0 | AZ111: 0 | BA111: 0 | BB111: 0 | BC111: 0 | BD111: 0 | BE111: 0 | BF111: 0 | BG111: 0 | BH111: 0 | BI111: 0 | BJ111: 0 | BK111: 0
A112: SIEEPBIONUEne | B112: SIE | C112: EPBIONUEne | D112: SIwEPBIONUEne | E112: 0.3333333333 | F112: 0 | G112: 27.156 | H112: 0 | I112: 35 | J112: 0.09426336829 | K112: 0.8556210046 | L112: 0 | M112: Energeon | N112: 2488.6656 | O112: 2488.6656 | P112: 2488.6656 | Q112: 2488.6656 | R112: 2488.6656 | S112: 2488.6656 | T112: 2488.6656 | U112: 2488.6656 | V112: 2488.6656 | W112: 2488.6656 | X112: 2488.6656 | Y112: 2488.6656 | Z112: 2488.6656 | AA112: 2488.6656 | AB112: 2488.6656 | AC112: 2488.6656 | AD112: 2488.6656 | AE112: 2488.6656 | AF112: 2488.6656 | AG112: 2488.6656 | AH112: 2488.6656 | AI112: 2488.6656 | AJ112: 2488.6656 | AK112: 2488.6656 | AL112: BIO | AM112: 16.09589041 | AN112: 16.09589041 | AO112: 16.09589041 | AP112: 16.09589041 | AQ112: 16.09589041 | AR112: 16.09589041 | AS112: 16.09589041 | AT112: 16.09589041 | AU112: 16.09589041 | AV112: 16.09589041 | AW112: 16.09589041 | AX112: 16.09589041 | AY112: 16.09589041 | AZ112: 16.09589041 | BA112: 16.09589041 | BB112: 16.09589041 | BC112: 16.09589041 | BD112: 16.09589041 | BE112: 16.09589041 | BF112: 16.09589041 | BG112: 16.09589041 | BH112: 16.09589041 | BI112: 16.09589041 | BJ112: 16.09589041 | BK112: 0
A113: SIEEPSOLNUNaa | B113: SIE | C113: EPSOLNUNaa | D113: SIwEPSOLNUNaa | E113: 1 | F113: 0 | G113: 0 | H113: 20 | I113: 20 | J113: 0.1067814771 | K113: 0.25 | L113: 0 | M113: Naanovo | N113: 3660 | O113: 3660 | P113: 3660 | Q113: 3660 | R113: 3660 | S113: 3660 | T113: 3660 | U113: 3660 | V113: 3660 | W113: 3660 | X113: 3660 | Y113: 3660 | Z113: 3660 | AA113: 3660 | AB113: 3660 | AC113: 3660 | AD113: 3660 | AE113: 3660 | AF113: 3660 | AG113: 3660 | AH113: 3660 | AI113: 3660 | AJ113: 3660 | AK113: 3660 | AL113: SOL | AM113: 0 | AN113: 0 | AO113: 0 | AP113: 0 | AQ113: 0 | AR113: 0 | AS113: 0 | AT113: 0 | AU113: 0 | AV113: 0 | AW113: 0 | AX113: 0 | AY113: 0 | AZ113: 0 | BA113: 0 | BB113: 0 | BC113: 0 | BD113: 0 | BE113: 0 | BF113: 0 | BG113: 0 | BH113: 0 | BI113: 0 | BJ113: 0 | BK113: 0
A114: SIEEPBIONUAdd | B114: SIE | C114: EPBIONUAdd | D114: SIwEPBIONUAdd | E114: 0.375 | F114: 0 | G114: 0 | H114: 129.6 | I114: 30 | J114: 0.09643568023 | K114: 0.8556 | L114: 0 | M114: Addax | N114: 3603.528 | O114: 3603.528 | P114: 3603.528 | Q114: 3603.528 | R114: 3603.528 | S114: 3603.528 | T114: 3603.528 | U114: 3603.528 | V114: 3603.528 | W114: 3603.528 | X114: 3603.528 | Y114: 3603.528 | Z114: 3603.528 | AA114: 3603.528 | AB114: 3603.528 | AC114: 3603.528 | AD114: 3603.528 | AE114: 3603.528 | AF114: 3603.528 | AG114: 3603.528 | AH114: 3603.528 | AI114: 3603.528 | AJ114: 3603.528 | AK114: 3603.528 | AL114: BIO | AM114: 14.30745814 | AN114: 14.30745814 | AO114: 14.30745814 | AP114: 14.30745814 | AQ114: 14.30745814 | AR114: 14.30745814 | AS114: 14.30745814 | AT114: 14.30745814 | AU114: 14.30745814 | AV114: 14.30745814 | AW114: 14.30745814 | AX114: 14.30745814 | AY114: 14.30745814 | AZ114: 14.30745814 | BA114: 14.30745814 | BB114: 14.30745814 | BC114: 14.30745814 | BD114: 14.30745814 | BE114: 14.30745814 | BF114: 14.30745814 | BG114: 14.30745814 | BH114: 14.30745814 | BI114: 14.30745814 | BJ114: 14.30745814 | BK114: 0
A115: SIEEPHYDNUROGom | B115: SIE | C115: EPHYDNUROGom | D115: SIwEPHYDNUROGom | E115: 1 | F115: 0 | G115: 2 | H115: 0 | I115: 50 | J115: 0.09169015822 | K115: 0.02663622527 | L115: 0 | M115: Goma2(Bo‐Kenema) | N115: 6709 | O115: 6709 | P115: 6709 | Q115: 6709 | R115: 6709 | S115: 6709 | T115: 6709 | U115: 6709 | V115: 6709 | W115: 6709 | X115: 6709 | Y115: 6709 | Z115: 6709 | AA115: 6709 | AB115: 6709 | AC115: 6709 | AD115: 6709 | AE115: 6709 | AF115: 6709 | AG115: 6709 | AH115: 6709 | AI115: 6709 | AJ115: 6709 | AK115: 6709 | AL115: HYD | AM115: 0 | AN115: 0 | AO115: 0 | AP115: 0 | AQ115: 0 | AR115: 0 | AS115: 0 | AT115: 0 | AU115: 0 | AV115: 0 | AW115: 0 | AX115: 0 | AY115: 0 | AZ115: 0 | BA115: 0 | BB115: 0 | BC115: 0 | BD115: 0 | BE115: 0 | BF115: 0 | BG115: 0 | BH115: 0 | BI115: 0 | BJ115: 0 | BK115: 0
A116: SIEEPHYDNUDABu2 | B116: SIE | C116: EPHYDNUDABu2 | D116: SIwEPHYDNUDABu2 | E116: 1 | F116: 0 | G116: 2 | H116: 0 | I116: 50 | J116: 0.09169015822 | K116: 0.676369863 | L116: 0 | M116: Bumbuna2 | N116: 1950 | O116: 1950 | P116: 1950 | Q116: 1950 | R116: 1950 | S116: 1950 | T116: 1950 | U116: 1950 | V116: 1950 | W116: 1950 | X116: 1950 | Y116: 1950 | Z116: 1950 | AA116: 1950 | AB116: 1950 | AC116: 1950 | AD116: 1950 | AE116: 1950 | AF116: 1950 | AG116: 1950 | AH116: 1950 | AI116: 1950 | AJ116: 1950 | AK116: 1950 | AL116: HYD | AM116: 0 | AN116: 0 | AO116: 0 | AP116: 0 | AQ116: 0 | AR116: 0 | AS116: 0 | AT116: 0 | AU116: 0 | AV116: 0 | AW116: 0 | AX116: 0 | AY116: 0 | AZ116: 0 | BA116: 0 | BB116: 0 | BC116: 0 | BD116: 0 | BE116: 0 | BF116: 0 | BG116: 0 | BH116: 0 | BI116: 0 | BJ116: 0 | BK116: 0
A117: SIEEPHYDNUDABu3 | B117: SIE | C117: EPHYDNUDABu3 | D117: SIwEPHYDNUDABu3 | E117: 1 | F117: 0 | G117: 2 | H117: 0 | I117: 50 | J117: 0.09169015822 | K117: 0.4020801624 | L117: 0 | M117: Bumbuna3(Yiben) | N117: 1950 | O117: 1950 | P117: 1950 | Q117: 1950 | R117: 1950 | S117: 1950 | T117: 1950 | U117: 1950 | V117: 1950 | W117: 1950 | X117: 1950 | Y117: 1950 | Z117: 1950 | AA117: 1950 | AB117: 1950 | AC117: 1950 | AD117: 1950 | AE117: 1950 | AF117: 1950 | AG117: 1950 | AH117: 1950 | AI117: 1950 | AJ117: 1950 | AK117: 1950 | AL117: HYD | AM117: 0 | AN117: 0 | AO117: 0 | AP117: 0 | AQ117: 0 | AR117: 0 | AS117: 0 | AT117: 0 | AU117: 0 | AV117: 0 | AW117: 0 | AX117: 0 | AY117: 0 | AZ117: 0 | BA117: 0 | BB117: 0 | BC117: 0 | BD117: 0 | BE117: 0 | BF117: 0 | BG117: 0 | BH117: 0 | BI117: 0 | BJ117: 0 | BK117: 0
A118: SIEEPHYDNUDABu4 | B118: SIE | C118: EPHYDNUDABu4 | D118: SIwEPHYDNUDABu4 | E118: 1 | F118: 0 | G118: 2 | H118: 0 | I118: 50 | J118: 0.09169015822 | K118: 0.556356645 | L118: 0 | M118: Bumbuna4&5 | N118: 1950 | O118: 1950 | P118: 1950 | Q118: 1950 | R118: 1950 | S118: 1950 | T118: 1950 | U118: 1950 | V118: 1950 | W118: 1950 | X118: 1950 | Y118: 1950 | Z118: 1950 | AA118: 1950 | AB118: 1950 | AC118: 1950 | AD118: 1950 | AE118: 1950 | AF118: 1950 | AG118: 1950 | AH118: 1950 | AI118: 1950 | AJ118: 1950 | AK118: 1950 | AL118: HYD | AM118: 0 | AN118: 0 | AO118: 0 | AP118: 0 | AQ118: 0 | AR118: 0 | AS118: 0 | AT118: 0 | AU118: 0 | AV118: 0 | AW118: 0 | AX118: 0 | AY118: 0 | AZ118: 0 | BA118: 0 | BB118: 0 | BC118: 0 | BD118: 0 | BE118: 0 | BF118: 0 | BG118: 0 | BH118: 0 | BI118: 0 | BJ118: 0 | BK118: 0
A119: SIEEPHYDNUDABe1 | B119: SIE | C119: EPHYDNUDABe1 | D119: SIwEPHYDNUDABe1 | E119: 1 | F119: 0 | G119: 2 | H119: 0 | I119: 50 | J119: 0.09169015822 | K119: 0.6550805647 | L119: 0 | M119: Benkongor1 | N119: 2447 | O119: 2447 | P119: 2447 | Q119: 2447 | R119: 2447 | S119: 2447 | T119: 2447 | U119: 2447 | V119: 2447 | W119: 2447 | X119: 2447 | Y119: 2447 | Z119: 2447 | AA119: 2447 | AB119: 2447 | AC119: 2447 | AD119: 2447 | AE119: 2447 | AF119: 2447 | AG119: 2447 | AH119: 2447 | AI119: 2447 | AJ119: 2447 | AK119: 2447 | AL119: HYD | AM119: 0 | AN119: 0 | AO119: 0 | AP119: 0 | AQ119: 0 | AR119: 0 | AS119: 0 | AT119: 0 | AU119: 0 | AV119: 0 | AW119: 0 | AX119: 0 | AY119: 0 | AZ119: 0 | BA119: 0 | BB119: 0 | BC119: 0 | BD119: 0 | BE119: 0 | BF119: 0 | BG119: 0 | BH119: 0 | BI119: 0 | BJ119: 0 | BK119: 0
A120: SIEEPHYDNUDABe2 | B120: SIE | C120: EPHYDNUDABe2 | D120: SIwEPHYDNUDABe2 | E120: 1 | F120: 0 | G120: 2 | H120: 0 | I120: 50 | J120: 0.09169015822 | K120: 0.4827340183 | L120: 0 | M120: Benkongor2 | N120: 2447 | O120: 2447 | P120: 2447 | Q120: 2447 | R120: 2447 | S120: 2447 | T120: 2447 | U120: 2447 | V120: 2447 | W120: 2447 | X120: 2447 | Y120: 2447 | Z120: 2447 | AA120: 2447 | AB120: 2447 | AC120: 2447 | AD120: 2447 | AE120: 2447 | AF120: 2447 | AG120: 2447 | AH120: 2447 | AI120: 2447 | AJ120: 2447 | AK120: 2447 | AL120: HYD | AM120: 0 | AN120: 0 | AO120: 0 | AP120: 0 | AQ120: 0 | AR120: 0 | AS120: 0 | AT120: 0 | AU120: 0 | AV120: 0 | AW120: 0 | AX120: 0 | AY120: 0 | AZ120: 0 | BA120: 0 | BB120: 0 | BC120: 0 | BD120: 0 | BE120: 0 | BF120: 0 | BG120: 0 | BH120: 0 | BI120: 0 | BJ120: 0 | BK120: 0
A121: SIEEPHYDNUDABe3 | B121: SIE | C121: EPHYDNUDABe3 | D121: SIwEPHYDNUDABe3 | E121: 1 | F121: 0 | G121: 2 | H121: 0 | I121: 50 | J121: 0.09169015822 | K121: 0.5622313012 | L121: 0 | M121: Benkongor3 | N121: 2447 | O121: 2447 | P121: 2447 | Q121: 2447 | R121: 2447 | S121: 2447 | T121: 2447 | U121: 2447 | V121: 2447 | W121: 2447 | X121: 2447 | Y121: 2447 | Z121: 2447 | AA121: 2447 | AB121: 2447 | AC121: 2447 | AD121: 2447 | AE121: 2447 | AF121: 2447 | AG121: 2447 | AH121: 2447 | AI121: 2447 | AJ121: 2447 | AK121: 2447 | AL121: HYD | AM121: 0 | AN121: 0 | AO121: 0 | AP121: 0 | AQ121: 0 | AR121: 0 | AS121: 0 | AT121: 0 | AU121: 0 | AV121: 0 | AW121: 0 | AX121: 0 | AY121: 0 | AZ121: 0 | BA121: 0 | BB121: 0 | BC121: 0 | BD121: 0 | BE121: 0 | BF121: 0 | BG121: 0 | BH121: 0 | BI121: 0 | BJ121: 0 | BK121: 0
A122: SIEEPHYDNUDADAM | B122: SIE | C122: EPHYDNUDADAM | D122: SIwEPHYDNUDADAM | E122: 1 | F122: 0 | G122: 2 | H122: 0 | I122: 50 | J122: 0.09169015822 | K122: 0.5261236915 | L122: 0 | M122: DAMEnvisagée | N122: 2561 | O122: 2561 | P122: 2561 | Q122: 2561 | R122: 2561 | S122: 2561 | T122: 2561 | U122: 2561 | V122: 2561 | W122: 2561 | X122: 2561 | Y122: 2561 | Z122: 2561 | AA122: 2561 | AB122: 2561 | AC122: 2561 | AD122: 2561 | AE122: 2561 | AF122: 2561 | AG122: 2561 | AH122: 2561 | AI122: 2561 | AJ122: 2561 | AK122: 2561 | AL122: HYD | AM122: 0 | AN122: 0 | AO122: 0 | AP122: 0 | AQ122: 0 | AR122: 0 | AS122: 0 | AT122: 0 | AU122: 0 | AV122: 0 | AW122: 0 | AX122: 0 | AY122: 0 | AZ122: 0 | BA122: 0 | BB122: 0 | BC122: 0 | BD122: 0 | BE122: 0 | BF122: 0 | BG122: 0 | BH122: 0 | BI122: 0 | BJ122: 0 | BK122: 0
A123: LIBEPODSNCBus | B123: LIB | C123: EPODSNCBus | D123: LIwEPODSNCBus | E123: 0.3050847458 | F123: 0.874026 | G123: 87.6 | H123: 0 | I123: 30 | J123: 0.09643568023 | K123: 0.801369863 | L123: 0 | M123: Bushrod | N123: 1123.5 | O123: 1123.5 | P123: 1123.5 | Q123: 1123.5 | R123: 1123.5 | S123: 1123.5 | T123: 1123.5 | U123: 1123.5 | V123: 1123.5 | W123: 1123.5 | X123: 1123.5 | Y123: 1123.5 | Z123: 1123.5 | AA123: 1123.5 | AB123: 1123.5 | AC123: 1123.5 | AD123: 1123.5 | AE123: 1123.5 | AF123: 1123.5 | AG123: 1123.5 | AH123: 1123.5 | AI123: 1123.5 | AJ123: 1123.5 | AK123: 1123.5 | AL123: ODSC | AM123: 258.5553019 | AN123: 258.5553019 | AO123: 258.5553019 | AP123: 258.5553019 | AQ123: 258.5553019 | AR123: 258.5553019 | AS123: 258.5553019 | AT123: 258.5553019 | AU123: 258.5553019 | AV123: 258.5553019 | AW123: 258.5553019 | AX123: 258.5553019 | AY123: 258.5553019 | AZ123: 258.5553019 | BA123: 258.5553019 | BB123: 258.5553019 | BC123: 258.5553019 | BD123: 258.5553019 | BE123: 258.5553019 | BF123: 258.5553019 | BG123: 258.5553019 | BH123: 258.5553019 | BI123: 258.5553019 | BJ123: 258.5553019 | BK123: 0
A124: LIBEPOHFNCBu2 | B124: LIB | C124: EPOHFNCBu2 | D124: LIwEPOHFNCBu2 | E124: 0.3789473684 | F124: 0.766365 | G124: 87.6 | H124: 0 | I124: 30 | J124: 0.09643568023 | K124: 0.801369863 | L124: 0 | M124: Bushrod 2 | N124: 1123.5 | O124: 1123.5 | P124: 1123.5 | Q124: 1123.5 | R124: 1123.5 | S124: 1123.5 | T124: 1123.5 | U124: 1123.5 | V124: 1123.5 | W124: 1123.5 | X124: 1123.5 | Y124: 1123.5 | Z124: 1123.5 | AA124: 1123.5 | AB124: 1123.5 | AC124: 1123.5 | AD124: 1123.5 | AE124: 1123.5 | AF124: 1123.5 | AG124: 1123.5 | AH124: 1123.5 | AI124: 1123.5 | AJ124: 1123.5 | AK124: 1123.5 | AL124: OHFC | AM124: 122.6059107 | AN124: 122.6059107 | AO124: 122.6059107 | AP124: 122.6059107 | AQ124: 122.6059107 | AR124: 122.6059107 | AS124: 122.6059107 | AT124: 122.6059107 | AU124: 122.6059107 | AV124: 122.6059107 | AW124: 122.6059107 | AX124: 122.6059107 | AY124: 122.6059107 | AZ124: 122.6059107 | BA124: 122.6059107 | BB124: 122.6059107 | BC124: 122.6059107 | BD124: 122.6059107 | BE124: 122.6059107 | BF124: 122.6059107 | BG124: 122.6059107 | BH124: 122.6059107 | BI124: 122.6059107 | BJ124: 122.6059107 | BK124: 0
A125: LIBEPBIONUKak | B125: LIB | C125: EPBIONUKak | D125: LIwEPBIONUKak | E125: 0.375 | F125: 0 | G125: 0 | H125: 129.6 | I125: 30 | J125: 0.09643568023 | K125: 0.8556 | L125: 0 | M125: Kakata (Buchanan) | N125: 3603.528 | O125: 3603.528 | P125: 3603.528 | Q125: 3603.528 | R125: 3603.528 | S125: 3603.528 | T125: 3603.528 | U125: 3603.528 | V125: 3603.528 | W125: 3603.528 | X125: 3603.528 | Y125: 3603.528 | Z125: 3603.528 | AA125: 3603.528 | AB125: 3603.528 | AC125: 3603.528 | AD125: 3603.528 | AE125: 3603.528 | AF125: 3603.528 | AG125: 3603.528 | AH125: 3603.528 | AI125: 3603.528 | AJ125: 3603.528 | AK125: 3603.528 | AL125: BIO | AM125: 14.30745814 | AN125: 14.30745814 | AO125: 14.30745814 | AP125: 14.30745814 | AQ125: 14.30745814 | AR125: 14.30745814 | AS125: 14.30745814 | AT125: 14.30745814 | AU125: 14.30745814 | AV125: 14.30745814 | AW125: 14.30745814 | AX125: 14.30745814 | AY125: 14.30745814 | AZ125: 14.30745814 | BA125: 14.30745814 | BB125: 14.30745814 | BC125: 14.30745814 | BD125: 14.30745814 | BE125: 14.30745814 | BF125: 14.30745814 | BG125: 14.30745814 | BH125: 14.30745814 | BI125: 14.30745814 | BJ125: 14.30745814 | BK125: 0
... 156 more rows

Sheet OtherParams
C3: CO2Tax | E3: Discount Rate | G3: Transmission line life
B4: 2010 | C4: 0 | E4: 0.1 | G4: 50 | J4: Language | K4: 0 | L4: 0 = English
B5: =B4+1 -> 2011 | C5: 0 | L5: 1 = Français
B6: 2012 | C6: 0
B7: 2013 | C7: 0
B8: 2014 | C8: 0
B9: 2015 | C9: 0
B10: 2016 | C10: 0
B11: 2017 | C11: 0
B12: 2018 | C12: 0
B13: 2019 | C13: 0
B14: 2020 | C14: 0
B15: 2021 | C15: 0
B16: 2022 | C16: 0
B17: 2023 | C17: 0
B18: 2024 | C18: 0
B19: 2025 | C19: 0
B20: 2026 | C20: 0
B21: 2027 | C21: 0
B22: 2028 | C22: 0
B23: 2029 | C23: 0
B24: 2030 | C24: 0
B25: 2031
B26: 2040
B27: 2050 | F27: RE Resource Potential (MW)
F28: Mini Hydro | G28: Solar Conc | H28: Solar PV | I28: Biomass | J28: Wind 25 | K28: Wind 30
B29: 1 | C29: BUR | D29: BUw | E29: Burkina | F29: =[2]NameConvs!K57 -> 140 | G29: =[2]NameConvs!L57 -> 5907.400552 | H29: =[2]NameConvs!M57 -> 2067.590193 | I29: =[2]NameConvs!N57 -> 44189.49604 | J29: =[2]NameConvs!O57 -> 8837.899209 | K29: =[2]NameConvs!P57 -> 475
B30: 2 | C30: CIV | D30: CIw | E30: Cote d'Ivoire | F30: =[2]NameConvs!K58 -> 242.13 | G30: =[2]NameConvs!L58 -> 720.3316695 | H30: =[2]NameConvs!M58 -> 252.1160843 | I30: =[2]NameConvs!N58 -> 58930.53853 | J30: =[2]NameConvs!O58 -> 11786.10771 | K30: =[2]NameConvs!P58 -> 1350
B31: 3 | C31: GAM | D31: GAw | E31: Gambia | F31: =[2]NameConvs!K59 -> 11.68 | G31: =[2]NameConvs!L59 -> 1030.301752 | H31: =[2]NameConvs!M59 -> 360.6056133 | I31: =[2]NameConvs!N59 -> 2707.14611 | J31: =[2]NameConvs!O59 -> 541.429222 | K31: =[2]NameConvs!P59 -> 23.75
B32: 4 | C32: GHA | D32: GHw | E32: Ghana | F32: =[2]NameConvs!K60 -> 1 | G32: =[2]NameConvs!L60 -> 748.2102764 | H32: =[2]NameConvs!M60 -> 261.8735968 | I32: =[2]NameConvs!N60 -> 43631.73429 | J32: =[2]NameConvs!O60 -> 8726.346858 | K32: =[2]NameConvs!P60 -> 1000
B33: 5 | C33: GUI | D33: GUw | E33: Guinea | F33: =[2]NameConvs!K61 -> 346.0195 | G33: =[2]NameConvs!L61 -> 1524.179965 | H33: =[2]NameConvs!M61 -> 533.4629878 | I33: =[2]NameConvs!N61 -> 29703.04725 | J33: =[2]NameConvs!O61 -> 5940.60945 | K33: =[2]NameConvs!P61 -> 656
B34: 6 | C34: GBI | D34: GBw | E34: Guinea-Bissau | F34: =[2]NameConvs!K62 -> 1.7272 | G34: =[2]NameConvs!L62 -> 2953.700276 | H34: =[2]NameConvs!M62 -> 1033.795097 | I34: =[2]NameConvs!N62 -> 8519.251529 | J34: =[2]NameConvs!O62 -> 1703.850306 | K34: =[2]NameConvs!P62 -> 71.25
B35: 7 | C35: LIB | D35: LIw | E35: Liberia | F35: =[2]NameConvs!K63 -> 1000 | G35: =[2]NameConvs!L63 -> 0 | H35: =[2]NameConvs!M63 -> 0 | I35: =[2]NameConvs!N63 -> 3808.499694 | J35: =[2]NameConvs!O63 -> 761.6999387 | K35: =[2]NameConvs!P63 -> 405
B36: 8 | C36: MAL | D36: MAw | E36: Mali | F36: =[2]NameConvs!K64 -> 72.1405 | G36: =[2]NameConvs!L64 -> 11814.8011 | H36: =[2]NameConvs!M64 -> 4135.180386 | I36: =[2]NameConvs!N64 -> 45127.94315 | J36: =[2]NameConvs!O64 -> 9025.588631 | K36: =[2]NameConvs!P64 -> 1031
B37: 9 | C37: NIG | D37: NIw | E37: Niger | F37: =[2]NameConvs!K65 -> 50 | G37: =[2]NameConvs!L65 -> 28797.44059 | H37: =[2]NameConvs!M65 -> 10079.10421 | I37: =[2]NameConvs!N65 -> 89434.84429 | J37: =[2]NameConvs!O65 -> 17886.96886 | K37: =[2]NameConvs!P65 -> 1115
B38: 10 | C38: NGA | D38: NGw | E38: Nigeria | F38: =[2]NameConvs!K66 -> 3500 | G38: =[2]NameConvs!L66 -> 32762.53181 | H38: =[2]NameConvs!M66 -> 11466.88614 | I38: =[2]NameConvs!N66 -> 185252.0396 | J38: =[2]NameConvs!O66 -> 37050.40793 | K38: =[2]NameConvs!P66 -> 10000
B39: 11 | C39: SEN | D39: SEw | E39: Senegal | F39: =[2]NameConvs!K67 -> 104.097 | G39: =[2]NameConvs!L67 -> 5013.20124 | H39: =[2]NameConvs!M67 -> 1754.620434 | I39: =[2]NameConvs!N67 -> 42914.22281 | J39: =[2]NameConvs!O67 -> 8582.844561 | K39: =[2]NameConvs!P67 -> 475
B40: 12 | C40: SIE | D40: SIw | E40: Sierra Leone | F40: =[2]NameConvs!K68 -> 85.438 | G40: =[2]NameConvs!L68 -> 642.7913922 | H40: =[2]NameConvs!M68 -> 224.9769873 | I40: =[2]NameConvs!N68 -> 8555.799823 | J40: =[2]NameConvs!O68 -> 1711.159965 | K40: =[2]NameConvs!P68 -> 66.25
B41: 13 | C41: TBN | D41: TBw | E41: Togo/Benin | F41: =[2]NameConvs!K69 -> 336 | G41: =[2]NameConvs!L69 -> 0 | H41: =[2]NameConvs!M69 -> 0 | I41: =[2]NameConvs!N69 -> 29426.8362 | J41: =[2]NameConvs!O69 -> 5885.367241 | K41: =[2]NameConvs!P69 -> 957
B45: =Single!B10 -> 2010 | C45: =Single!A10 -> 4
B46: =Single!B11 -> 2011 | C46: =Single!A11 -> 5
B47: =Single!B12 -> 2012 | C47: =Single!A12 -> 6
B48: =Single!B13 -> 2013 | C48: =Single!A13 -> 7
B49: =Single!B14 -> 2014 | C49: =Single!A14 -> 8
B50: =Single!B15 -> 2015 | C50: =Single!A15 -> 9
B51: =Single!B16 -> 2016 | C51: =Single!A16 -> 10
B52: =Single!B17 -> 2017 | C52: =Single!A17 -> 11
B53: =Single!B18 -> 2018 | C53: =Single!A18 -> 12
B54: =Single!B19 -> 2019 | C54: =Single!A19 -> 13
B55: =Single!B20 -> 2020 | C55: =Single!A20 -> 14
B56: =Single!B21 -> 2021 | C56: =Single!A21 -> 15
B57: =Single!B22 -> 2022 | C57: =Single!A22 -> 16
B58: =Single!B23 -> 2023 | C58: =Single!A23 -> 17
B59: =Single!B24 -> 2024 | C59: =Single!A24 -> 18
B60: =Single!B25 -> 2025 | C60: =Single!A25 -> 19
B61: =Single!B26 -> 2026 | C61: =Single!A26 -> 20
B62: =Single!B27 -> 2027 | C62: =Single!A27 -> 21
B63: =Single!B28 -> 2028 | C63: =Single!A28 -> 22
B64: =Single!B29 -> 2029 | C64: =Single!A29 -> 23
B65: =Single!B30 -> 2030 | C65: =Single!A30 -> 24
B66: =Single!B31 -> 2031 | C66: =Single!A31 -> 25
B67: =Single!B32 -> 2040 | C67: =Single!A32 -> 26
B68: =Single!B33 -> 2050 | C68: =Single!A33 -> 27

Sheet Single
C1: C | D1: O | E1: G | F1: N | G1: H | H1: B | I1: S | J1: T | K1: W | L1: Total | M1: I | N1: Exp | P1: * | Q1: O | R1: B | S1: H | T1: S | V1: Z | Z1: eps | AA1: 1e-08
B2: RE | C2: 0 | D2: 0 | E2: 0 | F2: 0 | G2: 1 | H2: 1 | I2: 1 | J2: 1 | K2: 1 | Q2: 0 | R2: 1 | S2: 1 | T2: 1
B3: =VLOOKUP($B$4,OtherParams!$B$29:$E$41,4,FALSE) -> Nigeria | I3: Burkina | J3: Cote d'Ivoire | K3: Gambia | L3: Ghana | M3: Guinea | N3: Guinea-Bissau | O3: Liberia | P3: Mali | Q3: Niger | R3: Nigeria | S3: Senegal | T3: Sierra Leone | U3: Togo/Benin
B4: 10 | C4: =VLOOKUP($B$4,OtherParams!$B$29:$E$41,3,FALSE) -> NGw | I4: 1 | J4: 2 | K4: 3 | L4: 4 | M4: 5 | N4: 6 | O4: 7 | P4: 8 | Q4: 9 | R4: 10 | S4: 11 | T4: 12 | U4: 13
C5: Electricity Energy Balance
A6: English | C6: Coal | D6: Oil | E6: Gas | F6: Nuclear | G6: Hydro | H6: Biomass | I6: Solar PV | J6: Solar Thermal | K6: Wind | L6: Total Cent. | M6: Imports | N6: Exports | O6: Net Imports | P6: dom. System dmd | Q6: Dist. Oil | R6: Dist. Biomass | S6: Mini Hydro | T6: Dist.Solar PV | U6: Total Decent | V6: Unserved Energy | W6: Losses (GWh) | X6: Losses (%) | Y6: RE share | Z6: w RE | AA6: W Dom share
A7: French | C7: Charbon | D7: Petrole | E7: Gaz | F7: Nucleaire | G7: Hydro | H7: Biomasse | I7: Solaire PV | J7: Solaire Thermique | K7: Eolienne | L7: Total Cent. | M7: Imports | N7: Exports | O7: Imports Net | P7: dom. System dmd | Q7: Dist. Petrole | R7: Dist. Biomasse | S7: Mini Hydro | T7: Dist. Solaire PV | U7: Total Decent | V7: non desservie | W7: Pertes (GWh) | X7: Pertes (%) | Y7: RE share | Z7: w RE | AA7: W Dom share | AN7: 1000
C8: Cent. | D8: =C4&"SecElcOut" -> NGwSecElcOut | E8: =SUMIF(INDIRECT("Raw"&$C$4&"!$A$12:$A$540"),D8,INDIRECT("Raw"&$C$4&"!$B$12:$B$540")) -> 280 | F8: 1 | M8: =C4&"FinaleElc" -> NGwFinaleElc | N8: =SUMIF(INDIRECT("Raw"&$C$4&"!$A$12:$A$550"),M8,INDIRECT("Raw"&$C$4&"!$B$12:$B$550")) -> 478 | O8: 3 | Q8: Decent. | R8: =$C$4&"TerElcOut" -> NGwTerElcOut | S8: =SUMIF(INDIRECT("Raw"&$C$4&"!$A$12:$A$540"),R8,INDIRECT("Raw"&$C$4&"!$B$12:$B$540")) -> 313 | T8: 2 | AM8: Summary years
A9: GWh | C9: =OFFSET(C$6,lang,0) -> Coal | D9: Oil | E9: Gas | F9: Nuclear | G9: Hydro | H9: Biomass | I9: Solar PV | J9: Solar Thermal | K9: Wind | L9: Total Cent. | M9: Imports | N9: Exports | O9: Net Imports | P9: dom. System dmd | Q9: Dist. Oil | R9: Dist. Biomass | S9: Mini Hydro | T9: Dist.Solar PV | U9: Total Decent | V9: Unserved Energy | W9: Losses (GWh) | X9: Losses (%) | Y9: RE share | Z9: w RE | AA9: W Dom share | AN9: =C9 -> Coal | AO9: =D9 -> Oil | AP9: Gas | AQ9: Nuclear | AR9: Hydro | AS9: Biomass | AT9: Solar PV | AU9: =J9 -> Solar Thermal | AV9: =K9 -> Wind | AW9: =O9 -> Net Imports | AX9: =Q9 -> Dist. Oil | AY9: =R9 -> Dist. Biomass | AZ9: =S9 -> Mini Hydro | BA9: =T9 -> Dist.Solar PV
A10: 4 | B10: =OFFSET(INDIRECT("Raw"&$C$4&"!$C$1"),$E$8+A10,0) -> 2010 | C10: =SUMIF(OFFSET(INDIRECT("Raw"&$C$4&"!$C$1"),$F$8,1,1,50),C$1,OFFSET(INDIRECT("Raw"&$C$4&"!$C$1"),$E$8+$A10,1,1,50))*8.76 -> 0 | D10: 0 | E10: 21069.4644 | F10: 0 | G10: 4635.4416 | H10: 0 | I10: 0 | J10: 0 | K10: 0 | L10: =SUM(C10:K10) -> 25704.906 | M10: =SUMIF(TransRaw!$DD$8:$DQ$8,$C$4,TransRaw!$DD9:$DQ9)*8.76 -> 0 | N10: =SUMIF(TransRaw!$DD$8:$DQ$8,$C$4,TransRaw!$DD36:$DQ36)*8.76 -> 2607.3264 | O10: =M10-N10 -> -2607.3264 | P10: =SUMIF(OFFSET(INDIRECT("Raw"&$C$4&"!$C$1"),$O$8,1,1,50),P$1,OFFSET(INDIRECT("Raw"&$C$4&"!$C$1"),$N$8+$A10,1,1,50))*8.76 -> 19518.156 | Q10: =SUMIF(OFFSET(INDIRECT("Raw"&$C$4&"!$C$1"),$T$8,1,1,50),Q$1,OFFSET(INDIRECT("Raw"&$C$4&"!$C$1"),$S$8+$A10,1,1,50))*8.76 -> 64.824 | R10: 0 | S10: 0 | T10: 0 | U10: =SUM(Q10:T10) -> 64.824 | V10: =SUMIF(OFFSET(INDIRECT("Raw"&$C$4&"!$C$1"),$F$8,1,1,50),V$1,OFFSET(INDIRECT("Raw"&$C$4&"!$C$1"),$E$8+$A10,1,1,50))*8.76 -> 0 | W10: =U10+L10+O10-P10 -> 3644.2476 | X10: =W10/(L10+O10) -> 0.157776168 | Y10: =SUMPRODUCT($C$2:$T$2,C10:T10)/(L10+U10) -> 0.1798793235 | Z10: =(SUMPRODUCT($C$2:$K$2,C10:K10)*(1-X10)+SUMPRODUCT($Q$2:$T$2,Q10:T10))/P10 -> 0.2000229626 | AA10: =(L10*(1-X10)+U10)/P10 -> 1.112508191 | AM10: 2010 | AN10: =SUMIF($B$10:$B$33,$AM10,C$10:C$33) -> 0 | AO10: =SUMIF($B$10:$B$33,$AM10,D$10:D$33) -> 0 | AP10: 21069.4644 | AQ10: 0 | AR10: 4635.4416 | AS10: 0 | AT10: 0 | AU10: 0 | AV10: 0 | AW10: =SUMIF($B$10:$B$33,$AM10,O$10:O$33) -> -2607.3264 | AX10: =SUMIF($B$10:$B$33,$AM10,Q$10:Q$33) -> 64.824 | AY10: 0 | AZ10: 0 | BA10: 0
A11: =A10+1 -> 5 | B11: 2011 | C11: 0 | D11: 0 | E11: 39642.504 | F11: 0 | G11: 4635.4416 | H11: 0 | I11: 0 | J11: 0 | K11: 0 | L11: =SUM(C11:K11) -> 44277.9456 | M11: =SUMIF(TransRaw!$DD$8:$DQ$8,$C$4,TransRaw!$DD10:$DQ10)*8.76 -> 0 | N11: =SUMIF(TransRaw!$DD$8:$DQ$8,$C$4,TransRaw!$DD37:$DQ37)*8.76 -> 5719.404 | O11: -5719.404 | P11: 33095.28 | Q11: 451.2276 | R11: 0 | S11: 0 | T11: 0 | U11: =SUM(Q11:T11) -> 451.2276 | V11: =SUMIF(OFFSET(INDIRECT("Raw"&$C$4&"!$C$1"),$F$8,1,1,50),V$1,OFFSET(INDIRECT("Raw"&$C$4&"!$C$1"),$E$8+$A11,1,1,50))*8.76 -> 0 | W11: =U11+L11+O11-P11 -> 5914.4892 | X11: =W11/(L11+O11) -> 0.1533898575 | Y11: 0.1036335185 | Z11: 0.1185792014 | AA11: =(L11*(1-X11)+U11)/P11 -> 1.146308037 | AM11: 2020 | AN11: =SUMIF($B$10:$B$33,$AM11,C$10:C$33) -> 0 | AO11: 0 | AP11: 70886.9712 | AQ11: 0 | AR11: 19833.078 | AS11: 0 | AT11: 0 | AU11: 0 | AV11: 0 | AW11: =SUMIF($B$10:$B$33,$AM11,O$10:O$33) -> -3649.0656 | AX11: 822.564 | AY11: 0 | AZ11: 2908.6704 | BA11: 0
A12: =A11+1 -> 6 | B12: 2012 | C12: 0 | D12: 0 | E12: 58634.0088 | F12: 0 | G12: 4635.4416 | H12: 0 | I12: 0 | J12: 0 | K12: 0 | L12: 63269.4504 | M12: =SUMIF(TransRaw!$DD$8:$DQ$8,$C$4,TransRaw!$DD11:$DQ11)*8.76 -> 0 | N12: =SUMIF(TransRaw!$DD$8:$DQ$8,$C$4,TransRaw!$DD38:$DQ38)*8.76 -> 6035.202 | O12: -6035.202 | P12: 49395.888 | Q12: 686.784 | R12: 0 | S12: 0 | T12: 0 | U12: 686.784 | V12: 0 | W12: 8525.1444 | X12: 0.1489518014 | Y12: 0.07247833841 | Z12: 0.07986462807 | AA12: 1.103981283 | AM12: 2030 | AN12: 0 | AO12: 0 | AP12: 99816.9588 | AQ12: 0 | AR12: 45404.394 | AS12: 0 | AT12: 0 | AU12: 0 | AV12: 0 | AW12: =SUMIF($B$10:$B$33,$AM12,O$10:O$33) -> -7215.9624 | AX12: 1308.3936 | AY12: 0 | AZ12: 9639.7668 | BA12: 0
A13: 7 | B13: 2013 | C13: 0 | D13: 0 | E13: 62633.8248 | F13: 0 | G13: 4635.4416 | H13: 0 | I13: 0 | J13: 0 | K13: 0 | L13: 67269.2664 | M13: =SUMIF(TransRaw!$DD$8:$DQ$8,$C$4,TransRaw!$DD12:$DQ12)*8.76 -> 0 | N13: =SUMIF(TransRaw!$DD$8:$DQ$8,$C$4,TransRaw!$DD39:$DQ39)*8.76 -> 6884.484 | O13: -6884.484 | P13: 52418.088 | Q13: 761.5068 | R13: 0 | S13: 0 | T13: 0 | U13: 761.5068 | V13: 0 | W13: 8728.2012 | X13: 0.1445430596 | Y13: 0.06813742343 | Z13: 0.0756498537 | AA13: 1.112353957 | AM13: 2040 | AN13: 0 | AO13: 0 | AP13: 168853.2048 | AQ13: 0 | AR13: 45404.394 | AS13: 0 | AT13: 0 | AU13: 0 | AV13: 0 | AW13: =SUMIF($B$10:$B$33,$AM13,O$10:O$33) -> -6593.8272 | AX13: 1965.8316 | AY13: 0 | AZ13: 13692.5808 | BA13: 0
A14: 8 | B14: 2014 | C14: 0 | D14: 0 | E14: 63159.5124 | F14: 0 | G14: 4635.4416 | H14: 0 | I14: 0 | J14: 0 | K14: 0 | L14: 67794.954 | M14: =SUMIF(TransRaw!$DD$8:$DQ$8,$C$4,TransRaw!$DD13:$DQ13)*8.76 -> 0 | N14: =SUMIF(TransRaw!$DD$8:$DQ$8,$C$4,TransRaw!$DD40:$DQ40)*8.76 -> 4953.6048 | O14: -4953.6048 | P14: 55796.82 | Q14: 691.0764 | R14: 0 | S14: 909.4632 | T14: 0 | U14: 1600.5396 | V14: 0 | W14: 8645.0688 | X14: 0.1375697516 | Y14: 0.07990295208 | Z14: 0.08794781227 | AA14: 1.076565987 | AM14: 2050 | AN14: 0 | AO14: 0 | AP14: 254209.5936 | AQ14: 0 | AR14: 45404.394 | AS14: 25083.5592 | AT14: 0 | AU14: 0 | AV14: 0 | AW14: =SUMIF($B$10:$B$33,$AM14,O$10:O$33) -> -6869.6796 | AX14: 2944.236 | AY14: 0 | AZ14: 15330 | BA14: 0
A15: 9 | B15: 2015 | C15: 0 | D15: 0 | E15: 60971.0016 | F15: 0 | G15: 4635.4416 | H15: 0 | I15: 0 | J15: 0 | K15: 0 | L15: 65606.4432 | M15: =SUMIF(TransRaw!$DD$8:$DQ$8,$C$4,TransRaw!$DD14:$DQ14)*8.76 -> 1751.6496 | N15: =SUMIF(TransRaw!$DD$8:$DQ$8,$C$4,TransRaw!$DD41:$DQ41)*8.76 -> 844.2012 | O15: 907.4484 | P15: 59391.924 | Q15: 702.3768 | R15: 0 | S15: 1051.3752 | T15: 0 | U15: 1753.752 | V15: 0 | W15: 8875.7196 | X15: 0.1334415922 | Y15: 0.08442399526 | Z15: 0.08533577886 | AA15: 0.9867598659
A16: 10 | B16: 2016 | C16: 0 | D16: 0 | E16: 62360.25 | F16: 0 | G16: 4635.4416 | H16: 0 | I16: 0 | J16: 0 | K16: 0 | L16: 66995.6916 | M16: =SUMIF(TransRaw!$DD$8:$DQ$8,$C$4,TransRaw!$DD15:$DQ15)*8.76 -> 3911.4276 | N16: =SUMIF(TransRaw!$DD$8:$DQ$8,$C$4,TransRaw!$DD42:$DQ42)*8.76 -> 822.0384 | O16: 3089.3892 | P16: 63132.444 | Q16: 719.8968 | R16: 0 | S16: 1431.5592 | T16: 0 | U16: 2151.456 | V16: 0 | W16: 9104.0928 | X16: 0.1299005822 | Y16: 0.08774043486 | Z16: 0.08656174054 | AA16: 0.9574216429
A17: 11 | B17: 2017 | C17: 0 | D17: 0 | E17: 55599.3696 | F17: 0 | G17: 13160.4984 | H17: 0 | I17: 0 | J17: 0 | K17: 0 | L17: 68759.868 | M17: =SUMIF(TransRaw!$DD$8:$DQ$8,$C$4,TransRaw!$DD16:$DQ16)*8.76 -> 6000.9504 | N17: =SUMIF(TransRaw!$DD$8:$DQ$8,$C$4,TransRaw!$DD43:$DQ43)*8.76 -> 889.6656 | O17: 5111.2848 | P17: 67100.724 | Q17: 744.0744 | R17: 0 | S17: 1830.5772 | T17: 0 | U17: 2574.6516 | V17: 0 | W17: 9345.0804 | X17: 0.1265051383 | Y17: 0.2101517706 | Z17: 0.198600017 | AA17: 0.933462998
A18: 12 | B18: 2018 | C18: 0 | D18: 0 | E18: 57383.256 | F18: 0 | G18: 15455.706 | H18: 0 | I18: 0 | J18: 0 | K18: 0 | L18: 72838.962 | M18: =SUMIF(TransRaw!$DD$8:$DQ$8,$C$4,TransRaw!$DD17:$DQ17)*8.76 -> 5849.1396 | N18: =SUMIF(TransRaw!$DD$8:$DQ$8,$C$4,TransRaw!$DD44:$DQ44)*8.76 -> 610.8348 | O18: 5238.3048 | P18: 71322.168 | Q18: 769.8288 | R18: 0 | S18: 2122.548 | T18: 0 | U18: 2892.3768 | V18: 0 | W18: 9647.4756 | X18: 0.1235631829 | Y18: 0.2321133401 | Z18: 0.219686224 | AA18: 0.935629506
A19: 13 | B19: 2019 | C19: 0 | D19: 0 | E19: 66320.5584 | F19: 0 | G19: 15455.706 | H19: 0 | I19: 0 | J19: 0 | K19: 0 | L19: 81776.2644 | M19: =SUMIF(TransRaw!$DD$8:$DQ$8,$C$4,TransRaw!$DD18:$DQ18)*8.76 -> 1353.6828 | N19: =SUMIF(TransRaw!$DD$8:$DQ$8,$C$4,TransRaw!$DD45:$DQ45)*8.76 -> 680.652 | O19: 673.0308 | P19: 75798.528 | Q19: 796.0212 | R19: 0 | S19: 2494.7604 | T19: 0 | U19: 3290.7816 | V19: 0 | W19: 9941.5488 | X19: 0.1205777293 | Y19: 0.2110155136 | Z19: 0.2122317265 | AA19: 0.9921914279
A20: 14 | B20: 2020 | C20: =SUMIF(OFFSET(INDIRECT("Raw"&$C$4&"!$C$1"),$F$8,1,1,50),C$1,OFFSET(INDIRECT("Raw"&$C$4&"!$C$1"),$E$8+$A20,1,1,50))*8.76 -> 0 | D20: 0 | E20: 70886.9712 | F20: 0 | G20: 19833.078 | H20: 0 | I20: 0 | J20: 0 | K20: 0 | L20: 90720.0492 | M20: =SUMIF(TransRaw!$DD$8:$DQ$8,$C$4,TransRaw!$DD19:$DQ19)*8.76 -> 0 | N20: =SUMIF(TransRaw!$DD$8:$DQ$8,$C$4,TransRaw!$DD46:$DQ46)*8.76 -> 3649.0656 | O20: -3649.0656 | P20: 80557.836 | Q20: 822.564 | R20: 0 | S20: 2908.6704 | T20: 0 | U20: 3731.2344 | V20: 0 | W20: 10244.382 | X20: 0.1176555217 | Y20: 0.2407775473 | Z20: 0.2533369598 | AA20: 1.039967966
A21: 15 | B21: 2021 | C21: 0 | D21: 0 | E21: 73637.6112 | F21: 0 | G21: 24210.45 | H21: 0 | I21: 0 | J21: 0 | K21: 0 | L21: 97848.0612 | M21: =SUMIF(TransRaw!$DD$8:$DQ$8,$C$4,TransRaw!$DD20:$DQ20)*8.76 -> 0 | N21: =SUMIF(TransRaw!$DD$8:$DQ$8,$C$4,TransRaw!$DD47:$DQ47)*8.76 -> 4682.1324 | O21: -4682.1324 | P21: 86741.52 | Q21: 880.9932 | R21: 0 | S21: 3438.5628 | T21: 0 | U21: 4319.556 | V21: 0 | W21: 10743.9648 | X21: 0.1153207502 | Y21: 0.2706240349 | Z21: 0.2865645604 | AA21: 1.047753203
A22: 16 | B22: 2022 | C22: 0 | D22: 0 | E22: 74781.5796 | F22: 0 | G22: 28587.822 | H22: 0 | I22: 0 | J22: 0 | K22: 0 | L22: 103369.4016 | M22: =SUMIF(TransRaw!$DD$8:$DQ$8,$C$4,TransRaw!$DD21:$DQ21)*8.76 -> 0 | N22: =SUMIF(TransRaw!$DD$8:$DQ$8,$C$4,TransRaw!$DD48:$DQ48)*8.76 -> 5094.6408 | O22: -5094.6408 | P22: 92075.484 | Q22: 930.1368 | R22: 0 | S22: 3974.3244 | T22: 0 | U22: 4904.4612 | V22: 0 | W22: 11103.738 | X22: 0.1129866703 | Y22: 0.3007387523 | Z22: 0.3185658365 | AA22: =(L22*(1-X22)+U22)/P22 -> 1.049079452
A23: 17 | B23: 2023 | C23: 0 | D23: 0 | E23: 76104.69 | F23: 0 | G23: 32965.194 | H23: 0 | I23: 0 | J23: 0 | K23: 0 | L23: 109069.884 | M23: =SUMIF(TransRaw!$DD$8:$DQ$8,$C$4,TransRaw!$DD22:$DQ22)*8.76 -> 0 | N23: =SUMIF(TransRaw!$DD$8:$DQ$8,$C$4,TransRaw!$DD49:$DQ49)*8.76 -> 5410.2636 | O23: -5410.2636 | P23: 97732.692 | Q23: 981.9084 | R23: 0 | S23: 4561.1568 | T23: 0 | U23: 5543.0652 | V23: 0 | W23: 11469.9936 | X23: 0.110650546 | Y23: 0.3274180715 | Z23: 0.3466468936 | AA23: 1.0492324
A24: 18 | B24: 2024 | C24: 0 | D24: 0 | E24: 78766.3284 | F24: 0 | G24: 37342.566 | H24: 0 | I24: 0 | J24: 0 | K24: 0 | L24: 116108.8944 | M24: =SUMIF(TransRaw!$DD$8:$DQ$8,$C$4,TransRaw!$DD23:$DQ23)*8.76 -> 0 | N24: =SUMIF(TransRaw!$DD$8:$DQ$8,$C$4,TransRaw!$DD50:$DQ50)*8.76 -> 6768.7644 | O24: -6768.7644 | P24: 103738.548 | Q24: 1036.5708 | R24: 0 | S24: 5204.9292 | T24: 0 | U24: 6241.5 | V24: 0 | W24: 11843.082 | X24: 0.1083141386 | Y24: 0.3477511896 | Z24: 0.3711519784 | AA24: 1.058180991
A25: 19 | B25: 2025 | C25: 0 | D25: 0 | E25: 80712.7128 | F25: 0 | G25: 41719.938 | H25: 0 | I25: 0 | J25: 0 | K25: 0 | L25: 122432.6508 | M25: =SUMIF(TransRaw!$DD$8:$DQ$8,$C$4,TransRaw!$DD24:$DQ24)*8.76 -> 0 | N25: =SUMIF(TransRaw!$DD$8:$DQ$8,$C$4,TransRaw!$DD51:$DQ51)*8.76 -> 7104.36 | O25: -7104.36 | P25: 110107.944 | Q25: 1094.124 | R25: 0 | S25: 5907.8316 | T25: 0 | U25: 7001.9556 | V25: 0 | W25: 12222.3024 | X25: 0.1059783538 | Y25: 0.3679678173 | Z25: 0.3924000184 | AA25: 1.057683864
A26: 20 | B26: 2026 | C26: 0 | D26: 0 | E26: 82755.8952 | F26: 0 | G26: 45404.394 | H26: 0 | I26: 0 | J26: 0 | K26: 0 | L26: 128160.2892 | M26: =SUMIF(TransRaw!$DD$8:$DQ$8,$C$4,TransRaw!$DD25:$DQ25)*8.76 -> 0 | N26: =SUMIF(TransRaw!$DD$8:$DQ$8,$C$4,TransRaw!$DD52:$DQ52)*8.76 -> 7216.2252 | O26: -7216.2252 | P26: 116196.144 | Q26: 1148.0856 | R26: 0 | S26: 6638.4156 | T26: 0 | U26: 7786.5012 | V26: 0 | W26: 12534.4212 | X26: 0.1036381678 | Y26: 0.3828174939 | Z26: 0.4073902951 | AA26: 1.0556675
A27: 21 | B27: 2027 | C27: 0 | D27: 0 | E27: 88312.8012 | F27: 0 | G27: 45404.394 | H27: 0 | I27: 0 | J27: 0 | K27: 0 | L27: 133717.1952 | M27: =SUMIF(TransRaw!$DD$8:$DQ$8,$C$4,TransRaw!$DD26:$DQ26)*8.76 -> 0 | N27: =SUMIF(TransRaw!$DD$8:$DQ$8,$C$4,TransRaw!$DD53:$DQ53)*8.76 -> 7252.0536 | O27: -7252.0536 | P27: 122263.32 | Q27: 1201.2588 | R27: 0 | S27: 7407.7188 | T27: 0 | U27: 8608.9776 | V27: 0 | W27: 12810.7992 | X27: 0.1012990539 | Y27: 0.3710639566 | Z27: 0.394334872 | AA27: 1.053306482
A28: 22 | B28: 2028 | C28: 0 | D28: 0 | E28: 93686.3604 | F28: 0 | G28: 45404.394 | H28: 0 | I28: 0 | J28: 0 | K28: 0 | L28: 139090.7544 | M28: =SUMIF(TransRaw!$DD$8:$DQ$8,$C$4,TransRaw!$DD27:$DQ27)*8.76 -> 0 | N28: =SUMIF(TransRaw!$DD$8:$DQ$8,$C$4,TransRaw!$DD54:$DQ54)*8.76 -> 7238.1252 | O28: -7238.1252 | P28: 128272.68 | Q28: 1253.118 | R28: 0 | S28: 8215.0404 | T28: 0 | U28: 9468.1584 | V28: 0 | W28: 13048.1076 | X28: 0.0989597832 | Y28: 0.3609304443 | Z28: 0.3829827631 | AA28: 1.050843577
A29: 23 | B29: 2029 | C29: 0 | D29: 0 | E29: 98899.6992 | F29: 0 | G29: 45404.394 | H29: 0 | I29: 0 | J29: 0 | K29: 0 | L29: 144304.0932 | M29: =SUMIF(TransRaw!$DD$8:$DQ$8,$C$4,TransRaw!$DD28:$DQ28)*8.76 -> 0 | N29: =SUMIF(TransRaw!$DD$8:$DQ$8,$C$4,TransRaw!$DD55:$DQ55)*8.76 -> 7223.7588 | O29: -7223.7588 | P29: 134183.052 | Q29: 1290.0852 | R29: 0 | S29: 9058.8036 | T29: 0 | U29: 10348.8888 | V29: 0 | W29: 13246.1712 | X29: 0.09663071846 | Y29: 0.352163902 | Z29: 0.3731897407 | AA29: 1.048632981
A30: 24 | B30: 2030 | C30: 0 | D30: 0 | E30: 99816.9588 | F30: 0 | G30: 45404.394 | H30: 0 | I30: 0 | J30: 0 | K30: 0 | L30: 145221.3528 | M30: =SUMIF(TransRaw!$DD$8:$DQ$8,$C$4,TransRaw!$DD29:$DQ29)*8.76 -> 0 | N30: =SUMIF(TransRaw!$DD$8:$DQ$8,$C$4,TransRaw!$DD56:$DQ56)*8.76 -> 7215.9624 | O30: -7215.9624 | P30: 135942.936 | Q30: 1308.3936 | R30: 0 | S30: 9639.7668 | T30: 0 | U30: 10948.1604 | V30: 0 | W30: 13010.6148 | X30: 0.09427613488 | Y30: 0.3524641889 | Z30: 0.3734185205 | AA30: 1.048076565
A31: 25 | B31: 2031 | C31: 0 | D31: 0 | E31: 105436.236 | F31: 0 | G31: 45404.394 | H31: 0 | I31: 0 | J31: 0 | K31: 0 | L31: 150840.63 | M31: =SUMIF(TransRaw!$DD$8:$DQ$8,$C$4,TransRaw!$DD30:$DQ30)*8.76 -> 0 | N31: =SUMIF(TransRaw!$DD$8:$DQ$8,$C$4,TransRaw!$DD57:$DQ57)*8.76 -> 7150.8756 | O31: =M31-N31 -> -7150.8756 | P31: 141547.584 | Q31: 1366.6476 | R31: 0 | S31: 10037.5584 | T31: 0 | U31: 11404.206 | V31: 0 | W31: 13546.3764 | X31: 0.09427517262 | Y31: 0.3417178245 | Z31: 0.3614434374 | AA31: =(L31*(1-X31)+U31)/P31 -> 1.045756525
A32: 26 | B32: 2040 | C32: 0 | D32: 0 | E32: 168853.2048 | F32: 0 | G32: 45404.394 | H32: 0 | I32: 0 | J32: 0 | K32: 0 | L32: 214257.5988 | M32: =SUMIF(TransRaw!$DD$8:$DQ$8,$C$4,TransRaw!$DD31:$DQ31)*8.76 -> 0 | N32: =SUMIF(TransRaw!$DD$8:$DQ$8,$C$4,TransRaw!$DD58:$DQ58)*8.76 -> 6593.8272 | O32: -6593.8272 | P32: 203601.672 | Q32: 1965.8316 | R32: 0 | S32: 13692.5808 | T32: 0 | U32: 15658.4124 | V32: 0 | W32: 19720.512 | X32: 0.09496366096 | Y32: 0.2570372306 | Z32: 0.269080341 | AA32: 1.029310433
A33: 27 | B33: 2050 | C33: 0 | D33: 0 | E33: 254209.5936 | F33: 0 | G33: 45404.394 | H33: 25083.5592 | I33: 0 | J33: 0 | K33: 0 | L33: 324697.5468 | M33: =SUMIF(TransRaw!$DD$8:$DQ$8,$C$4,TransRaw!$DD32:$DQ32)*8.76 -> 0 | N33: =SUMIF(TransRaw!$DD$8:$DQ$8,$C$4,TransRaw!$DD59:$DQ59)*8.76 -> 6869.6796 | O33: -6869.6796 | P33: 304932.096 | Q33: 2944.236 | R33: 0 | S33: 15330 | T33: 0 | U33: 18274.236 | V33: 0 | W33: 31170.0072 | X33: 0.09807197674 | Y33: 0.2502186987 | Z33: 0.2587627256 | AA33: 1.020319135
V35: =S10+G10 -> 4635.4416 | W35: =U10+L10 -> 25769.73 | X35: =V35/W35 -> 0.1798793235
C36: Capacity Balance | V36: =S30+G30+13583 -> 68627.1608 | W36: =U30+L30+13583-21023 -> 148729.5132 | X36: =V36/W36 -> 0.4614226143
A37: English | C37: Coal | D37: Oil | E37: Gas | F37: Nuclear | G37: Hydro | H37: Biomass | I37: Solar PV | J37: Solar Thermal | K37: Wind | L37: Total Cent. Cap | M37: Imports Cap | N37: Exports Cap | O37: Sytem peak | P37: Reserve Margin | Q37: Oil | R37: Biomass | S37: Mini Hydro | T37: Dist.Solar PV | U37: Total Decent | V37: Backstop
A38: French | C38: Charbon | D38: Petrole | E38: Gaz | F38: Nucleaire | G38: Hydro | H38: Biomasse | I38: Solaire PV | J38: Solaire Thermique | K38: Eolienne | L38: Total Cent. Cap | M38: Imports Cap | N38: Exports Cap | O38: Pointe | P38: Marge de reserve | Q38: Petrole | R38: Biomasse | S38: Mini Hydro | T38: Dist. Solaire PV | U38: Total Decent | V38: Backstop
C39: Cent. | D39: =$C$4&"SecTotCap" -> NGwSecTotCap | E39: =SUMIF(INDIRECT("Raw"&$C$4&"!$A$12:$A$540"),D39,INDIRECT("Raw"&$C$4&"!$B$12:$B$540")) -> 346 | F39: 1 | N39: =$C$4&"TerTotCap" -> NGwTerTotCap | O39: =SUMIF(INDIRECT("Raw"&$C$4&"!$A$12:$A$540"),N39,INDIRECT("Raw"&$C$4&"!$B$12:$B$540")) -> 379 | P39: 2 | Q39: Decent.
A40: MW | C40: =OFFSET(C$37,lang,0) -> Coal | D40: Oil | E40: Gas | F40: Nuclear | G40: Hydro | H40: =OFFSET(H$6,lang,0) -> Biomass | I40: Solar PV | J40: Solar Thermal | K40: Wind | L40: Total Cent. Cap | M40: Imports Cap | N40: Exports Cap | O40: Sytem peak | P40: Reserve Margin | Q40: Oil | R40: Biomass | S40: Mini Hydro | T40: Dist.Solar PV | U40: Total Decent | V40: Backstop
A41: 4 | B41: =OFFSET(INDIRECT("Raw"&$C$4&"!$C$1"),$E$39+A41,0) -> 2010 | C41: =SUMIF(OFFSET(INDIRECT("Raw"&$C$4&"!$C$1"),$F$39,1,1,50),C$1,OFFSET(INDIRECT("Raw"&$C$4&"!$C$1"),$E$39+$A41,1,1,50)) -> 0 | D41: 0 | E41: 3697.8 | F41: 0 | G41: 1358.3 | H41: 0 | I41: 0 | J41: 0 | K41: 0 | L41: =SUM(C41:K41) -> 5056.1 | M41: =SUMIF(TransRaw!$DD$8:$DQ$8,$C$4,TransRaw!$DD63:$DQ63) -> 855.2 | N41: =M41 -> 855.2 | O41: =OFFSET(INDIRECT("Raw"&$C$4&"!$C$1"),$O$39+$A41,1)/(1-X10) -> 4857.117366 | P41: =L41/O41-1 -> 0.04096722797 | Q41: =SUMIF(OFFSET(INDIRECT("Raw"&$C$4&"!$C$1"),$P$39,1,1,50),Q$1,OFFSET(INDIRECT("Raw"&$C$4&"!$C$1"),$O$39+$A41,1,1,50)) -> 184.68 | R41: 0 | S41: 0 | T41: 0 | U41: =SUM(Q41:T41) -> 184.68 | V41: =SUMIF(OFFSET(INDIRECT("Raw"&$C$4&"!$C$1"),$P$39,1,1,50),V$1,OFFSET(INDIRECT("Raw"&$C$4&"!$C$1"),$O$39+$A41,1,1,50)) -> 0
A42: =A41+1 -> 5 | B42: 2011 | C42: 0 | D42: 0 | E42: 6650.8 | F42: 0 | G42: 1358.3 | H42: 0 | I42: 0 | J42: 0 | K42: 0 | L42: =SUM(C42:K42) -> 8009.1 | M42: =SUMIF(TransRaw!$DD$8:$DQ$8,$C$4,TransRaw!$DD64:$DQ64) -> 855.2 | N42: =M42 -> 855.2 | O42: 6874.994413 | P42: =L42/O42-1 -> 0.1649609467 | Q42: 1284.81 | R42: 0 | S42: 0 | T42: 0 | U42: =SUM(Q42:T42) -> 1284.81 | V42: 0
A43: =A42+1 -> 6 | B43: 2012 | C43: 0 | D43: 0 | E43: 10776.8 | F43: 0 | G43: 1358.3 | H43: 0 | I43: 0 | J43: 0 | K43: 0 | L43: 12135.1 | M43: =SUMIF(TransRaw!$DD$8:$DQ$8,$C$4,TransRaw!$DD65:$DQ65) -> 855.2 | N43: 855.2 | O43: 10035.54207 | P43: 0.2092122096 | Q43: 1871.45 | R43: 0 | S43: 0 | T43: 0 | U43: 1871.45 | V43: 0
A44: 7 | B44: 2013 | C44: 0 | D44: 0 | E44: 11985.3 | F44: 0 | G44: 1358.3 | H44: 0 | I44: 0 | J44: 0 | K44: 0 | L44: 13343.6 | M44: =SUMIF(TransRaw!$DD$8:$DQ$8,$C$4,TransRaw!$DD66:$DQ66) -> 855.2 | N44: 855.2 | O44: 10406.13452 | P44: 0.2822820973 | Q44: 1944.73 | R44: 0 | S44: 0 | T44: 0 | U44: 1944.73 | V44: 0
A45: 8 | B45: 2014 | C45: 0 | D45: 0 | E45: 11786.2 | F45: 0 | G45: 1358.3 | H45: 0 | I45: 0 | J45: 0 | K45: 0 | L45: 13144.5 | M45: =SUMIF(TransRaw!$DD$8:$DQ$8,$C$4,TransRaw!$DD67:$DQ67) -> 855.2 | N45: 855.2 | O45: 10721.41198 | P45: 0.2260045617 | Q45: 1974.63 | R45: 0 | S45: 214.54 | T45: 0 | U45: 2189.17 | V45: 0
A46: 9 | B46: 2015 | C46: 0 | D46: 0 | E46: 13286.2 | F46: 0 | G46: 1358.3 | H46: 0 | I46: 0 | J46: 0 | K46: 0 | L46: 14644.5 | M46: =SUMIF(TransRaw!$DD$8:$DQ$8,$C$4,TransRaw!$DD68:$DQ68) -> 855.2 | N46: 855.2 | O46: 11192.19422 | P46: 0.308456565 | Q46: 2001.94 | R46: 0 | S46: 247.97 | T46: 0 | U46: 2249.91 | V46: 0
A47: 10 | B47: 2016 | C47: 0 | D47: 0 | E47: 14886.2 | F47: 0 | G47: 1358.3 | H47: 0 | I47: 0 | J47: 0 | K47: 0 | L47: 16244.5 | M47: =SUMIF(TransRaw!$DD$8:$DQ$8,$C$4,TransRaw!$DD69:$DQ69) -> 855.2 | N47: 855.2 | O47: 11701.97312 | P47: 0.388184696 | Q47: 2048.14 | R47: 0 | S47: 369.43 | T47: 0 | U47: 2417.57 | V47: 0
A48: 11 | B48: 2017 | C48: 0 | D48: 0 | E48: 16586.2 | F48: 0 | G48: 3958.3 | H48: 0 | I48: 0 | J48: 0 | K48: 0 | L48: 20544.5 | M48: =SUMIF(TransRaw!$DD$8:$DQ$8,$C$4,TransRaw!$DD70:$DQ70) -> 855.2 | N48: 855.2 | O48: 12202.01797 | P48: 0.6836969138 | Q48: 2116.36 | R48: 0 | S48: 507.47 | T48: 0 | U48: 2623.83 | V48: 0
A49: 12 | B49: 2018 | C49: 0 | D49: 0 | E49: 18386.2 | F49: 0 | G49: 4658.3 | H49: 0 | I49: 0 | J49: 0 | K49: 0 | L49: 23044.5 | M49: =SUMIF(TransRaw!$DD$8:$DQ$8,$C$4,TransRaw!$DD71:$DQ71) -> 855.2 | N49: 855.2 | O49: 12796.95214 | P49: 0.8007803539 | Q49: 2188.94 | R49: 0 | S49: 565.29 | T49: 0 | U49: 2754.23 | V49: 0
A50: 13 | B50: 2019 | C50: 0 | D50: 0 | E50: 20286.2 | F50: 0 | G50: 4658.3 | H50: 0 | I50: 0 | J50: 0 | K50: 0 | L50: 24944.5 | M50: =SUMIF(TransRaw!$DD$8:$DQ$8,$C$4,TransRaw!$DD72:$DQ72) -> 855.2 | N50: 855.2 | O50: 13392.58783 | P50: 0.8625601203 | Q50: 2262.59 | R50: 0 | S50: 664.43 | T50: 0 | U50: 2927.02 | V50: 0
A51: 14 | B51: 2020 | C51: =SUMIF(OFFSET(INDIRECT("Raw"&$C$4&"!$C$1"),$F$39,1,1,50),C$1,OFFSET(INDIRECT("Raw"&$C$4&"!$C$1"),$E$39+$A51,1,1,50)) -> 0 | D51: 0 | E51: 21307.29 | F51: 0 | G51: 5658.3 | H51: 0 | I51: 0 | J51: 0 | K51: 0 | L51: 26965.59 | M51: =SUMIF(TransRaw!$DD$8:$DQ$8,$C$4,TransRaw!$DD73:$DQ73) -> 855.2 | N51: 855.2 | O51: 14016.84977 | P51: 0.9237981742 | Q51: 1216.65 | R51: 0 | S51: 774.65 | T51: 0 | U51: 1991.3 | V51: 0
A52: 15 | B52: 2021 | C52: 0 | D52: 0 | E52: 20576.74 | F52: 0 | G52: 6658.3 | H52: 0 | I52: 0 | J52: 0 | K52: 0 | L52: 27235.04 | M52: =SUMIF(TransRaw!$DD$8:$DQ$8,$C$4,TransRaw!$DD74:$DQ74) -> 855.2 | N52: 855.2 | O52: 14954.78729 | P52: 0.8211586346 | Q52: 1895.35 | R52: 0 | S52: 915.78 | T52: 0 | U52: 2811.13 | V52: 0
A53: 16 | B53: 2022 | C53: 0 | D53: 0 | E53: 20730.39 | F53: 0 | G53: 7658.3 | H53: 0 | I53: 0 | J53: 0 | K53: 0 | L53: 28388.69 | M53: =SUMIF(TransRaw!$DD$8:$DQ$8,$C$4,TransRaw!$DD75:$DQ75) -> 855.2 | N53: 855.2 | O53: 15729.53814 | P53: 0.8048012438 | Q53: 2547.43 | R53: 0 | S53: 1058.47 | T53: 0 | U53: 3605.9 | V53: 0
A54: 17 | B54: 2023 | C54: 0 | D54: 0 | E54: 20908.1 | F54: 0 | G54: 8658.3 | H54: 0 | I54: 0 | J54: 0 | K54: 0 | L54: 29566.4 | M54: =SUMIF(TransRaw!$DD$8:$DQ$8,$C$4,TransRaw!$DD76:$DQ76) -> 855.2 | N54: 855.2 | O54: 16543.68812 | P54: 0.7871710212 | Q54: 2736.94 | R54: 0 | S54: 1214.76 | T54: 0 | U54: 3951.7 | V54: 0
A55: 18 | B55: 2024 | C55: 0 | D55: 0 | E55: 21265.6 | F55: 0 | G55: 9658.3 | H55: 0 | I55: 0 | J55: 0 | K55: 0 | L55: 30923.9 | M55: =SUMIF(TransRaw!$DD$8:$DQ$8,$C$4,TransRaw!$DD77:$DQ77) -> 855.2 | N55: 855.2 | O55: 17400.28711 | P55: 0.7772063072 | Q55: 2893.65 | R55: 0 | S55: 1386.21 | T55: 0 | U55: 4279.86 | V55: 0
A56: 19 | B56: 2025 | C56: 0 | D56: 0 | E56: 21243.02 | F56: 0 | G56: 10658.3 | H56: 0 | I56: 0 | J56: 0 | K56: 0 | L56: 31901.32 | M56: =SUMIF(TransRaw!$DD$8:$DQ$8,$C$4,TransRaw!$DD78:$DQ78) -> 855.2 | N56: 855.2 | O56: 18300.65309 | P56: 0.7431793198 | Q56: 3036.97 | R56: 0 | S56: 1573.41 | T56: 0 | U56: 4610.38 | V56: 0
A57: 20 | B57: 2026 | C57: 0 | D57: 0 | E57: 21131.05 | F57: 0 | G57: 11500 | H57: 0 | I57: 0 | J57: 0 | K57: 0 | L57: 32631.05 | M57: =SUMIF(TransRaw!$DD$8:$DQ$8,$C$4,TransRaw!$DD79:$DQ79) -> 855.2 | N57: 855.2 | O57: 19136.82554 | P57: 0.7051443531 | Q57: 3167.14 | R57: 0 | S57: 1768 | T57: 0 | U57: 4935.14 | V57: 0
A58: 21 | B58: 2027 | C58: 0 | D58: 0 | E58: 21877.43 | F58: 0 | G58: 11500 | H58: 0 | I58: 0 | J58: 0 | K58: 0 | L58: 33377.43 | M58: =SUMIF(TransRaw!$DD$8:$DQ$8,$C$4,TransRaw!$DD80:$DQ80) -> 855.2 | N58: 855.2 | O58: 19953.20031 | P58: 0.6727857924 | Q58: 3312.17 | R58: 0 | S58: 1972.89 | T58: 0 | U58: 5285.06 | V58: 0
A59: 22 | B59: 2028 | C59: 0 | D59: 0 | E59: 22599.16 | F59: 0 | G59: 11500 | H59: 0 | I59: 0 | J59: 0 | K59: 0 | L59: 34099.16 | M59: =SUMIF(TransRaw!$DD$8:$DQ$8,$C$4,TransRaw!$DD81:$DQ81) -> 855.2 | N59: 855.2 | O59: 20743.87985 | P59: 0.6438178509 | Q59: 3456.89 | R59: 0 | S59: 2187.89 | T59: 0 | U59: 5644.78 | V59: 0
A60: 23 | B60: 2029 | C60: 0 | D60: 0 | E60: 23299.39 | F60: 0 | G60: 11500 | H60: 0 | I60: 0 | J60: 0 | K60: 0 | L60: 34799.39 | M60: =SUMIF(TransRaw!$DD$8:$DQ$8,$C$4,TransRaw!$DD82:$DQ82) -> 855.2 | N60: 855.2 | O60: 21521.1657 | P60: 0.6169844366 | Q60: 3602.28 | R60: 0 | S60: 2412.48 | T60: 0 | U60: 6014.76 | V60: 0
A61: 24 | B61: 2030 | C61: 0 | D61: 0 | E61: 23422.59 | F61: 0 | G61: 11500 | H61: 0 | I61: 0 | J61: 0 | K61: 0 | L61: 34922.59 | M61: =SUMIF(TransRaw!$DD$8:$DQ$8,$C$4,TransRaw!$DD83:$DQ83) -> 855.2 | N61: 855.2 | O61: 21600.33621 | P61: 0.6167614087 | Q61: 2419.37 | R61: 0 | S61: 2567.34 | T61: 0 | U61: 4986.71 | V61: 0
A62: 25 | B62: 2031 | C62: 0 | D62: 0 | E62: 19855.29 | F62: 0 | G62: 11500 | H62: 0 | I62: 0 | J62: 0 | K62: 0 | L62: =SUM(C62:K62) -> 31355.29 | M62: =SUMIF(TransRaw!$DD$8:$DQ$8,$C$4,TransRaw!$DD84:$DQ84) -> 855.2 | N62: 855.2 | O62: 22477.44501 | P62: =L62/O62-1 -> 0.3949668207 | Q62: 3767.47 | R62: 0 | S62: 2673.29 | T62: 0 | U62: =SUM(Q62:T62) -> 6440.76 | V62: 0
A63: 26 | B63: 2040 | C63: 0 | D63: 0 | E63: 21658.22 | F63: 0 | G63: 11500 | H63: 0 | I63: 0 | J63: 0 | K63: 0 | L63: 33158.22 | M63: =SUMIF(TransRaw!$DD$8:$DQ$8,$C$4,TransRaw!$DD85:$DQ85) -> 855.2 | N63: 855.2 | O63: 32594.51442 | P63: 0.01729449246 | Q63: 280.8 | R63: 0 | S63: 3389.78 | T63: 0 | U63: 3670.58 | V63: 0
A64: 27 | B64: 2050 | C64: 0 | D64: 0 | E64: 35075.74 | F64: 0 | G64: 11500 | H64: 5722.96 | I64: 0 | J64: 0 | K64: 0 | L64: 52298.7 | M64: =SUMIF(TransRaw!$DD$8:$DQ$8,$C$4,TransRaw!$DD86:$DQ86) -> 956.36 | N64: 956.36 | O64: 50191.73241 | P64: 0.0419783794 | Q64: 0 | R64: 0 | S64: 3345.14 | T64: 0 | U64: 3345.14 | V64: 0
V65: =S41+G41 -> 1358.3 | W65: =U41+L41 -> 5240.78 | X65: =V65/W65 -> 0.2591789772
C66: New Capacity | V66: =S61+G61+3066 -> 17133.34 | W66: =U61+L61+3066-3291 -> 39684.3 | X66: =V66/W66 -> 0.431741016
C67: Cent. | D67: =$C$4&"SecNewCap" -> NGwSecNewCap | E67: =SUMIF(INDIRECT("Raw"&$C$4&"!$A$12:$A$540"),D67,INDIRECT("Raw"&$C$4&"!$B$12:$B$540")) -> 412 | F67: 1 | Q67: Decent. | R67: =$C$4&"TerNewCap" -> NGwTerNewCap | S67: =SUMIF(INDIRECT("Raw"&$C$4&"!$A$12:$A$550"),R67,INDIRECT("Raw"&$C$4&"!$B$12:$B$550")) -> 445 | T67: 2
C68: =OFFSET(C$37,lang,0) -> Coal | D68: Oil | E68: Gas | F68: Nuclear | G68: Hydro | H68: Biomass | I68: Solar PV | J68: Solar Thermal | K68: Wind | L68: Total Cent. Cap | M68: Imports Cap | N68: multiplier | Q68: =OFFSET(Q$37,lang,0) -> Oil | R68: Biomass | S68: Mini Hydro | T68: Dist.Solar PV | U68: Total Decent | V68: Backstop
A69: 4 | B69: =OFFSET(INDIRECT("Raw"&$C$4&"!$C$1"),$E$39+A69,0) -> 2010 | C69: =SUMIF(OFFSET(INDIRECT("Raw"&$C$4&"!$C$1"),$F$67,1,1,50),C$1,OFFSET(INDIRECT("Raw"&$C$4&"!$C$1"),$E$67+$A69,1,1,50))*$N69 -> 0 | D69: =SUMIF(OFFSET(INDIRECT("Raw"&$C$4&"!$C$1"),$F$67,1,1,50),D$1,OFFSET(INDIRECT("Raw"&$C$4&"!$C$1"),$E$67+$A69,1,1,50))*$N69 -> 0 | E69: =SUMIF(OFFSET(INDIRECT("Raw"&$C$4&"!$C$1"),$F$67,1,1,50),E$1,OFFSET(INDIRECT("Raw"&$C$4&"!$C$1"),$E$67+$A69,1,1,50))*$N69 -> 0 | F69: 0 | G69: 0 | H69: 0 | I69: 0 | J69: 0 | K69: 0 | L69: =SUM(C69:K69) -> 0 | M69: =SUMIF(OFFSET(INDIRECT("Raw"&$C$4&"!$C$1"),$F$67,1,1,50),#REF!,OFFSET(INDIRECT("Raw"&$C$4&"!$C$1"),$E$67+$A69,1,1,50)) -> 0 | N69: 1 | P69: =OFFSET(INDIRECT("Raw"&$C$4&"!$C$1"),$E$39+A69,0) -> 2010 | Q69: =SUMIF(OFFSET(INDIRECT("Raw"&$C$4&"!$C$1"),$T$67,1,1,50),Q$1,OFFSET(INDIRECT("Raw"&$C$4&"!$C$1"),$S$67+$A69,1,1,50))*$N69 -> 0 | R69: =SUMIF(OFFSET(INDIRECT("Raw"&$C$4&"!$C$1"),$T$67,1,1,50),R$1,OFFSET(INDIRECT("Raw"&$C$4&"!$C$1"),$S$67+$A69,1,1,50))*$N69 -> 0 | S69: 0 | T69: 0 | U69: =SUM(Q69:T69) -> 0 | V69: =SUMIF(OFFSET(INDIRECT("Raw"&$C$4&"!$C$1"),$T$67,1,1,50),V$1,OFFSET(INDIRECT("Raw"&$C$4&"!$C$1"),$S$67+$A69,1,1,50)) -> 0
A70: =A69+1 -> 5 | B70: 2011 | C70: =SUMIF(OFFSET(INDIRECT("Raw"&$C$4&"!$C$1"),$F$67,1,1,50),C$1,OFFSET(INDIRECT("Raw"&$C$4&"!$C$1"),$E$67+$A70,1,1,50))*$N70 -> 0 | D70: 0 | E70: 2953 | F70: 0 | G70: 0 | H70: 0 | I70: 0 | J70: 0 | K70: 0 | L70: =SUM(C70:K70) -> 2953 | M70: =SUMIF(OFFSET(INDIRECT("Raw"&$C$4&"!$C$1"),$F$67,1,1,50),#REF!,OFFSET(INDIRECT("Raw"&$C$4&"!$C$1"),$E$67+$A70,1,1,50)) -> 0 | N70: =B70-B69 -> 1 | P70: 2011 | Q70: =SUMIF(OFFSET(INDIRECT("Raw"&$C$4&"!$C$1"),$T$67,1,1,50),Q$1,OFFSET(INDIRECT("Raw"&$C$4&"!$C$1"),$S$67+$A70,1,1,50))*$N70 -> 1120.65 | R70: 0 | S70: 0 | T70: 0 | U70: =SUM(Q70:T70) -> 1120.65 | V70: 0
A71: =A70+1 -> 6 | B71: 2012 | C71: 0 | D71: 0 | E71: 4126 | F71: 0 | G71: 0 | H71: 0 | I71: 0 | J71: 0 | K71: 0 | L71: 4126 | M71: =SUMIF(OFFSET(INDIRECT("Raw"&$C$4&"!$C$1"),$F$67,1,1,50),#REF!,OFFSET(INDIRECT("Raw"&$C$4&"!$C$1"),$E$67+$A71,1,1,50)) -> 0 | N71: =B71-B70 -> 1 | P71: 2012 | Q71: 607.16 | R71: 0 | S71: 0 | T71: 0 | U71: 607.16 | V71: 0
A72: 7 | B72: 2013 | C72: 0 | D72: 0 | E72: 1452 | F72: 0 | G72: 0 | H72: 0 | I72: 0 | J72: 0 | K72: 0 | L72: 1452 | M72: =SUMIF(OFFSET(INDIRECT("Raw"&$C$4&"!$C$1"),$F$67,1,1,50),#REF!,OFFSET(INDIRECT("Raw"&$C$4&"!$C$1"),$E$67+$A72,1,1,50)) -> 0 | N72: 1 | P72: 2013 | Q72: 93.8 | R72: 0 | S72: 0 | T72: 0 | U72: 93.8 | V72: 0
A73: 8 | B73: 2014 | C73: 0 | D73: 0 | E73: 0 | F73: 0 | G73: 0 | H73: 0 | I73: 0 | J73: 0 | K73: 0 | L73: 0 | M73: =SUMIF(OFFSET(INDIRECT("Raw"&$C$4&"!$C$1"),$F$67,1,1,50),#REF!,OFFSET(INDIRECT("Raw"&$C$4&"!$C$1"),$E$67+$A73,1,1,50)) -> 0 | N73: 1 | P73: 2014 | Q73: 50.42 | R73: 0 | S73: 214.54 | T73: 0 | U73: 264.96 | V73: 0
A74: 9 | B74: 2015 | C74: 0 | D74: 0 | E74: 1500 | F74: 0 | G74: 0 | H74: 0 | I74: 0 | J74: 0 | K74: 0 | L74: 1500 | M74: =SUMIF(OFFSET(INDIRECT("Raw"&$C$4&"!$C$1"),$F$67,1,1,50),#REF!,OFFSET(INDIRECT("Raw"&$C$4&"!$C$1"),$E$67+$A74,1,1,50)) -> 0 | N74: 1 | P74: 2015 | Q74: 47.83 | R74: 0 | S74: 33.44 | T74: 0 | U74: 81.27 | V74: 0
A75: 10 | B75: 2016 | C75: 0 | D75: 0 | E75: 1600 | F75: 0 | G75: 0 | H75: 0 | I75: 0 | J75: 0 | K75: 0 | L75: 1600 | M75: =SUMIF(OFFSET(INDIRECT("Raw"&$C$4&"!$C$1"),$F$67,1,1,50),#REF!,OFFSET(INDIRECT("Raw"&$C$4&"!$C$1"),$E$67+$A75,1,1,50)) -> 0 | N75: 1 | P75: 2016 | Q75: 66.71 | R75: 0 | S75: 121.45 | T75: 0 | U75: 188.16 | V75: 0
A76: 11 | B76: 2017 | C76: 0 | D76: 0 | E76: 1700 | F76: 0 | G76: 2600 | H76: 0 | I76: 0 | J76: 0 | K76: 0 | L76: 4300 | M76: =SUMIF(OFFSET(INDIRECT("Raw"&$C$4&"!$C$1"),$F$67,1,1,50),#REF!,OFFSET(INDIRECT("Raw"&$C$4&"!$C$1"),$E$67+$A76,1,1,50)) -> 0 | N76: 1 | P76: 2017 | Q76: 88.74 | R76: 0 | S76: 138.04 | T76: 0 | U76: 226.78 | V76: 0
A77: 12 | B77: 2018 | C77: 0 | D77: 0 | E77: 1800 | F77: 0 | G77: 700 | H77: 0 | I77: 0 | J77: 0 | K77: 0 | L77: 2500 | M77: =SUMIF(OFFSET(INDIRECT("Raw"&$C$4&"!$C$1"),$F$67,1,1,50),#REF!,OFFSET(INDIRECT("Raw"&$C$4&"!$C$1"),$E$67+$A77,1,1,50)) -> 0 | N77: 1 | P77: 2018 | Q77: 93.1 | R77: 0 | S77: 57.82 | T77: 0 | U77: 150.92 | V77: 0
A78: 13 | B78: 2019 | C78: 0 | D78: 0 | E78: 1900 | F78: 0 | G78: 0 | H78: 0 | I78: 0 | J78: 0 | K78: 0 | L78: 1900 | M78: =SUMIF(OFFSET(INDIRECT("Raw"&$C$4&"!$C$1"),$F$67,1,1,50),#REF!,OFFSET(INDIRECT("Raw"&$C$4&"!$C$1"),$E$67+$A78,1,1,50)) -> 0 | N78: 1 | P78: 2019 | Q78: 94.15 | R78: 0 | S78: 99.14 | T78: 0 | U78: 193.29 | V78: 0
A79: 14 | B79: 2020 | C79: 0 | D79: 0 | E79: 1021.09 | F79: 0 | G79: 1000 | H79: 0 | I79: 0 | J79: 0 | K79: 0 | L79: 2021.09 | M79: =SUMIF(OFFSET(INDIRECT("Raw"&$C$4&"!$C$1"),$F$67,1,1,50),#REF!,OFFSET(INDIRECT("Raw"&$C$4&"!$C$1"),$E$67+$A79,1,1,50)) -> 0 | N79: 1 | P79: 2020 | Q79: 74.73 | R79: 0 | S79: 110.22 | T79: 0 | U79: 184.95 | V79: 0
A80: 15 | B80: 2021 | C80: 0 | D80: 0 | E80: 369.46 | F80: 0 | G80: 1000 | H80: 0 | I80: 0 | J80: 0 | K80: 0 | L80: 1369.46 | M80: =SUMIF(OFFSET(INDIRECT("Raw"&$C$4&"!$C$1"),$F$67,1,1,50),#REF!,OFFSET(INDIRECT("Raw"&$C$4&"!$C$1"),$E$67+$A80,1,1,50)) -> 0 | N80: 1 | P80: 2021 | Q80: 1285.87 | R80: 0 | S80: 141.13 | T80: 0 | U80: 1427 | V80: 0
A81: 16 | B81: 2022 | C81: 0 | D81: 0 | E81: 153.65 | F81: 0 | G81: 1000 | H81: 0 | I81: 0 | J81: 0 | K81: 0 | L81: 1153.65 | M81: =SUMIF(OFFSET(INDIRECT("Raw"&$C$4&"!$C$1"),$F$67,1,1,50),#REF!,OFFSET(INDIRECT("Raw"&$C$4&"!$C$1"),$E$67+$A81,1,1,50)) -> 0 | N81: 1 | P81: 2022 | Q81: 745.87 | R81: 0 | S81: 142.68 | T81: 0 | U81: 888.55 | V81: 0
A82: 17 | B82: 2023 | C82: 0 | D82: 0 | E82: 177.71 | F82: 0 | G82: 1000 | H82: 0 | I82: 0 | J82: 0 | K82: 0 | L82: 1177.71 | M82: =SUMIF(OFFSET(INDIRECT("Raw"&$C$4&"!$C$1"),$F$67,1,1,50),#REF!,OFFSET(INDIRECT("Raw"&$C$4&"!$C$1"),$E$67+$A82,1,1,50)) -> 0 | N82: 1 | P82: 2023 | Q82: 239.93 | R82: 0 | S82: 156.29 | T82: 0 | U82: 396.22 | V82: 0
A83: 18 | B83: 2024 | C83: 0 | D83: 0 | E83: 357.5 | F83: 0 | G83: 1000 | H83: 0 | I83: 0 | J83: 0 | K83: 0 | L83: 1357.5 | M83: =SUMIF(OFFSET(INDIRECT("Raw"&$C$4&"!$C$1"),$F$67,1,1,50),#REF!,OFFSET(INDIRECT("Raw"&$C$4&"!$C$1"),$E$67+$A83,1,1,50)) -> 0 | N83: 1 | P83: 2024 | Q83: 204.54 | R83: 0 | S83: 171.45 | T83: 0 | U83: 375.99 | V83: 0
A84: 19 | B84: 2025 | C84: 0 | D84: 0 | E84: 261.42 | F84: 0 | G84: 1000 | H84: 0 | I84: 0 | J84: 0 | K84: 0 | L84: 1261.42 | M84: =SUMIF(OFFSET(INDIRECT("Raw"&$C$4&"!$C$1"),$F$67,1,1,50),#REF!,OFFSET(INDIRECT("Raw"&$C$4&"!$C$1"),$E$67+$A84,1,1,50)) -> 0 | N84: 1 | P84: 2025 | Q84: 210.03 | R84: 0 | S84: 187.2 | T84: 0 | U84: 397.23 | V84: 0
A85: 20 | B85: 2026 | C85: 0 | D85: 0 | E85: 274.43 | F85: 0 | G85: 841.7 | H85: 0 | I85: 0 | J85: 0 | K85: 0 | L85: 1116.13 | M85: =SUMIF(OFFSET(INDIRECT("Raw"&$C$4&"!$C$1"),$F$67,1,1,50),#REF!,OFFSET(INDIRECT("Raw"&$C$4&"!$C$1"),$E$67+$A85,1,1,50)) -> 0 | N85: 1 | P85: 2026 | Q85: 218.91 | R85: 0 | S85: 194.59 | T85: 0 | U85: 413.5 | V85: 0
A86: 21 | B86: 2027 | C86: 0 | D86: 0 | E86: 746.37 | F86: 0 | G86: 0 | H86: 0 | I86: 0 | J86: 0 | K86: 0 | L86: 746.37 | M86: =SUMIF(OFFSET(INDIRECT("Raw"&$C$4&"!$C$1"),$F$67,1,1,50),#REF!,OFFSET(INDIRECT("Raw"&$C$4&"!$C$1"),$E$67+$A86,1,1,50)) -> 0 | N86: 1 | P86: 2027 | Q86: 238.12 | R86: 0 | S86: 204.89 | T86: 0 | U86: 443.01 | V86: 0
A87: 22 | B87: 2028 | C87: 0 | D87: 0 | E87: 721.74 | F87: 0 | G87: 0 | H87: 0 | I87: 0 | J87: 0 | K87: 0 | L87: 721.74 | M87: =SUMIF(OFFSET(INDIRECT("Raw"&$C$4&"!$C$1"),$F$67,1,1,50),#REF!,OFFSET(INDIRECT("Raw"&$C$4&"!$C$1"),$E$67+$A87,1,1,50)) -> 0 | N87: 1 | P87: 2028 | Q87: 238.89 | R87: 0 | S87: 215 | T87: 0 | U87: 453.89 | V87: 0
A88: 23 | B88: 2029 | C88: 0 | D88: 0 | E88: 700.22 | F88: 0 | G88: 0 | H88: 0 | I88: 0 | J88: 0 | K88: 0 | L88: 700.22 | M88: =SUMIF(OFFSET(INDIRECT("Raw"&$C$4&"!$C$1"),$F$67,1,1,50),#REF!,OFFSET(INDIRECT("Raw"&$C$4&"!$C$1"),$E$67+$A88,1,1,50)) -> 0 | N88: 1 | P88: 2029 | Q88: 220.11 | R88: 0 | S88: 224.59 | T88: 0 | U88: 444.7 | V88: 0
A89: 24 | B89: 2030 | C89: 0 | D89: 0 | E89: 123.2 | F89: 0 | G89: 0 | H89: 0 | I89: 0 | J89: 0 | K89: 0 | L89: 123.2 | M89: =SUMIF(OFFSET(INDIRECT("Raw"&$C$4&"!$C$1"),$F$67,1,1,50),#REF!,OFFSET(INDIRECT("Raw"&$C$4&"!$C$1"),$E$67+$A89,1,1,50)) -> 0 | N89: 1 | P89: 2030 | Q89: 102.96 | R89: 0 | S89: 154.86 | T89: 0 | U89: 257.82 | V89: 0
A90: 25 | B90: 2031 | C90: 0 | D90: 0 | E90: 150.95 | F90: 0 | G90: 0 | H90: 0 | I90: 0 | J90: 0 | K90: 0 | L90: =SUM(C90:K90) -> 150.95 | M90: =SUMIF(OFFSET(INDIRECT("Raw"&$C$4&"!$C$1"),$F$67,1,1,50),#REF!,OFFSET(INDIRECT("Raw"&$C$4&"!$C$1"),$E$67+$A90,1,1,50)) -> 0 | N90: 1 | P90: 2031 | Q90: 561.58 | R90: 0 | S90: 21.19 | T90: 0 | U90: =SUM(Q90:T90) -> 582.77 | V90: 0
A91: 26 | B91: 2040 | C91: 0 | D91: 0 | E91: 10967.75 | F91: 0 | G91: 0 | H91: 0 | I91: 0 | J91: 0 | K91: 0 | L91: 10967.75 | M91: =SUMIF(OFFSET(INDIRECT("Raw"&$C$4&"!$C$1"),$F$67,1,1,50),#REF!,OFFSET(INDIRECT("Raw"&$C$4&"!$C$1"),$E$67+$A91,1,1,50)) -> 0 | N91: 9.5 | P91: 2040 | Q91: 5286.465 | R91: 0 | S91: 1083.665 | T91: 0 | U91: 6370.13 | V91: 0
A92: 27 | B92: 2050 | C92: 0 | D92: 0 | E92: 21063.8 | F92: 0 | G92: 0 | H92: 5723 | I92: 0 | J92: 0 | K92: 0 | L92: 26786.8 | M92: =SUMIF(OFFSET(INDIRECT("Raw"&$C$4&"!$C$1"),$F$67,1,1,50),#REF!,OFFSET(INDIRECT("Raw"&$C$4&"!$C$1"),$E$67+$A92,1,1,50)) -> 0 | N92: 10 | P92: 2050 | Q92: 8337.9 | R92: 0 | S92: 1269.5 | T92: 0 | U92: 9607.4 | V92: 0
C94: Primary Energy | L94: CO2 Emissions | O94: Demand
A95: English | C95: Biomass | D95: Coal | E95: Gas | F95: Nuclear | G95: Crude | H95: Diesel | I95: HFO
A96: French | C96: Biomass | D96: Charbon | E96: Gaz | F96: Nucleaire | G96: Petrol | H96: Diesel | I96: HFO
C97: =$C$4&"Primaire" -> NGwPrimaire | D97: =SUMIF(INDIRECT("Raw"&$C$4&"!$A$12:$A$540"),C97,INDIRECT("Raw"&$C$4&"!$B$12:$B$540")) -> 247 | E97: 4 | O97: =$C$4&"FinaleElc" -> NGwFinaleElc | P97: =SUMIF(INDIRECT("Raw"&$C$4&"!$A$12:$A$540"),O97,INDIRECT("Raw"&$C$4&"!$B$12:$B$540")) -> 478 | Q97: 3 | R97: =$C$4&"FinaleShp" -> NGwFinaleShp | S97: =SUMIF(INDIRECT("Raw"&$C$4&"!$A$12:$A$540"),R97,INDIRECT("Raw"&$C$4&"!$B$12:$B$540")) -> 511 | T97: 3
B98: emiss fact kt/PJ | C98: 0 | D98: 96.25 | E98: 56.12633181 | F98: 0 | G98: 73.33 | H98: 74.07 | I98: 80.67 | M98: =E98/8.76/3.6-RawCIw!F42 -> 0.009754306547
C99: =RawSEw!D5 -> Bio | D99: =RawSEw!E5 -> Coa | E99: =RawSEw!F5 -> Gas | F99: =RawSEw!G5 -> Nuc | G99: =RawSEw!H5 -> Cru | H99: =RawSEw!I5 -> Die | I99: =RawSEw!J5 -> HFO | L99: CO2 | O99: Ele | P99: Urb | Q99: Rur | R99: Ele | S99: Urb | T99: Rur
B100: PJ | C100: =OFFSET(C$95,lang,0) -> Biomass | D100: Coal | E100: Gas | F100: Nuclear | G100: Crude | H100: Diesel | I100: HFO | L100: kT | O100: Industry | P100: Urban | Q100: Rural | R100: Industry | S100: Urban | T100: Rural
A101: 4 | B101: =OFFSET(INDIRECT("Raw"&$C$4&"!$C$1"),$E$39+A101,0) -> 2010 | C101: =SUMIF(OFFSET(INDIRECT("Raw"&$C$4&"!$C$1"),$E$97,1,1,50),C$99,OFFSET(INDIRECT("Raw"&$C$4&"!$C$1"),$D$97+$A101,1,1,50))*8.76*3.6/1000 -> 0 | D101: 0 | E101: 247.2561158 | F101: 0 | G101: 0 | H101: 1.45790928 | I101: 0 | L101: =SUMPRODUCT($C$98:$I$98,C101:I101) -> 13985.56614 | O101: =SUMIF(OFFSET(INDIRECT("Raw"&$C$4&"!$C$1"),$Q$97,1,1,50),O$99,OFFSET(INDIRECT("Raw"&$C$4&"!$C$1"),$P$97+$A101,1,1,50))*8.76 -> 2157.588 | P101: =SUMIF(OFFSET(INDIRECT("Raw"&$C$4&"!$C$1"),$Q$97,1,1,50),P$99,OFFSET(INDIRECT("Raw"&$C$4&"!$C$1"),$P$97+$A101,1,1,50))*8.76 -> 17052.216 | Q101: 308.352 | R101: =SUMIF(OFFSET(INDIRECT("Raw"&$C$4&"!$C$1"),$T$97,1,1,50),R$99,OFFSET(INDIRECT("Raw"&$C$4&"!$C$1"),$S$97+$A101,1,1,50))/-8.76 -> 138.4326484 | S101: =SUMIF(OFFSET(INDIRECT("Raw"&$C$4&"!$C$1"),$T$97,1,1,50),S$99,OFFSET(INDIRECT("Raw"&$C$4&"!$C$1"),$S$97+$A101,1,1,50))/-8.76 -> 143.0958904 | T101: 182.8002283
A102: =A101+1 -> 5 | B102: =OFFSET(INDIRECT("Raw"&$C$4&"!$C$1"),$E$39+A102,0) -> 2011 | C102: 0 | D102: 0 | E102: 483.5209896 | F102: 0 | G102: 0 | H102: 10.15206912 | I102: 0 | L102: 27890.22326 | O102: =SUMIF(OFFSET(INDIRECT("Raw"&$C$4&"!$C$1"),$Q$97,1,1,50),O$99,OFFSET(INDIRECT("Raw"&$C$4&"!$C$1"),$P$97+$A102,1,1,50))*8.76 -> 4732.152 | P102: 27783.216 | Q102: 579.912 | R102: =SUMIF(OFFSET(INDIRECT("Raw"&$C$4&"!$C$1"),$T$97,1,1,50),R$99,OFFSET(INDIRECT("Raw"&$C$4&"!$C$1"),$S$97+$A102,1,1,50))/-8.76 -> 138.4326484 | S102: 202.6061644 | T102: 294.8527397
A103: =A102+1 -> 6 | B103: 2012 | C103: 0 | D103: 0 | E103: 725.1091402 | F103: 0 | G103: 0 | H103: 15.45327072 | I103: 0 | L103: 41842.33996 | O103: 8649.624 | P103: 39793.176 | Q103: 953.088 | R103: 138.4326484 | S103: 202.3493151 | T103: 340.1141553
A104: 7 | B104: 2013 | C104: 0 | D104: 0 | E104: 775.9908994 | F104: 0 | G104: 0 | H104: 17.13445488 | I104: 0 | L104: 44822.67177 | O104: 10847.508 | P104: 40465.068 | Q104: 1105.512 | R104: 138.4326484 | S104: 202.1004566 | T104: 483.2568493
A105: 8 | B105: 2014 | C105: 0 | D105: 0 | E105: 785.8591445 | F105: 0 | G105: 0 | H105: 15.54914016 | I105: 0 | L105: 45259.11591 | O105: 13305.564 | P105: 41212.296 | Q105: 1278.96 | R105: 138.4212329 | S105: 201.8561644 | T105: 135.2876712
A106: 9 | B106: 2015 | C106: 0 | D106: 0 | E106: 699.7144608 | F106: 0 | G106: 0 | H106: 15.80363568 | I106: 0 | L106: 40442.98129 | O106: 16020.288 | P106: 41900.832 | Q106: 1470.804 | R106: 138.4326484 | S106: 201.6244292 | T106: 145.3732877
A107: 10 | B107: 2016 | C107: 0 | D107: 0 | E107: 655.1935128 | F107: 0 | G107: 0 | H107: 16.19783568 | I107: 0 | L107: 37973.38219 | O107: 18331.176 | P107: 43010.724 | Q107: 1790.544 | R107: 139.7134703 | S107: 202.8276256 | T107: 160.9052511
A108: 11 | B108: 2017 | C108: 0 | D108: 0 | E108: 503.1108374 | F108: 0 | G108: 0 | H108: 16.74214704 | I108: 0 | L108: 29477.85663 | O108: 20859.312 | P108: 44093.46 | Q108: 2147.952 | R108: 140.9931507 | S108: 204.0342466 | T108: 195.8356164
A109: 12 | B109: 2018 | C109: 0 | D109: 0 | E109: 455.8355352 | F109: 0 | G109: 0 | H109: 17.32146336 | I109: 0 | L109: 26867.37729 | O109: 23624.844 | P109: 45149.916 | Q109: 2547.408 | R109: 124.4908676 | S109: 186.1038813 | T109: 197.2591324
A110: 13 | B110: 2019 | C110: 0 | D110: 0 | E110: 506.779105 | F110: 0 | G110: 0 | H110: 17.91024048 | I110: 0 | L110: 29770.26371 | O110: 26641.788 | P110: 46162.572 | Q110: 2994.168 | R110: 123.8744292 | S110: 185.326484 | T110: 197.9280822
A111: 14 | B111: 2020 | C111: =SUMIF(OFFSET(INDIRECT("Raw"&$C$4&"!$C$1"),$E$97,1,1,50),C$99,OFFSET(INDIRECT("Raw"&$C$4&"!$C$1"),$D$97+$A111,1,1,50))*8.76*3.6/1000 -> 0 | D111: 0 | E111: 531.6518635 | F111: 0 | G111: 0 | H111: 18.50816304 | I111: 0 | L111: 31210.56854 | O111: 29936.424 | P111: 47130.552 | Q111: 3490.86 | R111: 113.8515982 | S111: 173.6803653 | T111: 189.5251142
A112: 15 | B112: 2021 | C112: 0 | D112: 0 | E112: 552.282084 | F112: 0 | G112: 0 | H112: 19.82289888 | I112: 0 | L112: 32465.84962 | O112: 32698.452 | P112: 49916.232 | Q112: 4126.836 | R112: 114.5045662 | S112: 174.0730594 | T112: 189.6952055
A113: 16 | B113: 2022 | C113: 0 | D113: 0 | E113: 560.8617682 | F113: 0 | G113: 0 | H113: 20.92855104 | I113: 0 | L113: 33029.29148 | O113: 35202.06 | P113: 52103.604 | Q113: 4769.82 | R113: 115.1666667 | S113: 174.9531963 | T113: 190.553653
A114: 17 | B114: 2023 | C114: 0 | D114: 0 | E114: 570.7848859 | F114: 0 | G114: 0 | H114: 22.09349088 | I114: 0 | L114: 33672.52677 | O114: 37889.628 | P114: 54368.94 | Q114: 5474.124 | R114: 115.8344749 | S114: 175.8493151 | T114: 191.489726
A115: 18 | B115: 2024 | C115: 0 | D115: 0 | E115: 590.7474893 | F115: 0 | G115: 0 | H115: 23.32276416 | I115: 0 | L115: 34884.00674 | O115: 40775.172 | P115: 56716.62 | Q115: 6246.756 | R115: 116.5148402 | S115: 176.7739726 | T115: 192.4942922
A116: 19 | B116: 2025 | C116: 0 | D116: 0 | E116: 605.3451883 | F116: 0 | G116: 0 | H116: 24.6170016 | I116: 0 | L116: 35799.18621 | O116: 43871.832 | P116: 59145.768 | Q116: 7090.344 | R116: 117.2043379 | S116: 177.7271689 | T116: 193.576484
A117: 20 | B117: 2026 | C117: 0 | D117: 0 | E117: 620.6691614 | F117: 0 | G117: 0 | H117: 25.83302976 | I117: 0 | L117: 36749.33581 | O117: 46924.692 | P117: 61304.232 | Q117: 7967.22 | R117: 117.9052511 | S117: 178.7123288 | T117: 194.7579909
A118: 21 | B118: 2027 | C118: 0 | D118: 0 | E118: 662.346193 | F118: 0 | G118: 0 | H118: 27.02729808 | I118: 0 | L118: 39176.97417 | O118: 50036.244 | P118: 63336.552 | Q118: 8890.524 | R118: 118.6210046 | S118: 179.7340183 | T118: 196.0251142
A119: 22 | B119: 2028 | C119: 0 | D119: 0 | E119: 702.6476242 | F119: 0 | G119: 0 | H119: 28.19381472 | I119: 0 | L119: 41525.34956 | O119: 53189.844 | P119: 65223.456 | Q119: 9859.38 | R119: 119.3527397 | S119: 180.7956621 | T119: 197.4075342
A120: 23 | B120: 2029 | C120: 0 | D120: 0 | E120: 741.7478491 | F120: 0 | G120: 0 | H120: 29.02699584 | I120: 0 | L120: 43781.61548 | O120: 56368.848 | P120: 66946.548 | Q120: 10867.656 | R120: 120.0993151 | S120: 192.1655251 | T120: 198.8938356
A121: 24 | B121: 2030 | C121: 0 | D121: 0 | E121: 748.6271122 | F121: 0 | G121: 0 | H121: 29.43917136 | I121: 0 | L121: 44198.25312 | O121: 57848.412 | P121: 66525.192 | Q121: 11569.332 | R121: 119.2899543 | S121: 167.989726 | T121: 192.8504566
A122: 25 | B122: 2031 | C122: 0 | D122: 0 | E122: 790.7718226 | F122: 0 | G122: 0 | H122: 30.75106896 | I122: 0 | L122: =SUMPRODUCT($C$98:$I$98,C122:I122) -> 46660.85338 | O122: 60232.884 | P122: 69267.948 | Q122: 12046.752 | R122: 120.4520548 | S122: 182.6312785 | T122: 198.8847032
A123: 26 | B123: 2040 | C123: 0 | D123: 0 | E123: 1266.399351 | F123: 0 | G123: 0 | H123: 44.23207824 | I123: 0 | L123: 74354.62024 | O123: 86639.028 | P123: 99634.488 | Q123: 17328.156 | R123: 117.7305936 | S123: 179.9189498 | T123: 217.6381279
A124: 27 | B124: 2050 | C124: 237.6341669 | D124: 0 | E124: 1906.863975 | F124: 0 | G124: 0 | H124: 66.24546768 | I124: 0 | L124: 111932.082 | O124: 129758.376 | P124: 149222.22 | Q124: 25951.5 | R124: 127.8869863 | S124: 195.7648402 | T124: 279.5787671
A127: Million $ | C127: Primary Energy Costs | L127: CO2 Costs
A128: English | C128: Biomass | D128: Coal | E128: Gas | F128: Nuclear | G128: Crude | H128: Diesel | I128: HFO
A129: French | C129: Biomass | D129: Charbon | E129: Gaz | F129: Nucleaire | G129: Petrol | H129: Diesel | I129: HFO
C130: =$C$4&"Fuel Costs" -> NGwFuel Costs | D130: =SUMIF(INDIRECT("Raw"&$C$4&"!$A$12:$A$550"),C130,INDIRECT("Raw"&$C$4&"!$B$12:$B$550")) -> 43 | E130: 4
C131: =OFFSET(C$95,lang,0) -> Biomass | D131: Coal | E131: Gas | F131: Nuclear | G131: Crude | H131: Diesel | I131: HFO | J131: Total
A132: 0 | B132: =OFFSET(INDIRECT("Raw"&$C$4&"!$C$1"),$D$130+A132,0) -> 2010 | C132: =SUMIF(OFFSET(INDIRECT("Raw"&$C$4&"!$C$1"),$E$130,1,1,50),C$99,OFFSET(INDIRECT("Raw"&$C$4&"!$C$1"),$D$130+$A132,1,1,50)) -> 0 | D132: =SUMIF(OFFSET(INDIRECT("Raw"&$C$4&"!$C$1"),$E$130,1,1,50),D$99,OFFSET(INDIRECT("Raw"&$C$4&"!$C$1"),$D$130+$A132,1,1,50)) -> 0 | E132: 2101.23792 | F132: 0 | G132: 0 | H132: 31.94493 | I132: 0 | J132: =SUM(C132:I132) -> 2133.18285 | L132: =L101*OtherParams!C4 -> 0
A133: =A132+1 -> 1 | B133: =OFFSET(INDIRECT("Raw"&$C$4&"!$C$1"),$E$39+A133,0) -> 0 | C133: =SUMIF(OFFSET(INDIRECT("Raw"&$C$4&"!$C$1"),$E$130,1,1,50),C$99,OFFSET(INDIRECT("Raw"&$C$4&"!$C$1"),$D$130+$A133,1,1,50)) -> 0 | D133: 0 | E133: 4109.0698 | F133: 0 | G133: 0 | H133: 222.44672 | I133: 0 | J133: =SUM(C133:I133) -> 4331.51652 | L133: =L102*OtherParams!C5 -> 0
A134: =A133+1 -> 2 | B134: 0 | C134: 0 | D134: 0 | E134: 6162.14008 | F134: 0 | G134: 0 | H134: 338.60382 | I134: 0 | J134: 6500.7439 | L134: =L103*OtherParams!C6 -> 0
A135: 3 | B135: 0 | C135: 0 | D135: 0 | E135: 6594.54468 | F135: 0 | G135: 0 | H135: 375.44103 | I135: 0 | J135: 6969.98571 | L135: =L104*OtherParams!C7 -> 0
A136: 4 | B136: 2010 | C136: 0 | D136: 0 | E136: 6678.40724 | F136: 0 | G136: 0 | H136: 340.70446 | I136: 0 | J136: 7019.1117 | L136: =L105*OtherParams!C8 -> 0
A137: 5 | B137: 2011 | C137: 0 | D137: 0 | E137: 5946.3304 | F137: 0 | G137: 0 | H137: 346.28083 | I137: 0 | J137: 6292.61123 | L137: =L106*OtherParams!C9 -> 0
A138: 6 | B138: 2012 | C138: 0 | D138: 0 | E138: 5567.9814 | F138: 0 | G138: 0 | H138: 354.91833 | I138: 0 | J138: 5922.89973 | L138: =L107*OtherParams!C10 -> 0
A139: 7 | B139: 2013 | C139: 0 | D139: 0 | E139: 4275.54872 | F139: 0 | G139: 0 | H139: 366.84499 | I139: 0 | J139: 4642.39371 | L139: =L108*OtherParams!C11 -> 0
A140: 8 | B140: 2014 | C140: 0 | D140: 0 | E140: 3873.7926 | F140: 0 | G140: 0 | H140: 379.53866 | I140: 0 | J140: 4253.33126 | L140: =L109*OtherParams!C12 -> 0
A141: 9 | B141: 2015 | C141: 0 | D141: 0 | E141: 4306.72248 | F141: 0 | G141: 0 | H141: 392.43963 | I141: 0 | J141: 4699.16211 | L141: =L110*OtherParams!C13 -> 0
A142: 10 | B142: 2016 | C142: 0 | D142: 0 | E142: 4518.09676 | F142: 0 | G142: 0 | H142: 405.54099 | I142: 0 | J142: 4923.63775 | L142: =L111*OtherParams!C14 -> 0
A143: 11 | B143: 2017 | C143: 0 | D143: 0 | E143: 4693.417 | F143: 0 | G143: 0 | H143: 434.34878 | I143: 0 | J143: 5127.76578 | L143: =L112*OtherParams!C15 -> 0
A144: 12 | B144: 2018 | C144: 0 | D144: 0 | E144: 4766.32908 | F144: 0 | G144: 0 | H144: 458.57524 | I144: 0 | J144: 5224.90432 | L144: =L113*OtherParams!C16 -> 0
A145: 13 | B145: 2019 | C145: 0 | D145: 0 | E145: 4850.65796 | F145: 0 | G145: 0 | H145: 484.10078 | I145: 0 | J145: 5334.75874 | L145: =L114*OtherParams!C17 -> 0
A146: 14 | B146: 2020 | C146: 0 | D146: 0 | E146: 5020.30464 | F146: 0 | G146: 0 | H146: 511.03596 | I146: 0 | J146: 5531.3406 | L146: =L115*OtherParams!C18 -> 0
A147: 15 | B147: 2021 | C147: 0 | D147: 0 | E147: 5144.35916 | F147: 0 | G147: 0 | H147: 539.3946 | I147: 0 | J147: 5683.75376 | L147: =L116*OtherParams!C19 -> 0
A148: 16 | B148: 2022 | C148: 0 | D148: 0 | E148: 5274.58572 | F148: 0 | G148: 0 | H148: 566.03956 | I148: 0 | J148: 5840.62528 | L148: =L117*OtherParams!C20 -> 0
A149: 17 | B149: 2023 | C149: 0 | D149: 0 | E149: 5628.76648 | F149: 0 | G149: 0 | H149: 592.20773 | I149: 0 | J149: 6220.97421 | L149: =L118*OtherParams!C21 -> 0
A150: 18 | B150: 2024 | C150: 0 | D150: 0 | E150: 5971.25708 | F150: 0 | G150: 0 | H150: 617.76782 | I150: 0 | J150: 6589.0249 | L150: =L119*OtherParams!C22 -> 0
A151: 19 | B151: =OFFSET(INDIRECT("Raw"&$C$4&"!$C$1"),$E$39+A151,0) -> 2025 | C151: 0 | D151: 0 | E151: 6303.53956 | F151: 0 | G151: 0 | H151: 636.02404 | I151: 0 | J151: =SUM(C151:I151) -> 6939.5636 | L151: =L120*OtherParams!C23 -> 0
A152: 20 | B152: 2026 | C152: 0 | D152: 0 | E152: 6362.00108 | F152: 0 | G152: 0 | H152: 645.05541 | I152: 0 | J152: 7007.05649 | L152: =L121*OtherParams!C24 -> 0
A153: 21 | B153: 2027 | C153: 0 | D153: 0 | E153: 6720.15628 | F153: 0 | G153: 0 | H153: 673.80101 | I153: 0 | J153: 7393.95729 | L153: =L122*OtherParams!C25 -> 0
A154: 22 | B154: 2028 | C154: 0 | D154: 0 | E154: 10762.14568 | F154: 0 | G154: 0 | H154: 969.18969 | I154: 0 | J154: 11731.33537 | L154: =L123*OtherParams!C26 -> 0
A155: 23 | B155: 2029 | C155: 354.16051 | D155: 0 | E155: 16204.95768 | F155: 0 | G155: 0 | H155: 1451.53533 | I155: 0 | J155: 18010.65352 | L155: =L124*OtherParams!C27 -> 0
C159: Annual O&M Costs
A160: English | C160: Coal | D160: Oil | E160: Gas | F160: Nuclear | G160: Hydro | H160: Biomass | I160: Solar PV | J160: Solar Thermal | K160: Wind | L160: Total Cent. | M160: Imports | N160: Exports | O160: Net Imports | P160: dom. System dmd | Q160: Dist. Oil | R160: Dist. Biomass | S160: Mini Hydro | T160: Dist.Solar PV | U160: Total Decent
A161: French | C161: Charbon | D161: Petrole | E161: Gaz | F161: Nucleaire | G161: Hydro | H161: Biomasse | I161: Solaire PV | J161: Solaire Thermique | K161: Eolienne | L161: Total Cent. | M161: Imports | N161: Exports | O161: Imports Net | P161: dom. System dmd | Q161: Dist. Petrole | R161: Dist. Biomasse | S161: Mini Hydro | T161: Dist. Solaire PV | U161: Total Decent
C162: Cent. | D162: =$C$4&"Sec O&M Costs" -> NGwSec O&M Costs | E162: =SUMIF(INDIRECT("Raw"&$C$4&"!$A$12:$A$540"),D162,INDIRECT("Raw"&$C$4&"!$B$12:$B$540")) -> 72 | F162: 1 | M162: =C158&"FinaleElc" -> FinaleElc | N162: =SUMIF(INDIRECT("Raw"&$C$4&"!$A$12:$A$550"),M162,INDIRECT("Raw"&$C$4&"!$B$12:$B$550")) -> 0 | O162: 3 | Q162: Decent. | R162: =$C$4&"Ter O&M Costs" -> NGwTer O&M Costs | S162: =SUMIF(INDIRECT("Raw"&$C$4&"!$A$12:$A$540"),R162,INDIRECT("Raw"&$C$4&"!$B$12:$B$540")) -> 101 | T162: 2
A163: Million $ | C163: =OFFSET(C$6,lang,0) -> Coal | D163: Oil | E163: Gas | F163: Nuclear | G163: Hydro | H163: Biomass | I163: Solar PV | J163: Solar Thermal | K163: Wind | L163: Total Cent. | M163: Imports | N163: Exports | O163: Net Imports | P163: Total Cent. +net imp. | Q163: Dist. Oil | R163: Dist. Biomass | S163: Mini Hydro | T163: Dist.Solar PV | U163: Total Decent | V163: Total
A164: 0 | B164: =OFFSET(INDIRECT("Raw"&$C$4&"!$C$1"),$E$162+A164,0) -> 2010 | C164: =SUMIF(OFFSET(INDIRECT("Raw"&$C$4&"!$C$1"),$F$162,1,1,50),C$1,OFFSET(INDIRECT("Raw"&$C$4&"!$C$1"),$E$162+$A164,1,1,50)) -> 0 | D164: 0 | E164: 251.2738879 | F164: 0 | G164: 163.0078288 | H164: 0 | I164: 0 | J164: 0 | K164: 0 | L164: =SUM(C164:K164) -> 414.2817167 | M164: =SUMIF(TransRaw!$DD$169:$DP$169,$C$4,TransRaw!$DD170:$DP170) -> 0 | N164: =SUMIF(TransRaw!$DD$169:$DP$169,$C$4,TransRaw!$DD198:$DP198) -> 258.3970398 | O164: =M164-N164 -> -258.3970398 | P164: =L164+O164 -> 155.8846769 | Q164: =SUMIF(OFFSET(INDIRECT("Raw"&$C$4&"!$C$1"),$T$162,1,1,50),Q$1,OFFSET(INDIRECT("Raw"&$C$4&"!$C$1"),$S$162+$A164,1,1,50)) -> 2.15280504 | R164: =SUMIF(OFFSET(INDIRECT("Raw"&$C$4&"!$C$1"),$T$162,1,1,50),R$1,OFFSET(INDIRECT("Raw"&$C$4&"!$C$1"),$S$162+$A164,1,1,50)) -> 0 | S164: 0 | T164: 2.15280504 | U164: =SUM(Q164:T164) -> 4.30561008 | V164: =U164+P164 -> 160.190287
A165: =A164+1 -> 1 | B165: =OFFSET(INDIRECT("Raw"&$C$4&"!$C$1"),$E$162+A165,0) -> 2011 | C165: 0 | D165: 0 | E165: 281.0920519 | F165: 0 | G165: 163.0078288 | H165: 0 | I165: 0 | J165: 0 | K165: 0 | L165: =SUM(C165:K165) -> 444.0998807 | M165: =SUMIF(TransRaw!$DD$169:$DP$169,$C$4,TransRaw!$DD171:$DP171) -> 0 | N165: =SUMIF(TransRaw!$DD$169:$DP$169,$C$4,TransRaw!$DD199:$DP199) -> 641.0565218 | O165: =M165-N165 -> -641.0565218 | P165: =L165+O165 -> -196.9566412 | Q165: =SUMIF(OFFSET(INDIRECT("Raw"&$C$4&"!$C$1"),$T$162,1,1,50),Q$1,OFFSET(INDIRECT("Raw"&$C$4&"!$C$1"),$S$162+$A165,1,1,50)) -> 14.9852686 | R165: 0 | S165: 0 | T165: 14.9852686 | U165: =SUM(Q165:T165) -> 29.97053719 | V165: =U165+P165 -> -166.986104
A166: =A165+1 -> 2 | B166: 2012 | C166: 0 | D166: 0 | E166: 328.5708139 | F166: 0 | G166: 163.0078288 | H166: 0 | I166: 0 | J166: 0 | K166: 0 | L166: 491.5786427 | M166: =SUMIF(TransRaw!$DD$169:$DP$169,$C$4,TransRaw!$DD172:$DP172) -> 0 | N166: =SUMIF(TransRaw!$DD$169:$DP$169,$C$4,TransRaw!$DD200:$DP200) -> 709.8090923 | O166: -709.8090923 | P166: -218.2304497 | Q166: 22.80809664 | R166: 0 | S166: 0 | T166: 22.80809664 | U166: 45.61619328 | V166: -172.6142564
A167: 3 | B167: 2013 | C167: 0 | D167: 0 | E167: 343.8504085 | F167: 0 | G167: 163.0078288 | H167: 0 | I167: 0 | J167: 0 | K167: 0 | L167: 506.8582373 | M167: =SUMIF(TransRaw!$DD$169:$DP$169,$C$4,TransRaw!$DD173:$DP173) -> 0 | N167: =SUMIF(TransRaw!$DD$169:$DP$169,$C$4,TransRaw!$DD201:$DP201) -> 820.5601789 | O167: -820.5601789 | P167: -313.7019417 | Q167: 25.28964083 | R167: 0 | S167: 0 | T167: 25.28964083 | U167: 50.57928166 | V167: -263.12266
A168: 4 | B168: 2014 | C168: 0 | D168: 0 | E168: 315.0562103 | F168: 0 | G168: 163.0078288 | H168: 0 | I168: 0 | J168: 0 | K168: 0 | L168: 478.0640391 | M168: =SUMIF(TransRaw!$DD$169:$DP$169,$C$4,TransRaw!$DD174:$DP174) -> 0 | N168: =SUMIF(TransRaw!$DD$169:$DP$169,$C$4,TransRaw!$DD202:$DP202) -> 587.3265336 | O168: -587.3265336 | P168: -109.2624945 | Q168: 22.95064724 | R168: 0 | S168: 4.9335264 | T168: 27.88417364 | U168: 55.76834729 | V168: -53.4941472
A169: 5 | B169: 2015 | C169: 0 | D169: 0 | E169: 337.6305211 | F169: 0 | G169: 163.0078288 | H169: 0 | I169: 0 | J169: 0 | K169: 0 | L169: 500.6383499 | M169: =SUMIF(TransRaw!$DD$169:$DP$169,$C$4,TransRaw!$DD175:$DP175) -> 239.6277256 | N169: =SUMIF(TransRaw!$DD$169:$DP$169,$C$4,TransRaw!$DD203:$DP203) -> 96.7890998 | O169: 142.8386258 | P169: 643.4769757 | Q169: 23.32593353 | R169: 0 | S169: 5.7033504 | T169: 29.02928393 | U169: 58.05856786 | V169: 701.5355435
A170: 6 | B170: 2016 | C170: 0 | D170: 0 | E170: 329.6180086 | F170: 0 | G170: 163.0078288 | H170: 0 | I170: 0 | J170: 0 | K170: 0 | L170: 492.6258373 | M170: =SUMIF(TransRaw!$DD$169:$DP$169,$C$4,TransRaw!$DD176:$DP176) -> 532.3059269 | N170: =SUMIF(TransRaw!$DD$169:$DP$169,$C$4,TransRaw!$DD204:$DP204) -> 90.11534421 | O170: 442.1905827 | P170: 934.81642 | Q170: 23.90777273 | R170: 0 | S170: 7.7657184 | T170: 31.67349113 | U170: 63.34698226 | V170: 998.1634023
A171: 7 | B171: 2017 | C171: 0 | D171: 0 | E171: 349.1243404 | F171: 0 | G171: 164.9541888 | H171: 0 | I171: 0 | J171: 0 | K171: 0 | L171: 514.0785292 | M171: =SUMIF(TransRaw!$DD$169:$DP$169,$C$4,TransRaw!$DD177:$DP177) -> 1127.796654 | N171: =SUMIF(TransRaw!$DD$169:$DP$169,$C$4,TransRaw!$DD205:$DP205) -> 86.2321037 | O171: 1041.56455 | P171: 1555.643079 | Q171: 24.71071082 | R171: 0 | S171: 9.9302544 | T171: 34.64096522 | U171: 69.28193045 | V171: 1624.92501
A172: 8 | B172: 2018 | C172: 0 | D172: 0 | E172: 359.365689 | F172: 0 | G172: 165.4782088 | H172: 0 | I172: 0 | J172: 0 | K172: 0 | L172: 524.8438977 | M172: =SUMIF(TransRaw!$DD$169:$DP$169,$C$4,TransRaw!$DD178:$DP178) -> 895.9218245 | N172: =SUMIF(TransRaw!$DD$169:$DP$169,$C$4,TransRaw!$DD206:$DP206) -> 55.4344204 | O172: 840.4874041 | P172: 1365.331302 | Q172: 25.56601445 | R172: 0 | S172: 11.514096 | T172: 37.08011045 | U172: 74.1602209 | V172: 1439.491523
A173: 9 | B173: 2019 | C173: 0 | D173: 0 | E173: 400.3230975 | F173: 0 | G173: 165.4782088 | H173: 0 | I173: 0 | J173: 0 | K173: 0 | L173: 565.8013063 | M173: =SUMIF(TransRaw!$DD$169:$DP$169,$C$4,TransRaw!$DD179:$DP179) -> 487.8435167 | N173: =SUMIF(TransRaw!$DD$169:$DP$169,$C$4,TransRaw!$DD207:$DP207) -> 61.04993362 | O173: 426.7935831 | P173: 992.5948894 | Q173: 26.43586405 | R173: 0 | S173: 13.5332208 | T173: 39.96908485 | U173: 79.9381697 | V173: 1072.533059
A174: 10 | B174: 2020 | C174: 0 | D174: 0 | E174: 422.3342426 | F174: 0 | G174: 191.7050713 | H174: 0 | I174: 0 | J174: 0 | K174: 0 | L174: 614.0393139 | M174: =SUMIF(TransRaw!$DD$169:$DP$169,$C$4,TransRaw!$DD180:$DP180) -> 0 | N174: =SUMIF(TransRaw!$DD$169:$DP$169,$C$4,TransRaw!$DD208:$DP208) -> 321.0450054 | O174: -321.0450054 | P174: 292.9943085 | Q174: 27.31735044 | R174: 0 | S174: 15.7785408 | T174: 43.09589124 | U174: 86.19178248 | V174: 379.186091
A175: 11 | B175: 2021 | C175: 0 | D175: 0 | E175: 288.3713164 | F175: 0 | G175: 217.9319339 | H175: 0 | I175: 0 | J175: 0 | K175: 0 | L175: 506.3032503 | M175: =SUMIF(TransRaw!$DD$169:$DP$169,$C$4,TransRaw!$DD181:$DP181) -> 0 | N175: =SUMIF(TransRaw!$DD$169:$DP$169,$C$4,TransRaw!$DD209:$DP209) -> 400.5360081 | O175: -400.5360081 | P175: 105.7672422 | Q175: 29.25778417 | R175: 0 | S175: 18.6530256 | T175: 47.91080977 | U175: 95.82161954 | V175: 201.5888617
A176: 12 | B176: 2022 | C176: 0 | D176: 0 | E176: 291.6834885 | F176: 0 | G176: 244.1587964 | H176: 0 | I176: 0 | J176: 0 | K176: 0 | L176: 535.8422849 | M176: =SUMIF(TransRaw!$DD$169:$DP$169,$C$4,TransRaw!$DD182:$DP182) -> 0 | N176: =SUMIF(TransRaw!$DD$169:$DP$169,$C$4,TransRaw!$DD210:$DP210) -> 431.8753928 | O176: -431.8753928 | P176: 103.9668922 | Q176: 30.88984313 | R176: 0 | S176: 21.5593488 | T176: 52.44919193 | U176: 104.8983839 | V176: 208.865276
A177: 13 | B177: 2023 | C177: 0 | D177: 0 | E177: 295.5143368 | F177: 0 | G177: 270.385659 | H177: 0 | I177: 0 | J177: 0 | K177: 0 | L177: 565.8999957 | M177: =SUMIF(TransRaw!$DD$169:$DP$169,$C$4,TransRaw!$DD183:$DP183) -> 0 | N177: =SUMIF(TransRaw!$DD$169:$DP$169,$C$4,TransRaw!$DD211:$DP211) -> 454.9213371 | O177: -454.9213371 | P177: 110.9786586 | Q177: 32.60917796 | R177: 0 | S177: 24.7427136 | T177: 57.35189156 | U177: 114.7037831 | V177: 225.6824418
A178: 14 | B178: 2024 | C178: 0 | D178: 0 | E178: 303.2206724 | F178: 0 | G178: 296.6125215 | H178: 0 | I178: 0 | J178: 0 | K178: 0 | L178: 599.8331939 | M178: =SUMIF(TransRaw!$DD$169:$DP$169,$C$4,TransRaw!$DD184:$DP184) -> 0 | N178: =SUMIF(TransRaw!$DD$169:$DP$169,$C$4,TransRaw!$DD212:$DP212) -> 565.0508209 | O178: -565.0508209 | P178: 34.78237305 | Q178: 34.42451627 | R178: 0 | S178: 28.2349584 | T178: 62.65947467 | U178: 125.3189493 | V178: 160.1013224
A179: 15 | B179: 2025 | C179: 0 | D179: 0 | E179: 298.951194 | F179: 0 | G179: 322.839384 | H179: 0 | I179: 0 | J179: 0 | K179: 0 | L179: 621.790578 | M179: =SUMIF(TransRaw!$DD$169:$DP$169,$C$4,TransRaw!$DD185:$DP185) -> 0 | N179: =SUMIF(TransRaw!$DD$169:$DP$169,$C$4,TransRaw!$DD213:$DP213) -> 588.7418409 | O179: -588.7418409 | P179: 33.04873707 | Q179: 36.33585804 | R179: 0 | S179: 32.0479632 | T179: 68.38382124 | U179: 136.7676425 | V179: 169.8163795
A180: 16 | B180: 2026 | C180: =SUMIF(OFFSET(INDIRECT("Raw"&$C$4&"!$C$1"),$F$162,1,1,50),C$1,OFFSET(INDIRECT("Raw"&$C$4&"!$C$1"),$E$162+$A180,1,1,50)) -> 0 | D180: 0 | E180: 291.3906289 | F180: 0 | G180: 344.914666 | H180: 0 | I180: 0 | J180: 0 | K180: 0 | L180: 636.3052949 | M180: =SUMIF(TransRaw!$DD$169:$DP$169,$C$4,TransRaw!$DD186:$DP186) -> 0 | N180: =SUMIF(TransRaw!$DD$169:$DP$169,$C$4,TransRaw!$DD214:$DP214) -> 594.5427013 | O180: -594.5427013 | P180: 41.76259361 | Q180: 38.12792278 | R180: 0 | S180: 36.0111312 | T180: 74.13905398 | U180: 148.278108 | V180: 190.0407016
A181: 17 | B181: 2027 | C181: 0 | D181: 0 | E181: 307.4797351 | F181: 0 | G181: 344.914666 | H181: 0 | I181: 0 | J181: 0 | K181: 0 | L181: 652.394401 | M181: =SUMIF(TransRaw!$DD$169:$DP$169,$C$4,TransRaw!$DD187:$DP187) -> 0 | N181: =SUMIF(TransRaw!$DD$169:$DP$169,$C$4,TransRaw!$DD215:$DP215) -> 599.2295158 | O181: -599.2295158 | P181: 53.16488522 | Q181: 39.89380475 | R181: 0 | S181: 40.1843376 | T181: 80.07814235 | U181: 160.1562847 | V181: 213.3211699
A182: 18 | B182: 2028 | C182: 0 | D182: 0 | E182: 323.0379907 | F182: 0 | G182: 344.914666 | H182: 0 | I182: 0 | J182: 0 | K182: 0 | L182: 667.9526567 | M182: =SUMIF(TransRaw!$DD$169:$DP$169,$C$4,TransRaw!$DD188:$DP188) -> 0 | N182: =SUMIF(TransRaw!$DD$169:$DP$169,$C$4,TransRaw!$DD216:$DP216) -> 599.634541 | O182: -599.634541 | P182: 68.31811572 | Q182: 41.61604878 | R182: 0 | S182: 44.5637808 | T182: 86.17982958 | U182: 172.3596592 | V182: 240.6777749
A183: 19 | B183: 2029 | C183: 0 | D183: 0 | E183: 338.1323546 | F183: 0 | G183: 344.914666 | H183: 0 | I183: 0 | J183: 0 | K183: 0 | L183: 683.0470206 | M183: =SUMIF(TransRaw!$DD$169:$DP$169,$C$4,TransRaw!$DD189:$DP189) -> 0 | N183: =SUMIF(TransRaw!$DD$169:$DP$169,$C$4,TransRaw!$DD217:$DP217) -> 599.5130811 | O183: -599.5130811 | P183: 83.53393946 | Q183: 42.84372949 | R183: 0 | S183: 49.1409072 | T183: 91.98463669 | U183: 183.9692734 | V183: 267.5032128
A184: 20 | B184: 2030 | C184: 0 | D184: 0 | E184: 340.7881287 | F184: 0 | G184: 344.914666 | H184: 0 | I184: 0 | J184: 0 | K184: 0 | L184: 685.7027947 | M184: =SUMIF(TransRaw!$DD$169:$DP$169,$C$4,TransRaw!$DD190:$DP190) -> 0 | N184: =SUMIF(TransRaw!$DD$169:$DP$169,$C$4,TransRaw!$DD218:$DP218) -> 599.33501 | O184: -599.33501 | P184: 86.36778462 | Q184: 43.45175146 | R184: 0 | S184: 52.2924336 | T184: 95.74418506 | U184: 191.4883701 | V184: 277.8561547
A185: 21 | B185: 2031 | C185: 0 | D185: 0 | E185: 311.3138587 | F185: 0 | G185: 344.914666 | H185: 0 | I185: 0 | J185: 0 | K185: 0 | L185: 656.2285247 | M185: =SUMIF(TransRaw!$DD$169:$DP$169,$C$4,TransRaw!$DD191:$DP191) -> 0 | N185: =SUMIF(TransRaw!$DD$169:$DP$169,$C$4,TransRaw!$DD219:$DP219) -> 589.6432206 | O185: -589.6432206 | P185: 66.58530414 | Q185: 45.3863668 | R185: 0 | S185: 54.4503168 | T185: 99.8366836 | U185: 199.6733672 | V185: 266.2586713
A186: =A185+1 -> 22 | B186: 2040 | C186: 0 | D186: 0 | E186: 488.8866449 | F186: 0 | G186: 344.914666 | H186: 0 | I186: 0 | J186: 0 | K186: 0 | L186: 833.8013109 | M186: =SUMIF(TransRaw!$DD$169:$DP$169,$C$4,TransRaw!$DD192:$DP192) -> 0 | N186: =SUMIF(TransRaw!$DD$169:$DP$169,$C$4,TransRaw!$DD220:$DP220) -> 509.5261639 | O186: -509.5261639 | P186: 324.2751469 | Q186: 65.28526744 | R186: 0 | S186: 74.2775616 | T186: 139.562829 | U186: 279.1256581 | V186: 603.400805
A187: 23 | B187: 2050 | C187: 0 | D187: 0 | E187: 737.1258425 | F187: 0 | G187: 344.914666 | H187: 502.0565849 | I187: 0 | J187: 0 | K187: 0 | L187: 1584.097093 | M187: =SUMIF(TransRaw!$DD$169:$DP$169,$C$4,TransRaw!$DD193:$DP193) -> 0 | N187: =SUMIF(TransRaw!$DD$169:$DP$169,$C$4,TransRaw!$DD221:$DP221) -> 482.9860702 | O187: -482.9860702 | P187: 1101.111023 | Q187: 97.77807756 | R187: 0 | S187: 83.16 | T187: 180.9380776 | U187: 361.8761551 | V187: 1462.987178
C190: Annualized Investment Costs
A191: English | C191: Coal | D191: Oil | E191: Gas | F191: Nuclear | G191: Hydro | H191: Biomass | I191: Solar PV | J191: Solar Thermal | K191: Wind | L191: Total Cent. | M191: Imports | N191: Exports | O191: Net Imports | P191: dom. System dmd | Q191: Dist. Oil | R191: Dist. Biomass | S191: Mini Hydro | T191: Dist.Solar PV | U191: Total Decent
A192: French | C192: Charbon | D192: Petrole | E192: Gaz | F192: Nucleaire | G192: Hydro | H192: Biomasse | I192: Solaire PV | J192: Solaire Thermique | K192: Eolienne | L192: Total Cent. | M192: Imports | N192: Exports | O192: Imports Net | P192: dom. System dmd | Q192: Dist. Petrole | R192: Dist. Biomasse | S192: Mini Hydro | T192: Dist. Solaire PV | U192: Total Decent
C193: Cent. | D193: =$C$4&"Sec Annualized Investment Costs" -> NGwSec Annualized Investment Costs | E193: =SUMIF(INDIRECT("Raw"&$C$4&"!$A$12:$A$540"),D193,INDIRECT("Raw"&$C$4&"!$B$12:$B$540")) -> 188 | F193: 1 | M193: =C189&"FinaleElc" -> FinaleElc | N193: =SUMIF(INDIRECT("Raw"&$C$4&"!$A$12:$A$550"),M193,INDIRECT("Raw"&$C$4&"!$B$12:$B$550")) -> 0 | O193: 3 | Q193: Decent. | R193: =$C$4&"Ter Annualized Investment Costs" -> NGwTer Annualized Investment Costs | S193: =SUMIF(INDIRECT("Raw"&$C$4&"!$A$12:$A$540"),R193,INDIRECT("Raw"&$C$4&"!$B$12:$B$540")) -> 217 | T193: 2
A194: Million $ | C194: =OFFSET(C$6,lang,0) -> Coal | D194: Oil | E194: Gas | F194: Nuclear | G194: Hydro | H194: Biomass | I194: Solar PV | J194: Solar Thermal | K194: Wind | L194: Total Cent. | M194: Imports | N194: Exports | O194: Net Imports | P194: Total Imports/exports | Q194: Dist. Oil | R194: Dist. Biomass | S194: Mini Hydro | T194: Dist.Solar PV | U194: Total Decent | V194: Total
A195: 0 | B195: =OFFSET(INDIRECT("Raw"&$C$4&"!$C$1"),$E$162+A195,0) -> 2010 | C195: =SUMIF(OFFSET(INDIRECT("Raw"&$C$4&"!$C$1"),$F$193,1,1,50),C$1,OFFSET(INDIRECT("Raw"&$C$4&"!$C$1"),$E$193+$A195,1,1,50)) -> 0 | D195: =SUMIF(OFFSET(INDIRECT("Raw"&$C$4&"!$C$1"),$F$193,1,1,50),D$1,OFFSET(INDIRECT("Raw"&$C$4&"!$C$1"),$E$193+$A195,1,1,50)) -> 0 | E195: 0 | F195: 0 | G195: 0 | H195: 0 | I195: 0 | J195: 0 | K195: 0 | L195: =SUM(C195:K195) -> 0 | O195: =SUMIF(TransRaw!$DD$142:$DP$142,$C$4,TransRaw!$DD143:$DP143) -> 0 | P195: =L195+O195 -> 0 | Q195: =SUMIF(OFFSET(INDIRECT("Raw"&$C$4&"!$C$1"),$T$193,1,1,50),Q$1,OFFSET(INDIRECT("Raw"&$C$4&"!$C$1"),$S$193+$A195,1,1,50)) -> 0 | R195: =SUMIF(OFFSET(INDIRECT("Raw"&$C$4&"!$C$1"),$T$193,1,1,50),R$1,OFFSET(INDIRECT("Raw"&$C$4&"!$C$1"),$S$193+$A195,1,1,50)) -> 0 | S195: 0 | T195: 0 | U195: =SUM(Q195:T195) -> 0 | V195: =U195+P195 -> 0
A196: =A195+1 -> 1 | B196: =OFFSET(INDIRECT("Raw"&$C$4&"!$C$1"),$E$162+A196,0) -> 2011 | C196: =SUMIF(OFFSET(INDIRECT("Raw"&$C$4&"!$C$1"),$F$193,1,1,50),C$1,OFFSET(INDIRECT("Raw"&$C$4&"!$C$1"),$E$193+$A196,1,1,50)) -> 0 | D196: 0 | E196: 187.2548707 | F196: 0 | G196: 0 | H196: 0 | I196: 0 | J196: 0 | K196: 0 | L196: =SUM(C196:K196) -> 187.2548707 | O196: =SUMIF(TransRaw!$DD$142:$DP$142,$C$4,TransRaw!$DD144:$DP144) -> 0 | P196: =L196+O196 -> 187.2548707 | Q196: =SUMIF(OFFSET(INDIRECT("Raw"&$C$4&"!$C$1"),$T$193,1,1,50),Q$1,OFFSET(INDIRECT("Raw"&$C$4&"!$C$1"),$S$193+$A196,1,1,50)) -> 114.7174142 | R196: 0 | S196: 0 | T196: 0 | U196: =SUM(Q196:T196) -> 114.7174142 | V196: =U196+P196 -> 301.9722849
A197: =A196+1 -> 2 | B197: 2012 | C197: 0 | D197: 0 | E197: 448.8917133 | F197: 0 | G197: 0 | H197: 0 | I197: 0 | J197: 0 | K197: 0 | L197: 448.8917133 | O197: =SUMIF(TransRaw!$DD$142:$DP$142,$C$4,TransRaw!$DD145:$DP145) -> 0 | P197: 448.8917133 | Q197: 176.8704729 | R197: 0 | S197: 0 | T197: 0 | U197: 176.8704729 | V197: 625.7621862
A198: 3 | B198: 2013 | C198: 0 | D198: 0 | E198: 540.965561 | F198: 0 | G198: 0 | H198: 0 | I198: 0 | J198: 0 | K198: 0 | L198: 540.965561 | O198: =SUMIF(TransRaw!$DD$142:$DP$142,$C$4,TransRaw!$DD146:$DP146) -> 0 | P198: 540.965561 | Q198: 186.4724838 | R198: 0 | S198: 0 | T198: 0 | U198: 186.4724838 | V198: 727.4380448
A199: 4 | B199: 2014 | C199: 0 | D199: 0 | E199: 540.965561 | F199: 0 | G199: 0 | H199: 0 | I199: 0 | J199: 0 | K199: 0 | L199: 540.965561 | O199: =SUMIF(TransRaw!$DD$142:$DP$142,$C$4,TransRaw!$DD147:$DP147) -> 0 | P199: 540.965561 | Q199: 191.6338205 | R199: 0 | S199: 90.88097424 | T199: 0 | U199: 282.5147948 | V199: 823.4803557
A200: 5 | B200: 2015 | C200: 0 | D200: 0 | E200: 728.6404366 | F200: 0 | G200: 0 | H200: 0 | I200: 0 | J200: 0 | K200: 0 | L200: 728.6404366 | O200: =SUMIF(TransRaw!$DD$142:$DP$142,$C$4,TransRaw!$DD148:$DP148) -> 0 | P200: 728.6404366 | Q200: 196.5300271 | R200: 0 | S200: 105.0464435 | T200: 0 | U200: 301.5764706 | V200: 1030.216907
A201: 6 | B201: 2016 | C201: 0 | D201: 0 | E201: 928.8269706 | F201: 0 | G201: 0 | H201: 0 | I201: 0 | J201: 0 | K201: 0 | L201: 928.8269706 | O201: =SUMIF(TransRaw!$DD$142:$DP$142,$C$4,TransRaw!$DD149:$DP149) -> 0 | P201: 928.8269706 | Q201: 203.3589199 | R201: 0 | S201: 156.4936996 | T201: 0 | U201: 359.8526195 | V201: 1288.67959
A202: 7 | B202: 2017 | C202: 0 | D202: 0 | E202: 1141.525163 | F202: 0 | G202: 366.6506047 | H202: 0 | I202: 0 | J202: 0 | K202: 0 | L202: 1508.175768 | O202: =SUMIF(TransRaw!$DD$142:$DP$142,$C$4,TransRaw!$DD150:$DP150) -> 0 | P202: 1508.175768 | Q202: 212.4429545 | R202: 0 | S202: 214.9686212 | T202: 0 | U202: 427.4115757 | V202: 1935.587343
A203: 8 | B203: 2018 | C203: 0 | D203: 0 | E203: 1366.735014 | F203: 0 | G203: 465.364229 | H203: 0 | I203: 0 | J203: 0 | K203: 0 | L203: 1832.099243 | O203: =SUMIF(TransRaw!$DD$142:$DP$142,$C$4,TransRaw!$DD151:$DP151) -> 0 | P203: 1832.099243 | Q203: 221.9733085 | R203: 0 | S203: 239.4616665 | T203: 0 | U203: 461.434975 | V203: 2293.534218
A204: 9 | B204: 2019 | C204: 0 | D204: 0 | E204: 1604.456523 | F204: 0 | G204: 465.364229 | H204: 0 | I204: 0 | J204: 0 | K204: 0 | L204: 2069.820752 | O204: =SUMIF(TransRaw!$DD$142:$DP$142,$C$4,TransRaw!$DD152:$DP152) -> 0 | P204: 2069.820752 | Q204: 231.6111478 | R204: 0 | S204: 281.4582162 | T204: 0 | U204: 513.069364 | V204: 2582.890116
A205: 10 | B205: 2020 | C205: 0 | D205: 0 | E205: 1732.211815 | F205: 0 | G205: 711.6663664 | H205: 0 | I205: 0 | J205: 0 | K205: 0 | L205: 2443.878182 | O205: =SUMIF(TransRaw!$DD$142:$DP$142,$C$4,TransRaw!$DD153:$DP153) -> 0 | P205: 2443.878182 | Q205: 239.2610227 | R205: 0 | S205: 328.1483485 | T205: 0 | U205: 567.4093713 | V205: 3011.287553
A206: 11 | B206: 2021 | C206: 0 | D206: 0 | E206: 1778.437388 | F206: 0 | G206: 957.9685038 | H206: 0 | I206: 0 | J206: 0 | K206: 0 | L206: 2736.405892 | O206: =SUMIF(TransRaw!$DD$142:$DP$142,$C$4,TransRaw!$DD154:$DP154) -> 0 | P206: 2736.405892 | Q206: 256.1740743 | R206: 0 | S206: 387.9322205 | T206: 0 | U206: 644.1062948 | V206: 3380.512187
A207: 12 | B207: 2022 | C207: 0 | D207: 0 | E207: 1797.661551 | F207: 0 | G207: 1204.270641 | H207: 0 | I207: 0 | J207: 0 | K207: 0 | L207: 3001.932193 | O207: =SUMIF(TransRaw!$DD$142:$DP$142,$C$4,TransRaw!$DD155:$DP155) -> 0 | P207: 3001.932193 | Q207: 270.3733805 | R207: 0 | S207: 448.3726857 | T207: 0 | U207: 718.7460662 | V207: 3720.678259
A208: 13 | B208: 2023 | C208: 0 | D208: 0 | E208: 1819.896019 | F208: 0 | G208: 1450.572779 | H208: 0 | I208: 0 | J208: 0 | K208: 0 | L208: 3270.468798 | O208: =SUMIF(TransRaw!$DD$142:$DP$142,$C$4,TransRaw!$DD156:$DP156) -> 0 | P208: 3270.468798 | Q208: 285.3322488 | R208: 0 | S208: 514.578463 | T208: 0 | U208: 799.9107118 | V208: 4070.37951
A209: 14 | B209: 2024 | C209: 0 | D209: 0 | E209: 1864.625198 | F209: 0 | G209: 1696.874916 | H209: 0 | I209: 0 | J209: 0 | K209: 0 | L209: 3561.500114 | O209: =SUMIF(TransRaw!$DD$142:$DP$142,$C$4,TransRaw!$DD157:$DP157) -> 0 | P209: 3561.500114 | Q209: 301.1090282 | R209: 0 | S209: 587.2061457 | T209: 0 | U209: 888.3151739 | V209: 4449.815288
... 38 more rows

Sheet RENewCap
C1: C | D1: O | E1: G | F1: N | G1: H | H1: B | I1: S | J1: T | K1: W | L1: Total | M1: O | N1: B | O1: H | P1: S
B2: RE | C2: 0 | D2: 0 | E2: 0 | F2: 0 | G2: 1 | H2: 1 | I2: 1 | J2: 1 | K2: 1 | M2: 0 | N2: 1 | O2: 1 | P2: 1
B3: =VLOOKUP($D$11,OtherParams!$B$29:$E$41,4,FALSE) -> Mali | I3: Burkina | J3: Cote d'Ivoire | K3: Gambia | L3: Ghana | M3: Niger | N3: Nigeria | O3: Senegal | P3: Sierra Leone | Q3: Togo/Benin
I4: 1 | J4: 2 | K4: 3 | L4: 4 | M4: 9 | N4: 10 | O4: 11 | P4: 12 | Q4: 13 | S4: 2030
C5: Electricity Energy Balance
A6: English | C6: Coal | D6: Oil | E6: Gas | F6: Nuclear | G6: Hydro | H6: Biomass | I6: Solar PV | J6: Solar Thermal | K6: Wind | L6: Total Cent. | M6: Dist. Oil | N6: Dist. Biomass | O6: Mini Hydro | P6: Dist.Solar PV | Q6: Total Decent
A7: French | C7: Charbon | D7: Petrole | E7: Gaz | F7: Nucleaire | G7: Hydro | H7: Biomasse | I7: Solaire PV | J7: Solaire Thermique | K7: Eolienne | L7: Total Cent. | M7: Dist. Petrole | N7: Dist. Biomasse | O7: Mini Hydro | P7: Dist. Solaire PV | Q7: Total Decent
C8: Cent. | M8: Decent.
A9: GWh | C9: =OFFSET(C$6,lang,0) -> Coal | D9: Oil | E9: Gas | F9: Nuclear | G9: Hydro | H9: Biomass | I9: Solar PV | J9: Solar Thermal | K9: Wind | L9: Total Cent. | M9: Dist. Oil | N9: Dist. Biomass | O9: Mini Hydro | P9: Dist.Solar PV | Q9: Total Decent
D11: 8 | E11: =VLOOKUP($D$11,OtherParams!$B$29:$E$41,3,FALSE) -> MAw
D12: =$E$11&"TerNewCap" -> MAwTerNewCap | E12: =SUMIF(INDIRECT("Raw"&$E$11&"!$A$12:$A$540"),D12,INDIRECT("Raw"&$E$11&"!$B$12:$B$540")) -> 445 | F12: 2
D13: =E11&"SecNewCap" -> MAwSecNewCap | E13: =SUMIF(INDIRECT("Raw"&$E$11&"!$A$12:$A$540"),D13,INDIRECT("Raw"&$E$11&"!$B$12:$B$540")) -> 412 | F13: 1
C15: =C16&C17 -> NC | D15: =D16&D17 -> NC | E15: NC | F15: NC | G15: RC | H15: RC | I15: RC | J15: RC | K15: RC | L15: TC | M15: NC | N15: RD | O15: RD | P15: RD | Q15: TD
C16: N | D16: N | E16: N | F16: N | G16: R | H16: R | I16: R | J16: R | K16: R | L16: T | M16: N | N16: R | O16: R | P16: R | Q16: T
C17: C | D17: C | E17: C | F17: C | G17: C | H17: C | I17: C | J17: C | K17: C | L17: C | M17: C | N17: D | O17: D | P17: D | Q17: D | X17: TC | Y17: RC | Z17: TD | AA17: RD
B18: 1 | C18: =VLOOKUP(B18,OtherParams!$B$29:$E$41,3,FALSE) -> BUw | D18: =VLOOKUP(C18,OtherParams!$D$29:$E$41,2,FALSE) -> Burkina | X18: Centralized | Z18: Distributed
A19: GWh | C19: =OFFSET(C$6,lang,0) -> Coal | D19: Oil | E19: Gas | F19: Nuclear | G19: Hydro | H19: Biomass | I19: Solar PV | J19: Solar Thermal | K19: Wind | L19: Total Cent. | M19: Dist. Oil | N19: Dist. Biomass | O19: Mini Hydro | P19: Dist.Solar PV | Q19: Total Decent | X19: Total | Y19: RE | Z19: Total | AA19: RE
A20: 4 | B20: =OFFSET(INDIRECT("Raw"&$E$11&"!$C$1"),$E$13+A20,0) -> 2010 | C20: =SUMIF(OFFSET(INDIRECT("Raw"&C18&"!$C$1"),$F$13,1,1,50),C$1,OFFSET(INDIRECT("Raw"&C18&"!$C$1"),$E$13+$A20,1,1,50))*1 -> 0 | D20: =SUMIF(OFFSET(INDIRECT("Raw"&C18&"!$C$1"),$F$13,1,1,50),D$1,OFFSET(INDIRECT("Raw"&C18&"!$C$1"),$E$13+$A20,1,1,50))*1 -> 0 | E20: =SUMIF(OFFSET(INDIRECT("Raw"&C18&"!$C$1"),$F$13,1,1,50),E$1,OFFSET(INDIRECT("Raw"&C18&"!$C$1"),$E$13+$A20,1,1,50))*1 -> 0 | F20: =SUMIF(OFFSET(INDIRECT("Raw"&C18&"!$C$1"),$F$13,1,1,50),F$1,OFFSET(INDIRECT("Raw"&C18&"!$C$1"),$E$13+$A20,1,1,50))*1 -> 0 | G20: =SUMIF(OFFSET(INDIRECT("Raw"&C18&"!$C$1"),$F$13,1,1,50),G$1,OFFSET(INDIRECT("Raw"&C18&"!$C$1"),$E$13+$A20,1,1,50))*1 -> 0 | H20: =SUMIF(OFFSET(INDIRECT("Raw"&C18&"!$C$1"),$F$13,1,1,50),H$1,OFFSET(INDIRECT("Raw"&C18&"!$C$1"),$E$13+$A20,1,1,50))*1 -> 0 | I20: =SUMIF(OFFSET(INDIRECT("Raw"&C18&"!$C$1"),$F$13,1,1,50),I$1,OFFSET(INDIRECT("Raw"&C18&"!$C$1"),$E$13+$A20,1,1,50))*1 -> 0 | J20: =SUMIF(OFFSET(INDIRECT("Raw"&C18&"!$C$1"),$F$13,1,1,50),J$1,OFFSET(INDIRECT("Raw"&C18&"!$C$1"),$E$13+$A20,1,1,50))*1 -> 0 | K20: =SUMIF(OFFSET(INDIRECT("Raw"&C18&"!$C$1"),$F$13,1,1,50),K$1,OFFSET(INDIRECT("Raw"&C18&"!$C$1"),$E$13+$A20,1,1,50))*1 -> 0 | L20: =SUM(C20:K20) -> 0 | M20: =SUMIF(OFFSET(INDIRECT("Raw"&C18&"!$C$1"),$F$12,1,1,50),M$1,OFFSET(INDIRECT("Raw"&C18&"!$C$1"),$E$12+$A20,1,1,50))*1 -> 1.19 | N20: =SUMIF(OFFSET(INDIRECT("Raw"&C18&"!$C$1"),$F$12,1,1,50),N$1,OFFSET(INDIRECT("Raw"&C18&"!$C$1"),$E$12+$A20,1,1,50))*1 -> 0 | O20: =SUMIF(OFFSET(INDIRECT("Raw"&C18&"!$C$1"),$F$12,1,1,50),O$1,OFFSET(INDIRECT("Raw"&C18&"!$C$1"),$E$12+$A20,1,1,50))*1 -> 0 | P20: =SUMIF(OFFSET(INDIRECT("Raw"&C18&"!$C$1"),$F$12,1,1,50),P$1,OFFSET(INDIRECT("Raw"&C18&"!$C$1"),$E$12+$A20,1,1,50))*1 -> 0 | Q20: =SUM(M20:P20) -> 1.19 | U20: =MATCH(V20,$B$1:$B$414,0) -> 44 | V20: BUw | W20: Burkina | X20: =SUMIF($C$15:$Q$15,X$17,OFFSET($C$1,$U20-1,0,1,15)) -> 386.7 | Y20: =SUMIF($C$15:$Q$15,Y$17,OFFSET($C$1,$U20-1,0,1,15)) -> 261.36 | Z20: 254.02 | AA20: 60.79
A21: =A20+1 -> 5 | B21: 2011 | C21: =SUMIF(OFFSET(INDIRECT("Raw"&C18&"!$C$1"),$F$13,1,1,50),C$1,OFFSET(INDIRECT("Raw"&C18&"!$C$1"),$E$13+$A21,1,1,50))*1 -> 0 | D21: =SUMIF(OFFSET(INDIRECT("Raw"&C18&"!$C$1"),$F$13,1,1,50),D$1,OFFSET(INDIRECT("Raw"&C18&"!$C$1"),$E$13+$A21,1,1,50))*1 -> 55.5 | E21: =SUMIF(OFFSET(INDIRECT("Raw"&C18&"!$C$1"),$F$13,1,1,50),E$1,OFFSET(INDIRECT("Raw"&C18&"!$C$1"),$E$13+$A21,1,1,50))*1 -> 0 | F21: =SUMIF(OFFSET(INDIRECT("Raw"&C18&"!$C$1"),$F$13,1,1,50),F$1,OFFSET(INDIRECT("Raw"&C18&"!$C$1"),$E$13+$A21,1,1,50))*1 -> 0 | G21: =SUMIF(OFFSET(INDIRECT("Raw"&C18&"!$C$1"),$F$13,1,1,50),G$1,OFFSET(INDIRECT("Raw"&C18&"!$C$1"),$E$13+$A21,1,1,50))*1 -> 0 | H21: =SUMIF(OFFSET(INDIRECT("Raw"&C18&"!$C$1"),$F$13,1,1,50),H$1,OFFSET(INDIRECT("Raw"&C18&"!$C$1"),$E$13+$A21,1,1,50))*1 -> 0 | I21: =SUMIF(OFFSET(INDIRECT("Raw"&C18&"!$C$1"),$F$13,1,1,50),I$1,OFFSET(INDIRECT("Raw"&C18&"!$C$1"),$E$13+$A21,1,1,50))*1 -> 0 | J21: =SUMIF(OFFSET(INDIRECT("Raw"&C18&"!$C$1"),$F$13,1,1,50),J$1,OFFSET(INDIRECT("Raw"&C18&"!$C$1"),$E$13+$A21,1,1,50))*1 -> 0 | K21: =SUMIF(OFFSET(INDIRECT("Raw"&C18&"!$C$1"),$F$13,1,1,50),K$1,OFFSET(INDIRECT("Raw"&C18&"!$C$1"),$E$13+$A21,1,1,50))*1 -> 0 | L21: 55.5 | M21: =SUMIF(OFFSET(INDIRECT("Raw"&C18&"!$C$1"),$F$12,1,1,50),M$1,OFFSET(INDIRECT("Raw"&C18&"!$C$1"),$E$12+$A21,1,1,50))*1 -> 0 | N21: =SUMIF(OFFSET(INDIRECT("Raw"&C18&"!$C$1"),$F$12,1,1,50),N$1,OFFSET(INDIRECT("Raw"&C18&"!$C$1"),$E$12+$A21,1,1,50))*1 -> 0 | O21: =SUMIF(OFFSET(INDIRECT("Raw"&C18&"!$C$1"),$F$12,1,1,50),O$1,OFFSET(INDIRECT("Raw"&C18&"!$C$1"),$E$12+$A21,1,1,50))*1 -> 0 | P21: =SUMIF(OFFSET(INDIRECT("Raw"&C18&"!$C$1"),$F$12,1,1,50),P$1,OFFSET(INDIRECT("Raw"&C18&"!$C$1"),$E$12+$A21,1,1,50))*1 -> 0 | Q21: 0 | U21: =MATCH(V21,$B$1:$B$414,0) -> 73 | V21: CIw | W21: Cote d'Ivoire | X21: =SUMIF($C$15:$Q$15,X$17,OFFSET($C$1,$U21-1,0,1,15)) -> 4107.58 | Y21: 268.5 | Z21: 856.11 | AA21: 141.69
A22: =A21+1 -> 6 | B22: 2012 | C22: =SUMIF(OFFSET(INDIRECT("Raw"&C18&"!$C$1"),$F$13,1,1,50),C$1,OFFSET(INDIRECT("Raw"&C18&"!$C$1"),$E$13+$A22,1,1,50))*1 -> 0 | D22: =SUMIF(OFFSET(INDIRECT("Raw"&C18&"!$C$1"),$F$13,1,1,50),D$1,OFFSET(INDIRECT("Raw"&C18&"!$C$1"),$E$13+$A22,1,1,50))*1 -> 20 | E22: =SUMIF(OFFSET(INDIRECT("Raw"&C18&"!$C$1"),$F$13,1,1,50),E$1,OFFSET(INDIRECT("Raw"&C18&"!$C$1"),$E$13+$A22,1,1,50))*1 -> 0 | F22: =SUMIF(OFFSET(INDIRECT("Raw"&C18&"!$C$1"),$F$13,1,1,50),F$1,OFFSET(INDIRECT("Raw"&C18&"!$C$1"),$E$13+$A22,1,1,50))*1 -> 0 | G22: =SUMIF(OFFSET(INDIRECT("Raw"&C18&"!$C$1"),$F$13,1,1,50),G$1,OFFSET(INDIRECT("Raw"&C18&"!$C$1"),$E$13+$A22,1,1,50))*1 -> 0 | H22: =SUMIF(OFFSET(INDIRECT("Raw"&C18&"!$C$1"),$F$13,1,1,50),H$1,OFFSET(INDIRECT("Raw"&C18&"!$C$1"),$E$13+$A22,1,1,50))*1 -> 0 | I22: =SUMIF(OFFSET(INDIRECT("Raw"&C18&"!$C$1"),$F$13,1,1,50),I$1,OFFSET(INDIRECT("Raw"&C18&"!$C$1"),$E$13+$A22,1,1,50))*1 -> 0 | J22: =SUMIF(OFFSET(INDIRECT("Raw"&C18&"!$C$1"),$F$13,1,1,50),J$1,OFFSET(INDIRECT("Raw"&C18&"!$C$1"),$E$13+$A22,1,1,50))*1 -> 0 | K22: =SUMIF(OFFSET(INDIRECT("Raw"&C18&"!$C$1"),$F$13,1,1,50),K$1,OFFSET(INDIRECT("Raw"&C18&"!$C$1"),$E$13+$A22,1,1,50))*1 -> 0 | L22: 20 | M22: =SUMIF(OFFSET(INDIRECT("Raw"&C18&"!$C$1"),$F$12,1,1,50),M$1,OFFSET(INDIRECT("Raw"&C18&"!$C$1"),$E$12+$A22,1,1,50))*1 -> 4.38 | N22: =SUMIF(OFFSET(INDIRECT("Raw"&C18&"!$C$1"),$F$12,1,1,50),N$1,OFFSET(INDIRECT("Raw"&C18&"!$C$1"),$E$12+$A22,1,1,50))*1 -> 0 | O22: =SUMIF(OFFSET(INDIRECT("Raw"&C18&"!$C$1"),$F$12,1,1,50),O$1,OFFSET(INDIRECT("Raw"&C18&"!$C$1"),$E$12+$A22,1,1,50))*1 -> 0 | P22: =SUMIF(OFFSET(INDIRECT("Raw"&C18&"!$C$1"),$F$12,1,1,50),P$1,OFFSET(INDIRECT("Raw"&C18&"!$C$1"),$E$12+$A22,1,1,50))*1 -> 0 | Q22: 4.38 | U22: 102 | V22: GAw | W22: Gambia | X22: 155.21 | Y22: 43.38 | Z22: 69.77 | AA22: 11.68
A23: 7 | B23: 2013 | C23: =SUMIF(OFFSET(INDIRECT("Raw"&C18&"!$C$1"),$F$13,1,1,50),C$1,OFFSET(INDIRECT("Raw"&C18&"!$C$1"),$E$13+$A23,1,1,50))*1 -> 0 | D23: =SUMIF(OFFSET(INDIRECT("Raw"&C18&"!$C$1"),$F$13,1,1,50),D$1,OFFSET(INDIRECT("Raw"&C18&"!$C$1"),$E$13+$A23,1,1,50))*1 -> 36 | E23: =SUMIF(OFFSET(INDIRECT("Raw"&C18&"!$C$1"),$F$13,1,1,50),E$1,OFFSET(INDIRECT("Raw"&C18&"!$C$1"),$E$13+$A23,1,1,50))*1 -> 0 | F23: =SUMIF(OFFSET(INDIRECT("Raw"&C18&"!$C$1"),$F$13,1,1,50),F$1,OFFSET(INDIRECT("Raw"&C18&"!$C$1"),$E$13+$A23,1,1,50))*1 -> 0 | G23: =SUMIF(OFFSET(INDIRECT("Raw"&C18&"!$C$1"),$F$13,1,1,50),G$1,OFFSET(INDIRECT("Raw"&C18&"!$C$1"),$E$13+$A23,1,1,50))*1 -> 0 | H23: =SUMIF(OFFSET(INDIRECT("Raw"&C18&"!$C$1"),$F$13,1,1,50),H$1,OFFSET(INDIRECT("Raw"&C18&"!$C$1"),$E$13+$A23,1,1,50))*1 -> 0 | I23: =SUMIF(OFFSET(INDIRECT("Raw"&C18&"!$C$1"),$F$13,1,1,50),I$1,OFFSET(INDIRECT("Raw"&C18&"!$C$1"),$E$13+$A23,1,1,50))*1 -> 0 | J23: =SUMIF(OFFSET(INDIRECT("Raw"&C18&"!$C$1"),$F$13,1,1,50),J$1,OFFSET(INDIRECT("Raw"&C18&"!$C$1"),$E$13+$A23,1,1,50))*1 -> 0 | K23: =SUMIF(OFFSET(INDIRECT("Raw"&C18&"!$C$1"),$F$13,1,1,50),K$1,OFFSET(INDIRECT("Raw"&C18&"!$C$1"),$E$13+$A23,1,1,50))*1 -> 0 | L23: 36 | M23: =SUMIF(OFFSET(INDIRECT("Raw"&C18&"!$C$1"),$F$12,1,1,50),M$1,OFFSET(INDIRECT("Raw"&C18&"!$C$1"),$E$12+$A23,1,1,50))*1 -> 12.05 | N23: =SUMIF(OFFSET(INDIRECT("Raw"&C18&"!$C$1"),$F$12,1,1,50),N$1,OFFSET(INDIRECT("Raw"&C18&"!$C$1"),$E$12+$A23,1,1,50))*1 -> 0 | O23: =SUMIF(OFFSET(INDIRECT("Raw"&C18&"!$C$1"),$F$12,1,1,50),O$1,OFFSET(INDIRECT("Raw"&C18&"!$C$1"),$E$12+$A23,1,1,50))*1 -> 0 | P23: =SUMIF(OFFSET(INDIRECT("Raw"&C18&"!$C$1"),$F$12,1,1,50),P$1,OFFSET(INDIRECT("Raw"&C18&"!$C$1"),$E$12+$A23,1,1,50))*1 -> 0 | Q23: 12.05 | U23: 131 | V23: GHw | W23: Ghana | X23: 4154.13 | Y23: 1502 | Z23: 1380.26 | AA23: 1
A24: 8 | B24: 2014 | C24: =SUMIF(OFFSET(INDIRECT("Raw"&C18&"!$C$1"),$F$13,1,1,50),C$1,OFFSET(INDIRECT("Raw"&C18&"!$C$1"),$E$13+$A24,1,1,50))*1 -> 0 | D24: =SUMIF(OFFSET(INDIRECT("Raw"&C18&"!$C$1"),$F$13,1,1,50),D$1,OFFSET(INDIRECT("Raw"&C18&"!$C$1"),$E$13+$A24,1,1,50))*1 -> 0 | E24: =SUMIF(OFFSET(INDIRECT("Raw"&C18&"!$C$1"),$F$13,1,1,50),E$1,OFFSET(INDIRECT("Raw"&C18&"!$C$1"),$E$13+$A24,1,1,50))*1 -> 0 | F24: =SUMIF(OFFSET(INDIRECT("Raw"&C18&"!$C$1"),$F$13,1,1,50),F$1,OFFSET(INDIRECT("Raw"&C18&"!$C$1"),$E$13+$A24,1,1,50))*1 -> 0 | G24: =SUMIF(OFFSET(INDIRECT("Raw"&C18&"!$C$1"),$F$13,1,1,50),G$1,OFFSET(INDIRECT("Raw"&C18&"!$C$1"),$E$13+$A24,1,1,50))*1 -> 0 | H24: =SUMIF(OFFSET(INDIRECT("Raw"&C18&"!$C$1"),$F$13,1,1,50),H$1,OFFSET(INDIRECT("Raw"&C18&"!$C$1"),$E$13+$A24,1,1,50))*1 -> 0 | I24: =SUMIF(OFFSET(INDIRECT("Raw"&C18&"!$C$1"),$F$13,1,1,50),I$1,OFFSET(INDIRECT("Raw"&C18&"!$C$1"),$E$13+$A24,1,1,50))*1 -> 0 | J24: =SUMIF(OFFSET(INDIRECT("Raw"&C18&"!$C$1"),$F$13,1,1,50),J$1,OFFSET(INDIRECT("Raw"&C18&"!$C$1"),$E$13+$A24,1,1,50))*1 -> 0 | K24: =SUMIF(OFFSET(INDIRECT("Raw"&C18&"!$C$1"),$F$13,1,1,50),K$1,OFFSET(INDIRECT("Raw"&C18&"!$C$1"),$E$13+$A24,1,1,50))*1 -> 11.35 | L24: 11.35 | M24: =SUMIF(OFFSET(INDIRECT("Raw"&C18&"!$C$1"),$F$12,1,1,50),M$1,OFFSET(INDIRECT("Raw"&C18&"!$C$1"),$E$12+$A24,1,1,50))*1 -> 11.07 | N24: =SUMIF(OFFSET(INDIRECT("Raw"&C18&"!$C$1"),$F$12,1,1,50),N$1,OFFSET(INDIRECT("Raw"&C18&"!$C$1"),$E$12+$A24,1,1,50))*1 -> 0 | O24: =SUMIF(OFFSET(INDIRECT("Raw"&C18&"!$C$1"),$F$12,1,1,50),O$1,OFFSET(INDIRECT("Raw"&C18&"!$C$1"),$E$12+$A24,1,1,50))*1 -> 3.62 | P24: =SUMIF(OFFSET(INDIRECT("Raw"&C18&"!$C$1"),$F$12,1,1,50),P$1,OFFSET(INDIRECT("Raw"&C18&"!$C$1"),$E$12+$A24,1,1,50))*1 -> 0 | Q24: 14.69 | U24: 160 | V24: GUw | W24: Guinea | X24: 3443.78 | Y24: 3216.98 | Z24: 310.79 | AA24: 119.94
A25: 9 | B25: 2015 | C25: =SUMIF(OFFSET(INDIRECT("Raw"&C18&"!$C$1"),$F$13,1,1,50),C$1,OFFSET(INDIRECT("Raw"&C18&"!$C$1"),$E$13+$A25,1,1,50))*1 -> 0 | D25: =SUMIF(OFFSET(INDIRECT("Raw"&C18&"!$C$1"),$F$13,1,1,50),D$1,OFFSET(INDIRECT("Raw"&C18&"!$C$1"),$E$13+$A25,1,1,50))*1 -> 0 | E25: =SUMIF(OFFSET(INDIRECT("Raw"&C18&"!$C$1"),$F$13,1,1,50),E$1,OFFSET(INDIRECT("Raw"&C18&"!$C$1"),$E$13+$A25,1,1,50))*1 -> 0 | F25: =SUMIF(OFFSET(INDIRECT("Raw"&C18&"!$C$1"),$F$13,1,1,50),F$1,OFFSET(INDIRECT("Raw"&C18&"!$C$1"),$E$13+$A25,1,1,50))*1 -> 0 | G25: =SUMIF(OFFSET(INDIRECT("Raw"&C18&"!$C$1"),$F$13,1,1,50),G$1,OFFSET(INDIRECT("Raw"&C18&"!$C$1"),$E$13+$A25,1,1,50))*1 -> 0 | H25: =SUMIF(OFFSET(INDIRECT("Raw"&C18&"!$C$1"),$F$13,1,1,50),H$1,OFFSET(INDIRECT("Raw"&C18&"!$C$1"),$E$13+$A25,1,1,50))*1 -> 0 | I25: =SUMIF(OFFSET(INDIRECT("Raw"&C18&"!$C$1"),$F$13,1,1,50),I$1,OFFSET(INDIRECT("Raw"&C18&"!$C$1"),$E$13+$A25,1,1,50))*1 -> 0 | J25: =SUMIF(OFFSET(INDIRECT("Raw"&C18&"!$C$1"),$F$13,1,1,50),J$1,OFFSET(INDIRECT("Raw"&C18&"!$C$1"),$E$13+$A25,1,1,50))*1 -> 0 | K25: =SUMIF(OFFSET(INDIRECT("Raw"&C18&"!$C$1"),$F$13,1,1,50),K$1,OFFSET(INDIRECT("Raw"&C18&"!$C$1"),$E$13+$A25,1,1,50))*1 -> 0 | L25: 0 | M25: =SUMIF(OFFSET(INDIRECT("Raw"&C18&"!$C$1"),$F$12,1,1,50),M$1,OFFSET(INDIRECT("Raw"&C18&"!$C$1"),$E$12+$A25,1,1,50))*1 -> 2.76 | N25: =SUMIF(OFFSET(INDIRECT("Raw"&C18&"!$C$1"),$F$12,1,1,50),N$1,OFFSET(INDIRECT("Raw"&C18&"!$C$1"),$E$12+$A25,1,1,50))*1 -> 0 | O25: =SUMIF(OFFSET(INDIRECT("Raw"&C18&"!$C$1"),$F$12,1,1,50),O$1,OFFSET(INDIRECT("Raw"&C18&"!$C$1"),$E$12+$A25,1,1,50))*1 -> 0.53 | P25: =SUMIF(OFFSET(INDIRECT("Raw"&C18&"!$C$1"),$F$12,1,1,50),P$1,OFFSET(INDIRECT("Raw"&C18&"!$C$1"),$E$12+$A25,1,1,50))*1 -> 0 | Q25: 3.29 | U25: 189 | V25: GBw | W25: Guinea-Bissau | X25: 217.18 | Y25: 48.28 | Z25: 48.71 | AA25: 1.72
A26: 10 | B26: 2016 | C26: =SUMIF(OFFSET(INDIRECT("Raw"&C18&"!$C$1"),$F$13,1,1,50),C$1,OFFSET(INDIRECT("Raw"&C18&"!$C$1"),$E$13+$A26,1,1,50))*1 -> 0 | D26: =SUMIF(OFFSET(INDIRECT("Raw"&C18&"!$C$1"),$F$13,1,1,50),D$1,OFFSET(INDIRECT("Raw"&C18&"!$C$1"),$E$13+$A26,1,1,50))*1 -> 0 | E26: =SUMIF(OFFSET(INDIRECT("Raw"&C18&"!$C$1"),$F$13,1,1,50),E$1,OFFSET(INDIRECT("Raw"&C18&"!$C$1"),$E$13+$A26,1,1,50))*1 -> 0 | F26: =SUMIF(OFFSET(INDIRECT("Raw"&C18&"!$C$1"),$F$13,1,1,50),F$1,OFFSET(INDIRECT("Raw"&C18&"!$C$1"),$E$13+$A26,1,1,50))*1 -> 0 | G26: =SUMIF(OFFSET(INDIRECT("Raw"&C18&"!$C$1"),$F$13,1,1,50),G$1,OFFSET(INDIRECT("Raw"&C18&"!$C$1"),$E$13+$A26,1,1,50))*1 -> 0 | H26: =SUMIF(OFFSET(INDIRECT("Raw"&C18&"!$C$1"),$F$13,1,1,50),H$1,OFFSET(INDIRECT("Raw"&C18&"!$C$1"),$E$13+$A26,1,1,50))*1 -> 0 | I26: =SUMIF(OFFSET(INDIRECT("Raw"&C18&"!$C$1"),$F$13,1,1,50),I$1,OFFSET(INDIRECT("Raw"&C18&"!$C$1"),$E$13+$A26,1,1,50))*1 -> 0 | J26: =SUMIF(OFFSET(INDIRECT("Raw"&C18&"!$C$1"),$F$13,1,1,50),J$1,OFFSET(INDIRECT("Raw"&C18&"!$C$1"),$E$13+$A26,1,1,50))*1 -> 0 | K26: =SUMIF(OFFSET(INDIRECT("Raw"&C18&"!$C$1"),$F$13,1,1,50),K$1,OFFSET(INDIRECT("Raw"&C18&"!$C$1"),$E$13+$A26,1,1,50))*1 -> 0 | L26: 0 | M26: =SUMIF(OFFSET(INDIRECT("Raw"&C18&"!$C$1"),$F$12,1,1,50),M$1,OFFSET(INDIRECT("Raw"&C18&"!$C$1"),$E$12+$A26,1,1,50))*1 -> 3.5 | N26: =SUMIF(OFFSET(INDIRECT("Raw"&C18&"!$C$1"),$F$12,1,1,50),N$1,OFFSET(INDIRECT("Raw"&C18&"!$C$1"),$E$12+$A26,1,1,50))*1 -> 0 | O26: =SUMIF(OFFSET(INDIRECT("Raw"&C18&"!$C$1"),$F$12,1,1,50),O$1,OFFSET(INDIRECT("Raw"&C18&"!$C$1"),$E$12+$A26,1,1,50))*1 -> 2.17 | P26: =SUMIF(OFFSET(INDIRECT("Raw"&C18&"!$C$1"),$F$12,1,1,50),P$1,OFFSET(INDIRECT("Raw"&C18&"!$C$1"),$E$12+$A26,1,1,50))*1 -> 0 | Q26: 5.67 | U26: 218 | V26: LIw | W26: Liberia | X26: 469.37 | Y26: 303.5 | Z26: 80.11 | AA26: 37.9
A27: 11 | B27: 2017 | C27: =SUMIF(OFFSET(INDIRECT("Raw"&C18&"!$C$1"),$F$13,1,1,50),C$1,OFFSET(INDIRECT("Raw"&C18&"!$C$1"),$E$13+$A27,1,1,50))*1 -> 0 | D27: =SUMIF(OFFSET(INDIRECT("Raw"&C18&"!$C$1"),$F$13,1,1,50),D$1,OFFSET(INDIRECT("Raw"&C18&"!$C$1"),$E$13+$A27,1,1,50))*1 -> 0 | E27: =SUMIF(OFFSET(INDIRECT("Raw"&C18&"!$C$1"),$F$13,1,1,50),E$1,OFFSET(INDIRECT("Raw"&C18&"!$C$1"),$E$13+$A27,1,1,50))*1 -> 0 | F27: =SUMIF(OFFSET(INDIRECT("Raw"&C18&"!$C$1"),$F$13,1,1,50),F$1,OFFSET(INDIRECT("Raw"&C18&"!$C$1"),$E$13+$A27,1,1,50))*1 -> 0 | G27: =SUMIF(OFFSET(INDIRECT("Raw"&C18&"!$C$1"),$F$13,1,1,50),G$1,OFFSET(INDIRECT("Raw"&C18&"!$C$1"),$E$13+$A27,1,1,50))*1 -> 0 | H27: =SUMIF(OFFSET(INDIRECT("Raw"&C18&"!$C$1"),$F$13,1,1,50),H$1,OFFSET(INDIRECT("Raw"&C18&"!$C$1"),$E$13+$A27,1,1,50))*1 -> 0 | I27: =SUMIF(OFFSET(INDIRECT("Raw"&C18&"!$C$1"),$F$13,1,1,50),I$1,OFFSET(INDIRECT("Raw"&C18&"!$C$1"),$E$13+$A27,1,1,50))*1 -> 0 | J27: =SUMIF(OFFSET(INDIRECT("Raw"&C18&"!$C$1"),$F$13,1,1,50),J$1,OFFSET(INDIRECT("Raw"&C18&"!$C$1"),$E$13+$A27,1,1,50))*1 -> 0 | K27: =SUMIF(OFFSET(INDIRECT("Raw"&C18&"!$C$1"),$F$13,1,1,50),K$1,OFFSET(INDIRECT("Raw"&C18&"!$C$1"),$E$13+$A27,1,1,50))*1 -> 0 | L27: 0 | M27: =SUMIF(OFFSET(INDIRECT("Raw"&C18&"!$C$1"),$F$12,1,1,50),M$1,OFFSET(INDIRECT("Raw"&C18&"!$C$1"),$E$12+$A27,1,1,50))*1 -> 3.77 | N27: =SUMIF(OFFSET(INDIRECT("Raw"&C18&"!$C$1"),$F$12,1,1,50),N$1,OFFSET(INDIRECT("Raw"&C18&"!$C$1"),$E$12+$A27,1,1,50))*1 -> 0 | O27: =SUMIF(OFFSET(INDIRECT("Raw"&C18&"!$C$1"),$F$12,1,1,50),O$1,OFFSET(INDIRECT("Raw"&C18&"!$C$1"),$E$12+$A27,1,1,50))*1 -> 0.51 | P27: =SUMIF(OFFSET(INDIRECT("Raw"&C18&"!$C$1"),$F$12,1,1,50),P$1,OFFSET(INDIRECT("Raw"&C18&"!$C$1"),$E$12+$A27,1,1,50))*1 -> 0 | Q27: 4.28 | U27: 247 | V27: MAw | W27: Mali | X27: 647.53 | Y27: 439.46 | Z27: 234.84 | AA27: 72.15
A28: 12 | B28: 2018 | C28: =SUMIF(OFFSET(INDIRECT("Raw"&C18&"!$C$1"),$F$13,1,1,50),C$1,OFFSET(INDIRECT("Raw"&C18&"!$C$1"),$E$13+$A28,1,1,50))*1 -> 0 | D28: =SUMIF(OFFSET(INDIRECT("Raw"&C18&"!$C$1"),$F$13,1,1,50),D$1,OFFSET(INDIRECT("Raw"&C18&"!$C$1"),$E$13+$A28,1,1,50))*1 -> 0 | E28: =SUMIF(OFFSET(INDIRECT("Raw"&C18&"!$C$1"),$F$13,1,1,50),E$1,OFFSET(INDIRECT("Raw"&C18&"!$C$1"),$E$13+$A28,1,1,50))*1 -> 0 | F28: =SUMIF(OFFSET(INDIRECT("Raw"&C18&"!$C$1"),$F$13,1,1,50),F$1,OFFSET(INDIRECT("Raw"&C18&"!$C$1"),$E$13+$A28,1,1,50))*1 -> 0 | G28: =SUMIF(OFFSET(INDIRECT("Raw"&C18&"!$C$1"),$F$13,1,1,50),G$1,OFFSET(INDIRECT("Raw"&C18&"!$C$1"),$E$13+$A28,1,1,50))*1 -> 0 | H28: =SUMIF(OFFSET(INDIRECT("Raw"&C18&"!$C$1"),$F$13,1,1,50),H$1,OFFSET(INDIRECT("Raw"&C18&"!$C$1"),$E$13+$A28,1,1,50))*1 -> 0 | I28: =SUMIF(OFFSET(INDIRECT("Raw"&C18&"!$C$1"),$F$13,1,1,50),I$1,OFFSET(INDIRECT("Raw"&C18&"!$C$1"),$E$13+$A28,1,1,50))*1 -> 0 | J28: =SUMIF(OFFSET(INDIRECT("Raw"&C18&"!$C$1"),$F$13,1,1,50),J$1,OFFSET(INDIRECT("Raw"&C18&"!$C$1"),$E$13+$A28,1,1,50))*1 -> 0 | K28: =SUMIF(OFFSET(INDIRECT("Raw"&C18&"!$C$1"),$F$13,1,1,50),K$1,OFFSET(INDIRECT("Raw"&C18&"!$C$1"),$E$13+$A28,1,1,50))*1 -> 0 | L28: 0 | M28: =SUMIF(OFFSET(INDIRECT("Raw"&C18&"!$C$1"),$F$12,1,1,50),M$1,OFFSET(INDIRECT("Raw"&C18&"!$C$1"),$E$12+$A28,1,1,50))*1 -> 3.84 | N28: =SUMIF(OFFSET(INDIRECT("Raw"&C18&"!$C$1"),$F$12,1,1,50),N$1,OFFSET(INDIRECT("Raw"&C18&"!$C$1"),$E$12+$A28,1,1,50))*1 -> 0 | O28: =SUMIF(OFFSET(INDIRECT("Raw"&C18&"!$C$1"),$F$12,1,1,50),O$1,OFFSET(INDIRECT("Raw"&C18&"!$C$1"),$E$12+$A28,1,1,50))*1 -> 2.21 | P28: =SUMIF(OFFSET(INDIRECT("Raw"&C18&"!$C$1"),$F$12,1,1,50),P$1,OFFSET(INDIRECT("Raw"&C18&"!$C$1"),$E$12+$A28,1,1,50))*1 -> 0 | Q28: 6.05 | U28: 276 | V28: NIw | W28: Niger | X28: 447.5 | Y28: 278.37 | Z28: 153.59 | AA28: 47.13
A29: 13 | B29: 2019 | C29: =SUMIF(OFFSET(INDIRECT("Raw"&C18&"!$C$1"),$F$13,1,1,50),C$1,OFFSET(INDIRECT("Raw"&C18&"!$C$1"),$E$13+$A29,1,1,50))*1 -> 0 | D29: =SUMIF(OFFSET(INDIRECT("Raw"&C18&"!$C$1"),$F$13,1,1,50),D$1,OFFSET(INDIRECT("Raw"&C18&"!$C$1"),$E$13+$A29,1,1,50))*1 -> 0 | E29: =SUMIF(OFFSET(INDIRECT("Raw"&C18&"!$C$1"),$F$13,1,1,50),E$1,OFFSET(INDIRECT("Raw"&C18&"!$C$1"),$E$13+$A29,1,1,50))*1 -> 0 | F29: =SUMIF(OFFSET(INDIRECT("Raw"&C18&"!$C$1"),$F$13,1,1,50),F$1,OFFSET(INDIRECT("Raw"&C18&"!$C$1"),$E$13+$A29,1,1,50))*1 -> 0 | G29: =SUMIF(OFFSET(INDIRECT("Raw"&C18&"!$C$1"),$F$13,1,1,50),G$1,OFFSET(INDIRECT("Raw"&C18&"!$C$1"),$E$13+$A29,1,1,50))*1 -> 0 | H29: =SUMIF(OFFSET(INDIRECT("Raw"&C18&"!$C$1"),$F$13,1,1,50),H$1,OFFSET(INDIRECT("Raw"&C18&"!$C$1"),$E$13+$A29,1,1,50))*1 -> 1.09 | I29: =SUMIF(OFFSET(INDIRECT("Raw"&C18&"!$C$1"),$F$13,1,1,50),I$1,OFFSET(INDIRECT("Raw"&C18&"!$C$1"),$E$13+$A29,1,1,50))*1 -> 0 | J29: =SUMIF(OFFSET(INDIRECT("Raw"&C18&"!$C$1"),$F$13,1,1,50),J$1,OFFSET(INDIRECT("Raw"&C18&"!$C$1"),$E$13+$A29,1,1,50))*1 -> 0 | K29: =SUMIF(OFFSET(INDIRECT("Raw"&C18&"!$C$1"),$F$13,1,1,50),K$1,OFFSET(INDIRECT("Raw"&C18&"!$C$1"),$E$13+$A29,1,1,50))*1 -> 0 | L29: 1.09 | M29: =SUMIF(OFFSET(INDIRECT("Raw"&C18&"!$C$1"),$F$12,1,1,50),M$1,OFFSET(INDIRECT("Raw"&C18&"!$C$1"),$E$12+$A29,1,1,50))*1 -> 3.98 | N29: =SUMIF(OFFSET(INDIRECT("Raw"&C18&"!$C$1"),$F$12,1,1,50),N$1,OFFSET(INDIRECT("Raw"&C18&"!$C$1"),$E$12+$A29,1,1,50))*1 -> 0 | O29: =SUMIF(OFFSET(INDIRECT("Raw"&C18&"!$C$1"),$F$12,1,1,50),O$1,OFFSET(INDIRECT("Raw"&C18&"!$C$1"),$E$12+$A29,1,1,50))*1 -> 3.12 | P29: =SUMIF(OFFSET(INDIRECT("Raw"&C18&"!$C$1"),$F$12,1,1,50),P$1,OFFSET(INDIRECT("Raw"&C18&"!$C$1"),$E$12+$A29,1,1,50))*1 -> 0 | Q29: 7.1 | U29: 305 | V29: NGw | W29: Nigeria | X29: 32079.49 | Y29: 10141.7 | Z29: 8609.85 | AA29: 2567.33
A30: 14 | B30: 2020 | C30: =SUMIF(OFFSET(INDIRECT("Raw"&C18&"!$C$1"),$F$13,1,1,50),C$1,OFFSET(INDIRECT("Raw"&C18&"!$C$1"),$E$13+$A30,1,1,50))*1 -> 0 | D30: =SUMIF(OFFSET(INDIRECT("Raw"&C18&"!$C$1"),$F$13,1,1,50),D$1,OFFSET(INDIRECT("Raw"&C18&"!$C$1"),$E$13+$A30,1,1,50))*1 -> 0 | E30: =SUMIF(OFFSET(INDIRECT("Raw"&C18&"!$C$1"),$F$13,1,1,50),E$1,OFFSET(INDIRECT("Raw"&C18&"!$C$1"),$E$13+$A30,1,1,50))*1 -> 0 | F30: =SUMIF(OFFSET(INDIRECT("Raw"&C18&"!$C$1"),$F$13,1,1,50),F$1,OFFSET(INDIRECT("Raw"&C18&"!$C$1"),$E$13+$A30,1,1,50))*1 -> 0 | G30: =SUMIF(OFFSET(INDIRECT("Raw"&C18&"!$C$1"),$F$13,1,1,50),G$1,OFFSET(INDIRECT("Raw"&C18&"!$C$1"),$E$13+$A30,1,1,50))*1 -> 0 | H30: =SUMIF(OFFSET(INDIRECT("Raw"&C18&"!$C$1"),$F$13,1,1,50),H$1,OFFSET(INDIRECT("Raw"&C18&"!$C$1"),$E$13+$A30,1,1,50))*1 -> 1.05 | I30: =SUMIF(OFFSET(INDIRECT("Raw"&C18&"!$C$1"),$F$13,1,1,50),I$1,OFFSET(INDIRECT("Raw"&C18&"!$C$1"),$E$13+$A30,1,1,50))*1 -> 0 | J30: =SUMIF(OFFSET(INDIRECT("Raw"&C18&"!$C$1"),$F$13,1,1,50),J$1,OFFSET(INDIRECT("Raw"&C18&"!$C$1"),$E$13+$A30,1,1,50))*1 -> 0 | K30: =SUMIF(OFFSET(INDIRECT("Raw"&C18&"!$C$1"),$F$13,1,1,50),K$1,OFFSET(INDIRECT("Raw"&C18&"!$C$1"),$E$13+$A30,1,1,50))*1 -> 0 | L30: 1.05 | M30: =SUMIF(OFFSET(INDIRECT("Raw"&C18&"!$C$1"),$F$12,1,1,50),M$1,OFFSET(INDIRECT("Raw"&C18&"!$C$1"),$E$12+$A30,1,1,50))*1 -> 15.14 | N30: =SUMIF(OFFSET(INDIRECT("Raw"&C18&"!$C$1"),$F$12,1,1,50),N$1,OFFSET(INDIRECT("Raw"&C18&"!$C$1"),$E$12+$A30,1,1,50))*1 -> 0 | O30: =SUMIF(OFFSET(INDIRECT("Raw"&C18&"!$C$1"),$F$12,1,1,50),O$1,OFFSET(INDIRECT("Raw"&C18&"!$C$1"),$E$12+$A30,1,1,50))*1 -> 3.08 | P30: =SUMIF(OFFSET(INDIRECT("Raw"&C18&"!$C$1"),$F$12,1,1,50),P$1,OFFSET(INDIRECT("Raw"&C18&"!$C$1"),$E$12+$A30,1,1,50))*1 -> 0 | Q30: 18.22 | U30: 334 | V30: SEw | W30: Senegal | X30: 1300.23 | Y30: 664.78 | Z30: 472.04 | AA30: 104.09
A31: 15 | B31: 2021 | C31: =SUMIF(OFFSET(INDIRECT("Raw"&C18&"!$C$1"),$F$13,1,1,50),C$1,OFFSET(INDIRECT("Raw"&C18&"!$C$1"),$E$13+$A31,1,1,50))*1 -> 0 | D31: =SUMIF(OFFSET(INDIRECT("Raw"&C18&"!$C$1"),$F$13,1,1,50),D$1,OFFSET(INDIRECT("Raw"&C18&"!$C$1"),$E$13+$A31,1,1,50))*1 -> 8.29 | E31: =SUMIF(OFFSET(INDIRECT("Raw"&C18&"!$C$1"),$F$13,1,1,50),E$1,OFFSET(INDIRECT("Raw"&C18&"!$C$1"),$E$13+$A31,1,1,50))*1 -> 0 | F31: =SUMIF(OFFSET(INDIRECT("Raw"&C18&"!$C$1"),$F$13,1,1,50),F$1,OFFSET(INDIRECT("Raw"&C18&"!$C$1"),$E$13+$A31,1,1,50))*1 -> 0 | G31: =SUMIF(OFFSET(INDIRECT("Raw"&C18&"!$C$1"),$F$13,1,1,50),G$1,OFFSET(INDIRECT("Raw"&C18&"!$C$1"),$E$13+$A31,1,1,50))*1 -> 0 | H31: =SUMIF(OFFSET(INDIRECT("Raw"&C18&"!$C$1"),$F$13,1,1,50),H$1,OFFSET(INDIRECT("Raw"&C18&"!$C$1"),$E$13+$A31,1,1,50))*1 -> 1.15 | I31: =SUMIF(OFFSET(INDIRECT("Raw"&C18&"!$C$1"),$F$13,1,1,50),I$1,OFFSET(INDIRECT("Raw"&C18&"!$C$1"),$E$13+$A31,1,1,50))*1 -> 0 | J31: =SUMIF(OFFSET(INDIRECT("Raw"&C18&"!$C$1"),$F$13,1,1,50),J$1,OFFSET(INDIRECT("Raw"&C18&"!$C$1"),$E$13+$A31,1,1,50))*1 -> 0 | K31: =SUMIF(OFFSET(INDIRECT("Raw"&C18&"!$C$1"),$F$13,1,1,50),K$1,OFFSET(INDIRECT("Raw"&C18&"!$C$1"),$E$13+$A31,1,1,50))*1 -> 0 | L31: 9.44 | M31: =SUMIF(OFFSET(INDIRECT("Raw"&C18&"!$C$1"),$F$12,1,1,50),M$1,OFFSET(INDIRECT("Raw"&C18&"!$C$1"),$E$12+$A31,1,1,50))*1 -> 17.13 | N31: =SUMIF(OFFSET(INDIRECT("Raw"&C18&"!$C$1"),$F$12,1,1,50),N$1,OFFSET(INDIRECT("Raw"&C18&"!$C$1"),$E$12+$A31,1,1,50))*1 -> 0 | O31: =SUMIF(OFFSET(INDIRECT("Raw"&C18&"!$C$1"),$F$12,1,1,50),O$1,OFFSET(INDIRECT("Raw"&C18&"!$C$1"),$E$12+$A31,1,1,50))*1 -> 2.93 | P31: =SUMIF(OFFSET(INDIRECT("Raw"&C18&"!$C$1"),$F$12,1,1,50),P$1,OFFSET(INDIRECT("Raw"&C18&"!$C$1"),$E$12+$A31,1,1,50))*1 -> 0 | Q31: 20.06 | U31: 363 | V31: SIw | W31: Sierra Leone | X31: 1233.26 | Y31: 896.36 | Z31: 262.63 | AA31: 89.96
A32: 16 | B32: 2022 | C32: =SUMIF(OFFSET(INDIRECT("Raw"&C18&"!$C$1"),$F$13,1,1,50),C$1,OFFSET(INDIRECT("Raw"&C18&"!$C$1"),$E$13+$A32,1,1,50))*1 -> 0 | D32: =SUMIF(OFFSET(INDIRECT("Raw"&C18&"!$C$1"),$F$13,1,1,50),D$1,OFFSET(INDIRECT("Raw"&C18&"!$C$1"),$E$13+$A32,1,1,50))*1 -> 0 | E32: =SUMIF(OFFSET(INDIRECT("Raw"&C18&"!$C$1"),$F$13,1,1,50),E$1,OFFSET(INDIRECT("Raw"&C18&"!$C$1"),$E$13+$A32,1,1,50))*1 -> 0 | F32: =SUMIF(OFFSET(INDIRECT("Raw"&C18&"!$C$1"),$F$13,1,1,50),F$1,OFFSET(INDIRECT("Raw"&C18&"!$C$1"),$E$13+$A32,1,1,50))*1 -> 0 | G32: =SUMIF(OFFSET(INDIRECT("Raw"&C18&"!$C$1"),$F$13,1,1,50),G$1,OFFSET(INDIRECT("Raw"&C18&"!$C$1"),$E$13+$A32,1,1,50))*1 -> 0 | H32: =SUMIF(OFFSET(INDIRECT("Raw"&C18&"!$C$1"),$F$13,1,1,50),H$1,OFFSET(INDIRECT("Raw"&C18&"!$C$1"),$E$13+$A32,1,1,50))*1 -> 7.98 | I32: =SUMIF(OFFSET(INDIRECT("Raw"&C18&"!$C$1"),$F$13,1,1,50),I$1,OFFSET(INDIRECT("Raw"&C18&"!$C$1"),$E$13+$A32,1,1,50))*1 -> 0 | J32: =SUMIF(OFFSET(INDIRECT("Raw"&C18&"!$C$1"),$F$13,1,1,50),J$1,OFFSET(INDIRECT("Raw"&C18&"!$C$1"),$E$13+$A32,1,1,50))*1 -> 0 | K32: =SUMIF(OFFSET(INDIRECT("Raw"&C18&"!$C$1"),$F$13,1,1,50),K$1,OFFSET(INDIRECT("Raw"&C18&"!$C$1"),$E$13+$A32,1,1,50))*1 -> 0 | L32: 7.98 | M32: =SUMIF(OFFSET(INDIRECT("Raw"&C18&"!$C$1"),$F$12,1,1,50),M$1,OFFSET(INDIRECT("Raw"&C18&"!$C$1"),$E$12+$A32,1,1,50))*1 -> 19.58 | N32: =SUMIF(OFFSET(INDIRECT("Raw"&C18&"!$C$1"),$F$12,1,1,50),N$1,OFFSET(INDIRECT("Raw"&C18&"!$C$1"),$E$12+$A32,1,1,50))*1 -> 0 | O32: =SUMIF(OFFSET(INDIRECT("Raw"&C18&"!$C$1"),$F$12,1,1,50),O$1,OFFSET(INDIRECT("Raw"&C18&"!$C$1"),$E$12+$A32,1,1,50))*1 -> 3.13 | P32: =SUMIF(OFFSET(INDIRECT("Raw"&C18&"!$C$1"),$F$12,1,1,50),P$1,OFFSET(INDIRECT("Raw"&C18&"!$C$1"),$E$12+$A32,1,1,50))*1 -> 0 | Q32: 22.71 | U32: 392 | V32: TBw | W32: Togo/Benin | X32: 1383.29 | Y32: 769.2 | Z32: 501.67 | AA32: 89.86
A33: 17 | B33: 2023 | C33: =SUMIF(OFFSET(INDIRECT("Raw"&C18&"!$C$1"),$F$13,1,1,50),C$1,OFFSET(INDIRECT("Raw"&C18&"!$C$1"),$E$13+$A33,1,1,50))*1 -> 0 | D33: =SUMIF(OFFSET(INDIRECT("Raw"&C18&"!$C$1"),$F$13,1,1,50),D$1,OFFSET(INDIRECT("Raw"&C18&"!$C$1"),$E$13+$A33,1,1,50))*1 -> 0 | E33: =SUMIF(OFFSET(INDIRECT("Raw"&C18&"!$C$1"),$F$13,1,1,50),E$1,OFFSET(INDIRECT("Raw"&C18&"!$C$1"),$E$13+$A33,1,1,50))*1 -> 0 | F33: =SUMIF(OFFSET(INDIRECT("Raw"&C18&"!$C$1"),$F$13,1,1,50),F$1,OFFSET(INDIRECT("Raw"&C18&"!$C$1"),$E$13+$A33,1,1,50))*1 -> 0 | G33: =SUMIF(OFFSET(INDIRECT("Raw"&C18&"!$C$1"),$F$13,1,1,50),G$1,OFFSET(INDIRECT("Raw"&C18&"!$C$1"),$E$13+$A33,1,1,50))*1 -> 0 | H33: =SUMIF(OFFSET(INDIRECT("Raw"&C18&"!$C$1"),$F$13,1,1,50),H$1,OFFSET(INDIRECT("Raw"&C18&"!$C$1"),$E$13+$A33,1,1,50))*1 -> 39.58 | I33: =SUMIF(OFFSET(INDIRECT("Raw"&C18&"!$C$1"),$F$13,1,1,50),I$1,OFFSET(INDIRECT("Raw"&C18&"!$C$1"),$E$13+$A33,1,1,50))*1 -> 0 | J33: =SUMIF(OFFSET(INDIRECT("Raw"&C18&"!$C$1"),$F$13,1,1,50),J$1,OFFSET(INDIRECT("Raw"&C18&"!$C$1"),$E$13+$A33,1,1,50))*1 -> 0 | K33: =SUMIF(OFFSET(INDIRECT("Raw"&C18&"!$C$1"),$F$13,1,1,50),K$1,OFFSET(INDIRECT("Raw"&C18&"!$C$1"),$E$13+$A33,1,1,50))*1 -> 0 | L33: 39.58 | M33: =SUMIF(OFFSET(INDIRECT("Raw"&C18&"!$C$1"),$F$12,1,1,50),M$1,OFFSET(INDIRECT("Raw"&C18&"!$C$1"),$E$12+$A33,1,1,50))*1 -> 2.01 | N33: =SUMIF(OFFSET(INDIRECT("Raw"&C18&"!$C$1"),$F$12,1,1,50),N$1,OFFSET(INDIRECT("Raw"&C18&"!$C$1"),$E$12+$A33,1,1,50))*1 -> 0 | O33: =SUMIF(OFFSET(INDIRECT("Raw"&C18&"!$C$1"),$F$12,1,1,50),O$1,OFFSET(INDIRECT("Raw"&C18&"!$C$1"),$E$12+$A33,1,1,50))*1 -> 3.34 | P33: =SUMIF(OFFSET(INDIRECT("Raw"&C18&"!$C$1"),$F$12,1,1,50),P$1,OFFSET(INDIRECT("Raw"&C18&"!$C$1"),$E$12+$A33,1,1,50))*1 -> 0 | Q33: 5.35 | W33: Total | X33: =SUM(X20:X32) -> 50025.25 | Y33: =SUM(Y20:Y32) -> 18833.87 | Z33: 13234.39 | AA33: 3345.24
A34: 18 | B34: 2024 | C34: =SUMIF(OFFSET(INDIRECT("Raw"&C18&"!$C$1"),$F$13,1,1,50),C$1,OFFSET(INDIRECT("Raw"&C18&"!$C$1"),$E$13+$A34,1,1,50))*1 -> 0 | D34: =SUMIF(OFFSET(INDIRECT("Raw"&C18&"!$C$1"),$F$13,1,1,50),D$1,OFFSET(INDIRECT("Raw"&C18&"!$C$1"),$E$13+$A34,1,1,50))*1 -> 0 | E34: =SUMIF(OFFSET(INDIRECT("Raw"&C18&"!$C$1"),$F$13,1,1,50),E$1,OFFSET(INDIRECT("Raw"&C18&"!$C$1"),$E$13+$A34,1,1,50))*1 -> 0 | F34: =SUMIF(OFFSET(INDIRECT("Raw"&C18&"!$C$1"),$F$13,1,1,50),F$1,OFFSET(INDIRECT("Raw"&C18&"!$C$1"),$E$13+$A34,1,1,50))*1 -> 0 | G34: =SUMIF(OFFSET(INDIRECT("Raw"&C18&"!$C$1"),$F$13,1,1,50),G$1,OFFSET(INDIRECT("Raw"&C18&"!$C$1"),$E$13+$A34,1,1,50))*1 -> 0 | H34: =SUMIF(OFFSET(INDIRECT("Raw"&C18&"!$C$1"),$F$13,1,1,50),H$1,OFFSET(INDIRECT("Raw"&C18&"!$C$1"),$E$13+$A34,1,1,50))*1 -> 39.86 | I34: =SUMIF(OFFSET(INDIRECT("Raw"&C18&"!$C$1"),$F$13,1,1,50),I$1,OFFSET(INDIRECT("Raw"&C18&"!$C$1"),$E$13+$A34,1,1,50))*1 -> 0 | J34: =SUMIF(OFFSET(INDIRECT("Raw"&C18&"!$C$1"),$F$13,1,1,50),J$1,OFFSET(INDIRECT("Raw"&C18&"!$C$1"),$E$13+$A34,1,1,50))*1 -> 0 | K34: =SUMIF(OFFSET(INDIRECT("Raw"&C18&"!$C$1"),$F$13,1,1,50),K$1,OFFSET(INDIRECT("Raw"&C18&"!$C$1"),$E$13+$A34,1,1,50))*1 -> 0 | L34: 39.86 | M34: =SUMIF(OFFSET(INDIRECT("Raw"&C18&"!$C$1"),$F$12,1,1,50),M$1,OFFSET(INDIRECT("Raw"&C18&"!$C$1"),$E$12+$A34,1,1,50))*1 -> 0.99 | N34: =SUMIF(OFFSET(INDIRECT("Raw"&C18&"!$C$1"),$F$12,1,1,50),N$1,OFFSET(INDIRECT("Raw"&C18&"!$C$1"),$E$12+$A34,1,1,50))*1 -> 0 | O34: =SUMIF(OFFSET(INDIRECT("Raw"&C18&"!$C$1"),$F$12,1,1,50),O$1,OFFSET(INDIRECT("Raw"&C18&"!$C$1"),$E$12+$A34,1,1,50))*1 -> 3.76 | P34: =SUMIF(OFFSET(INDIRECT("Raw"&C18&"!$C$1"),$F$12,1,1,50),P$1,OFFSET(INDIRECT("Raw"&C18&"!$C$1"),$E$12+$A34,1,1,50))*1 -> 0 | Q34: 4.75 | Y34: =(Y33+AA33)/(X33+Z33) -> 0.3506044296
A35: 19 | B35: 2025 | C35: =SUMIF(OFFSET(INDIRECT("Raw"&C18&"!$C$1"),$F$13,1,1,50),C$1,OFFSET(INDIRECT("Raw"&C18&"!$C$1"),$E$13+$A35,1,1,50))*1 -> 0 | D35: =SUMIF(OFFSET(INDIRECT("Raw"&C18&"!$C$1"),$F$13,1,1,50),D$1,OFFSET(INDIRECT("Raw"&C18&"!$C$1"),$E$13+$A35,1,1,50))*1 -> 0 | E35: =SUMIF(OFFSET(INDIRECT("Raw"&C18&"!$C$1"),$F$13,1,1,50),E$1,OFFSET(INDIRECT("Raw"&C18&"!$C$1"),$E$13+$A35,1,1,50))*1 -> 0 | F35: =SUMIF(OFFSET(INDIRECT("Raw"&C18&"!$C$1"),$F$13,1,1,50),F$1,OFFSET(INDIRECT("Raw"&C18&"!$C$1"),$E$13+$A35,1,1,50))*1 -> 0 | G35: =SUMIF(OFFSET(INDIRECT("Raw"&C18&"!$C$1"),$F$13,1,1,50),G$1,OFFSET(INDIRECT("Raw"&C18&"!$C$1"),$E$13+$A35,1,1,50))*1 -> 0 | H35: =SUMIF(OFFSET(INDIRECT("Raw"&C18&"!$C$1"),$F$13,1,1,50),H$1,OFFSET(INDIRECT("Raw"&C18&"!$C$1"),$E$13+$A35,1,1,50))*1 -> 38.94 | I35: =SUMIF(OFFSET(INDIRECT("Raw"&C18&"!$C$1"),$F$13,1,1,50),I$1,OFFSET(INDIRECT("Raw"&C18&"!$C$1"),$E$13+$A35,1,1,50))*1 -> 0 | J35: =SUMIF(OFFSET(INDIRECT("Raw"&C18&"!$C$1"),$F$13,1,1,50),J$1,OFFSET(INDIRECT("Raw"&C18&"!$C$1"),$E$13+$A35,1,1,50))*1 -> 0 | K35: =SUMIF(OFFSET(INDIRECT("Raw"&C18&"!$C$1"),$F$13,1,1,50),K$1,OFFSET(INDIRECT("Raw"&C18&"!$C$1"),$E$13+$A35,1,1,50))*1 -> 0 | L35: 38.94 | M35: =SUMIF(OFFSET(INDIRECT("Raw"&C18&"!$C$1"),$F$12,1,1,50),M$1,OFFSET(INDIRECT("Raw"&C18&"!$C$1"),$E$12+$A35,1,1,50))*1 -> 1.16 | N35: =SUMIF(OFFSET(INDIRECT("Raw"&C18&"!$C$1"),$F$12,1,1,50),N$1,OFFSET(INDIRECT("Raw"&C18&"!$C$1"),$E$12+$A35,1,1,50))*1 -> 0 | O35: =SUMIF(OFFSET(INDIRECT("Raw"&C18&"!$C$1"),$F$12,1,1,50),O$1,OFFSET(INDIRECT("Raw"&C18&"!$C$1"),$E$12+$A35,1,1,50))*1 -> 4.39 | P35: =SUMIF(OFFSET(INDIRECT("Raw"&C18&"!$C$1"),$F$12,1,1,50),P$1,OFFSET(INDIRECT("Raw"&C18&"!$C$1"),$E$12+$A35,1,1,50))*1 -> 0 | Q35: 5.55
A36: 20 | B36: 2026 | C36: =SUMIF(OFFSET(INDIRECT("Raw"&C18&"!$C$1"),$F$13,1,1,50),C$1,OFFSET(INDIRECT("Raw"&C18&"!$C$1"),$E$13+$A36,1,1,50))*1 -> 0 | D36: =SUMIF(OFFSET(INDIRECT("Raw"&C18&"!$C$1"),$F$13,1,1,50),D$1,OFFSET(INDIRECT("Raw"&C18&"!$C$1"),$E$13+$A36,1,1,50))*1 -> 0 | E36: =SUMIF(OFFSET(INDIRECT("Raw"&C18&"!$C$1"),$F$13,1,1,50),E$1,OFFSET(INDIRECT("Raw"&C18&"!$C$1"),$E$13+$A36,1,1,50))*1 -> 0 | F36: =SUMIF(OFFSET(INDIRECT("Raw"&C18&"!$C$1"),$F$13,1,1,50),F$1,OFFSET(INDIRECT("Raw"&C18&"!$C$1"),$E$13+$A36,1,1,50))*1 -> 0 | G36: =SUMIF(OFFSET(INDIRECT("Raw"&C18&"!$C$1"),$F$13,1,1,50),G$1,OFFSET(INDIRECT("Raw"&C18&"!$C$1"),$E$13+$A36,1,1,50))*1 -> 0 | H36: =SUMIF(OFFSET(INDIRECT("Raw"&C18&"!$C$1"),$F$13,1,1,50),H$1,OFFSET(INDIRECT("Raw"&C18&"!$C$1"),$E$13+$A36,1,1,50))*1 -> 29.81 | I36: =SUMIF(OFFSET(INDIRECT("Raw"&C18&"!$C$1"),$F$13,1,1,50),I$1,OFFSET(INDIRECT("Raw"&C18&"!$C$1"),$E$13+$A36,1,1,50))*1 -> 0 | J36: =SUMIF(OFFSET(INDIRECT("Raw"&C18&"!$C$1"),$F$13,1,1,50),J$1,OFFSET(INDIRECT("Raw"&C18&"!$C$1"),$E$13+$A36,1,1,50))*1 -> 0 | K36: =SUMIF(OFFSET(INDIRECT("Raw"&C18&"!$C$1"),$F$13,1,1,50),K$1,OFFSET(INDIRECT("Raw"&C18&"!$C$1"),$E$13+$A36,1,1,50))*1 -> 0 | L36: 29.81 | M36: =SUMIF(OFFSET(INDIRECT("Raw"&C18&"!$C$1"),$F$12,1,1,50),M$1,OFFSET(INDIRECT("Raw"&C18&"!$C$1"),$E$12+$A36,1,1,50))*1 -> 6.54 | N36: =SUMIF(OFFSET(INDIRECT("Raw"&C18&"!$C$1"),$F$12,1,1,50),N$1,OFFSET(INDIRECT("Raw"&C18&"!$C$1"),$E$12+$A36,1,1,50))*1 -> 0 | O36: =SUMIF(OFFSET(INDIRECT("Raw"&C18&"!$C$1"),$F$12,1,1,50),O$1,OFFSET(INDIRECT("Raw"&C18&"!$C$1"),$E$12+$A36,1,1,50))*1 -> 1.98 | P36: =SUMIF(OFFSET(INDIRECT("Raw"&C18&"!$C$1"),$F$12,1,1,50),P$1,OFFSET(INDIRECT("Raw"&C18&"!$C$1"),$E$12+$A36,1,1,50))*1 -> 0 | Q36: 8.52
A37: 21 | B37: 2027 | C37: =SUMIF(OFFSET(INDIRECT("Raw"&C18&"!$C$1"),$F$13,1,1,50),C$1,OFFSET(INDIRECT("Raw"&C18&"!$C$1"),$E$13+$A37,1,1,50))*1 -> 0 | D37: =SUMIF(OFFSET(INDIRECT("Raw"&C18&"!$C$1"),$F$13,1,1,50),D$1,OFFSET(INDIRECT("Raw"&C18&"!$C$1"),$E$13+$A37,1,1,50))*1 -> 0 | E37: =SUMIF(OFFSET(INDIRECT("Raw"&C18&"!$C$1"),$F$13,1,1,50),E$1,OFFSET(INDIRECT("Raw"&C18&"!$C$1"),$E$13+$A37,1,1,50))*1 -> 0 | F37: =SUMIF(OFFSET(INDIRECT("Raw"&C18&"!$C$1"),$F$13,1,1,50),F$1,OFFSET(INDIRECT("Raw"&C18&"!$C$1"),$E$13+$A37,1,1,50))*1 -> 0 | G37: =SUMIF(OFFSET(INDIRECT("Raw"&C18&"!$C$1"),$F$13,1,1,50),G$1,OFFSET(INDIRECT("Raw"&C18&"!$C$1"),$E$13+$A37,1,1,50))*1 -> 0 | H37: =SUMIF(OFFSET(INDIRECT("Raw"&C18&"!$C$1"),$F$13,1,1,50),H$1,OFFSET(INDIRECT("Raw"&C18&"!$C$1"),$E$13+$A37,1,1,50))*1 -> 26.16 | I37: =SUMIF(OFFSET(INDIRECT("Raw"&C18&"!$C$1"),$F$13,1,1,50),I$1,OFFSET(INDIRECT("Raw"&C18&"!$C$1"),$E$13+$A37,1,1,50))*1 -> 0 | J37: =SUMIF(OFFSET(INDIRECT("Raw"&C18&"!$C$1"),$F$13,1,1,50),J$1,OFFSET(INDIRECT("Raw"&C18&"!$C$1"),$E$13+$A37,1,1,50))*1 -> 0 | K37: =SUMIF(OFFSET(INDIRECT("Raw"&C18&"!$C$1"),$F$13,1,1,50),K$1,OFFSET(INDIRECT("Raw"&C18&"!$C$1"),$E$13+$A37,1,1,50))*1 -> 0 | L37: 26.16 | M37: =SUMIF(OFFSET(INDIRECT("Raw"&C18&"!$C$1"),$F$12,1,1,50),M$1,OFFSET(INDIRECT("Raw"&C18&"!$C$1"),$E$12+$A37,1,1,50))*1 -> 10.11 | N37: =SUMIF(OFFSET(INDIRECT("Raw"&C18&"!$C$1"),$F$12,1,1,50),N$1,OFFSET(INDIRECT("Raw"&C18&"!$C$1"),$E$12+$A37,1,1,50))*1 -> 0 | O37: =SUMIF(OFFSET(INDIRECT("Raw"&C18&"!$C$1"),$F$12,1,1,50),O$1,OFFSET(INDIRECT("Raw"&C18&"!$C$1"),$E$12+$A37,1,1,50))*1 -> 4.86 | P37: =SUMIF(OFFSET(INDIRECT("Raw"&C18&"!$C$1"),$F$12,1,1,50),P$1,OFFSET(INDIRECT("Raw"&C18&"!$C$1"),$E$12+$A37,1,1,50))*1 -> 0 | Q37: 14.97
A38: 22 | B38: 2028 | C38: =SUMIF(OFFSET(INDIRECT("Raw"&C18&"!$C$1"),$F$13,1,1,50),C$1,OFFSET(INDIRECT("Raw"&C18&"!$C$1"),$E$13+$A38,1,1,50))*1 -> 0 | D38: =SUMIF(OFFSET(INDIRECT("Raw"&C18&"!$C$1"),$F$13,1,1,50),D$1,OFFSET(INDIRECT("Raw"&C18&"!$C$1"),$E$13+$A38,1,1,50))*1 -> 0 | E38: =SUMIF(OFFSET(INDIRECT("Raw"&C18&"!$C$1"),$F$13,1,1,50),E$1,OFFSET(INDIRECT("Raw"&C18&"!$C$1"),$E$13+$A38,1,1,50))*1 -> 0 | F38: =SUMIF(OFFSET(INDIRECT("Raw"&C18&"!$C$1"),$F$13,1,1,50),F$1,OFFSET(INDIRECT("Raw"&C18&"!$C$1"),$E$13+$A38,1,1,50))*1 -> 0 | G38: =SUMIF(OFFSET(INDIRECT("Raw"&C18&"!$C$1"),$F$13,1,1,50),G$1,OFFSET(INDIRECT("Raw"&C18&"!$C$1"),$E$13+$A38,1,1,50))*1 -> 0 | H38: =SUMIF(OFFSET(INDIRECT("Raw"&C18&"!$C$1"),$F$13,1,1,50),H$1,OFFSET(INDIRECT("Raw"&C18&"!$C$1"),$E$13+$A38,1,1,50))*1 -> 30.96 | I38: =SUMIF(OFFSET(INDIRECT("Raw"&C18&"!$C$1"),$F$13,1,1,50),I$1,OFFSET(INDIRECT("Raw"&C18&"!$C$1"),$E$13+$A38,1,1,50))*1 -> 0 | J38: =SUMIF(OFFSET(INDIRECT("Raw"&C18&"!$C$1"),$F$13,1,1,50),J$1,OFFSET(INDIRECT("Raw"&C18&"!$C$1"),$E$13+$A38,1,1,50))*1 -> 0 | K38: =SUMIF(OFFSET(INDIRECT("Raw"&C18&"!$C$1"),$F$13,1,1,50),K$1,OFFSET(INDIRECT("Raw"&C18&"!$C$1"),$E$13+$A38,1,1,50))*1 -> 0 | L38: 30.96 | M38: =SUMIF(OFFSET(INDIRECT("Raw"&C18&"!$C$1"),$F$12,1,1,50),M$1,OFFSET(INDIRECT("Raw"&C18&"!$C$1"),$E$12+$A38,1,1,50))*1 -> 10.66 | N38: =SUMIF(OFFSET(INDIRECT("Raw"&C18&"!$C$1"),$F$12,1,1,50),N$1,OFFSET(INDIRECT("Raw"&C18&"!$C$1"),$E$12+$A38,1,1,50))*1 -> 0 | O38: =SUMIF(OFFSET(INDIRECT("Raw"&C18&"!$C$1"),$F$12,1,1,50),O$1,OFFSET(INDIRECT("Raw"&C18&"!$C$1"),$E$12+$A38,1,1,50))*1 -> 5.25 | P38: =SUMIF(OFFSET(INDIRECT("Raw"&C18&"!$C$1"),$F$12,1,1,50),P$1,OFFSET(INDIRECT("Raw"&C18&"!$C$1"),$E$12+$A38,1,1,50))*1 -> 0 | Q38: 15.91
A39: 23 | B39: 2029 | C39: =SUMIF(OFFSET(INDIRECT("Raw"&C18&"!$C$1"),$F$13,1,1,50),C$1,OFFSET(INDIRECT("Raw"&C18&"!$C$1"),$E$13+$A39,1,1,50))*1 -> 0 | D39: =SUMIF(OFFSET(INDIRECT("Raw"&C18&"!$C$1"),$F$13,1,1,50),D$1,OFFSET(INDIRECT("Raw"&C18&"!$C$1"),$E$13+$A39,1,1,50))*1 -> 0 | E39: =SUMIF(OFFSET(INDIRECT("Raw"&C18&"!$C$1"),$F$13,1,1,50),E$1,OFFSET(INDIRECT("Raw"&C18&"!$C$1"),$E$13+$A39,1,1,50))*1 -> 0 | F39: =SUMIF(OFFSET(INDIRECT("Raw"&C18&"!$C$1"),$F$13,1,1,50),F$1,OFFSET(INDIRECT("Raw"&C18&"!$C$1"),$E$13+$A39,1,1,50))*1 -> 0 | G39: =SUMIF(OFFSET(INDIRECT("Raw"&C18&"!$C$1"),$F$13,1,1,50),G$1,OFFSET(INDIRECT("Raw"&C18&"!$C$1"),$E$13+$A39,1,1,50))*1 -> 0 | H39: =SUMIF(OFFSET(INDIRECT("Raw"&C18&"!$C$1"),$F$13,1,1,50),H$1,OFFSET(INDIRECT("Raw"&C18&"!$C$1"),$E$13+$A39,1,1,50))*1 -> 17.79 | I39: =SUMIF(OFFSET(INDIRECT("Raw"&C18&"!$C$1"),$F$13,1,1,50),I$1,OFFSET(INDIRECT("Raw"&C18&"!$C$1"),$E$13+$A39,1,1,50))*1 -> 0 | J39: =SUMIF(OFFSET(INDIRECT("Raw"&C18&"!$C$1"),$F$13,1,1,50),J$1,OFFSET(INDIRECT("Raw"&C18&"!$C$1"),$E$13+$A39,1,1,50))*1 -> 0 | K39: =SUMIF(OFFSET(INDIRECT("Raw"&C18&"!$C$1"),$F$13,1,1,50),K$1,OFFSET(INDIRECT("Raw"&C18&"!$C$1"),$E$13+$A39,1,1,50))*1 -> 0 | L39: 17.79 | M39: =SUMIF(OFFSET(INDIRECT("Raw"&C18&"!$C$1"),$F$12,1,1,50),M$1,OFFSET(INDIRECT("Raw"&C18&"!$C$1"),$E$12+$A39,1,1,50))*1 -> 25.68 | N39: =SUMIF(OFFSET(INDIRECT("Raw"&C18&"!$C$1"),$F$12,1,1,50),N$1,OFFSET(INDIRECT("Raw"&C18&"!$C$1"),$E$12+$A39,1,1,50))*1 -> 0 | O39: =SUMIF(OFFSET(INDIRECT("Raw"&C18&"!$C$1"),$F$12,1,1,50),O$1,OFFSET(INDIRECT("Raw"&C18&"!$C$1"),$E$12+$A39,1,1,50))*1 -> 5.64 | P39: =SUMIF(OFFSET(INDIRECT("Raw"&C18&"!$C$1"),$F$12,1,1,50),P$1,OFFSET(INDIRECT("Raw"&C18&"!$C$1"),$E$12+$A39,1,1,50))*1 -> 0 | Q39: 31.32
A40: 24 | B40: 2030 | C40: =SUMIF(OFFSET(INDIRECT("Raw"&C18&"!$C$1"),$F$13,1,1,50),C$1,OFFSET(INDIRECT("Raw"&C18&"!$C$1"),$E$13+$A40,1,1,50))*1 -> 0 | D40: =SUMIF(OFFSET(INDIRECT("Raw"&C18&"!$C$1"),$F$13,1,1,50),D$1,OFFSET(INDIRECT("Raw"&C18&"!$C$1"),$E$13+$A40,1,1,50))*1 -> 5.55 | E40: =SUMIF(OFFSET(INDIRECT("Raw"&C18&"!$C$1"),$F$13,1,1,50),E$1,OFFSET(INDIRECT("Raw"&C18&"!$C$1"),$E$13+$A40,1,1,50))*1 -> 0 | F40: =SUMIF(OFFSET(INDIRECT("Raw"&C18&"!$C$1"),$F$13,1,1,50),F$1,OFFSET(INDIRECT("Raw"&C18&"!$C$1"),$E$13+$A40,1,1,50))*1 -> 0 | G40: =SUMIF(OFFSET(INDIRECT("Raw"&C18&"!$C$1"),$F$13,1,1,50),G$1,OFFSET(INDIRECT("Raw"&C18&"!$C$1"),$E$13+$A40,1,1,50))*1 -> 0 | H40: =SUMIF(OFFSET(INDIRECT("Raw"&C18&"!$C$1"),$F$13,1,1,50),H$1,OFFSET(INDIRECT("Raw"&C18&"!$C$1"),$E$13+$A40,1,1,50))*1 -> 15.64 | I40: =SUMIF(OFFSET(INDIRECT("Raw"&C18&"!$C$1"),$F$13,1,1,50),I$1,OFFSET(INDIRECT("Raw"&C18&"!$C$1"),$E$13+$A40,1,1,50))*1 -> 0 | J40: =SUMIF(OFFSET(INDIRECT("Raw"&C18&"!$C$1"),$F$13,1,1,50),J$1,OFFSET(INDIRECT("Raw"&C18&"!$C$1"),$E$13+$A40,1,1,50))*1 -> 0 | K40: =SUMIF(OFFSET(INDIRECT("Raw"&C18&"!$C$1"),$F$13,1,1,50),K$1,OFFSET(INDIRECT("Raw"&C18&"!$C$1"),$E$13+$A40,1,1,50))*1 -> 0 | L40: 21.19 | M40: =SUMIF(OFFSET(INDIRECT("Raw"&C18&"!$C$1"),$F$12,1,1,50),M$1,OFFSET(INDIRECT("Raw"&C18&"!$C$1"),$E$12+$A40,1,1,50))*1 -> 37.69 | N40: =SUMIF(OFFSET(INDIRECT("Raw"&C18&"!$C$1"),$F$12,1,1,50),N$1,OFFSET(INDIRECT("Raw"&C18&"!$C$1"),$E$12+$A40,1,1,50))*1 -> 0 | O40: =SUMIF(OFFSET(INDIRECT("Raw"&C18&"!$C$1"),$F$12,1,1,50),O$1,OFFSET(INDIRECT("Raw"&C18&"!$C$1"),$E$12+$A40,1,1,50))*1 -> 10.27 | P40: =SUMIF(OFFSET(INDIRECT("Raw"&C18&"!$C$1"),$F$12,1,1,50),P$1,OFFSET(INDIRECT("Raw"&C18&"!$C$1"),$E$12+$A40,1,1,50))*1 -> 0 | Q40: 47.96
A41: 25 | B41: 2031 | C41: =SUMIF(OFFSET(INDIRECT("Raw"&C18&"!$C$1"),$F$13,1,1,50),C$1,OFFSET(INDIRECT("Raw"&C18&"!$C$1"),$E$13+$A41,1,1,50))*1 -> 0 | D41: =SUMIF(OFFSET(INDIRECT("Raw"&C18&"!$C$1"),$F$13,1,1,50),D$1,OFFSET(INDIRECT("Raw"&C18&"!$C$1"),$E$13+$A41,1,1,50))*1 -> 4.37 | E41: =SUMIF(OFFSET(INDIRECT("Raw"&C18&"!$C$1"),$F$13,1,1,50),E$1,OFFSET(INDIRECT("Raw"&C18&"!$C$1"),$E$13+$A41,1,1,50))*1 -> 0 | F41: =SUMIF(OFFSET(INDIRECT("Raw"&C18&"!$C$1"),$F$13,1,1,50),F$1,OFFSET(INDIRECT("Raw"&C18&"!$C$1"),$E$13+$A41,1,1,50))*1 -> 0 | G41: =SUMIF(OFFSET(INDIRECT("Raw"&C18&"!$C$1"),$F$13,1,1,50),G$1,OFFSET(INDIRECT("Raw"&C18&"!$C$1"),$E$13+$A41,1,1,50))*1 -> 0 | H41: =SUMIF(OFFSET(INDIRECT("Raw"&C18&"!$C$1"),$F$13,1,1,50),H$1,OFFSET(INDIRECT("Raw"&C18&"!$C$1"),$E$13+$A41,1,1,50))*1 -> 0 | I41: =SUMIF(OFFSET(INDIRECT("Raw"&C18&"!$C$1"),$F$13,1,1,50),I$1,OFFSET(INDIRECT("Raw"&C18&"!$C$1"),$E$13+$A41,1,1,50))*1 -> 0 | J41: =SUMIF(OFFSET(INDIRECT("Raw"&C18&"!$C$1"),$F$13,1,1,50),J$1,OFFSET(INDIRECT("Raw"&C18&"!$C$1"),$E$13+$A41,1,1,50))*1 -> 0 | K41: =SUMIF(OFFSET(INDIRECT("Raw"&C18&"!$C$1"),$F$13,1,1,50),K$1,OFFSET(INDIRECT("Raw"&C18&"!$C$1"),$E$13+$A41,1,1,50))*1 -> 0 | L41: 4.37 | M41: =SUMIF(OFFSET(INDIRECT("Raw"&C18&"!$C$1"),$F$12,1,1,50),M$1,OFFSET(INDIRECT("Raw"&C18&"!$C$1"),$E$12+$A41,1,1,50))*1 -> 17.68 | N41: =SUMIF(OFFSET(INDIRECT("Raw"&C18&"!$C$1"),$F$12,1,1,50),N$1,OFFSET(INDIRECT("Raw"&C18&"!$C$1"),$E$12+$A41,1,1,50))*1 -> 0 | O41: =SUMIF(OFFSET(INDIRECT("Raw"&C18&"!$C$1"),$F$12,1,1,50),O$1,OFFSET(INDIRECT("Raw"&C18&"!$C$1"),$E$12+$A41,1,1,50))*1 -> 0.84 | P41: =SUMIF(OFFSET(INDIRECT("Raw"&C18&"!$C$1"),$F$12,1,1,50),P$1,OFFSET(INDIRECT("Raw"&C18&"!$C$1"),$E$12+$A41,1,1,50))*1 -> 0 | Q41: 18.52
A42: 26 | B42: 2040 | C42: =SUMIF(OFFSET(INDIRECT("Raw"&C18&"!$C$1"),$F$13,1,1,50),C$1,OFFSET(INDIRECT("Raw"&C18&"!$C$1"),$E$13+$A42,1,1,50))*1 -> 0 | D42: =SUMIF(OFFSET(INDIRECT("Raw"&C18&"!$C$1"),$F$13,1,1,50),D$1,OFFSET(INDIRECT("Raw"&C18&"!$C$1"),$E$13+$A42,1,1,50))*1 -> 54.71 | E42: =SUMIF(OFFSET(INDIRECT("Raw"&C18&"!$C$1"),$F$13,1,1,50),E$1,OFFSET(INDIRECT("Raw"&C18&"!$C$1"),$E$13+$A42,1,1,50))*1 -> 0 | F42: =SUMIF(OFFSET(INDIRECT("Raw"&C18&"!$C$1"),$F$13,1,1,50),F$1,OFFSET(INDIRECT("Raw"&C18&"!$C$1"),$E$13+$A42,1,1,50))*1 -> 0 | G42: =SUMIF(OFFSET(INDIRECT("Raw"&C18&"!$C$1"),$F$13,1,1,50),G$1,OFFSET(INDIRECT("Raw"&C18&"!$C$1"),$E$13+$A42,1,1,50))*1 -> 0 | H42: =SUMIF(OFFSET(INDIRECT("Raw"&C18&"!$C$1"),$F$13,1,1,50),H$1,OFFSET(INDIRECT("Raw"&C18&"!$C$1"),$E$13+$A42,1,1,50))*1 -> 0.01 | I42: =SUMIF(OFFSET(INDIRECT("Raw"&C18&"!$C$1"),$F$13,1,1,50),I$1,OFFSET(INDIRECT("Raw"&C18&"!$C$1"),$E$13+$A42,1,1,50))*1 -> 0 | J42: =SUMIF(OFFSET(INDIRECT("Raw"&C18&"!$C$1"),$F$13,1,1,50),J$1,OFFSET(INDIRECT("Raw"&C18&"!$C$1"),$E$13+$A42,1,1,50))*1 -> 0 | K42: =SUMIF(OFFSET(INDIRECT("Raw"&C18&"!$C$1"),$F$13,1,1,50),K$1,OFFSET(INDIRECT("Raw"&C18&"!$C$1"),$E$13+$A42,1,1,50))*1 -> 3.02 | L42: 57.74 | M42: =SUMIF(OFFSET(INDIRECT("Raw"&C18&"!$C$1"),$F$12,1,1,50),M$1,OFFSET(INDIRECT("Raw"&C18&"!$C$1"),$E$12+$A42,1,1,50))*1 -> 31.54 | N42: =SUMIF(OFFSET(INDIRECT("Raw"&C18&"!$C$1"),$F$12,1,1,50),N$1,OFFSET(INDIRECT("Raw"&C18&"!$C$1"),$E$12+$A42,1,1,50))*1 -> 0 | O42: =SUMIF(OFFSET(INDIRECT("Raw"&C18&"!$C$1"),$F$12,1,1,50),O$1,OFFSET(INDIRECT("Raw"&C18&"!$C$1"),$E$12+$A42,1,1,50))*1 -> 6.05 | P42: =SUMIF(OFFSET(INDIRECT("Raw"&C18&"!$C$1"),$F$12,1,1,50),P$1,OFFSET(INDIRECT("Raw"&C18&"!$C$1"),$E$12+$A42,1,1,50))*1 -> 0 | Q42: 37.59
A43: 27 | B43: 2050 | C43: =SUMIF(OFFSET(INDIRECT("Raw"&C18&"!$C$1"),$F$13,1,1,50),C$1,OFFSET(INDIRECT("Raw"&C18&"!$C$1"),$E$13+$A43,1,1,50))*1 -> 0 | D43: =SUMIF(OFFSET(INDIRECT("Raw"&C18&"!$C$1"),$F$13,1,1,50),D$1,OFFSET(INDIRECT("Raw"&C18&"!$C$1"),$E$13+$A43,1,1,50))*1 -> 89.58 | E43: =SUMIF(OFFSET(INDIRECT("Raw"&C18&"!$C$1"),$F$13,1,1,50),E$1,OFFSET(INDIRECT("Raw"&C18&"!$C$1"),$E$13+$A43,1,1,50))*1 -> 0 | F43: =SUMIF(OFFSET(INDIRECT("Raw"&C18&"!$C$1"),$F$13,1,1,50),F$1,OFFSET(INDIRECT("Raw"&C18&"!$C$1"),$E$13+$A43,1,1,50))*1 -> 0 | G43: =SUMIF(OFFSET(INDIRECT("Raw"&C18&"!$C$1"),$F$13,1,1,50),G$1,OFFSET(INDIRECT("Raw"&C18&"!$C$1"),$E$13+$A43,1,1,50))*1 -> 0 | H43: =SUMIF(OFFSET(INDIRECT("Raw"&C18&"!$C$1"),$F$13,1,1,50),H$1,OFFSET(INDIRECT("Raw"&C18&"!$C$1"),$E$13+$A43,1,1,50))*1 -> 10.83 | I43: =SUMIF(OFFSET(INDIRECT("Raw"&C18&"!$C$1"),$F$13,1,1,50),I$1,OFFSET(INDIRECT("Raw"&C18&"!$C$1"),$E$13+$A43,1,1,50))*1 -> 0 | J43: =SUMIF(OFFSET(INDIRECT("Raw"&C18&"!$C$1"),$F$13,1,1,50),J$1,OFFSET(INDIRECT("Raw"&C18&"!$C$1"),$E$13+$A43,1,1,50))*1 -> 0 | K43: =SUMIF(OFFSET(INDIRECT("Raw"&C18&"!$C$1"),$F$13,1,1,50),K$1,OFFSET(INDIRECT("Raw"&C18&"!$C$1"),$E$13+$A43,1,1,50))*1 -> 0 | L43: 100.41 | M43: =SUMIF(OFFSET(INDIRECT("Raw"&C18&"!$C$1"),$F$12,1,1,50),M$1,OFFSET(INDIRECT("Raw"&C18&"!$C$1"),$E$12+$A43,1,1,50))*1 -> 61.51 | N43: =SUMIF(OFFSET(INDIRECT("Raw"&C18&"!$C$1"),$F$12,1,1,50),N$1,OFFSET(INDIRECT("Raw"&C18&"!$C$1"),$E$12+$A43,1,1,50))*1 -> 0 | O43: =SUMIF(OFFSET(INDIRECT("Raw"&C18&"!$C$1"),$F$12,1,1,50),O$1,OFFSET(INDIRECT("Raw"&C18&"!$C$1"),$E$12+$A43,1,1,50))*1 -> 4.85 | P43: =SUMIF(OFFSET(INDIRECT("Raw"&C18&"!$C$1"),$F$12,1,1,50),P$1,OFFSET(INDIRECT("Raw"&C18&"!$C$1"),$E$12+$A43,1,1,50))*1 -> 0 | Q43: 66.36
B44: =C18 -> BUw | C44: =SUM(C20:C40) -> 0 | D44: =SUM(D20:D40) -> 125.34 | E44: 0 | F44: 0 | G44: 0 | H44: 250.01 | I44: 0 | J44: 0 | K44: 11.35 | L44: 386.7 | M44: 193.23 | N44: 0 | O44: 60.79 | P44: 0 | Q44: 254.02
B47: =B18+1 -> 2 | C47: =VLOOKUP(B47,OtherParams!$B$29:$E$41,3,FALSE) -> CIw | D47: =VLOOKUP(C47,OtherParams!$D$29:$E$41,2,FALSE) -> Cote d'Ivoire
A48: GWh | C48: =OFFSET(C$6,lang,0) -> Coal | D48: Oil | E48: Gas | F48: Nuclear | G48: Hydro | H48: Biomass | I48: Solar PV | J48: Solar Thermal | K48: Wind | L48: Total Cent. | M48: Dist. Oil | N48: Dist. Biomass | O48: Mini Hydro | P48: Dist.Solar PV | Q48: Total Decent
A49: 4 | B49: =OFFSET(INDIRECT("Raw"&$E$11&"!$C$1"),$E$13+A49,0) -> 2010 | C49: =SUMIF(OFFSET(INDIRECT("Raw"&C47&"!$C$1"),$F$13,1,1,50),C$1,OFFSET(INDIRECT("Raw"&C47&"!$C$1"),$E$13+$A49,1,1,50))*1 -> 0 | D49: =SUMIF(OFFSET(INDIRECT("Raw"&C47&"!$C$1"),$F$13,1,1,50),D$1,OFFSET(INDIRECT("Raw"&C47&"!$C$1"),$E$13+$A49,1,1,50))*1 -> 0 | E49: =SUMIF(OFFSET(INDIRECT("Raw"&C47&"!$C$1"),$F$13,1,1,50),E$1,OFFSET(INDIRECT("Raw"&C47&"!$C$1"),$E$13+$A49,1,1,50))*1 -> 0 | F49: =SUMIF(OFFSET(INDIRECT("Raw"&C47&"!$C$1"),$F$13,1,1,50),F$1,OFFSET(INDIRECT("Raw"&C47&"!$C$1"),$E$13+$A49,1,1,50))*1 -> 0 | G49: =SUMIF(OFFSET(INDIRECT("Raw"&C47&"!$C$1"),$F$13,1,1,50),G$1,OFFSET(INDIRECT("Raw"&C47&"!$C$1"),$E$13+$A49,1,1,50))*1 -> 0 | H49: =SUMIF(OFFSET(INDIRECT("Raw"&C47&"!$C$1"),$F$13,1,1,50),H$1,OFFSET(INDIRECT("Raw"&C47&"!$C$1"),$E$13+$A49,1,1,50))*1 -> 0 | I49: =SUMIF(OFFSET(INDIRECT("Raw"&C47&"!$C$1"),$F$13,1,1,50),I$1,OFFSET(INDIRECT("Raw"&C47&"!$C$1"),$E$13+$A49,1,1,50))*1 -> 0 | J49: =SUMIF(OFFSET(INDIRECT("Raw"&C47&"!$C$1"),$F$13,1,1,50),J$1,OFFSET(INDIRECT("Raw"&C47&"!$C$1"),$E$13+$A49,1,1,50))*1 -> 0 | K49: =SUMIF(OFFSET(INDIRECT("Raw"&C47&"!$C$1"),$F$13,1,1,50),K$1,OFFSET(INDIRECT("Raw"&C47&"!$C$1"),$E$13+$A49,1,1,50))*1 -> 0 | L49: =SUM(C49:K49) -> 0 | M49: =SUMIF(OFFSET(INDIRECT("Raw"&C47&"!$C$1"),$F$12,1,1,50),M$1,OFFSET(INDIRECT("Raw"&C47&"!$C$1"),$E$12+$A49,1,1,50))*1 -> 0 | N49: =SUMIF(OFFSET(INDIRECT("Raw"&C47&"!$C$1"),$F$12,1,1,50),N$1,OFFSET(INDIRECT("Raw"&C47&"!$C$1"),$E$12+$A49,1,1,50))*1 -> 0 | O49: =SUMIF(OFFSET(INDIRECT("Raw"&C47&"!$C$1"),$F$12,1,1,50),O$1,OFFSET(INDIRECT("Raw"&C47&"!$C$1"),$E$12+$A49,1,1,50))*1 -> 0 | P49: =SUMIF(OFFSET(INDIRECT("Raw"&C47&"!$C$1"),$F$12,1,1,50),P$1,OFFSET(INDIRECT("Raw"&C47&"!$C$1"),$E$12+$A49,1,1,50))*1 -> 0 | Q49: =SUM(M49:P49) -> 0
A50: =A49+1 -> 5 | B50: 2011 | C50: =SUMIF(OFFSET(INDIRECT("Raw"&C47&"!$C$1"),$F$13,1,1,50),C$1,OFFSET(INDIRECT("Raw"&C47&"!$C$1"),$E$13+$A50,1,1,50))*1 -> 0 | D50: =SUMIF(OFFSET(INDIRECT("Raw"&C47&"!$C$1"),$F$13,1,1,50),D$1,OFFSET(INDIRECT("Raw"&C47&"!$C$1"),$E$13+$A50,1,1,50))*1 -> 0 | E50: =SUMIF(OFFSET(INDIRECT("Raw"&C47&"!$C$1"),$F$13,1,1,50),E$1,OFFSET(INDIRECT("Raw"&C47&"!$C$1"),$E$13+$A50,1,1,50))*1 -> 0 | F50: =SUMIF(OFFSET(INDIRECT("Raw"&C47&"!$C$1"),$F$13,1,1,50),F$1,OFFSET(INDIRECT("Raw"&C47&"!$C$1"),$E$13+$A50,1,1,50))*1 -> 0 | G50: =SUMIF(OFFSET(INDIRECT("Raw"&C47&"!$C$1"),$F$13,1,1,50),G$1,OFFSET(INDIRECT("Raw"&C47&"!$C$1"),$E$13+$A50,1,1,50))*1 -> 0 | H50: =SUMIF(OFFSET(INDIRECT("Raw"&C47&"!$C$1"),$F$13,1,1,50),H$1,OFFSET(INDIRECT("Raw"&C47&"!$C$1"),$E$13+$A50,1,1,50))*1 -> 0 | I50: =SUMIF(OFFSET(INDIRECT("Raw"&C47&"!$C$1"),$F$13,1,1,50),I$1,OFFSET(INDIRECT("Raw"&C47&"!$C$1"),$E$13+$A50,1,1,50))*1 -> 0 | J50: =SUMIF(OFFSET(INDIRECT("Raw"&C47&"!$C$1"),$F$13,1,1,50),J$1,OFFSET(INDIRECT("Raw"&C47&"!$C$1"),$E$13+$A50,1,1,50))*1 -> 0 | K50: =SUMIF(OFFSET(INDIRECT("Raw"&C47&"!$C$1"),$F$13,1,1,50),K$1,OFFSET(INDIRECT("Raw"&C47&"!$C$1"),$E$13+$A50,1,1,50))*1 -> 0 | L50: 0 | M50: =SUMIF(OFFSET(INDIRECT("Raw"&C47&"!$C$1"),$F$12,1,1,50),M$1,OFFSET(INDIRECT("Raw"&C47&"!$C$1"),$E$12+$A50,1,1,50))*1 -> 31.4 | N50: =SUMIF(OFFSET(INDIRECT("Raw"&C47&"!$C$1"),$F$12,1,1,50),N$1,OFFSET(INDIRECT("Raw"&C47&"!$C$1"),$E$12+$A50,1,1,50))*1 -> 0 | O50: =SUMIF(OFFSET(INDIRECT("Raw"&C47&"!$C$1"),$F$12,1,1,50),O$1,OFFSET(INDIRECT("Raw"&C47&"!$C$1"),$E$12+$A50,1,1,50))*1 -> 0 | P50: =SUMIF(OFFSET(INDIRECT("Raw"&C47&"!$C$1"),$F$12,1,1,50),P$1,OFFSET(INDIRECT("Raw"&C47&"!$C$1"),$E$12+$A50,1,1,50))*1 -> 0 | Q50: 31.4
A51: =A50+1 -> 6 | B51: 2012 | C51: =SUMIF(OFFSET(INDIRECT("Raw"&C47&"!$C$1"),$F$13,1,1,50),C$1,OFFSET(INDIRECT("Raw"&C47&"!$C$1"),$E$13+$A51,1,1,50))*1 -> 0 | D51: =SUMIF(OFFSET(INDIRECT("Raw"&C47&"!$C$1"),$F$13,1,1,50),D$1,OFFSET(INDIRECT("Raw"&C47&"!$C$1"),$E$13+$A51,1,1,50))*1 -> 0 | E51: =SUMIF(OFFSET(INDIRECT("Raw"&C47&"!$C$1"),$F$13,1,1,50),E$1,OFFSET(INDIRECT("Raw"&C47&"!$C$1"),$E$13+$A51,1,1,50))*1 -> 0 | F51: =SUMIF(OFFSET(INDIRECT("Raw"&C47&"!$C$1"),$F$13,1,1,50),F$1,OFFSET(INDIRECT("Raw"&C47&"!$C$1"),$E$13+$A51,1,1,50))*1 -> 0 | G51: =SUMIF(OFFSET(INDIRECT("Raw"&C47&"!$C$1"),$F$13,1,1,50),G$1,OFFSET(INDIRECT("Raw"&C47&"!$C$1"),$E$13+$A51,1,1,50))*1 -> 0 | H51: =SUMIF(OFFSET(INDIRECT("Raw"&C47&"!$C$1"),$F$13,1,1,50),H$1,OFFSET(INDIRECT("Raw"&C47&"!$C$1"),$E$13+$A51,1,1,50))*1 -> 0 | I51: =SUMIF(OFFSET(INDIRECT("Raw"&C47&"!$C$1"),$F$13,1,1,50),I$1,OFFSET(INDIRECT("Raw"&C47&"!$C$1"),$E$13+$A51,1,1,50))*1 -> 0 | J51: =SUMIF(OFFSET(INDIRECT("Raw"&C47&"!$C$1"),$F$13,1,1,50),J$1,OFFSET(INDIRECT("Raw"&C47&"!$C$1"),$E$13+$A51,1,1,50))*1 -> 0 | K51: =SUMIF(OFFSET(INDIRECT("Raw"&C47&"!$C$1"),$F$13,1,1,50),K$1,OFFSET(INDIRECT("Raw"&C47&"!$C$1"),$E$13+$A51,1,1,50))*1 -> 0 | L51: 0 | M51: =SUMIF(OFFSET(INDIRECT("Raw"&C47&"!$C$1"),$F$12,1,1,50),M$1,OFFSET(INDIRECT("Raw"&C47&"!$C$1"),$E$12+$A51,1,1,50))*1 -> 85.85 | N51: =SUMIF(OFFSET(INDIRECT("Raw"&C47&"!$C$1"),$F$12,1,1,50),N$1,OFFSET(INDIRECT("Raw"&C47&"!$C$1"),$E$12+$A51,1,1,50))*1 -> 0 | O51: =SUMIF(OFFSET(INDIRECT("Raw"&C47&"!$C$1"),$F$12,1,1,50),O$1,OFFSET(INDIRECT("Raw"&C47&"!$C$1"),$E$12+$A51,1,1,50))*1 -> 0 | P51: =SUMIF(OFFSET(INDIRECT("Raw"&C47&"!$C$1"),$F$12,1,1,50),P$1,OFFSET(INDIRECT("Raw"&C47&"!$C$1"),$E$12+$A51,1,1,50))*1 -> 0 | Q51: 85.85
A52: 7 | B52: 2013 | C52: =SUMIF(OFFSET(INDIRECT("Raw"&C47&"!$C$1"),$F$13,1,1,50),C$1,OFFSET(INDIRECT("Raw"&C47&"!$C$1"),$E$13+$A52,1,1,50))*1 -> 0 | D52: =SUMIF(OFFSET(INDIRECT("Raw"&C47&"!$C$1"),$F$13,1,1,50),D$1,OFFSET(INDIRECT("Raw"&C47&"!$C$1"),$E$13+$A52,1,1,50))*1 -> 0 | E52: =SUMIF(OFFSET(INDIRECT("Raw"&C47&"!$C$1"),$F$13,1,1,50),E$1,OFFSET(INDIRECT("Raw"&C47&"!$C$1"),$E$13+$A52,1,1,50))*1 -> 530 | F52: =SUMIF(OFFSET(INDIRECT("Raw"&C47&"!$C$1"),$F$13,1,1,50),F$1,OFFSET(INDIRECT("Raw"&C47&"!$C$1"),$E$13+$A52,1,1,50))*1 -> 0 | G52: =SUMIF(OFFSET(INDIRECT("Raw"&C47&"!$C$1"),$F$13,1,1,50),G$1,OFFSET(INDIRECT("Raw"&C47&"!$C$1"),$E$13+$A52,1,1,50))*1 -> 0 | H52: =SUMIF(OFFSET(INDIRECT("Raw"&C47&"!$C$1"),$F$13,1,1,50),H$1,OFFSET(INDIRECT("Raw"&C47&"!$C$1"),$E$13+$A52,1,1,50))*1 -> 0 | I52: =SUMIF(OFFSET(INDIRECT("Raw"&C47&"!$C$1"),$F$13,1,1,50),I$1,OFFSET(INDIRECT("Raw"&C47&"!$C$1"),$E$13+$A52,1,1,50))*1 -> 0 | J52: =SUMIF(OFFSET(INDIRECT("Raw"&C47&"!$C$1"),$F$13,1,1,50),J$1,OFFSET(INDIRECT("Raw"&C47&"!$C$1"),$E$13+$A52,1,1,50))*1 -> 0 | K52: =SUMIF(OFFSET(INDIRECT("Raw"&C47&"!$C$1"),$F$13,1,1,50),K$1,OFFSET(INDIRECT("Raw"&C47&"!$C$1"),$E$13+$A52,1,1,50))*1 -> 0 | L52: 530 | M52: =SUMIF(OFFSET(INDIRECT("Raw"&C47&"!$C$1"),$F$12,1,1,50),M$1,OFFSET(INDIRECT("Raw"&C47&"!$C$1"),$E$12+$A52,1,1,50))*1 -> 0 | N52: =SUMIF(OFFSET(INDIRECT("Raw"&C47&"!$C$1"),$F$12,1,1,50),N$1,OFFSET(INDIRECT("Raw"&C47&"!$C$1"),$E$12+$A52,1,1,50))*1 -> 0 | O52: =SUMIF(OFFSET(INDIRECT("Raw"&C47&"!$C$1"),$F$12,1,1,50),O$1,OFFSET(INDIRECT("Raw"&C47&"!$C$1"),$E$12+$A52,1,1,50))*1 -> 0 | P52: =SUMIF(OFFSET(INDIRECT("Raw"&C47&"!$C$1"),$F$12,1,1,50),P$1,OFFSET(INDIRECT("Raw"&C47&"!$C$1"),$E$12+$A52,1,1,50))*1 -> 0 | Q52: 0
A53: 8 | B53: 2014 | C53: =SUMIF(OFFSET(INDIRECT("Raw"&C47&"!$C$1"),$F$13,1,1,50),C$1,OFFSET(INDIRECT("Raw"&C47&"!$C$1"),$E$13+$A53,1,1,50))*1 -> 0 | D53: =SUMIF(OFFSET(INDIRECT("Raw"&C47&"!$C$1"),$F$13,1,1,50),D$1,OFFSET(INDIRECT("Raw"&C47&"!$C$1"),$E$13+$A53,1,1,50))*1 -> 0 | E53: =SUMIF(OFFSET(INDIRECT("Raw"&C47&"!$C$1"),$F$13,1,1,50),E$1,OFFSET(INDIRECT("Raw"&C47&"!$C$1"),$E$13+$A53,1,1,50))*1 -> 372 | F53: =SUMIF(OFFSET(INDIRECT("Raw"&C47&"!$C$1"),$F$13,1,1,50),F$1,OFFSET(INDIRECT("Raw"&C47&"!$C$1"),$E$13+$A53,1,1,50))*1 -> 0 | G53: =SUMIF(OFFSET(INDIRECT("Raw"&C47&"!$C$1"),$F$13,1,1,50),G$1,OFFSET(INDIRECT("Raw"&C47&"!$C$1"),$E$13+$A53,1,1,50))*1 -> 0 | H53: =SUMIF(OFFSET(INDIRECT("Raw"&C47&"!$C$1"),$F$13,1,1,50),H$1,OFFSET(INDIRECT("Raw"&C47&"!$C$1"),$E$13+$A53,1,1,50))*1 -> 0 | I53: =SUMIF(OFFSET(INDIRECT("Raw"&C47&"!$C$1"),$F$13,1,1,50),I$1,OFFSET(INDIRECT("Raw"&C47&"!$C$1"),$E$13+$A53,1,1,50))*1 -> 0 | J53: =SUMIF(OFFSET(INDIRECT("Raw"&C47&"!$C$1"),$F$13,1,1,50),J$1,OFFSET(INDIRECT("Raw"&C47&"!$C$1"),$E$13+$A53,1,1,50))*1 -> 0 | K53: =SUMIF(OFFSET(INDIRECT("Raw"&C47&"!$C$1"),$F$13,1,1,50),K$1,OFFSET(INDIRECT("Raw"&C47&"!$C$1"),$E$13+$A53,1,1,50))*1 -> 0 | L53: 372 | M53: =SUMIF(OFFSET(INDIRECT("Raw"&C47&"!$C$1"),$F$12,1,1,50),M$1,OFFSET(INDIRECT("Raw"&C47&"!$C$1"),$E$12+$A53,1,1,50))*1 -> 26.73 | N53: =SUMIF(OFFSET(INDIRECT("Raw"&C47&"!$C$1"),$F$12,1,1,50),N$1,OFFSET(INDIRECT("Raw"&C47&"!$C$1"),$E$12+$A53,1,1,50))*1 -> 0 | O53: =SUMIF(OFFSET(INDIRECT("Raw"&C47&"!$C$1"),$F$12,1,1,50),O$1,OFFSET(INDIRECT("Raw"&C47&"!$C$1"),$E$12+$A53,1,1,50))*1 -> 24.92 | P53: =SUMIF(OFFSET(INDIRECT("Raw"&C47&"!$C$1"),$F$12,1,1,50),P$1,OFFSET(INDIRECT("Raw"&C47&"!$C$1"),$E$12+$A53,1,1,50))*1 -> 0 | Q53: 51.65
A54: 9 | B54: 2015 | C54: =SUMIF(OFFSET(INDIRECT("Raw"&C47&"!$C$1"),$F$13,1,1,50),C$1,OFFSET(INDIRECT("Raw"&C47&"!$C$1"),$E$13+$A54,1,1,50))*1 -> 0 | D54: =SUMIF(OFFSET(INDIRECT("Raw"&C47&"!$C$1"),$F$13,1,1,50),D$1,OFFSET(INDIRECT("Raw"&C47&"!$C$1"),$E$13+$A54,1,1,50))*1 -> 0 | E54: =SUMIF(OFFSET(INDIRECT("Raw"&C47&"!$C$1"),$F$13,1,1,50),E$1,OFFSET(INDIRECT("Raw"&C47&"!$C$1"),$E$13+$A54,1,1,50))*1 -> 261 | F54: =SUMIF(OFFSET(INDIRECT("Raw"&C47&"!$C$1"),$F$13,1,1,50),F$1,OFFSET(INDIRECT("Raw"&C47&"!$C$1"),$E$13+$A54,1,1,50))*1 -> 0 | G54: =SUMIF(OFFSET(INDIRECT("Raw"&C47&"!$C$1"),$F$13,1,1,50),G$1,OFFSET(INDIRECT("Raw"&C47&"!$C$1"),$E$13+$A54,1,1,50))*1 -> 0 | H54: =SUMIF(OFFSET(INDIRECT("Raw"&C47&"!$C$1"),$F$13,1,1,50),H$1,OFFSET(INDIRECT("Raw"&C47&"!$C$1"),$E$13+$A54,1,1,50))*1 -> 0 | I54: =SUMIF(OFFSET(INDIRECT("Raw"&C47&"!$C$1"),$F$13,1,1,50),I$1,OFFSET(INDIRECT("Raw"&C47&"!$C$1"),$E$13+$A54,1,1,50))*1 -> 0 | J54: =SUMIF(OFFSET(INDIRECT("Raw"&C47&"!$C$1"),$F$13,1,1,50),J$1,OFFSET(INDIRECT("Raw"&C47&"!$C$1"),$E$13+$A54,1,1,50))*1 -> 0 | K54: =SUMIF(OFFSET(INDIRECT("Raw"&C47&"!$C$1"),$F$13,1,1,50),K$1,OFFSET(INDIRECT("Raw"&C47&"!$C$1"),$E$13+$A54,1,1,50))*1 -> 0 | L54: 261 | M54: =SUMIF(OFFSET(INDIRECT("Raw"&C47&"!$C$1"),$F$12,1,1,50),M$1,OFFSET(INDIRECT("Raw"&C47&"!$C$1"),$E$12+$A54,1,1,50))*1 -> 23.78 | N54: =SUMIF(OFFSET(INDIRECT("Raw"&C47&"!$C$1"),$F$12,1,1,50),N$1,OFFSET(INDIRECT("Raw"&C47&"!$C$1"),$E$12+$A54,1,1,50))*1 -> 0 | O54: =SUMIF(OFFSET(INDIRECT("Raw"&C47&"!$C$1"),$F$12,1,1,50),O$1,OFFSET(INDIRECT("Raw"&C47&"!$C$1"),$E$12+$A54,1,1,50))*1 -> 3.42 | P54: =SUMIF(OFFSET(INDIRECT("Raw"&C47&"!$C$1"),$F$12,1,1,50),P$1,OFFSET(INDIRECT("Raw"&C47&"!$C$1"),$E$12+$A54,1,1,50))*1 -> 0 | Q54: 27.2
A55: 10 | B55: 2016 | C55: =SUMIF(OFFSET(INDIRECT("Raw"&C47&"!$C$1"),$F$13,1,1,50),C$1,OFFSET(INDIRECT("Raw"&C47&"!$C$1"),$E$13+$A55,1,1,50))*1 -> 0 | D55: =SUMIF(OFFSET(INDIRECT("Raw"&C47&"!$C$1"),$F$13,1,1,50),D$1,OFFSET(INDIRECT("Raw"&C47&"!$C$1"),$E$13+$A55,1,1,50))*1 -> 0 | E55: =SUMIF(OFFSET(INDIRECT("Raw"&C47&"!$C$1"),$F$13,1,1,50),E$1,OFFSET(INDIRECT("Raw"&C47&"!$C$1"),$E$13+$A55,1,1,50))*1 -> 1150 | F55: =SUMIF(OFFSET(INDIRECT("Raw"&C47&"!$C$1"),$F$13,1,1,50),F$1,OFFSET(INDIRECT("Raw"&C47&"!$C$1"),$E$13+$A55,1,1,50))*1 -> 0 | G55: =SUMIF(OFFSET(INDIRECT("Raw"&C47&"!$C$1"),$F$13,1,1,50),G$1,OFFSET(INDIRECT("Raw"&C47&"!$C$1"),$E$13+$A55,1,1,50))*1 -> 0 | H55: =SUMIF(OFFSET(INDIRECT("Raw"&C47&"!$C$1"),$F$13,1,1,50),H$1,OFFSET(INDIRECT("Raw"&C47&"!$C$1"),$E$13+$A55,1,1,50))*1 -> 0 | I55: =SUMIF(OFFSET(INDIRECT("Raw"&C47&"!$C$1"),$F$13,1,1,50),I$1,OFFSET(INDIRECT("Raw"&C47&"!$C$1"),$E$13+$A55,1,1,50))*1 -> 0 | J55: =SUMIF(OFFSET(INDIRECT("Raw"&C47&"!$C$1"),$F$13,1,1,50),J$1,OFFSET(INDIRECT("Raw"&C47&"!$C$1"),$E$13+$A55,1,1,50))*1 -> 0 | K55: =SUMIF(OFFSET(INDIRECT("Raw"&C47&"!$C$1"),$F$13,1,1,50),K$1,OFFSET(INDIRECT("Raw"&C47&"!$C$1"),$E$13+$A55,1,1,50))*1 -> 0 | L55: 1150 | M55: =SUMIF(OFFSET(INDIRECT("Raw"&C47&"!$C$1"),$F$12,1,1,50),M$1,OFFSET(INDIRECT("Raw"&C47&"!$C$1"),$E$12+$A55,1,1,50))*1 -> 24.58 | N55: =SUMIF(OFFSET(INDIRECT("Raw"&C47&"!$C$1"),$F$12,1,1,50),N$1,OFFSET(INDIRECT("Raw"&C47&"!$C$1"),$E$12+$A55,1,1,50))*1 -> 0 | O55: =SUMIF(OFFSET(INDIRECT("Raw"&C47&"!$C$1"),$F$12,1,1,50),O$1,OFFSET(INDIRECT("Raw"&C47&"!$C$1"),$E$12+$A55,1,1,50))*1 -> 5.06 | P55: =SUMIF(OFFSET(INDIRECT("Raw"&C47&"!$C$1"),$F$12,1,1,50),P$1,OFFSET(INDIRECT("Raw"&C47&"!$C$1"),$E$12+$A55,1,1,50))*1 -> 0 | Q55: 29.64
A56: 11 | B56: 2017 | C56: =SUMIF(OFFSET(INDIRECT("Raw"&C47&"!$C$1"),$F$13,1,1,50),C$1,OFFSET(INDIRECT("Raw"&C47&"!$C$1"),$E$13+$A56,1,1,50))*1 -> 0 | D56: =SUMIF(OFFSET(INDIRECT("Raw"&C47&"!$C$1"),$F$13,1,1,50),D$1,OFFSET(INDIRECT("Raw"&C47&"!$C$1"),$E$13+$A56,1,1,50))*1 -> 0 | E56: =SUMIF(OFFSET(INDIRECT("Raw"&C47&"!$C$1"),$F$13,1,1,50),E$1,OFFSET(INDIRECT("Raw"&C47&"!$C$1"),$E$13+$A56,1,1,50))*1 -> 838.08 | F56: =SUMIF(OFFSET(INDIRECT("Raw"&C47&"!$C$1"),$F$13,1,1,50),F$1,OFFSET(INDIRECT("Raw"&C47&"!$C$1"),$E$13+$A56,1,1,50))*1 -> 0 | G56: =SUMIF(OFFSET(INDIRECT("Raw"&C47&"!$C$1"),$F$13,1,1,50),G$1,OFFSET(INDIRECT("Raw"&C47&"!$C$1"),$E$13+$A56,1,1,50))*1 -> 0 | H56: =SUMIF(OFFSET(INDIRECT("Raw"&C47&"!$C$1"),$F$13,1,1,50),H$1,OFFSET(INDIRECT("Raw"&C47&"!$C$1"),$E$13+$A56,1,1,50))*1 -> 0 | I56: =SUMIF(OFFSET(INDIRECT("Raw"&C47&"!$C$1"),$F$13,1,1,50),I$1,OFFSET(INDIRECT("Raw"&C47&"!$C$1"),$E$13+$A56,1,1,50))*1 -> 0 | J56: =SUMIF(OFFSET(INDIRECT("Raw"&C47&"!$C$1"),$F$13,1,1,50),J$1,OFFSET(INDIRECT("Raw"&C47&"!$C$1"),$E$13+$A56,1,1,50))*1 -> 0 | K56: =SUMIF(OFFSET(INDIRECT("Raw"&C47&"!$C$1"),$F$13,1,1,50),K$1,OFFSET(INDIRECT("Raw"&C47&"!$C$1"),$E$13+$A56,1,1,50))*1 -> 0 | L56: 838.08 | M56: =SUMIF(OFFSET(INDIRECT("Raw"&C47&"!$C$1"),$F$12,1,1,50),M$1,OFFSET(INDIRECT("Raw"&C47&"!$C$1"),$E$12+$A56,1,1,50))*1 -> 25.31 | N56: =SUMIF(OFFSET(INDIRECT("Raw"&C47&"!$C$1"),$F$12,1,1,50),N$1,OFFSET(INDIRECT("Raw"&C47&"!$C$1"),$E$12+$A56,1,1,50))*1 -> 0 | O56: =SUMIF(OFFSET(INDIRECT("Raw"&C47&"!$C$1"),$F$12,1,1,50),O$1,OFFSET(INDIRECT("Raw"&C47&"!$C$1"),$E$12+$A56,1,1,50))*1 -> 5.35 | P56: =SUMIF(OFFSET(INDIRECT("Raw"&C47&"!$C$1"),$F$12,1,1,50),P$1,OFFSET(INDIRECT("Raw"&C47&"!$C$1"),$E$12+$A56,1,1,50))*1 -> 0 | Q56: 30.66
A57: 12 | B57: 2018 | C57: =SUMIF(OFFSET(INDIRECT("Raw"&C47&"!$C$1"),$F$13,1,1,50),C$1,OFFSET(INDIRECT("Raw"&C47&"!$C$1"),$E$13+$A57,1,1,50))*1 -> 0 | D57: =SUMIF(OFFSET(INDIRECT("Raw"&C47&"!$C$1"),$F$13,1,1,50),D$1,OFFSET(INDIRECT("Raw"&C47&"!$C$1"),$E$13+$A57,1,1,50))*1 -> 0 | E57: =SUMIF(OFFSET(INDIRECT("Raw"&C47&"!$C$1"),$F$13,1,1,50),E$1,OFFSET(INDIRECT("Raw"&C47&"!$C$1"),$E$13+$A57,1,1,50))*1 -> 0 | F57: =SUMIF(OFFSET(INDIRECT("Raw"&C47&"!$C$1"),$F$13,1,1,50),F$1,OFFSET(INDIRECT("Raw"&C47&"!$C$1"),$E$13+$A57,1,1,50))*1 -> 0 | G57: =SUMIF(OFFSET(INDIRECT("Raw"&C47&"!$C$1"),$F$13,1,1,50),G$1,OFFSET(INDIRECT("Raw"&C47&"!$C$1"),$E$13+$A57,1,1,50))*1 -> 0 | H57: =SUMIF(OFFSET(INDIRECT("Raw"&C47&"!$C$1"),$F$13,1,1,50),H$1,OFFSET(INDIRECT("Raw"&C47&"!$C$1"),$E$13+$A57,1,1,50))*1 -> 0 | I57: =SUMIF(OFFSET(INDIRECT("Raw"&C47&"!$C$1"),$F$13,1,1,50),I$1,OFFSET(INDIRECT("Raw"&C47&"!$C$1"),$E$13+$A57,1,1,50))*1 -> 0 | J57: =SUMIF(OFFSET(INDIRECT("Raw"&C47&"!$C$1"),$F$13,1,1,50),J$1,OFFSET(INDIRECT("Raw"&C47&"!$C$1"),$E$13+$A57,1,1,50))*1 -> 0 | K57: =SUMIF(OFFSET(INDIRECT("Raw"&C47&"!$C$1"),$F$13,1,1,50),K$1,OFFSET(INDIRECT("Raw"&C47&"!$C$1"),$E$13+$A57,1,1,50))*1 -> 0 | L57: 0 | M57: =SUMIF(OFFSET(INDIRECT("Raw"&C47&"!$C$1"),$F$12,1,1,50),M$1,OFFSET(INDIRECT("Raw"&C47&"!$C$1"),$E$12+$A57,1,1,50))*1 -> 25.24 | N57: =SUMIF(OFFSET(INDIRECT("Raw"&C47&"!$C$1"),$F$12,1,1,50),N$1,OFFSET(INDIRECT("Raw"&C47&"!$C$1"),$E$12+$A57,1,1,50))*1 -> 0 | O57: =SUMIF(OFFSET(INDIRECT("Raw"&C47&"!$C$1"),$F$12,1,1,50),O$1,OFFSET(INDIRECT("Raw"&C47&"!$C$1"),$E$12+$A57,1,1,50))*1 -> 5.35 | P57: =SUMIF(OFFSET(INDIRECT("Raw"&C47&"!$C$1"),$F$12,1,1,50),P$1,OFFSET(INDIRECT("Raw"&C47&"!$C$1"),$E$12+$A57,1,1,50))*1 -> 0 | Q57: 30.59
A58: 13 | B58: 2019 | C58: =SUMIF(OFFSET(INDIRECT("Raw"&C47&"!$C$1"),$F$13,1,1,50),C$1,OFFSET(INDIRECT("Raw"&C47&"!$C$1"),$E$13+$A58,1,1,50))*1 -> 0 | D58: =SUMIF(OFFSET(INDIRECT("Raw"&C47&"!$C$1"),$F$13,1,1,50),D$1,OFFSET(INDIRECT("Raw"&C47&"!$C$1"),$E$13+$A58,1,1,50))*1 -> 0 | E58: =SUMIF(OFFSET(INDIRECT("Raw"&C47&"!$C$1"),$F$13,1,1,50),E$1,OFFSET(INDIRECT("Raw"&C47&"!$C$1"),$E$13+$A58,1,1,50))*1 -> 0 | F58: =SUMIF(OFFSET(INDIRECT("Raw"&C47&"!$C$1"),$F$13,1,1,50),F$1,OFFSET(INDIRECT("Raw"&C47&"!$C$1"),$E$13+$A58,1,1,50))*1 -> 0 | G58: =SUMIF(OFFSET(INDIRECT("Raw"&C47&"!$C$1"),$F$13,1,1,50),G$1,OFFSET(INDIRECT("Raw"&C47&"!$C$1"),$E$13+$A58,1,1,50))*1 -> 0 | H58: =SUMIF(OFFSET(INDIRECT("Raw"&C47&"!$C$1"),$F$13,1,1,50),H$1,OFFSET(INDIRECT("Raw"&C47&"!$C$1"),$E$13+$A58,1,1,50))*1 -> 0 | I58: =SUMIF(OFFSET(INDIRECT("Raw"&C47&"!$C$1"),$F$13,1,1,50),I$1,OFFSET(INDIRECT("Raw"&C47&"!$C$1"),$E$13+$A58,1,1,50))*1 -> 0 | J58: =SUMIF(OFFSET(INDIRECT("Raw"&C47&"!$C$1"),$F$13,1,1,50),J$1,OFFSET(INDIRECT("Raw"&C47&"!$C$1"),$E$13+$A58,1,1,50))*1 -> 0 | K58: =SUMIF(OFFSET(INDIRECT("Raw"&C47&"!$C$1"),$F$13,1,1,50),K$1,OFFSET(INDIRECT("Raw"&C47&"!$C$1"),$E$13+$A58,1,1,50))*1 -> 0 | L58: 0 | M58: =SUMIF(OFFSET(INDIRECT("Raw"&C47&"!$C$1"),$F$12,1,1,50),M$1,OFFSET(INDIRECT("Raw"&C47&"!$C$1"),$E$12+$A58,1,1,50))*1 -> 25.47 | N58: =SUMIF(OFFSET(INDIRECT("Raw"&C47&"!$C$1"),$F$12,1,1,50),N$1,OFFSET(INDIRECT("Raw"&C47&"!$C$1"),$E$12+$A58,1,1,50))*1 -> 0 | O58: =SUMIF(OFFSET(INDIRECT("Raw"&C47&"!$C$1"),$F$12,1,1,50),O$1,OFFSET(INDIRECT("Raw"&C47&"!$C$1"),$E$12+$A58,1,1,50))*1 -> 4.68 | P58: =SUMIF(OFFSET(INDIRECT("Raw"&C47&"!$C$1"),$F$12,1,1,50),P$1,OFFSET(INDIRECT("Raw"&C47&"!$C$1"),$E$12+$A58,1,1,50))*1 -> 0 | Q58: 30.15
A59: 14 | B59: 2020 | C59: =SUMIF(OFFSET(INDIRECT("Raw"&C47&"!$C$1"),$F$13,1,1,50),C$1,OFFSET(INDIRECT("Raw"&C47&"!$C$1"),$E$13+$A59,1,1,50))*1 -> 0 | D59: =SUMIF(OFFSET(INDIRECT("Raw"&C47&"!$C$1"),$F$13,1,1,50),D$1,OFFSET(INDIRECT("Raw"&C47&"!$C$1"),$E$13+$A59,1,1,50))*1 -> 0 | E59: =SUMIF(OFFSET(INDIRECT("Raw"&C47&"!$C$1"),$F$13,1,1,50),E$1,OFFSET(INDIRECT("Raw"&C47&"!$C$1"),$E$13+$A59,1,1,50))*1 -> 0 | F59: =SUMIF(OFFSET(INDIRECT("Raw"&C47&"!$C$1"),$F$13,1,1,50),F$1,OFFSET(INDIRECT("Raw"&C47&"!$C$1"),$E$13+$A59,1,1,50))*1 -> 0 | G59: =SUMIF(OFFSET(INDIRECT("Raw"&C47&"!$C$1"),$F$13,1,1,50),G$1,OFFSET(INDIRECT("Raw"&C47&"!$C$1"),$E$13+$A59,1,1,50))*1 -> 0 | H59: =SUMIF(OFFSET(INDIRECT("Raw"&C47&"!$C$1"),$F$13,1,1,50),H$1,OFFSET(INDIRECT("Raw"&C47&"!$C$1"),$E$13+$A59,1,1,50))*1 -> 0 | I59: =SUMIF(OFFSET(INDIRECT("Raw"&C47&"!$C$1"),$F$13,1,1,50),I$1,OFFSET(INDIRECT("Raw"&C47&"!$C$1"),$E$13+$A59,1,1,50))*1 -> 0 | J59: =SUMIF(OFFSET(INDIRECT("Raw"&C47&"!$C$1"),$F$13,1,1,50),J$1,OFFSET(INDIRECT("Raw"&C47&"!$C$1"),$E$13+$A59,1,1,50))*1 -> 0 | K59: =SUMIF(OFFSET(INDIRECT("Raw"&C47&"!$C$1"),$F$13,1,1,50),K$1,OFFSET(INDIRECT("Raw"&C47&"!$C$1"),$E$13+$A59,1,1,50))*1 -> 0 | L59: 0 | M59: =SUMIF(OFFSET(INDIRECT("Raw"&C47&"!$C$1"),$F$12,1,1,50),M$1,OFFSET(INDIRECT("Raw"&C47&"!$C$1"),$E$12+$A59,1,1,50))*1 -> 10.05 | N59: =SUMIF(OFFSET(INDIRECT("Raw"&C47&"!$C$1"),$F$12,1,1,50),N$1,OFFSET(INDIRECT("Raw"&C47&"!$C$1"),$E$12+$A59,1,1,50))*1 -> 0 | O59: =SUMIF(OFFSET(INDIRECT("Raw"&C47&"!$C$1"),$F$12,1,1,50),O$1,OFFSET(INDIRECT("Raw"&C47&"!$C$1"),$E$12+$A59,1,1,50))*1 -> 3.11 | P59: =SUMIF(OFFSET(INDIRECT("Raw"&C47&"!$C$1"),$F$12,1,1,50),P$1,OFFSET(INDIRECT("Raw"&C47&"!$C$1"),$E$12+$A59,1,1,50))*1 -> 0 | Q59: 13.16
A60: 15 | B60: 2021 | C60: =SUMIF(OFFSET(INDIRECT("Raw"&C47&"!$C$1"),$F$13,1,1,50),C$1,OFFSET(INDIRECT("Raw"&C47&"!$C$1"),$E$13+$A60,1,1,50))*1 -> 0 | D60: =SUMIF(OFFSET(INDIRECT("Raw"&C47&"!$C$1"),$F$13,1,1,50),D$1,OFFSET(INDIRECT("Raw"&C47&"!$C$1"),$E$13+$A60,1,1,50))*1 -> 0 | E60: =SUMIF(OFFSET(INDIRECT("Raw"&C47&"!$C$1"),$F$13,1,1,50),E$1,OFFSET(INDIRECT("Raw"&C47&"!$C$1"),$E$13+$A60,1,1,50))*1 -> 0 | F60: =SUMIF(OFFSET(INDIRECT("Raw"&C47&"!$C$1"),$F$13,1,1,50),F$1,OFFSET(INDIRECT("Raw"&C47&"!$C$1"),$E$13+$A60,1,1,50))*1 -> 0 | G60: =SUMIF(OFFSET(INDIRECT("Raw"&C47&"!$C$1"),$F$13,1,1,50),G$1,OFFSET(INDIRECT("Raw"&C47&"!$C$1"),$E$13+$A60,1,1,50))*1 -> 0 | H60: =SUMIF(OFFSET(INDIRECT("Raw"&C47&"!$C$1"),$F$13,1,1,50),H$1,OFFSET(INDIRECT("Raw"&C47&"!$C$1"),$E$13+$A60,1,1,50))*1 -> 0 | I60: =SUMIF(OFFSET(INDIRECT("Raw"&C47&"!$C$1"),$F$13,1,1,50),I$1,OFFSET(INDIRECT("Raw"&C47&"!$C$1"),$E$13+$A60,1,1,50))*1 -> 0 | J60: =SUMIF(OFFSET(INDIRECT("Raw"&C47&"!$C$1"),$F$13,1,1,50),J$1,OFFSET(INDIRECT("Raw"&C47&"!$C$1"),$E$13+$A60,1,1,50))*1 -> 0 | K60: =SUMIF(OFFSET(INDIRECT("Raw"&C47&"!$C$1"),$F$13,1,1,50),K$1,OFFSET(INDIRECT("Raw"&C47&"!$C$1"),$E$13+$A60,1,1,50))*1 -> 0 | L60: 0 | M60: =SUMIF(OFFSET(INDIRECT("Raw"&C47&"!$C$1"),$F$12,1,1,50),M$1,OFFSET(INDIRECT("Raw"&C47&"!$C$1"),$E$12+$A60,1,1,50))*1 -> 45.42 | N60: =SUMIF(OFFSET(INDIRECT("Raw"&C47&"!$C$1"),$F$12,1,1,50),N$1,OFFSET(INDIRECT("Raw"&C47&"!$C$1"),$E$12+$A60,1,1,50))*1 -> 0 | O60: =SUMIF(OFFSET(INDIRECT("Raw"&C47&"!$C$1"),$F$12,1,1,50),O$1,OFFSET(INDIRECT("Raw"&C47&"!$C$1"),$E$12+$A60,1,1,50))*1 -> 6.41 | P60: =SUMIF(OFFSET(INDIRECT("Raw"&C47&"!$C$1"),$F$12,1,1,50),P$1,OFFSET(INDIRECT("Raw"&C47&"!$C$1"),$E$12+$A60,1,1,50))*1 -> 0 | Q60: 51.83
A61: 16 | B61: 2022 | C61: =SUMIF(OFFSET(INDIRECT("Raw"&C47&"!$C$1"),$F$13,1,1,50),C$1,OFFSET(INDIRECT("Raw"&C47&"!$C$1"),$E$13+$A61,1,1,50))*1 -> 0 | D61: =SUMIF(OFFSET(INDIRECT("Raw"&C47&"!$C$1"),$F$13,1,1,50),D$1,OFFSET(INDIRECT("Raw"&C47&"!$C$1"),$E$13+$A61,1,1,50))*1 -> 0 | E61: =SUMIF(OFFSET(INDIRECT("Raw"&C47&"!$C$1"),$F$13,1,1,50),E$1,OFFSET(INDIRECT("Raw"&C47&"!$C$1"),$E$13+$A61,1,1,50))*1 -> 0 | F61: =SUMIF(OFFSET(INDIRECT("Raw"&C47&"!$C$1"),$F$13,1,1,50),F$1,OFFSET(INDIRECT("Raw"&C47&"!$C$1"),$E$13+$A61,1,1,50))*1 -> 0 | G61: =SUMIF(OFFSET(INDIRECT("Raw"&C47&"!$C$1"),$F$13,1,1,50),G$1,OFFSET(INDIRECT("Raw"&C47&"!$C$1"),$E$13+$A61,1,1,50))*1 -> 0 | H61: =SUMIF(OFFSET(INDIRECT("Raw"&C47&"!$C$1"),$F$13,1,1,50),H$1,OFFSET(INDIRECT("Raw"&C47&"!$C$1"),$E$13+$A61,1,1,50))*1 -> 0 | I61: =SUMIF(OFFSET(INDIRECT("Raw"&C47&"!$C$1"),$F$13,1,1,50),I$1,OFFSET(INDIRECT("Raw"&C47&"!$C$1"),$E$13+$A61,1,1,50))*1 -> 0 | J61: =SUMIF(OFFSET(INDIRECT("Raw"&C47&"!$C$1"),$F$13,1,1,50),J$1,OFFSET(INDIRECT("Raw"&C47&"!$C$1"),$E$13+$A61,1,1,50))*1 -> 0 | K61: =SUMIF(OFFSET(INDIRECT("Raw"&C47&"!$C$1"),$F$13,1,1,50),K$1,OFFSET(INDIRECT("Raw"&C47&"!$C$1"),$E$13+$A61,1,1,50))*1 -> 0 | L61: 0 | M61: =SUMIF(OFFSET(INDIRECT("Raw"&C47&"!$C$1"),$F$12,1,1,50),M$1,OFFSET(INDIRECT("Raw"&C47&"!$C$1"),$E$12+$A61,1,1,50))*1 -> 100.3 | N61: =SUMIF(OFFSET(INDIRECT("Raw"&C47&"!$C$1"),$F$12,1,1,50),N$1,OFFSET(INDIRECT("Raw"&C47&"!$C$1"),$E$12+$A61,1,1,50))*1 -> 0 | O61: =SUMIF(OFFSET(INDIRECT("Raw"&C47&"!$C$1"),$F$12,1,1,50),O$1,OFFSET(INDIRECT("Raw"&C47&"!$C$1"),$E$12+$A61,1,1,50))*1 -> 7 | P61: =SUMIF(OFFSET(INDIRECT("Raw"&C47&"!$C$1"),$F$12,1,1,50),P$1,OFFSET(INDIRECT("Raw"&C47&"!$C$1"),$E$12+$A61,1,1,50))*1 -> 0 | Q61: 107.3
A62: 17 | B62: 2023 | C62: =SUMIF(OFFSET(INDIRECT("Raw"&C47&"!$C$1"),$F$13,1,1,50),C$1,OFFSET(INDIRECT("Raw"&C47&"!$C$1"),$E$13+$A62,1,1,50))*1 -> 0 | D62: =SUMIF(OFFSET(INDIRECT("Raw"&C47&"!$C$1"),$F$13,1,1,50),D$1,OFFSET(INDIRECT("Raw"&C47&"!$C$1"),$E$13+$A62,1,1,50))*1 -> 0 | E62: =SUMIF(OFFSET(INDIRECT("Raw"&C47&"!$C$1"),$F$13,1,1,50),E$1,OFFSET(INDIRECT("Raw"&C47&"!$C$1"),$E$13+$A62,1,1,50))*1 -> 0 | F62: =SUMIF(OFFSET(INDIRECT("Raw"&C47&"!$C$1"),$F$13,1,1,50),F$1,OFFSET(INDIRECT("Raw"&C47&"!$C$1"),$E$13+$A62,1,1,50))*1 -> 0 | G62: =SUMIF(OFFSET(INDIRECT("Raw"&C47&"!$C$1"),$F$13,1,1,50),G$1,OFFSET(INDIRECT("Raw"&C47&"!$C$1"),$E$13+$A62,1,1,50))*1 -> 0 | H62: =SUMIF(OFFSET(INDIRECT("Raw"&C47&"!$C$1"),$F$13,1,1,50),H$1,OFFSET(INDIRECT("Raw"&C47&"!$C$1"),$E$13+$A62,1,1,50))*1 -> 0 | I62: =SUMIF(OFFSET(INDIRECT("Raw"&C47&"!$C$1"),$F$13,1,1,50),I$1,OFFSET(INDIRECT("Raw"&C47&"!$C$1"),$E$13+$A62,1,1,50))*1 -> 0 | J62: =SUMIF(OFFSET(INDIRECT("Raw"&C47&"!$C$1"),$F$13,1,1,50),J$1,OFFSET(INDIRECT("Raw"&C47&"!$C$1"),$E$13+$A62,1,1,50))*1 -> 0 | K62: =SUMIF(OFFSET(INDIRECT("Raw"&C47&"!$C$1"),$F$13,1,1,50),K$1,OFFSET(INDIRECT("Raw"&C47&"!$C$1"),$E$13+$A62,1,1,50))*1 -> 0 | L62: 0 | M62: =SUMIF(OFFSET(INDIRECT("Raw"&C47&"!$C$1"),$F$12,1,1,50),M$1,OFFSET(INDIRECT("Raw"&C47&"!$C$1"),$E$12+$A62,1,1,50))*1 -> 14.95 | N62: =SUMIF(OFFSET(INDIRECT("Raw"&C47&"!$C$1"),$F$12,1,1,50),N$1,OFFSET(INDIRECT("Raw"&C47&"!$C$1"),$E$12+$A62,1,1,50))*1 -> 0 | O62: =SUMIF(OFFSET(INDIRECT("Raw"&C47&"!$C$1"),$F$12,1,1,50),O$1,OFFSET(INDIRECT("Raw"&C47&"!$C$1"),$E$12+$A62,1,1,50))*1 -> 7.58 | P62: =SUMIF(OFFSET(INDIRECT("Raw"&C47&"!$C$1"),$F$12,1,1,50),P$1,OFFSET(INDIRECT("Raw"&C47&"!$C$1"),$E$12+$A62,1,1,50))*1 -> 0 | Q62: 22.53
A63: 18 | B63: 2024 | C63: =SUMIF(OFFSET(INDIRECT("Raw"&C47&"!$C$1"),$F$13,1,1,50),C$1,OFFSET(INDIRECT("Raw"&C47&"!$C$1"),$E$13+$A63,1,1,50))*1 -> 0 | D63: =SUMIF(OFFSET(INDIRECT("Raw"&C47&"!$C$1"),$F$13,1,1,50),D$1,OFFSET(INDIRECT("Raw"&C47&"!$C$1"),$E$13+$A63,1,1,50))*1 -> 0 | E63: =SUMIF(OFFSET(INDIRECT("Raw"&C47&"!$C$1"),$F$13,1,1,50),E$1,OFFSET(INDIRECT("Raw"&C47&"!$C$1"),$E$13+$A63,1,1,50))*1 -> 0 | F63: =SUMIF(OFFSET(INDIRECT("Raw"&C47&"!$C$1"),$F$13,1,1,50),F$1,OFFSET(INDIRECT("Raw"&C47&"!$C$1"),$E$13+$A63,1,1,50))*1 -> 0 | G63: =SUMIF(OFFSET(INDIRECT("Raw"&C47&"!$C$1"),$F$13,1,1,50),G$1,OFFSET(INDIRECT("Raw"&C47&"!$C$1"),$E$13+$A63,1,1,50))*1 -> 0 | H63: =SUMIF(OFFSET(INDIRECT("Raw"&C47&"!$C$1"),$F$13,1,1,50),H$1,OFFSET(INDIRECT("Raw"&C47&"!$C$1"),$E$13+$A63,1,1,50))*1 -> 0 | I63: =SUMIF(OFFSET(INDIRECT("Raw"&C47&"!$C$1"),$F$13,1,1,50),I$1,OFFSET(INDIRECT("Raw"&C47&"!$C$1"),$E$13+$A63,1,1,50))*1 -> 0 | J63: =SUMIF(OFFSET(INDIRECT("Raw"&C47&"!$C$1"),$F$13,1,1,50),J$1,OFFSET(INDIRECT("Raw"&C47&"!$C$1"),$E$13+$A63,1,1,50))*1 -> 0 | K63: =SUMIF(OFFSET(INDIRECT("Raw"&C47&"!$C$1"),$F$13,1,1,50),K$1,OFFSET(INDIRECT("Raw"&C47&"!$C$1"),$E$13+$A63,1,1,50))*1 -> 0 | L63: 0 | M63: =SUMIF(OFFSET(INDIRECT("Raw"&C47&"!$C$1"),$F$12,1,1,50),M$1,OFFSET(INDIRECT("Raw"&C47&"!$C$1"),$E$12+$A63,1,1,50))*1 -> 41.56 | N63: =SUMIF(OFFSET(INDIRECT("Raw"&C47&"!$C$1"),$F$12,1,1,50),N$1,OFFSET(INDIRECT("Raw"&C47&"!$C$1"),$E$12+$A63,1,1,50))*1 -> 0 | O63: =SUMIF(OFFSET(INDIRECT("Raw"&C47&"!$C$1"),$F$12,1,1,50),O$1,OFFSET(INDIRECT("Raw"&C47&"!$C$1"),$E$12+$A63,1,1,50))*1 -> 8 | P63: =SUMIF(OFFSET(INDIRECT("Raw"&C47&"!$C$1"),$F$12,1,1,50),P$1,OFFSET(INDIRECT("Raw"&C47&"!$C$1"),$E$12+$A63,1,1,50))*1 -> 0 | Q63: 49.56
A64: 19 | B64: 2025 | C64: =SUMIF(OFFSET(INDIRECT("Raw"&C47&"!$C$1"),$F$13,1,1,50),C$1,OFFSET(INDIRECT("Raw"&C47&"!$C$1"),$E$13+$A64,1,1,50))*1 -> 0 | D64: =SUMIF(OFFSET(INDIRECT("Raw"&C47&"!$C$1"),$F$13,1,1,50),D$1,OFFSET(INDIRECT("Raw"&C47&"!$C$1"),$E$13+$A64,1,1,50))*1 -> 0 | E64: =SUMIF(OFFSET(INDIRECT("Raw"&C47&"!$C$1"),$F$13,1,1,50),E$1,OFFSET(INDIRECT("Raw"&C47&"!$C$1"),$E$13+$A64,1,1,50))*1 -> 0 | F64: =SUMIF(OFFSET(INDIRECT("Raw"&C47&"!$C$1"),$F$13,1,1,50),F$1,OFFSET(INDIRECT("Raw"&C47&"!$C$1"),$E$13+$A64,1,1,50))*1 -> 0 | G64: =SUMIF(OFFSET(INDIRECT("Raw"&C47&"!$C$1"),$F$13,1,1,50),G$1,OFFSET(INDIRECT("Raw"&C47&"!$C$1"),$E$13+$A64,1,1,50))*1 -> 0 | H64: =SUMIF(OFFSET(INDIRECT("Raw"&C47&"!$C$1"),$F$13,1,1,50),H$1,OFFSET(INDIRECT("Raw"&C47&"!$C$1"),$E$13+$A64,1,1,50))*1 -> 0 | I64: =SUMIF(OFFSET(INDIRECT("Raw"&C47&"!$C$1"),$F$13,1,1,50),I$1,OFFSET(INDIRECT("Raw"&C47&"!$C$1"),$E$13+$A64,1,1,50))*1 -> 0 | J64: =SUMIF(OFFSET(INDIRECT("Raw"&C47&"!$C$1"),$F$13,1,1,50),J$1,OFFSET(INDIRECT("Raw"&C47&"!$C$1"),$E$13+$A64,1,1,50))*1 -> 0 | K64: =SUMIF(OFFSET(INDIRECT("Raw"&C47&"!$C$1"),$F$13,1,1,50),K$1,OFFSET(INDIRECT("Raw"&C47&"!$C$1"),$E$13+$A64,1,1,50))*1 -> 0 | L64: 0 | M64: =SUMIF(OFFSET(INDIRECT("Raw"&C47&"!$C$1"),$F$12,1,1,50),M$1,OFFSET(INDIRECT("Raw"&C47&"!$C$1"),$E$12+$A64,1,1,50))*1 -> 39.67 | N64: =SUMIF(OFFSET(INDIRECT("Raw"&C47&"!$C$1"),$F$12,1,1,50),N$1,OFFSET(INDIRECT("Raw"&C47&"!$C$1"),$E$12+$A64,1,1,50))*1 -> 0 | O64: =SUMIF(OFFSET(INDIRECT("Raw"&C47&"!$C$1"),$F$12,1,1,50),O$1,OFFSET(INDIRECT("Raw"&C47&"!$C$1"),$E$12+$A64,1,1,50))*1 -> 8.75 | P64: =SUMIF(OFFSET(INDIRECT("Raw"&C47&"!$C$1"),$F$12,1,1,50),P$1,OFFSET(INDIRECT("Raw"&C47&"!$C$1"),$E$12+$A64,1,1,50))*1 -> 0 | Q64: 48.42
A65: 20 | B65: 2026 | C65: =SUMIF(OFFSET(INDIRECT("Raw"&C47&"!$C$1"),$F$13,1,1,50),C$1,OFFSET(INDIRECT("Raw"&C47&"!$C$1"),$E$13+$A65,1,1,50))*1 -> 0 | D65: =SUMIF(OFFSET(INDIRECT("Raw"&C47&"!$C$1"),$F$13,1,1,50),D$1,OFFSET(INDIRECT("Raw"&C47&"!$C$1"),$E$13+$A65,1,1,50))*1 -> 0 | E65: =SUMIF(OFFSET(INDIRECT("Raw"&C47&"!$C$1"),$F$13,1,1,50),E$1,OFFSET(INDIRECT("Raw"&C47&"!$C$1"),$E$13+$A65,1,1,50))*1 -> 0 | F65: =SUMIF(OFFSET(INDIRECT("Raw"&C47&"!$C$1"),$F$13,1,1,50),F$1,OFFSET(INDIRECT("Raw"&C47&"!$C$1"),$E$13+$A65,1,1,50))*1 -> 0 | G65: =SUMIF(OFFSET(INDIRECT("Raw"&C47&"!$C$1"),$F$13,1,1,50),G$1,OFFSET(INDIRECT("Raw"&C47&"!$C$1"),$E$13+$A65,1,1,50))*1 -> 0 | H65: =SUMIF(OFFSET(INDIRECT("Raw"&C47&"!$C$1"),$F$13,1,1,50),H$1,OFFSET(INDIRECT("Raw"&C47&"!$C$1"),$E$13+$A65,1,1,50))*1 -> 0 | I65: =SUMIF(OFFSET(INDIRECT("Raw"&C47&"!$C$1"),$F$13,1,1,50),I$1,OFFSET(INDIRECT("Raw"&C47&"!$C$1"),$E$13+$A65,1,1,50))*1 -> 0 | J65: =SUMIF(OFFSET(INDIRECT("Raw"&C47&"!$C$1"),$F$13,1,1,50),J$1,OFFSET(INDIRECT("Raw"&C47&"!$C$1"),$E$13+$A65,1,1,50))*1 -> 0 | K65: =SUMIF(OFFSET(INDIRECT("Raw"&C47&"!$C$1"),$F$13,1,1,50),K$1,OFFSET(INDIRECT("Raw"&C47&"!$C$1"),$E$13+$A65,1,1,50))*1 -> 0 | L65: 0 | M65: =SUMIF(OFFSET(INDIRECT("Raw"&C47&"!$C$1"),$F$12,1,1,50),M$1,OFFSET(INDIRECT("Raw"&C47&"!$C$1"),$E$12+$A65,1,1,50))*1 -> 40.83 | N65: =SUMIF(OFFSET(INDIRECT("Raw"&C47&"!$C$1"),$F$12,1,1,50),N$1,OFFSET(INDIRECT("Raw"&C47&"!$C$1"),$E$12+$A65,1,1,50))*1 -> 0 | O65: =SUMIF(OFFSET(INDIRECT("Raw"&C47&"!$C$1"),$F$12,1,1,50),O$1,OFFSET(INDIRECT("Raw"&C47&"!$C$1"),$E$12+$A65,1,1,50))*1 -> 9.33 | P65: =SUMIF(OFFSET(INDIRECT("Raw"&C47&"!$C$1"),$F$12,1,1,50),P$1,OFFSET(INDIRECT("Raw"&C47&"!$C$1"),$E$12+$A65,1,1,50))*1 -> 0 | Q65: 50.16
